Workbook

Sheet PI vs x
A1: Measurement | B1: Hall
A2: Type | B2: Off-axis
A4: Project | B4: ='10 x=-2'!B5 -> 504314
A5: PS serial no | B5: ='10 x=-2'!B7 -> 2410090
A7: Measurement date | B7: =LEFT('10 x=-2'!B4,10) -> 03-09-2024
C11: Nominal gap [mm] | D11: Encoder [counts] | E11: Encoder [mm] | F11: PI [T^2mm^3] | G11: x [mm] | H11: Encoder value at 10 mm gap:
B12: ='PI vs x'!$C$12 & "mm gap" -> 10mm gap | C12: ='10 x=-2'!B48 -> 10 | D12: ='10 x=-2'!$B$50 -> 19.6225 | E12: =D12-$H$12+10 -> 10.0005 | F12: ='10 x=-2'!$K$3 -> 10697.16106 | G12: -2 | H12: 19.622
C13: =C12 -> 10 | D13: ='10 x=-1'!$B$50 -> 19.6225 | E13: =D13-$H$12+10 -> 10.0005 | F13: ='10 x=-1'!$K$3 -> 10702.9135 | G13: -1
C14: =C13 -> 10 | D14: ='10 x=0'!$B$50 -> 19.6225 | E14: 10.0005 | F14: ='10 x=0'!$K$3 -> 10700.83196 | G14: 0
C15: 10 | D15: ='10 x=1'!$B$50 -> 19.6225 | E15: 10.0005 | F15: ='10 x=1'!$K$3 -> 10699.90734 | G15: 1
C16: 10 | D16: ='10 x=2'!$B$50 -> 19.6225 | E16: 10.0005 | F16: ='10 x=2'!$K$3 -> 10695.10856 | G16: 2
B17: ='PI vs x'!$C$17 & "mm gap" -> 30mm gap | C17: ='30 x=-2'!B48 -> 30 | D17: ='30 x=-2'!$B$50 -> 39.6215 | E17: 29.9995 | F17: ='30 x=-2'!$K$3 -> 2484.194742 | G17: =G12 -> -2
C18: 30 | D18: ='30 x=-1'!$B$50 -> 39.6215 | E18: 29.9995 | F18: ='30 x=-1'!$K$3 -> 2486.500181 | G18: =G13 -> -1
C19: 30 | D19: ='30 x=0'!$B$50 -> 39.6215 | E19: 29.9995 | F19: ='30 x=0'!$K$3 -> 2487.789864 | G19: 0
C20: 30 | D20: ='30 x=1'!$B$50 -> 39.6215 | E20: 29.9995 | F20: ='30 x=1'!$K$3 -> 2484.796989 | G20: 1
C21: 30 | D21: ='30 x=2'!$B$50 -> 39.6215 | E21: 29.9995 | F21: ='30 x=2'!$K$3 -> 2481.015277 | G21: 2

Sheet 10 x=-2
A1: =IF('DF raw data'!A1="","",'DF raw data'!A1) -> Number of header lines | B1: =IF('DF raw data'!B1="","",'DF raw data'!B1) -> 54 | C1: =IF('DF raw data'!C1="","",'DF raw data'!C1) ->  | D1: =IF('DF raw data'!D1="","",'DF raw data'!D1) ->  | F1: T_coeff | G1: -0.001 | H1: /degC | J1: IBy total | K1: =J1262*1000 -> -0.4574050539 | L1: muTm | M1: =L1262*1000 -> 48.30334317 | R1: DF ref | S1: 1
A2: =IF('DF raw data'!A2="","",'DF raw data'!A2) -> Measured by | B2: =IF('DF raw data'!B2="","",'DF raw data'!B2) -> Danfysik | C2: =IF('DF raw data'!C2="","",'DF raw data'!C2) ->  | D2: =IF('DF raw data'!D2="","",'DF raw data'!D2) ->  | F2: Tcorr | G2: 20 | H2: degC | J2: JBy total | K2: =K1262 -> -1.579783193 | L2: muTm^2 | M2: =M1262 -> 18.20783902
A3: =IF('DF raw data'!A3="","",'DF raw data'!A3) -> Operator | B3: =IF('DF raw data'!B3="","",'DF raw data'!B3) -> PMHA | C3: =IF('DF raw data'!C3="","",'DF raw data'!C3) ->  | D3: =IF('DF raw data'!D3="","",'DF raw data'!D3) ->  | F3: Step | G3: =A63-A62 -> 0.5 | H3: mm | J3: PI total | K3: =N1262 -> 10697.16106 | L3: T^2mm^3
A4: =IF('DF raw data'!A4="","",'DF raw data'!A4) -> Data-time | B4: =IF('DF raw data'!B4="","",'DF raw data'!B4) -> 03-09-2024, 11:18:56 | C4: =IF('DF raw data'!C4="","",'DF raw data'!C4) ->  | D4: =IF('DF raw data'!D4="","",'DF raw data'!D4) -> 
A5: =IF('DF raw data'!A5="","",'DF raw data'!A5) -> Project | B5: =IF('DF raw data'!B5="","",'DF raw data'!B5) -> 504314 | C5: =IF('DF raw data'!C5="","",'DF raw data'!C5) ->  | D5: =IF('DF raw data'!D5="","",'DF raw data'!D5) -> 
A6: =IF('DF raw data'!A6="","",'DF raw data'!A6) -> Magnet type | B6: =IF('DF raw data'!B6="","",'DF raw data'!B6) -> Dipole | C6: =IF('DF raw data'!C6="","",'DF raw data'!C6) ->  | D6: =IF('DF raw data'!D6="","",'DF raw data'!D6) -> 
A7: =IF('DF raw data'!A7="","",'DF raw data'!A7) -> Magnet nr. | B7: =IF('DF raw data'!B7="","",'DF raw data'!B7) -> 2410090 | C7: =IF('DF raw data'!C7="","",'DF raw data'!C7) ->  | D7: =IF('DF raw data'!D7="","",'DF raw data'!D7) -> 
A8: =IF('DF raw data'!A8="","",'DF raw data'!A8) -> Meas. number | B8: =IF('DF raw data'!B8="","",'DF raw data'!B8) -> 311 | C8: =IF('DF raw data'!C8="","",'DF raw data'!C8) ->  | D8: =IF('DF raw data'!D8="","",'DF raw data'!D8) -> 
A9: =IF('DF raw data'!A9="","",'DF raw data'!A9) -> Add. info | B9: =IF('DF raw data'!B9="","",'DF raw data'!B9) -> X-alignment scan 1) | C9: =IF('DF raw data'!C9="","",'DF raw data'!C9) ->  | D9: =IF('DF raw data'!D9="","",'DF raw data'!D9) -> 
A10: =IF('DF raw data'!A10="","",'DF raw data'!A10) -> Device | B10: =IF('DF raw data'!B10="","",'DF raw data'!B10) -> (HAL) HALL-PROBE | C10: =IF('DF raw data'!C10="","",'DF raw data'!C10) ->  | D10: =IF('DF raw data'!D10="","",'DF raw data'!D10) -> 
A11: =IF('DF raw data'!A11="","",'DF raw data'!A11) -> Goal | B11: =IF('DF raw data'!B11="","",'DF raw data'!B11) -> (AXI) AXis Integral (Line, EFB) | C11: =IF('DF raw data'!C11="","",'DF raw data'!C11) ->  | D11: =IF('DF raw data'!D11="","",'DF raw data'!D11) -> 
A12: =IF('DF raw data'!A12="","",'DF raw data'!A12) -> Power supply mode | B12: =IF('DF raw data'!B12="","",'DF raw data'!B12) -> (PM) Permanent Magnet (no MPS in use) | C12: =IF('DF raw data'!C12="","",'DF raw data'!C12) ->  | D12: =IF('DF raw data'!D12="","",'DF raw data'!D12) -> 
A13: =IF('DF raw data'!A13="","",'DF raw data'!A13) -> Data format | B13: =IF('DF raw data'!B13="","",'DF raw data'!B13) -> Raw data text file | C13: =IF('DF raw data'!C13="","",'DF raw data'!C13) ->  | D13: =IF('DF raw data'!D13="","",'DF raw data'!D13) -> 
A14: =IF('DF raw data'!A14="","",'DF raw data'!A14) -> Direction of the pos. x-axis | B14: =IF('DF raw data'!B14="","",'DF raw data'!B14) -> See test program | C14: =IF('DF raw data'!C14="","",'DF raw data'!C14) ->  | D14: =IF('DF raw data'!D14="","",'DF raw data'!D14) -> 
A15: =IF('DF raw data'!A15="","",'DF raw data'!A15) -> Direction of the pos. y-axis | B15: =IF('DF raw data'!B15="","",'DF raw data'!B15) -> Vertical up | C15: =IF('DF raw data'!C15="","",'DF raw data'!C15) ->  | D15: =IF('DF raw data'!D15="","",'DF raw data'!D15) -> 
A16: =IF('DF raw data'!A16="","",'DF raw data'!A16) -> Direction of the pos. z-axis | B16: =IF('DF raw data'!B16="","",'DF raw data'!B16) -> See test program | C16: =IF('DF raw data'!C16="","",'DF raw data'!C16) ->  | D16: =IF('DF raw data'!D16="","",'DF raw data'!D16) -> 
A17: =IF('DF raw data'!A17="","",'DF raw data'!A17) -> Mapper type | B17: =IF('DF raw data'!B17="","",'DF raw data'!B17) -> Precision Hall Mapper | C17: =IF('DF raw data'!C17="","",'DF raw data'!C17) ->  | D17: =IF('DF raw data'!D17="","",'DF raw data'!D17) -> 
A18: =IF('DF raw data'!A18="","",'DF raw data'!A18) -> Mapper Danfysik Reg. Number | B18: =IF('DF raw data'!B18="","",'DF raw data'!B18) -> 2033-D (mapper 1) | C18: =IF('DF raw data'!C18="","",'DF raw data'!C18) ->  | D18: =IF('DF raw data'!D18="","",'DF raw data'!D18) -> 
A19: =IF('DF raw data'!A19="","",'DF raw data'!A19) -> Measurement consept | B19: =IF('DF raw data'!B19="","",'DF raw data'!B19) -> Square line grid | C19: =IF('DF raw data'!C19="","",'DF raw data'!C19) ->  | D19: =IF('DF raw data'!D19="","",'DF raw data'!D19) -> 
A20: =IF('DF raw data'!A20="","",'DF raw data'!A20) -> Mode | B20: =IF('DF raw data'!B20="","",'DF raw data'!B20) -> On-the-fly measurement | C20: =IF('DF raw data'!C20="","",'DF raw data'!C20) ->  | D20: =IF('DF raw data'!D20="","",'DF raw data'!D20) -> 
A21: =IF('DF raw data'!A21="","",'DF raw data'!A21) ->  | B21: =IF('DF raw data'!B21="","",'DF raw data'!B21) ->  | C21: =IF('DF raw data'!C21="","",'DF raw data'!C21) ->  | D21: =IF('DF raw data'!D21="","",'DF raw data'!D21) -> 
A22: =IF('DF raw data'!A22="","",'DF raw data'!A22) -> Probe Name | B22: =IF('DF raw data'!B22="","",'DF raw data'!B22) -> ID12_By | C22: =IF('DF raw data'!C22="","",'DF raw data'!C22) ->  | D22: =IF('DF raw data'!D22="","",'DF raw data'!D22) -> 
A23: =IF('DF raw data'!A23="","",'DF raw data'!A23) -> Probe Type | B23: =IF('DF raw data'!B23="","",'DF raw data'!B23) -> DF_ID_3D_Bxyz | C23: =IF('DF raw data'!C23="","",'DF raw data'!C23) ->  | D23: =IF('DF raw data'!D23="","",'DF raw data'!D23) -> 
A24: =IF('DF raw data'!A24="","",'DF raw data'!A24) -> Probe Danfysik Reg. Number | B24: =IF('DF raw data'!B24="","",'DF raw data'!B24) -> 2277 | C24: =IF('DF raw data'!C24="","",'DF raw data'!C24) ->  | D24: =IF('DF raw data'!D24="","",'DF raw data'!D24) -> 
A25: =IF('DF raw data'!A25="","",'DF raw data'!A25) -> Probe Axis | B25: =IF('DF raw data'!B25="","",'DF raw data'!B25) -> By | C25: =IF('DF raw data'!C25="","",'DF raw data'!C25) ->  | D25: =IF('DF raw data'!D25="","",'DF raw data'!D25) -> 
A26: =IF('DF raw data'!A26="","",'DF raw data'!A26) -> Probe Current Supply | B26: =IF('DF raw data'!B26="","",'DF raw data'!B26) -> 1825-D | C26: =IF('DF raw data'!C26="","",'DF raw data'!C26) ->  | D26: =IF('DF raw data'!D26="","",'DF raw data'!D26) -> 
A27: =IF('DF raw data'!A27="","",'DF raw data'!A27) -> Probe Gain Correction | B27: =IF('DF raw data'!B27="","",'DF raw data'!B27) -> 0.99619 | C27: =IF('DF raw data'!C27="","",'DF raw data'!C27) ->  | D27: =IF('DF raw data'!D27="","",'DF raw data'!D27) -> 
A28: =IF('DF raw data'!A28="","",'DF raw data'!A28) -> Probe Offset Correction | B28: =IF('DF raw data'!B28="","",'DF raw data'!B28) -> 0.0027506 | C28: =IF('DF raw data'!C28="","",'DF raw data'!C28) ->  | D28: =IF('DF raw data'!D28="","",'DF raw data'!D28) -> 
A29: =IF('DF raw data'!A29="","",'DF raw data'!A29) -> DVM Number | B29: =IF('DF raw data'!B29="","",'DF raw data'!B29) -> 2 | C29: =IF('DF raw data'!C29="","",'DF raw data'!C29) ->  | D29: =IF('DF raw data'!D29="","",'DF raw data'!D29) -> 
A30: =IF('DF raw data'!A30="","",'DF raw data'!A30) -> DVM Type | B30: =IF('DF raw data'!B30="","",'DF raw data'!B30) -> K2701 | C30: =IF('DF raw data'!C30="","",'DF raw data'!C30) ->  | D30: =IF('DF raw data'!D30="","",'DF raw data'!D30) -> 
A31: =IF('DF raw data'!A31="","",'DF raw data'!A31) -> DVM Danfysik Reg. Number | B31: =IF('DF raw data'!B31="","",'DF raw data'!B31) -> 1743-D | C31: =IF('DF raw data'!C31="","",'DF raw data'!C31) ->  | D31: =IF('DF raw data'!D31="","",'DF raw data'!D31) -> 
A32: =IF('DF raw data'!A32="","",'DF raw data'!A32) -> Probe Name | B32: =IF('DF raw data'!B32="","",'DF raw data'!B32) -> ID12_Bx | C32: =IF('DF raw data'!C32="","",'DF raw data'!C32) ->  | D32: =IF('DF raw data'!D32="","",'DF raw data'!D32) -> 
A33: =IF('DF raw data'!A33="","",'DF raw data'!A33) -> Probe Type | B33: =IF('DF raw data'!B33="","",'DF raw data'!B33) -> DF_ID_3D_Bxyz | C33: =IF('DF raw data'!C33="","",'DF raw data'!C33) ->  | D33: =IF('DF raw data'!D33="","",'DF raw data'!D33) -> 
A34: =IF('DF raw data'!A34="","",'DF raw data'!A34) -> Probe Danfysik Reg. Number | B34: =IF('DF raw data'!B34="","",'DF raw data'!B34) -> 2277 | C34: =IF('DF raw data'!C34="","",'DF raw data'!C34) ->  | D34: =IF('DF raw data'!D34="","",'DF raw data'!D34) -> 
A35: =IF('DF raw data'!A35="","",'DF raw data'!A35) -> Probe Axis | B35: =IF('DF raw data'!B35="","",'DF raw data'!B35) -> Bx | C35: =IF('DF raw data'!C35="","",'DF raw data'!C35) ->  | D35: =IF('DF raw data'!D35="","",'DF raw data'!D35) -> 
A36: =IF('DF raw data'!A36="","",'DF raw data'!A36) -> Probe Current Supply | B36: =IF('DF raw data'!B36="","",'DF raw data'!B36) -> 1825-D | C36: =IF('DF raw data'!C36="","",'DF raw data'!C36) ->  | D36: =IF('DF raw data'!D36="","",'DF raw data'!D36) -> 
A37: =IF('DF raw data'!A37="","",'DF raw data'!A37) -> Probe Gain Correction | B37: =IF('DF raw data'!B37="","",'DF raw data'!B37) -> 1 | C37: =IF('DF raw data'!C37="","",'DF raw data'!C37) ->  | D37: =IF('DF raw data'!D37="","",'DF raw data'!D37) -> 
A38: =IF('DF raw data'!A38="","",'DF raw data'!A38) -> Probe Offset Correction | B38: =IF('DF raw data'!B38="","",'DF raw data'!B38) -> -0.17548 | C38: =IF('DF raw data'!C38="","",'DF raw data'!C38) ->  | D38: =IF('DF raw data'!D38="","",'DF raw data'!D38) -> 
A39: =IF('DF raw data'!A39="","",'DF raw data'!A39) -> DVM Number | B39: =IF('DF raw data'!B39="","",'DF raw data'!B39) -> 3 | C39: =IF('DF raw data'!C39="","",'DF raw data'!C39) ->  | D39: =IF('DF raw data'!D39="","",'DF raw data'!D39) -> 
A40: =IF('DF raw data'!A40="","",'DF raw data'!A40) -> DVM Type | B40: =IF('DF raw data'!B40="","",'DF raw data'!B40) -> K2701 | C40: =IF('DF raw data'!C40="","",'DF raw data'!C40) ->  | D40: =IF('DF raw data'!D40="","",'DF raw data'!D40) -> 
A41: =IF('DF raw data'!A41="","",'DF raw data'!A41) -> DVM Danfysik Reg. Number | B41: =IF('DF raw data'!B41="","",'DF raw data'!B41) -> 1744-D | C41: =IF('DF raw data'!C41="","",'DF raw data'!C41) ->  | D41: =IF('DF raw data'!D41="","",'DF raw data'!D41) -> 
A42: =IF('DF raw data'!A42="","",'DF raw data'!A42) -> Probe Name | B42: =IF('DF raw data'!B42="","",'DF raw data'!B42) -> ID12_Bz | C42: =IF('DF raw data'!C42="","",'DF raw data'!C42) ->  | D42: =IF('DF raw data'!D42="","",'DF raw data'!D42) -> 
A43: =IF('DF raw data'!A43="","",'DF raw data'!A43) -> Probe Type | B43: =IF('DF raw data'!B43="","",'DF raw data'!B43) -> DF_ID_3D_Bxyz | C43: =IF('DF raw data'!C43="","",'DF raw data'!C43) ->  | D43: =IF('DF raw data'!D43="","",'DF raw data'!D43) -> 
A44: =IF('DF raw data'!A44="","",'DF raw data'!A44) -> Probe Danfysik Reg. Number | B44: =IF('DF raw data'!B44="","",'DF raw data'!B44) -> 2277 | C44: =IF('DF raw data'!C44="","",'DF raw data'!C44) ->  | D44: =IF('DF raw data'!D44="","",'DF raw data'!D44) -> 
A45: =IF('DF raw data'!A45="","",'DF raw data'!A45) -> Probe Axis | B45: =IF('DF raw data'!B45="","",'DF raw data'!B45) -> Bz | C45: =IF('DF raw data'!C45="","",'DF raw data'!C45) ->  | D45: =IF('DF raw data'!D45="","",'DF raw data'!D45) -> 
A46: =IF('DF raw data'!A46="","",'DF raw data'!A46) -> Probe Current Supply | B46: =IF('DF raw data'!B46="","",'DF raw data'!B46) -> 1825-D | C46: =IF('DF raw data'!C46="","",'DF raw data'!C46) ->  | D46: =IF('DF raw data'!D46="","",'DF raw data'!D46) -> 
A47: =IF('DF raw data'!A47="","",'DF raw data'!A47) -> Probe Gain Correction | B47: =IF('DF raw data'!B47="","",'DF raw data'!B47) -> 1 | C47: =IF('DF raw data'!C47="","",'DF raw data'!C47) ->  | D47: =IF('DF raw data'!D47="","",'DF raw data'!D47) -> 
A48: =IF('DF raw data'!A53="","",'DF raw data'!A53) -> PS-Gap: | B48: =IF('DF raw data'!B53="","",'DF raw data'!B53) -> 10 | C48: =IF('DF raw data'!C53="","",'DF raw data'!C53) ->  | D48: =IF('DF raw data'!D53="","",'DF raw data'!D53) -> 
A49: =IF('DF raw data'!A54="","",'DF raw data'!A54) -> PS-Temperature: | B49: =IF('DF raw data'!B54="","",'DF raw data'!B54) -> 24.2 | C49: =IF('DF raw data'!C54="","",'DF raw data'!C54) ->  | D49: =IF('DF raw data'!D54="","",'DF raw data'!D54) -> 
A50: =IF('DF raw data'!A55="","",'DF raw data'!A55) -> PS-Encoder: | B50: =IF('DF raw data'!B55="","",'DF raw data'!B55) -> 19.6225 | C50: =IF('DF raw data'!C55="","",'DF raw data'!C55) ->  | D50: =IF('DF raw data'!D55="","",'DF raw data'!D55) -> 
A51: =IF('DF raw data'!A56="","",'DF raw data'!A56) ->  | B51: =IF('DF raw data'!B56="","",'DF raw data'!B56) ->  | C51: =IF('DF raw data'!C56="","",'DF raw data'!C56) ->  | D51: =IF('DF raw data'!D56="","",'DF raw data'!D56) -> 
A52: =IF('DF raw data'!A57="","",'DF raw data'!A57) -> Monitor-Index | B52: =IF('DF raw data'!B57="","",'DF raw data'!B57) -> [1,1,4] | C52: =IF('DF raw data'!C57="","",'DF raw data'!C57) ->  | D52: =IF('DF raw data'!D57="","",'DF raw data'!D57) -> 
A53: =IF('DF raw data'!A58="","",'DF raw data'!A58) ->  | B53: =IF('DF raw data'!B58="","",'DF raw data'!B58) ->  | C53: =IF('DF raw data'!C58="","",'DF raw data'!C58) ->  | D53: =IF('DF raw data'!D58="","",'DF raw data'!D58) -> 
A54: =IF('DF raw data'!A59="","",'DF raw data'!A59) -> Time [s] | B54: =IF('DF raw data'!B59="","",'DF raw data'!B59) -> Y [mm] | C54: =IF('DF raw data'!C59="","",'DF raw data'!C59) -> X [mm] | D54: =IF('DF raw data'!D59="","",'DF raw data'!D59) -> Nominal current [A]
A55: =IF('DF raw data'!A60="","",'DF raw data'!A60) ->  | B55: =IF('DF raw data'!B60="","",'DF raw data'!B60) ->  | C55: =IF('DF raw data'!C60="","",'DF raw data'!C60) ->  | D55: =IF('DF raw data'!D60="","",'DF raw data'!D60) -> 
A56: =IF('DF raw data'!A61="","",'DF raw data'!A61) -> 214.7 | B56: =IF('DF raw data'!B61="","",'DF raw data'!B61) -> 31.56 | C56: =IF('DF raw data'!C61="","",'DF raw data'!C61) -> 299.8 | D56: =IF('DF raw data'!D61="","",'DF raw data'!D61) -> 0
A57: =IF('DF raw data'!A62="","",'DF raw data'!A62) ->  | B57: =IF('DF raw data'!B62="","",'DF raw data'!B62) ->  | C57: =IF('DF raw data'!C62="","",'DF raw data'!C62) ->  | D57: =IF('DF raw data'!D62="","",'DF raw data'!D62) -> 
A58: =IF('DF raw data'!A63="","",'DF raw data'!A63) -> Measurement-Index | B58: =IF('DF raw data'!B63="","",'DF raw data'!B63) -> [1,1,1201,2] | C58: =IF('DF raw data'!C63="","",'DF raw data'!C63) ->  | D58: =IF('DF raw data'!D63="","",'DF raw data'!D63) -> 
A59: =IF('DF raw data'!A64="","",'DF raw data'!A64) ->  | B59: =IF('DF raw data'!B64="","",'DF raw data'!B64) ->  | C59: =IF('DF raw data'!C64="","",'DF raw data'!C64) ->  | D59: =IF('DF raw data'!D64="","",'DF raw data'!D64) -> 
A60: =IF('DF raw data'!A65="","",'DF raw data'!A65) -> Z [mm] | B60: =IF('DF raw data'!B65="","",'DF raw data'!B65) -> By [T] | C60: =IF('DF raw data'!C65="","",'DF raw data'!C65) -> Bx [T] | D60: =IF('DF raw data'!D65="","",'DF raw data'!D65) -> Bz [T] | F60: By_corr | G60: Bx_corr | H60: Bz_corr | J60: Iy | K60: Jy | L60: Ix | M60: Jx | N60: PI
A62: =IF('DF raw data'!A67="","",'DF raw data'!A67) -> -300 | B62: =IF('DF raw data'!B67="","",'DF raw data'!B67) -> -2.70292e-05 | C62: =IF('DF raw data'!C67="","",'DF raw data'!C67) -> 9.12857e-05 | D62: =IF('DF raw data'!D67="","",'DF raw data'!D67) -> -2.82514e-05 | F62: =(1-$G$1*($B$49))*B62 -> -2.768330664e-05 | G62: =(1-$G$1*($B$49-$G$2))*C62 -> 9.166909994e-05 | H62: =(1-$G$1*($B$49-$G$2))*D62 -> -2.837005588e-05 | J62: =F62*$G$3 -> -1.384165332e-05 | K62: =J62*$G$3 -> -6.92082666e-06 | L62: =G62*$G$3 -> 4.583454997e-05 | M62: =L62*$G$3 -> 2.291727498e-05 | N62: =(J62^2+L62^2)*$G$3 -> 1.146198669e-09
A63: =IF('DF raw data'!A68="","",'DF raw data'!A68) -> -299.5 | B63: =IF('DF raw data'!B68="","",'DF raw data'!B68) -> -2.01064e-05 | C63: =IF('DF raw data'!C68="","",'DF raw data'!C68) -> 8.80873e-05 | D63: =IF('DF raw data'!D68="","",'DF raw data'!D68) -> -2.86161e-05 | F63: =(1-$G$1*($B$49-$G$2))*B63 -> -2.019084688e-05 | G63: =(1-$G$1*($B$49-$G$2))*C63 -> 8.845726666e-05 | H63: -2.873628762e-05 | J63: =F63*$G$3+J62 -> -2.393707676e-05 | K63: =J63*$G$3+K62 -> -1.888936504e-05 | L63: =G63*$G$3+L62 -> 9.00631833e-05 | M63: =L63*$G$3+M62 -> 6.794886664e-05 | N63: =(J63^2+L63^2)*$G$3+N62 -> 5.488378984e-09
A64: =IF('DF raw data'!A69="","",'DF raw data'!A69) -> -299 | B64: =IF('DF raw data'!B69="","",'DF raw data'!B69) -> -1.04926e-05 | C64: =IF('DF raw data'!C69="","",'DF raw data'!C69) -> 9.16796e-05 | D64: =IF('DF raw data'!D69="","",'DF raw data'!D69) -> -2.95411e-05 | F64: =(1-$G$1*($B$49-$G$2))*B64 -> -1.053666892e-05 | G64: 9.206465432e-05 | H64: -2.966517262e-05 | J64: =F64*$G$3+J63 -> -2.920541122e-05 | K64: =J64*$G$3+K63 -> -3.349207065e-05 | L64: =G64*$G$3+L63 -> 0.0001360955105 | M64: =L64*$G$3+M63 -> 0.0001359966219 | N64: =(J64^2+L64^2)*$G$3+N63 -> 1.517585099e-08
A65: =IF('DF raw data'!A70="","",'DF raw data'!A70) -> -298.5 | B65: =IF('DF raw data'!B70="","",'DF raw data'!B70) -> -1.29914e-05 | C65: =IF('DF raw data'!C70="","",'DF raw data'!C70) -> 9.5773e-05 | D65: =IF('DF raw data'!D70="","",'DF raw data'!D70) -> -3.05004e-05 | F65: -1.304596388e-05 | G65: 9.61752466e-05 | H65: -3.062850168e-05 | J65: -3.572839316e-05 | K65: -5.135626723e-05 | L65: 0.0001841831338 | M65: 0.0002280881887 | N65: 3.277582341e-08
A66: =IF('DF raw data'!A71="","",'DF raw data'!A71) -> -298 | B66: =IF('DF raw data'!B71="","",'DF raw data'!B71) -> -1.45932e-05 | C66: =IF('DF raw data'!C71="","",'DF raw data'!C71) -> 8.50285e-05 | D66: =IF('DF raw data'!D71="","",'DF raw data'!D71) -> -3.11202e-05 | F66: -1.465449144e-05 | G66: 8.53856197e-05 | H66: -3.125090484e-05 | J66: -4.305563888e-05 | K66: -7.288408667e-05 | L66: 0.0002268759436 | M66: 0.0003415261605 | N66: 5.943906432e-08
A67: =IF('DF raw data'!A72="","",'DF raw data'!A72) -> -297.5 | B67: =IF('DF raw data'!B72="","",'DF raw data'!B72) -> -1.27347e-05 | C67: =IF('DF raw data'!C72="","",'DF raw data'!C72) -> 8.07497e-05 | D67: =IF('DF raw data'!D72="","",'DF raw data'!D72) -> -3.11183e-05 | F67: -1.278818574e-05 | G67: 8.108884874e-05 | H67: -3.124899686e-05 | J67: -4.944973175e-05 | K67: -9.760895254e-05 | L67: 0.000267420368 | M67: 0.0004752363445 | N67: 9.641852891e-08
A68: =IF('DF raw data'!A73="","",'DF raw data'!A73) -> -297 | B68: =IF('DF raw data'!B73="","",'DF raw data'!B73) -> -2.56169e-05 | C68: =IF('DF raw data'!C73="","",'DF raw data'!C73) -> 7.55164e-05 | D68: =IF('DF raw data'!D73="","",'DF raw data'!D73) -> -3.03154e-05 | F68: -2.572449098e-05 | G68: 7.583356888e-05 | H68: -3.044272468e-05 | J68: -6.231197724e-05 | K68: -0.0001287649412 | L68: 0.0003053371524 | M68: 0.0006279049207 | N68: 1.449753085e-07
A69: =IF('DF raw data'!A74="","",'DF raw data'!A74) -> -296.5 | B69: =IF('DF raw data'!B74="","",'DF raw data'!B74) -> -1.26074e-05 | C69: =IF('DF raw data'!C74="","",'DF raw data'!C74) -> 7.68842e-05 | D69: =IF('DF raw data'!D74="","",'DF raw data'!D74) -> -2.97563e-05 | F69: -1.266035108e-05 | G69: 7.720711364e-05 | H69: -2.988127646e-05 | J69: -6.864215278e-05 | K69: -0.0001630860176 | L69: 0.0003439407092 | M69: 0.0007998752754 | N69: 2.064787868e-07
A70: =IF('DF raw data'!A75="","",'DF raw data'!A75) -> -296 | B70: =IF('DF raw data'!B75="","",'DF raw data'!B75) -> -7.86459e-06 | C70: =IF('DF raw data'!C75="","",'DF raw data'!C75) -> 8.02658e-05 | D70: =IF('DF raw data'!D75="","",'DF raw data'!D75) -> -3.01431e-05 | F70: -7.897621278e-06 | G70: 8.060291636e-05 | H70: -3.026970102e-05 | J70: -7.259096342e-05 | K70: -0.0001993814993 | L70: 0.0003842421674 | M70: 0.0009919963591 | N70: 2.829345324e-07
A71: =IF('DF raw data'!A76="","",'DF raw data'!A76) -> -295.5 | B71: =IF('DF raw data'!B76="","",'DF raw data'!B76) -> -1.5683e-05 | C71: =IF('DF raw data'!C76="","",'DF raw data'!C76) -> 8.03494e-05 | D71: =IF('DF raw data'!D76="","",'DF raw data'!D76) -> -3.08944e-05 | F71: -1.57488686e-05 | G71: 8.068686748e-05 | H71: -3.102415648e-05 | J71: -8.046539772e-05 | K71: -0.0002396141981 | L71: 0.0004245856012 | M71: 0.00120428916 | N71: 3.763083389e-07
A72: =IF('DF raw data'!A77="","",'DF raw data'!A77) -> -295 | B72: =IF('DF raw data'!B77="","",'DF raw data'!B77) -> -7.09478e-06 | C72: =IF('DF raw data'!C77="","",'DF raw data'!C77) -> 8.57125e-05 | D72: =IF('DF raw data'!D77="","",'DF raw data'!D77) -> -3.1357e-05 | F72: -7.124578076e-06 | G72: 8.60724925e-05 | H72: -3.14886994e-05 | J72: -8.402768676e-05 | K72: -0.0002816280415 | L72: 0.0004676218474 | M72: 0.001438100083 | N72: 4.89173761e-07
A73: =IF('DF raw data'!A78="","",'DF raw data'!A78) -> -294.5 | B73: =IF('DF raw data'!B78="","",'DF raw data'!B78) -> -2.39501e-05 | C73: =IF('DF raw data'!C78="","",'DF raw data'!C78) -> 8.30177e-05 | D73: =IF('DF raw data'!D78="","",'DF raw data'!D78) -> -3.12084e-05 | F73: -2.405069042e-05 | G73: 8.336637434e-05 | H73: -3.133947528e-05 | J73: -9.605303197e-05 | K73: -0.0003296545575 | L73: 0.0005093050346 | M73: 0.001692752601 | N73: 6.234826626e-07
A74: =IF('DF raw data'!A79="","",'DF raw data'!A79) -> -294 | B74: =IF('DF raw data'!B79="","",'DF raw data'!B79) -> -1.36961e-05 | C74: =IF('DF raw data'!C79="","",'DF raw data'!C79) -> 7.92119e-05 | D74: =IF('DF raw data'!D79="","",'DF raw data'!D79) -> -3.10456e-05 | F74: -1.375362362e-05 | G74: 7.954458998e-05 | H74: -3.117599152e-05 | J74: -0.0001029298438 | K74: -0.0003811194794 | L74: 0.0005490773296 | M74: 0.001967291265 | N74: 7.795228959e-07
A75: =IF('DF raw data'!A80="","",'DF raw data'!A80) -> -293.5 | B75: =IF('DF raw data'!B80="","",'DF raw data'!B80) -> -2.08737e-05 | C75: =IF('DF raw data'!C80="","",'DF raw data'!C80) -> 7.9821e-05 | D75: =IF('DF raw data'!D80="","",'DF raw data'!D80) -> -3.13166e-05 | F75: -2.096136954e-05 | G75: 8.01562482e-05 | H75: -3.144812972e-05 | J75: -0.0001134105285 | K75: -0.0004378247436 | L75: 0.0005891554537 | M75: 0.002261868992 | N75: 9.595059442e-07
A76: =IF('DF raw data'!A81="","",'DF raw data'!A81) -> -293 | B76: =IF('DF raw data'!B81="","",'DF raw data'!B81) -> -1.74769e-05 | C76: =IF('DF raw data'!C81="","",'DF raw data'!C81) -> 8.76061e-05 | D76: =IF('DF raw data'!D81="","",'DF raw data'!D81) -> -3.15496e-05 | F76: -1.755030298e-05 | G76: 8.797404562e-05 | H76: -3.168210832e-05 | J76: -0.00012218568 | K76: -0.0004989175837 | L76: 0.0006331424765 | M76: 0.002578440231 | N76: 1.167405312e-06
A77: =IF('DF raw data'!A82="","",'DF raw data'!A82) -> -292.5 | B77: =IF('DF raw data'!B82="","",'DF raw data'!B82) -> -3.35633e-05 | C77: =IF('DF raw data'!C82="","",'DF raw data'!C82) -> 8.02553e-05 | D77: =IF('DF raw data'!D82="","",'DF raw data'!D82) -> -3.07664e-05 | F77: -3.370426586e-05 | G77: 8.059237226e-05 | H77: -3.089561888e-05 | J77: -0.000139037813 | K77: -0.0005684364901 | L77: 0.0006734386626 | M77: 0.002915159562 | N77: 1.403830885e-06
A78: =IF('DF raw data'!A83="","",'DF raw data'!A83) -> -292 | B78: =IF('DF raw data'!B83="","",'DF raw data'!B83) -> -2.29257e-05 | C78: =IF('DF raw data'!C83="","",'DF raw data'!C83) -> 8.12583e-05 | D78: =IF('DF raw data'!D83="","",'DF raw data'!D83) -> -2.98395e-05 | F78: -2.302198794e-05 | G78: 8.159958486e-05 | H78: -2.99648259e-05 | J78: -0.0001505488069 | K78: -0.0006437108936 | L78: 0.000714238455 | M78: 0.003272278789 | N78: 1.670231642e-06
A79: =IF('DF raw data'!A84="","",'DF raw data'!A84) -> -291.5 | B79: =IF('DF raw data'!B84="","",'DF raw data'!B84) -> -1.88752e-05 | C79: =IF('DF raw data'!C84="","",'DF raw data'!C84) -> 8.47398e-05 | D79: =IF('DF raw data'!D84="","",'DF raw data'!D84) -> -4.93925e-05 | F79: -1.895447584e-05 | G79: 8.509570716e-05 | H79: -4.95999485e-05 | J79: -0.0001600260449 | K79: -0.000723723916 | L79: 0.0007567863086 | M79: 0.003650671944 | N79: 1.969398568e-06
A80: =IF('DF raw data'!A85="","",'DF raw data'!A85) -> -291 | B80: =IF('DF raw data'!B85="","",'DF raw data'!B85) -> -1.68354e-05 | C80: =IF('DF raw data'!C85="","",'DF raw data'!C85) -> 8.71709e-05 | D80: =IF('DF raw data'!D85="","",'DF raw data'!D85) -> -3.26464e-05 | F80: -1.690610868e-05 | G80: 8.753701778e-05 | H80: -3.278351488e-05 | J80: -0.0001684790992 | K80: -0.0008079634656 | L80: 0.0008005548175 | M80: 0.004050949352 | N80: 2.304035179e-06
A81: =IF('DF raw data'!A86="","",'DF raw data'!A86) -> -290.5 | B81: =IF('DF raw data'!B86="","",'DF raw data'!B86) -> -2.38209e-05 | C81: =IF('DF raw data'!C86="","",'DF raw data'!C86) -> 9.1179e-05 | D81: =IF('DF raw data'!D86="","",'DF raw data'!D86) -> -3.27308e-05 | F81: -2.392094778e-05 | G81: 9.15619518e-05 | H81: -3.286826936e-05 | J81: -0.0001804395731 | K81: -0.0008981832522 | L81: 0.0008463357934 | M81: 0.004474117249 | N81: 2.678456537e-06
A82: =IF('DF raw data'!A87="","",'DF raw data'!A87) -> -290 | B82: =IF('DF raw data'!B87="","",'DF raw data'!B87) -> -1.69674e-05 | C82: =IF('DF raw data'!C87="","",'DF raw data'!C87) -> 9.34683e-05 | D82: =IF('DF raw data'!D87="","",'DF raw data'!D87) -> -2.68062e-05 | F82: -1.703866308e-05 | G82: 9.386086686e-05 | H82: -2.691878604e-05 | J82: -0.0001889589046 | K82: -0.0009926627045 | L82: 0.0008932662268 | M82: 0.004920750363 | N82: 3.095271547e-06
A83: =IF('DF raw data'!A88="","",'DF raw data'!A88) -> -289.5 | B83: =IF('DF raw data'!B88="","",'DF raw data'!B88) -> -1.72787e-05 | C83: =IF('DF raw data'!C88="","",'DF raw data'!C88) -> 8.6454e-05 | D83: =IF('DF raw data'!D88="","",'DF raw data'!D88) -> -4.09127e-05 | F83: -1.735127054e-05 | G83: 8.68171068e-05 | H83: -4.108453334e-05 | J83: -0.0001976345399 | K83: -0.001091479974 | L83: 0.0009366747802 | M83: 0.005389087753 | N83: 3.553481074e-06
A84: =IF('DF raw data'!A89="","",'DF raw data'!A89) -> -289 | B84: =IF('DF raw data'!B89="","",'DF raw data'!B89) -> -1.10687e-05 | C84: =IF('DF raw data'!C89="","",'DF raw data'!C89) -> 8.48538e-05 | D84: =IF('DF raw data'!D89="","",'DF raw data'!D89) -> -3.08831e-05 | F84: -1.111518854e-05 | G84: 8.521018596e-05 | H84: -3.101280902e-05 | J84: -0.0002031921342 | K84: -0.001193076042 | L84: 0.0009792798732 | M84: 0.005878727689 | N84: 4.053619131e-06
A85: =IF('DF raw data'!A90="","",'DF raw data'!A90) -> -288.5 | B85: =IF('DF raw data'!B90="","",'DF raw data'!B90) -> -1.97194e-05 | C85: =IF('DF raw data'!C90="","",'DF raw data'!C90) -> 9.32122e-05 | D85: =IF('DF raw data'!D90="","",'DF raw data'!D90) -> -3.23826e-05 | F85: -1.980222148e-05 | G85: 9.360369124e-05 | H85: -3.251860692e-05 | J85: -0.0002130932449 | K85: -0.001299622664 | L85: 0.001026081719 | M85: 0.006391768549 | N85: 4.602745343e-06
A86: =IF('DF raw data'!A91="","",'DF raw data'!A91) -> -288 | B86: =IF('DF raw data'!B91="","",'DF raw data'!B91) -> -2.01697e-05 | C86: =IF('DF raw data'!C91="","",'DF raw data'!C91) -> 8.8594e-05 | D86: =IF('DF raw data'!D91="","",'DF raw data'!D91) -> -3.02824e-05 | F86: -2.025441274e-05 | G86: 8.89660948e-05 | H86: -3.040958608e-05 | J86: -0.0002232204513 | K86: -0.00141123289 | L86: 0.001070564766 | M86: 0.006927050932 | N86: 5.200713488e-06
A87: =IF('DF raw data'!A92="","",'DF raw data'!A92) -> -287.5 | B87: =IF('DF raw data'!B92="","",'DF raw data'!B92) -> -9.46947e-06 | C87: =IF('DF raw data'!C92="","",'DF raw data'!C92) -> 8.80204e-05 | D87: =IF('DF raw data'!D92="","",'DF raw data'!D92) -> -2.6021e-05 | F87: -9.509241774e-06 | G87: 8.839008568e-05 | H87: -2.61302882e-05 | J87: -0.0002279750722 | K87: -0.001525220426 | L87: 0.001114759809 | M87: 0.007484430836 | N87: 5.84804452e-06
A88: =IF('DF raw data'!A93="","",'DF raw data'!A93) -> -287 | B88: =IF('DF raw data'!B93="","",'DF raw data'!B93) -> -1.14527e-05 | C88: =IF('DF raw data'!C93="","",'DF raw data'!C93) -> 9.21299e-05 | D88: =IF('DF raw data'!D93="","",'DF raw data'!D93) -> -3.17062e-05 | F88: -1.150080134e-05 | G88: 9.251684558e-05 | H88: -3.183936604e-05 | J88: -0.0002337254728 | K88: -0.001642083162 | L88: 0.001161018232 | M88: 0.008064939952 | N88: 6.549339986e-06
A89: =IF('DF raw data'!A94="","",'DF raw data'!A94) -> -286.5 | B89: =IF('DF raw data'!B94="","",'DF raw data'!B94) -> -1.95873e-05 | C89: =IF('DF raw data'!C94="","",'DF raw data'!C94) -> 8.83963e-05 | D89: =IF('DF raw data'!D94="","",'DF raw data'!D94) -> -3.83873e-05 | F89: -1.966956666e-05 | G89: 8.876756446e-05 | H89: -3.854852666e-05 | J89: -0.0002435602562 | K89: -0.00176386329 | L89: 0.001205402014 | M89: 0.008667640959 | N89: 7.305497793e-06
A90: =IF('DF raw data'!A95="","",'DF raw data'!A95) -> -286 | B90: =IF('DF raw data'!B95="","",'DF raw data'!B95) -> -2.20236e-05 | C90: =IF('DF raw data'!C95="","",'DF raw data'!C95) -> 8.15813e-05 | D90: =IF('DF raw data'!D95="","",'DF raw data'!D95) -> -3.73081e-05 | F90: -2.211609912e-05 | G90: 8.192394146e-05 | H90: -3.746479402e-05 | J90: -0.0002546183057 | K90: -0.001891172443 | L90: 0.001246363985 | M90: 0.009290822952 | N90: 8.114624625e-06
A91: =IF('DF raw data'!A96="","",'DF raw data'!A96) -> -285.5 | B91: =IF('DF raw data'!B96="","",'DF raw data'!B96) -> -1.26719e-05 | C91: =IF('DF raw data'!C96="","",'DF raw data'!C96) -> 7.67934e-05 | D91: =IF('DF raw data'!D96="","",'DF raw data'!D96) -> -2.91265e-05 | F91: -1.272512198e-05 | G91: 7.711593228e-05 | H91: -2.92488313e-05 | J91: -0.0002609808667 | K91: -0.002021662876 | L91: 0.001284921951 | M91: 0.009933283927 | N91: 8.974192342e-06
A92: =IF('DF raw data'!A97="","",'DF raw data'!A97) -> -285 | B92: =IF('DF raw data'!B97="","",'DF raw data'!B97) -> -1.58754e-05 | C92: =IF('DF raw data'!C97="","",'DF raw data'!C97) -> 7.64289e-05 | D92: =IF('DF raw data'!D97="","",'DF raw data'!D97) -> -3.07741e-05 | F92: -1.594207668e-05 | G92: 7.674990138e-05 | H92: -3.090335122e-05 | J92: -0.0002689519051 | K92: -0.002156138829 | L92: 0.001323296902 | M92: 0.01059493238 | N92: 9.88591725e-06
A93: =IF('DF raw data'!A98="","",'DF raw data'!A98) -> -284.5 | B93: =IF('DF raw data'!B98="","",'DF raw data'!B98) -> -3.1711e-05 | C93: =IF('DF raw data'!C98="","",'DF raw data'!C98) -> 8.17238e-05 | D93: =IF('DF raw data'!D98="","",'DF raw data'!D98) -> -2.08961e-05 | F93: -3.18441862e-05 | G93: 8.206703996e-05 | H93: -2.098386362e-05 | J93: -0.0002848739982 | K93: -0.002298575828 | L93: 0.001364330422 | M93: 0.01127709759 | N93: 1.08571926e-05
A94: =IF('DF raw data'!A99="","",'DF raw data'!A99) -> -284 | B94: =IF('DF raw data'!B99="","",'DF raw data'!B99) -> -1.95961e-05 | C94: =IF('DF raw data'!C99="","",'DF raw data'!C99) -> 8.68828e-05 | D94: =IF('DF raw data'!D99="","",'DF raw data'!D99) -> -2.54599e-05 | F94: -1.967840362e-05 | G94: 8.724770776e-05 | H94: -2.556683158e-05 | J94: -0.0002947132 | K94: -0.002445932428 | L94: 0.001407954276 | M94: 0.01198107473 | N94: 1.189178815e-05
A95: =IF('DF raw data'!A100="","",'DF raw data'!A100) -> -283.5 | B95: =IF('DF raw data'!B100="","",'DF raw data'!B100) -> -2.47766e-05 | C95: =IF('DF raw data'!C100="","",'DF raw data'!C100) -> 8.25908e-05 | D95: =IF('DF raw data'!D100="","",'DF raw data'!D100) -> -4.05515e-05 | F95: -2.488066172e-05 | G95: 8.293768136e-05 | H95: -4.07218163e-05 | J95: -0.0003071535308 | K95: -0.002599509193 | L95: 0.001449423116 | M95: 0.01270578628 | N95: 1.298937348e-05
A96: =IF('DF raw data'!A101="","",'DF raw data'!A101) -> -283 | B96: =IF('DF raw data'!B101="","",'DF raw data'!B101) -> -2.76005e-05 | C96: =IF('DF raw data'!C101="","",'DF raw data'!C101) -> 7.68071e-05 | D96: =IF('DF raw data'!D101="","",'DF raw data'!D101) -> -3.58476e-05 | F96: -2.77164221e-05 | G96: 7.712968982e-05 | H96: -3.599815992e-05 | J96: -0.0003210117419 | K96: -0.002760015064 | L96: 0.001487987961 | M96: 0.01344978027 | N96: 1.414795184e-05
A97: =IF('DF raw data'!A102="","",'DF raw data'!A102) -> -282.5 | B97: =IF('DF raw data'!B102="","",'DF raw data'!B102) -> -3.17071e-05 | C97: =IF('DF raw data'!C102="","",'DF raw data'!C102) -> 7.76899e-05 | D97: =IF('DF raw data'!D102="","",'DF raw data'!D102) -> -2.67593e-05 | F97: -3.184026982e-05 | G97: 7.801619758e-05 | H97: -2.687168906e-05 | J97: -0.0003369318768 | K97: -0.002928481003 | L97: 0.00152699606 | M97: 0.0142132783 | N97: 1.537057187e-05
A98: =IF('DF raw data'!A103="","",'DF raw data'!A103) -> -282 | B98: =IF('DF raw data'!B103="","",'DF raw data'!B103) -> -2.49767e-05 | C98: =IF('DF raw data'!C103="","",'DF raw data'!C103) -> 8.12041e-05 | D98: =IF('DF raw data'!D103="","",'DF raw data'!D103) -> -2.99718e-05 | F98: -2.508160214e-05 | G98: 8.154515722e-05 | H98: -3.009768156e-05 | J98: -0.0003494726779 | K98: -0.003103217342 | L98: 0.001567768639 | M98: 0.01499716261 | N98: 1.66605867e-05
A99: =IF('DF raw data'!A104="","",'DF raw data'!A104) -> -281.5 | B99: =IF('DF raw data'!B104="","",'DF raw data'!B104) -> -2.23438e-05 | C99: =IF('DF raw data'!C104="","",'DF raw data'!C104) -> 7.85469e-05 | D99: =IF('DF raw data'!D104="","",'DF raw data'!D104) -> -3.68693e-05 | F99: -2.243764396e-05 | G99: 7.887679698e-05 | H99: -3.702415106e-05 | J99: -0.0003606914998 | K99: -0.003283563092 | L99: 0.001607207037 | M99: 0.01580076613 | N99: 1.80171931e-05
A100: =IF('DF raw data'!A105="","",'DF raw data'!A105) -> -281 | B100: =IF('DF raw data'!B105="","",'DF raw data'!B105) -> -2.11907e-05 | C100: =IF('DF raw data'!C105="","",'DF raw data'!C105) -> 7.70689e-05 | D100: =IF('DF raw data'!D105="","",'DF raw data'!D105) -> -3.72403e-05 | F100: -2.127970094e-05 | G100: 7.739258938e-05 | H100: -3.739670926e-05 | J100: -0.0003713313503 | K100: -0.003469228767 | L100: 0.001645903332 | M100: 0.0166237178 | N100: 1.944063548e-05
A101: =IF('DF raw data'!A106="","",'DF raw data'!A106) -> -280.5 | B101: =IF('DF raw data'!B106="","",'DF raw data'!B106) -> -2.94653e-05 | C101: =IF('DF raw data'!C106="","",'DF raw data'!C106) -> 8.38852e-05 | D101: =IF('DF raw data'!D106="","",'DF raw data'!D106) -> -2.48088e-05 | F101: -2.958905426e-05 | G101: 8.423751784e-05 | H101: -2.491299696e-05 | J101: -0.0003861258774 | K101: -0.003662291705 | L101: 0.001688022091 | M101: 0.01746772884 | N101: 2.093989137e-05
A102: =IF('DF raw data'!A107="","",'DF raw data'!A107) -> -280 | B102: =IF('DF raw data'!B107="","",'DF raw data'!B107) -> -2.26618e-05 | C102: =IF('DF raw data'!C107="","",'DF raw data'!C107) -> 8.12492e-05 | D102: =IF('DF raw data'!D107="","",'DF raw data'!D107) -> -4.19761e-05 | F102: -2.275697956e-05 | G102: 8.159044664e-05 | H102: -4.215239962e-05 | J102: -0.0003975043672 | K102: -0.003861043889 | L102: 0.001728817314 | M102: 0.0183321375 | N102: 2.251330088e-05
A103: =IF('DF raw data'!A108="","",'DF raw data'!A108) -> -279.5 | B103: =IF('DF raw data'!B108="","",'DF raw data'!B108) -> -1.30527e-05 | C103: =IF('DF raw data'!C108="","",'DF raw data'!C108) -> 7.80678e-05 | D103: =IF('DF raw data'!D108="","",'DF raw data'!D108) -> -3.47691e-05 | F103: -1.310752134e-05 | G103: 7.839568476e-05 | H103: -3.491513022e-05 | J103: -0.0004040581279 | K103: -0.004063072953 | L103: 0.001768015156 | M103: 0.01921614508 | N103: 2.415787116e-05
A104: =IF('DF raw data'!A109="","",'DF raw data'!A109) -> -279 | B104: =IF('DF raw data'!B109="","",'DF raw data'!B109) -> -2.28592e-05 | C104: =IF('DF raw data'!C109="","",'DF raw data'!C109) -> 8.40139e-05 | D104: =IF('DF raw data'!D109="","",'DF raw data'!D109) -> -3.36534e-05 | F104: -2.295520864e-05 | G104: 8.436675838e-05 | H104: -3.379474428e-05 | J104: -0.0004155357322 | K104: -0.004270840819 | L104: 0.001810198536 | M104: 0.02012124435 | N104: 2.58826155e-05
A105: =IF('DF raw data'!A110="","",'DF raw data'!A110) -> -278.5 | B105: =IF('DF raw data'!B110="","",'DF raw data'!B110) -> -2.82355e-05 | C105: =IF('DF raw data'!C110="","",'DF raw data'!C110) -> 8.52471e-05 | D105: =IF('DF raw data'!D110="","",'DF raw data'!D110) -> -4.35816e-05 | F105: -2.83540891e-05 | G105: 8.560513782e-05 | H105: -4.376464272e-05 | J105: -0.0004297127768 | K105: -0.004485697207 | L105: 0.001853001104 | M105: 0.0210477449 | N105: 2.769174858e-05
A106: =IF('DF raw data'!A111="","",'DF raw data'!A111) -> -278 | B106: =IF('DF raw data'!B111="","",'DF raw data'!B111) -> -2.90752e-05 | C106: =IF('DF raw data'!C111="","",'DF raw data'!C111) -> 8.47398e-05 | D106: =IF('DF raw data'!D111="","",'DF raw data'!D111) -> -3.49086e-05 | F106: -2.919731584e-05 | G106: 8.509570716e-05 | H106: -3.505521612e-05 | J106: -0.0004443114347 | K106: -0.004707852925 | L106: 0.001895548958 | M106: 0.02199551938 | N106: 2.958700784e-05
A107: =IF('DF raw data'!A112="","",'DF raw data'!A112) -> -277.5 | B107: =IF('DF raw data'!B112="","",'DF raw data'!B112) -> -2.60576e-05 | C107: =IF('DF raw data'!C112="","",'DF raw data'!C112) -> 9.5533e-05 | D107: =IF('DF raw data'!D112="","",'DF raw data'!D112) -> -4.20562e-05 | F107: -2.616704192e-05 | G107: 9.59342386e-05 | H107: -4.223283604e-05 | J107: -0.0004573949556 | K107: -0.004936550403 | L107: 0.001943516077 | M107: 0.02296727742 | N107: 3.158024028e-05
A108: =IF('DF raw data'!A113="","",'DF raw data'!A113) -> -277 | B108: =IF('DF raw data'!B113="","",'DF raw data'!B113) -> -3.70846e-05 | C108: =IF('DF raw data'!C113="","",'DF raw data'!C113) -> 8.82644e-05 | D108: =IF('DF raw data'!D113="","",'DF raw data'!D113) -> -3.7456e-05 | F108: -3.724035532e-05 | G108: 8.863511048e-05 | H108: -3.76133152e-05 | J108: -0.0004760151333 | K108: -0.005174557969 | L108: 0.001987833633 | M108: 0.02396119423 | N108: 3.366927676e-05
A109: =IF('DF raw data'!A114="","",'DF raw data'!A114) -> -276.5 | B109: =IF('DF raw data'!B114="","",'DF raw data'!B114) -> -2.2792e-05 | C109: =IF('DF raw data'!C114="","",'DF raw data'!C114) -> 7.90453e-05 | D109: =IF('DF raw data'!D114="","",'DF raw data'!D114) -> -3.78533e-05 | F109: -2.28877264e-05 | G109: 7.937729026e-05 | H109: -3.801228386e-05 | J109: -0.0004874589965 | K109: -0.005418287468 | L109: 0.002027522278 | M109: 0.02497495537 | N109: 3.584350819e-05
A110: =IF('DF raw data'!A115="","",'DF raw data'!A115) -> -276 | B110: =IF('DF raw data'!B115="","",'DF raw data'!B115) -> -2.3574e-05 | C110: =IF('DF raw data'!C115="","",'DF raw data'!C115) -> 8.8284e-05 | D110: =IF('DF raw data'!D115="","",'DF raw data'!D115) -> -1.88561e-05 | F110: -2.36730108e-05 | G110: 8.86547928e-05 | H110: -1.893529562e-05 | J110: -0.0004992955019 | K110: -0.005667935218 | L110: 0.002071849674 | M110: 0.02601088021 | N110: 3.811443672e-05
A111: =IF('DF raw data'!A116="","",'DF raw data'!A116) -> -275.5 | B111: =IF('DF raw data'!B116="","",'DF raw data'!B116) -> -1.77903e-05 | C111: =IF('DF raw data'!C116="","",'DF raw data'!C116) -> 8.30399e-05 | D111: =IF('DF raw data'!D116="","",'DF raw data'!D116) -> -4.21766e-05 | F111: -1.786501926e-05 | G111: 8.338866758e-05 | H111: -4.235374172e-05 | J111: -0.0005082280115 | K111: -0.005922049224 | L111: 0.002113544008 | M111: 0.02706765221 | N111: 4.047711872e-05
A112: =IF('DF raw data'!A117="","",'DF raw data'!A117) -> -275 | B112: =IF('DF raw data'!B117="","",'DF raw data'!B117) -> -2.43298e-05 | C112: =IF('DF raw data'!C117="","",'DF raw data'!C117) -> 8.22552e-05 | D112: =IF('DF raw data'!D117="","",'DF raw data'!D117) -> -3.92622e-05 | F112: -2.443198516e-05 | G112: 8.260067184e-05 | H112: -3.942710124e-05 | J112: -0.0005204440041 | K112: -0.006182271226 | L112: 0.002154844344 | M112: 0.02814507438 | N112: 4.293422677e-05
A113: =IF('DF raw data'!A118="","",'DF raw data'!A118) -> -274.5 | B113: =IF('DF raw data'!B118="","",'DF raw data'!B118) -> -3.37527e-05 | C113: =IF('DF raw data'!C118="","",'DF raw data'!C118) -> 9.15107e-05 | D113: =IF('DF raw data'!D118="","",'DF raw data'!D118) -> -3.45896e-05 | F113: -3.389446134e-05 | G113: 9.189504494e-05 | H113: -3.473487632e-05 | J113: -0.0005373912348 | K113: -0.006450966844 | L113: 0.002200791866 | M113: 0.02924547032 | N113: 4.550036386e-05
A114: =IF('DF raw data'!A119="","",'DF raw data'!A119) -> -274 | B114: =IF('DF raw data'!B119="","",'DF raw data'!B119) -> -2.95919e-05 | C114: =IF('DF raw data'!C119="","",'DF raw data'!C119) -> 9.32425e-05 | D114: =IF('DF raw data'!D119="","",'DF raw data'!D119) -> -2.88154e-05 | F114: -2.971618598e-05 | G114: 9.36341185e-05 | H114: -2.893642468e-05 | J114: -0.0005522493278 | K114: -0.006727091508 | L114: 0.002247608925 | M114: 0.03036927478 | N114: 4.817872646e-05
A115: =IF('DF raw data'!A120="","",'DF raw data'!A120) -> -273.5 | B115: =IF('DF raw data'!B120="","",'DF raw data'!B120) -> -2.22796e-05 | C115: =IF('DF raw data'!C120="","",'DF raw data'!C120) -> 9.08969e-05 | D115: =IF('DF raw data'!D120="","",'DF raw data'!D120) -> -3.67808e-05 | F115: -2.237317432e-05 | G115: 9.127866698e-05 | H115: -3.693527936e-05 | J115: -0.0005634359149 | K115: -0.007008809465 | L115: 0.002293248259 | M115: 0.03151589891 | N115: 5.096695026e-05
A116: =IF('DF raw data'!A121="","",'DF raw data'!A121) -> -273 | B116: =IF('DF raw data'!B121="","",'DF raw data'!B121) -> -1.04326e-05 | C116: =IF('DF raw data'!C121="","",'DF raw data'!C121) -> 9.1806e-05 | D116: =IF('DF raw data'!D121="","",'DF raw data'!D121) -> -2.38489e-05 | F116: -1.047641692e-05 | G116: 9.21915852e-05 | H116: -2.394906538e-05 | J116: -0.0005686741234 | K116: -0.007293146527 | L116: 0.002339344052 | M116: 0.03268557094 | N116: 5.386491069e-05
A117: =IF('DF raw data'!A122="","",'DF raw data'!A122) -> -272.5 | B117: =IF('DF raw data'!B122="","",'DF raw data'!B122) -> -1.72153e-05 | C117: =IF('DF raw data'!C122="","",'DF raw data'!C122) -> 9.33095e-05 | D117: =IF('DF raw data'!D122="","",'DF raw data'!D122) -> -3.90941e-05 | F117: -1.728760426e-05 | G117: 9.37013999e-05 | H117: -3.925829522e-05 | J117: -0.0005773179255 | K117: -0.007581805489 | L117: 0.002386194752 | M117: 0.03387866831 | N117: 5.687852138e-05
A118: =IF('DF raw data'!A123="","",'DF raw data'!A123) -> -272 | B118: =IF('DF raw data'!B123="","",'DF raw data'!B123) -> -1.3314e-05 | C118: =IF('DF raw data'!C123="","",'DF raw data'!C123) -> 8.90941e-05 | D118: =IF('DF raw data'!D123="","",'DF raw data'!D123) -> -2.79069e-05 | F118: -1.33699188e-05 | G118: 8.946829522e-05 | H118: -2.802410898e-05 | J118: -0.0005840028849 | K118: -0.007873806932 | L118: 0.002430928899 | M118: 0.03509413276 | N118: 6.000375872e-05
A119: =IF('DF raw data'!A124="","",'DF raw data'!A124) -> -271.5 | B119: =IF('DF raw data'!B124="","",'DF raw data'!B124) -> -2.46567e-05 | C119: =IF('DF raw data'!C124="","",'DF raw data'!C124) -> 9.50892e-05 | D119: =IF('DF raw data'!D124="","",'DF raw data'!D124) -> -2.74018e-05 | F119: -2.476025814e-05 | G119: 9.548857464e-05 | H119: -2.751688756e-05 | J119: -0.000596383014 | K119: -0.008171998439 | L119: 0.002478673186 | M119: 0.03633346935 | N119: 6.325350545e-05
A120: =IF('DF raw data'!A125="","",'DF raw data'!A125) -> -271 | B120: =IF('DF raw data'!B125="","",'DF raw data'!B125) -> -1.709e-05 | C120: =IF('DF raw data'!C125="","",'DF raw data'!C125) -> 8.74006e-05 | D120: =IF('DF raw data'!D125="","",'DF raw data'!D125) -> -3.60132e-05 | F120: -1.7161778e-05 | G120: 8.776768252e-05 | H120: -3.616445544e-05 | J120: -0.000604963903 | K120: -0.00847448039 | L120: 0.002522557028 | M120: 0.03759474787 | N120: 6.661814309e-05
A121: =IF('DF raw data'!A126="","",'DF raw data'!A126) -> -270.5 | B121: =IF('DF raw data'!B126="","",'DF raw data'!B126) -> -2.53553e-05 | C121: =IF('DF raw data'!C126="","",'DF raw data'!C126) -> 8.77905e-05 | D121: =IF('DF raw data'!D126="","",'DF raw data'!D126) -> -3.71875e-05 | F121: -2.546179226e-05 | G121: 8.81592201e-05 | H121: -3.73436875e-05 | J121: -0.0006176947991 | K121: -0.00878332779 | L121: 0.002566636638 | M121: 0.03887806619 | N121: 7.010272834e-05
A122: =IF('DF raw data'!A127="","",'DF raw data'!A127) -> -270 | B122: =IF('DF raw data'!B127="","",'DF raw data'!B127) -> -1.39501e-05 | C122: =IF('DF raw data'!C127="","",'DF raw data'!C127) -> 8.88494e-05 | D122: =IF('DF raw data'!D127="","",'DF raw data'!D127) -> -3.53734e-05 | F122: -1.400869042e-05 | G122: 8.922256748e-05 | H122: -3.552196828e-05 | J122: -0.0006246991443 | K122: -0.009095677362 | L122: 0.002611247922 | M122: 0.04018369015 | N122: 7.37071607e-05
A123: =IF('DF raw data'!A128="","",'DF raw data'!A128) -> -269.5 | B123: =IF('DF raw data'!B128="","",'DF raw data'!B128) -> -2.18941e-05 | C123: =IF('DF raw data'!C128="","",'DF raw data'!C128) -> 8.68397e-05 | D123: =IF('DF raw data'!D128="","",'DF raw data'!D128) -> -3.79009e-05 | F123: -2.198605522e-05 | G123: 8.720442674e-05 | H123: -3.806008378e-05 | J123: -0.0006356921719 | K123: -0.009413523448 | L123: 0.002654850135 | M123: 0.04151111522 | N123: 7.743332759e-05
A124: =IF('DF raw data'!A129="","",'DF raw data'!A129) -> -269 | B124: =IF('DF raw data'!B129="","",'DF raw data'!B129) -> -2.18953e-05 | C124: =IF('DF raw data'!C129="","",'DF raw data'!C129) -> 8.65466e-05 | D124: =IF('DF raw data'!D129="","",'DF raw data'!D129) -> -3.82021e-05 | F124: -2.198726026e-05 | G124: 8.691009572e-05 | H124: -3.836254882e-05 | J124: -0.0006466858021 | K124: -0.009736866349 | L124: 0.002698305183 | M124: 0.04286026781 | N124: 8.128285428e-05
A125: =IF('DF raw data'!A130="","",'DF raw data'!A130) -> -268.5 | B125: =IF('DF raw data'!B130="","",'DF raw data'!B130) -> -1.79235e-05 | C125: =IF('DF raw data'!C130="","",'DF raw data'!C130) -> 8.09053e-05 | D125: =IF('DF raw data'!D130="","",'DF raw data'!D130) -> -3.39559e-05 | F125: -1.79987787e-05 | G125: 8.124510226e-05 | H125: -3.409851478e-05 | J125: -0.0006556851914 | K125: -0.01006470894 | L125: 0.002738927734 | M125: 0.04422973167 | N125: 8.524867839e-05
A126: =IF('DF raw data'!A131="","",'DF raw data'!A131) -> -268 | B126: =IF('DF raw data'!B131="","",'DF raw data'!B131) -> -2.02934e-05 | C126: =IF('DF raw data'!C131="","",'DF raw data'!C131) -> 8.0515e-05 | D126: =IF('DF raw data'!D131="","",'DF raw data'!D131) -> -3.80634e-05 | F126: -2.037863228e-05 | G126: 8.0853163e-05 | H126: -3.822326628e-05 | J126: -0.0006658745076 | K126: -0.0103976462 | L126: 0.002779354315 | M126: 0.04561940883 | N126: 8.933277802e-05
A127: =IF('DF raw data'!A132="","",'DF raw data'!A132) -> -267.5 | B127: =IF('DF raw data'!B132="","",'DF raw data'!B132) -> -2.26012e-05 | C127: =IF('DF raw data'!C132="","",'DF raw data'!C132) -> 7.68895e-05 | D127: =IF('DF raw data'!D132="","",'DF raw data'!D132) -> -3.45812e-05 | F127: -2.269612504e-05 | G127: 7.72124359e-05 | H127: -3.472644104e-05 | J127: -0.0006772225701 | K127: -0.01073625748 | L127: 0.002817960533 | M127: 0.0470283891 | N127: 9.353254401e-05
A128: =IF('DF raw data'!A133="","",'DF raw data'!A133) -> -267 | B128: =IF('DF raw data'!B133="","",'DF raw data'!B133) -> -1.51727e-05 | C128: =IF('DF raw data'!C133="","",'DF raw data'!C133) -> 8.20225e-05 | D128: =IF('DF raw data'!D133="","",'DF raw data'!D133) -> -2.79354e-05 | F128: =(1-$G$1*($B$49-$G$2))*B128 -> -1.523642534e-05 | G128: 8.23669945e-05 | H128: -2.805272868e-05 | J128: =F128*$G$3+J127 -> -0.0006848407827 | K128: =J128*$G$3+K127 -> -0.01107867788 | L128: =G128*$G$3+L127 -> 0.002859144031 | M128: =L128*$G$3+M127 -> 0.04845796111 | N128: =(J128^2+L128^2)*$G$3+N127 -> 9.785439975e-05
A129: =IF('DF raw data'!A134="","",'DF raw data'!A134) -> -266.5 | B129: =IF('DF raw data'!B134="","",'DF raw data'!B134) -> -1.76674e-05 | C129: =IF('DF raw data'!C134="","",'DF raw data'!C134) -> 7.84554e-05 | D129: =IF('DF raw data'!D134="","",'DF raw data'!D134) -> -3.35321e-05 | F129: -1.774160308e-05 | G129: 7.878491268e-05 | H129: -3.367293482e-05 | J129: -0.0006937115843 | K129: -0.01142553367 | L129: 0.002898536487 | M129: 0.04990722936 | N129: 0.0001022957745
A130: =IF('DF raw data'!A135="","",'DF raw data'!A135) -> -266 | B130: =IF('DF raw data'!B135="","",'DF raw data'!B135) -> -1.9529e-05 | C130: =IF('DF raw data'!C135="","",'DF raw data'!C135) -> 7.46996e-05 | D130: =IF('DF raw data'!D135="","",'DF raw data'!D135) -> -3.0441e-05 | F130: -1.96110218e-05 | G130: 7.501333832e-05 | H130: -3.05688522e-05 | J130: -0.0007035170952 | K130: -0.01177729221 | L130: 0.002936043156 | M130: 0.05137525093 | N130: 0.0001068534174
A131: =IF('DF raw data'!A136="","",'DF raw data'!A136) -> -265.5 | B131: =IF('DF raw data'!B136="","",'DF raw data'!B136) -> -2.23976e-05 | C131: =IF('DF raw data'!C136="","",'DF raw data'!C136) -> 8.20896e-05 | D131: =IF('DF raw data'!D136="","",'DF raw data'!D136) -> -5.18042e-05 | F131: -2.249166992e-05 | G131: 8.243437632e-05 | H131: -5.202177764e-05 | J131: -0.0007147629301 | K131: -0.01213467368 | L131: 0.002977260344 | M131: 0.05286388111 | N131: 0.0001115409
A132: =IF('DF raw data'!A137="","",'DF raw data'!A137) -> -265 | B132: =IF('DF raw data'!B137="","",'DF raw data'!B137) -> -2.56141e-05 | C132: =IF('DF raw data'!C137="","",'DF raw data'!C137) -> 8.52964e-05 | D132: =IF('DF raw data'!D137="","",'DF raw data'!D137) -> -3.59267e-05 | F132: -2.572167922e-05 | G132: 8.565464488e-05 | H132: -3.607759214e-05 | J132: -0.0007276237698 | K132: -0.01249848556 | L132: 0.003020087667 | M132: 0.05437392494 | N132: 0.0001163660829
A133: =IF('DF raw data'!A138="","",'DF raw data'!A138) -> -264.5 | B133: =IF('DF raw data'!B138="","",'DF raw data'!B138) -> -1.63951e-05 | C133: =IF('DF raw data'!C138="","",'DF raw data'!C138) -> 9.08469e-05 | D133: =IF('DF raw data'!D138="","",'DF raw data'!D138) -> -1.87725e-05 | F133: -1.646395942e-05 | G133: 9.122845698e-05 | H133: -1.88513445e-05 | J133: -0.0007358557495 | K133: -0.01286641344 | L133: 0.003065701895 | M133: 0.05590677589 | N133: 0.0001213360888
A134: =IF('DF raw data'!A139="","",'DF raw data'!A139) -> -264 | B134: =IF('DF raw data'!B139="","",'DF raw data'!B139) -> -2.20351e-05 | C134: =IF('DF raw data'!C139="","",'DF raw data'!C139) -> 9.32223e-05 | D134: =IF('DF raw data'!D139="","",'DF raw data'!D139) -> -2.03863e-05 | F134: -2.212764742e-05 | G134: 9.361383366e-05 | H134: -2.047192246e-05 | J134: -0.0007469195732 | K134: -0.01323987323 | L134: 0.003112508812 | M134: 0.05746303029 | N134: 0.0001264588888
A135: =IF('DF raw data'!A140="","",'DF raw data'!A140) -> -263.5 | B135: =IF('DF raw data'!B140="","",'DF raw data'!B140) -> -2.75936e-05 | C135: =IF('DF raw data'!C140="","",'DF raw data'!C140) -> 9.29432e-05 | D135: =IF('DF raw data'!D140="","",'DF raw data'!D140) -> -4.44143e-05 | F135: -2.770949312e-05 | G135: 9.333356144e-05 | H135: -4.460084006e-05 | J135: -0.0007607743197 | K135: -0.01362026039 | L135: 0.003159175593 | M135: 0.05904261809 | N135: 0.0001317384728
A136: =IF('DF raw data'!A141="","",'DF raw data'!A141) -> -263 | B136: =IF('DF raw data'!B141="","",'DF raw data'!B141) -> -2.21495e-05 | C136: =IF('DF raw data'!C141="","",'DF raw data'!C141) -> 8.27008e-05 | D136: =IF('DF raw data'!D141="","",'DF raw data'!D141) -> -4.1471e-05 | F136: -2.22425279e-05 | G136: 8.304814336e-05 | H136: -4.16451782e-05 | J136: -0.0007718955837 | K136: -0.01400620818 | L136: 0.003200699664 | M136: 0.06064296792 | N136: 0.0001371586233
A137: =IF('DF raw data'!A142="","",'DF raw data'!A142) -> -262.5 | B137: =IF('DF raw data'!B142="","",'DF raw data'!B142) -> -1.38195e-05 | C137: =IF('DF raw data'!C142="","",'DF raw data'!C142) -> 8.32706e-05 | D137: =IF('DF raw data'!D142="","",'DF raw data'!D142) -> -3.77828e-05 | F137: -1.38775419e-05 | G137: 8.362033652e-05 | H137: -3.794148776e-05 | J137: -0.0007788343546 | K137: -0.01439562536 | L137: 0.003242509833 | M137: 0.06226422284 | N137: 0.0001427188498
A138: =IF('DF raw data'!A143="","",'DF raw data'!A143) -> -262 | B138: =IF('DF raw data'!B143="","",'DF raw data'!B143) -> -2.11259e-05 | C138: =IF('DF raw data'!C143="","",'DF raw data'!C143) -> 8.99332e-05 | D138: =IF('DF raw data'!D143="","",'DF raw data'!D143) -> -3.8769e-05 | F138: -2.121462878e-05 | G138: 9.031091944e-05 | H138: -3.89318298e-05 | J138: -0.000789441669 | K138: -0.01479034619 | L138: 0.003287665292 | M138: 0.06390805548 | N138: 0.0001484348304
A139: =IF('DF raw data'!A144="","",'DF raw data'!A144) -> -261.5 | B139: =IF('DF raw data'!B144="","",'DF raw data'!B144) -> -2.70257e-05 | C139: =IF('DF raw data'!C144="","",'DF raw data'!C144) -> 9.4442e-05 | D139: =IF('DF raw data'!D144="","",'DF raw data'!D144) -> -3.05435e-05 | F139: -2.713920794e-05 | G139: 9.48386564e-05 | H139: -3.06717827e-05 | J139: -0.000803011273 | K139: -0.01519185183 | L139: 0.003335084621 | M139: 0.0655755978 | N139: 0.0001543186387
A140: =IF('DF raw data'!A145="","",'DF raw data'!A145) -> -261 | B140: =IF('DF raw data'!B145="","",'DF raw data'!B145) -> -1.58158e-05 | C140: =IF('DF raw data'!C145="","",'DF raw data'!C145) -> 9.46021e-05 | D140: =IF('DF raw data'!D145="","",'DF raw data'!D145) -> -2.45656e-05 | F140: -1.588222636e-05 | G140: 9.499942882e-05 | H140: -2.466877552e-05 | J140: -0.0008109523862 | K140: -0.01559732802 | L140: 0.003382584335 | M140: 0.06726688996 | N140: 0.000160368399
A141: =IF('DF raw data'!A146="","",'DF raw data'!A146) -> -260.5 | B141: =IF('DF raw data'!B146="","",'DF raw data'!B146) -> -1.87497e-05 | C141: =IF('DF raw data'!C146="","",'DF raw data'!C146) -> 9.21057e-05 | D141: =IF('DF raw data'!D146="","",'DF raw data'!D146) -> -4.42619e-05 | F141: -1.882844874e-05 | G141: 9.249254394e-05 | H141: -4.444779998e-05 | J141: -0.0008203666105 | K141: -0.01600751132 | L141: 0.003428830607 | M141: 0.06898130527 | N141: 0.0001665833393
A142: =IF('DF raw data'!A147="","",'DF raw data'!A147) -> -260 | B142: =IF('DF raw data'!B147="","",'DF raw data'!B147) -> -2.93319e-05 | C142: =IF('DF raw data'!C147="","",'DF raw data'!C147) -> 9.10635e-05 | D142: =IF('DF raw data'!D147="","",'DF raw data'!D147) -> -3.53067e-05 | F142: -2.945509398e-05 | G142: 9.14459667e-05 | H142: -3.545498814e-05 | J142: -0.0008350941575 | K142: -0.0164250584 | L142: 0.00347455359 | M142: 0.07071858206 | N142: 0.0001729682918
A143: =IF('DF raw data'!A148="","",'DF raw data'!A148) -> -259.5 | B143: =IF('DF raw data'!B148="","",'DF raw data'!B148) -> -1.88212e-05 | C143: =IF('DF raw data'!C148="","",'DF raw data'!C148) -> 0.000101416 | D143: =IF('DF raw data'!D148="","",'DF raw data'!D148) -> -3.30352e-05 | F143: -1.890024904e-05 | G143: 0.0001018419472 | H143: -3.317394784e-05 | J143: -0.0008445442821 | K143: -0.01684733054 | L143: 0.003525474564 | M143: 0.07248131934 | N143: 0.0001795394048
A144: =IF('DF raw data'!A149="","",'DF raw data'!A149) -> -259 | B144: =IF('DF raw data'!B149="","",'DF raw data'!B149) -> -2.18319e-05 | C144: =IF('DF raw data'!C149="","",'DF raw data'!C149) -> 0.000100064 | D144: =IF('DF raw data'!D149="","",'DF raw data'!D149) -> -3.75705e-05 | F144: -2.192359398e-05 | G144: 0.0001004842688 | H144: -3.77282961e-05 | J144: -0.000855506079 | K144: -0.01727508358 | L144: 0.003575716698 | M144: 0.07426917769 | N144: 0.000186298225
A145: =IF('DF raw data'!A150="","",'DF raw data'!A150) -> -258.5 | B145: =IF('DF raw data'!B150="","",'DF raw data'!B150) -> -2.17648e-05 | C145: =IF('DF raw data'!C150="","",'DF raw data'!C150) -> 8.64456e-05 | D145: =IF('DF raw data'!D150="","",'DF raw data'!D150) -> -3.9482e-05 | F145: -2.185621216e-05 | G145: 8.680867152e-05 | H145: -3.96478244e-05 | J145: -0.0008664341851 | K145: -0.01770830068 | L145: 0.003619121034 | M145: 0.07607873821 | N145: 0.0001932225977
A146: =IF('DF raw data'!A151="","",'DF raw data'!A151) -> -258 | B146: =IF('DF raw data'!B151="","",'DF raw data'!B151) -> -1.05506e-05 | C146: =IF('DF raw data'!C151="","",'DF raw data'!C151) -> 8.17745e-05 | D146: =IF('DF raw data'!D151="","",'DF raw data'!D151) -> -3.97799e-05 | F146: -1.059491252e-05 | G146: 8.21179529e-05 | H146: -3.994697558e-05 | J146: -0.0008717316414 | K146: -0.0181441665 | L146: 0.003660180011 | M146: 0.07790882821 | N146: 0.0002003010146
A147: =IF('DF raw data'!A152="","",'DF raw data'!A152) -> -257.5 | B147: =IF('DF raw data'!B152="","",'DF raw data'!B152) -> -1.97729e-05 | C147: =IF('DF raw data'!C152="","",'DF raw data'!C152) -> 8.39567e-05 | D147: =IF('DF raw data'!D152="","",'DF raw data'!D152) -> -4.7873e-05 | F147: -1.985594618e-05 | G147: 8.430931814e-05 | H147: -4.80740666e-05 | J147: -0.0008816596145 | K147: -0.0185849963 | L147: 0.00370233467 | M147: 0.07975999555 | N147: 0.0002075433174
A148: =IF('DF raw data'!A153="","",'DF raw data'!A153) -> -257 | B148: =IF('DF raw data'!B153="","",'DF raw data'!B153) -> -2.25971e-05 | C148: =IF('DF raw data'!C153="","",'DF raw data'!C153) -> 8.02193e-05 | D148: =IF('DF raw data'!D153="","",'DF raw data'!D153) -> -4.38366e-05 | F148: -2.269200782e-05 | G148: 8.055622106e-05 | H148: -4.402071372e-05 | J148: -0.0008930056184 | K148: -0.01903149911 | L148: 0.00374261278 | M148: 0.08163130194 | N148: 0.0002149456221
A149: =IF('DF raw data'!A154="","",'DF raw data'!A154) -> -256.5 | B149: =IF('DF raw data'!B154="","",'DF raw data'!B154) -> -2.22074e-05 | C149: =IF('DF raw data'!C154="","",'DF raw data'!C154) -> 7.87938e-05 | D149: =IF('DF raw data'!D154="","",'DF raw data'!D154) -> -4.85485e-05 | F149: -2.230067108e-05 | G149: 7.912473396e-05 | H149: -4.87524037e-05 | J149: -0.0009041559539 | K149: -0.01948357709 | L149: 0.003782175147 | M149: 0.08352238951 | N149: 0.0002225067955
A150: =IF('DF raw data'!A155="","",'DF raw data'!A155) -> -256 | B150: =IF('DF raw data'!B155="","",'DF raw data'!B155) -> -2.92698e-05 | C150: =IF('DF raw data'!C155="","",'DF raw data'!C155) -> 7.19268e-05 | D150: =IF('DF raw data'!D155="","",'DF raw data'!D155) -> -3.26226e-05 | F150: -2.939273316e-05 | G150: 7.222889256e-05 | H150: -3.275961492e-05 | J150: -0.0009188523205 | K150: -0.01994300325 | L150: 0.003818289593 | M150: 0.08543153431 | N150: 0.000230218608
A151: =IF('DF raw data'!A156="","",'DF raw data'!A156) -> -255.5 | B151: =IF('DF raw data'!B156="","",'DF raw data'!B156) -> -2.34947e-05 | C151: =IF('DF raw data'!C156="","",'DF raw data'!C156) -> 7.48278e-05 | D151: =IF('DF raw data'!D156="","",'DF raw data'!D156) -> -3.97631e-05 | F151: -2.359337774e-05 | G151: 7.514207676e-05 | H151: -3.993010502e-05 | J151: -0.0009306490094 | K151: -0.02040832776 | L151: 0.003855860632 | M151: 0.08735946463 | N151: 0.0002380854924
A152: =IF('DF raw data'!A157="","",'DF raw data'!A157) -> -255 | B152: =IF('DF raw data'!B157="","",'DF raw data'!B157) -> -1.75948e-05 | C152: =IF('DF raw data'!C157="","",'DF raw data'!C157) -> 8.34203e-05 | D152: =IF('DF raw data'!D157="","",'DF raw data'!D157) -> -4.88753e-05 | F152: -1.766869816e-05 | G152: 8.377066526e-05 | H152: -4.908057626e-05 | J152: -0.0009394833585 | K152: -0.02087806943 | L152: 0.003897745964 | M152: 0.08930833761 | N152: 0.0002461230187
A153: =IF('DF raw data'!A158="","",'DF raw data'!A158) -> -254.5 | B153: =IF('DF raw data'!B158="","",'DF raw data'!B158) -> -1.55503e-05 | C153: =IF('DF raw data'!C158="","",'DF raw data'!C158) -> 8.73875e-05 | D153: =IF('DF raw data'!D158="","",'DF raw data'!D158) -> -3.66284e-05 | F153: -1.561561126e-05 | G153: 8.77545275e-05 | H153: -3.678223928e-05 | J153: -0.0009472911641 | K153: -0.02135171502 | L153: 0.003941623228 | M153: 0.09127914922 | N153: 0.0002543398958
A154: =IF('DF raw data'!A159="","",'DF raw data'!A159) -> -254 | B154: =IF('DF raw data'!B159="","",'DF raw data'!B159) -> -1.51662e-05 | C154: =IF('DF raw data'!C159="","",'DF raw data'!C159) -> 8.30766e-05 | D154: =IF('DF raw data'!D159="","",'DF raw data'!D159) -> -3.84771e-05 | F154: -1.522989804e-05 | G154: 8.342552172e-05 | H154: -3.863870382e-05 | J154: -0.0009549061131 | K154: -0.02182916807 | L154: 0.003983335989 | M154: 0.09327081722 | N154: 0.0002627293015
A155: =IF('DF raw data'!A160="","",'DF raw data'!A160) -> -253.5 | B155: =IF('DF raw data'!B160="","",'DF raw data'!B160) -> -2.68878e-05 | C155: =IF('DF raw data'!C160="","",'DF raw data'!C160) -> 7.44474e-05 | D155: =IF('DF raw data'!D160="","",'DF raw data'!D160) -> -4.47824e-05 | F155: -2.700072876e-05 | G155: 7.476007908e-05 | H155: -4.497048608e-05 | J155: -0.0009684064775 | K155: -0.02231337131 | L155: 0.004020716029 | M155: 0.09528117523 | N155: 0.0002712812857
A156: =IF('DF raw data'!A161="","",'DF raw data'!A161) -> -253 | B156: =IF('DF raw data'!B161="","",'DF raw data'!B161) -> -2.5617e-05 | C156: =IF('DF raw data'!C161="","",'DF raw data'!C161) -> 8.34093e-05 | D156: =IF('DF raw data'!D161="","",'DF raw data'!D161) -> -3.2283e-05 | F156: -2.57245914e-05 | G156: 8.375961906e-05 | H156: -3.24185886e-05 | J156: -0.0009812687732 | K156: -0.0228040057 | L156: 0.004062595838 | M156: 0.09731247315 | N156: 0.0002800150724
A157: =IF('DF raw data'!A162="","",'DF raw data'!A162) -> -252.5 | B157: =IF('DF raw data'!B162="","",'DF raw data'!B162) -> -3.50273e-05 | C157: =IF('DF raw data'!C162="","",'DF raw data'!C162) -> 8.69888e-05 | D157: =IF('DF raw data'!D162="","",'DF raw data'!D162) -> -4.34436e-05 | F157: -3.517441466e-05 | G157: 8.735415296e-05 | H157: -4.362606312e-05 | J157: -0.0009988559805 | K157: -0.02330343369 | L157: 0.004106272915 | M157: 0.09936560961 | N157: 0.0002889446677
A158: =IF('DF raw data'!A163="","",'DF raw data'!A163) -> -252 | B158: =IF('DF raw data'!B163="","",'DF raw data'!B163) -> -2.57969e-05 | C158: =IF('DF raw data'!C163="","",'DF raw data'!C163) -> 7.76044e-05 | D158: =IF('DF raw data'!D163="","",'DF raw data'!D163) -> -5.15822e-05 | F158: -2.590524698e-05 | G158: 7.793033848e-05 | H158: -5.179884524e-05 | J158: -0.001011808604 | K158: -0.02380933799 | L158: 0.004145238084 | M158: 0.1014382286 | N158: 0.0002980480454
A159: =IF('DF raw data'!A164="","",'DF raw data'!A164) -> -251.5 | B159: =IF('DF raw data'!B164="","",'DF raw data'!B164) -> -1.88805e-05 | C159: =IF('DF raw data'!C164="","",'DF raw data'!C164) -> 7.6843e-05 | D159: =IF('DF raw data'!D164="","",'DF raw data'!D164) -> -3.95952e-05 | F159: -1.89597981e-05 | G159: 7.71657406e-05 | H159: -3.976149984e-05 | J159: -0.001021288503 | K159: -0.02431998224 | L159: 0.004183820954 | M159: 0.1035301391 | N159: 0.0003073217394
A160: =IF('DF raw data'!A165="","",'DF raw data'!A165) -> -251 | B160: =IF('DF raw data'!B165="","",'DF raw data'!B165) -> -1.72183e-05 | C160: =IF('DF raw data'!C165="","",'DF raw data'!C165) -> 8.23036e-05 | D160: =IF('DF raw data'!D165="","",'DF raw data'!D165) -> -3.65609e-05 | F160: -1.729061686e-05 | G160: 8.264927512e-05 | H160: -3.671445578e-05 | J160: -0.001029933811 | K160: -0.02483494915 | L160: 0.004225145592 | M160: 0.1056427119 | N160: 0.0003167780488
A161: =IF('DF raw data'!A166="","",'DF raw data'!A166) -> -250.5 | B161: =IF('DF raw data'!B166="","",'DF raw data'!B166) -> -2.70183e-05 | C161: =IF('DF raw data'!C166="","",'DF raw data'!C166) -> 9.01284e-05 | D161: =IF('DF raw data'!D166="","",'DF raw data'!D166) -> -4.11315e-05 | F161: -2.713177686e-05 | G161: 9.050693928e-05 | H161: -4.13042523e-05 | J161: -0.0010434997 | K161: -0.025356699 | L161: 0.004270399061 | M161: 0.1077779115 | N161: 0.0003264406487
A162: =IF('DF raw data'!A167="","",'DF raw data'!A167) -> -250 | B162: =IF('DF raw data'!B167="","",'DF raw data'!B167) -> -1.56738e-05 | C162: =IF('DF raw data'!C167="","",'DF raw data'!C167) -> 8.87629e-05 | D162: =IF('DF raw data'!D167="","",'DF raw data'!D167) -> -4.63682e-05 | F162: -1.573962996e-05 | G162: 8.913570418e-05 | H162: -4.656294644e-05 | J162: -0.001051369515 | K162: -0.02588238376 | L162: 0.004314966913 | M162: 0.1099353949 | N162: 0.0003363028074
A163: =IF('DF raw data'!A168="","",'DF raw data'!A168) -> -249.5 | B163: =IF('DF raw data'!B168="","",'DF raw data'!B168) -> -2.52253e-05 | C163: =IF('DF raw data'!C168="","",'DF raw data'!C168) -> 8.62178e-05 | D163: =IF('DF raw data'!D168="","",'DF raw data'!D168) -> -3.89899e-05 | F163: -2.533124626e-05 | G163: 8.657991476e-05 | H163: -3.915365758e-05 | J163: -0.001064035138 | K163: -0.02641440132 | L163: 0.004358256871 | M163: 0.1121145233 | N163: 0.0003463660942
A164: =IF('DF raw data'!A169="","",'DF raw data'!A169) -> -249 | B164: =IF('DF raw data'!B169="","",'DF raw data'!B169) -> -2.30472e-05 | C164: =IF('DF raw data'!C169="","",'DF raw data'!C169) -> 8.17094e-05 | D164: =IF('DF raw data'!D169="","",'DF raw data'!D169) -> -4.19999e-05 | F164: -2.314399824e-05 | G164: 8.205257948e-05 | H164: -4.217629958e-05 | J164: -0.001075607137 | K164: -0.02695220489 | L164: 0.00439928316 | M164: 0.1143141649 | N164: 0.0003566214057
A165: =IF('DF raw data'!A170="","",'DF raw data'!A170) -> -248.5 | B165: =IF('DF raw data'!B170="","",'DF raw data'!B170) -> -2.90741e-05 | C165: =IF('DF raw data'!C170="","",'DF raw data'!C170) -> 7.72513e-05 | D165: =IF('DF raw data'!D170="","",'DF raw data'!D170) -> -3.33578e-05 | F165: -2.919621122e-05 | G165: 7.757575546e-05 | H165: -3.349790276e-05 | J165: -0.001090205243 | K165: -0.02749730751 | L165: 0.004438071038 | M165: 0.1165332004 | N165: 0.0003670639168
A166: =IF('DF raw data'!A171="","",'DF raw data'!A171) -> -248 | B166: =IF('DF raw data'!B171="","",'DF raw data'!B171) -> -2.94685e-05 | C166: =IF('DF raw data'!C171="","",'DF raw data'!C171) -> 8.05459e-05 | D166: =IF('DF raw data'!D171="","",'DF raw data'!D171) -> -2.31757e-05 | F166: -2.95922677e-05 | G166: 8.088419278e-05 | H166: -2.327303794e-05 | J166: -0.001105001377 | K166: -0.0280498082 | L166: 0.004478513135 | M166: 0.118772457 | N166: 0.0003777029707
A167: =IF('DF raw data'!A172="","",'DF raw data'!A172) -> -247.5 | B167: =IF('DF raw data'!B172="","",'DF raw data'!B172) -> -2.0029e-05 | C167: =IF('DF raw data'!C172="","",'DF raw data'!C172) -> 8.46403e-05 | D167: =IF('DF raw data'!D172="","",'DF raw data'!D172) -> -4.76656e-05 | F167: -2.01131218e-05 | G167: 8.499578926e-05 | H167: -4.786579552e-05 | J167: -0.001115057938 | K167: -0.02860733717 | L167: 0.004521011029 | M167: 0.1210329625 | N167: 0.0003885444182
A168: =IF('DF raw data'!A173="","",'DF raw data'!A173) -> -247 | B168: =IF('DF raw data'!B173="","",'DF raw data'!B173) -> -2.17705e-05 | C168: =IF('DF raw data'!C173="","",'DF raw data'!C173) -> 8.61285e-05 | D168: =IF('DF raw data'!D173="","",'DF raw data'!D173) -> -3.3807e-05 | F168: -2.18619361e-05 | G168: 8.64902397e-05 | H168: -3.39489894e-05 | J168: -0.001125988906 | K168: -0.02917033162 | L168: 0.004564256149 | M168: 0.1233150906 | N168: 0.0003995945608
A169: =IF('DF raw data'!A174="","",'DF raw data'!A174) -> -246.5 | B169: =IF('DF raw data'!B174="","",'DF raw data'!B174) -> -1.42622e-05 | C169: =IF('DF raw data'!C174="","",'DF raw data'!C174) -> 9.33886e-05 | D169: =IF('DF raw data'!D174="","",'DF raw data'!D174) -> -4.6509e-05 | F169: -1.432210124e-05 | G169: 9.378083212e-05 | H169: -4.67043378e-05 | J169: -0.001133149956 | K169: -0.0297369066 | L169: 0.004611146565 | M169: 0.1256206639 | N169: 0.0004108679115
A170: =IF('DF raw data'!A175="","",'DF raw data'!A175) -> -246 | B170: =IF('DF raw data'!B175="","",'DF raw data'!B175) -> -1.94665e-05 | C170: =IF('DF raw data'!C175="","",'DF raw data'!C175) -> 8.72539e-05 | D170: =IF('DF raw data'!D175="","",'DF raw data'!D175) -> -2.89211e-05 | F170: -1.95482593e-05 | G170: 8.762036638e-05 | H170: -2.904256862e-05 | J170: -0.001142924086 | K170: -0.03030836865 | L170: 0.004654956748 | M170: 0.1279481423 | N170: 0.0004223553604
A171: =IF('DF raw data'!A176="","",'DF raw data'!A176) -> -245.5 | B171: =IF('DF raw data'!B176="","",'DF raw data'!B176) -> -2.55487e-05 | C171: =IF('DF raw data'!C176="","",'DF raw data'!C176) -> 8.02272e-05 | D171: =IF('DF raw data'!D176="","",'DF raw data'!D176) -> -3.45755e-05 | F171: -2.565600454e-05 | G171: 8.056415424e-05 | H171: -3.47207171e-05 | J171: -0.001155752088 | K171: -0.03088624469 | L171: 0.004695238825 | M171: 0.1302957617 | N171: 0.0004340458757
A172: =IF('DF raw data'!A177="","",'DF raw data'!A177) -> -245 | B172: =IF('DF raw data'!B177="","",'DF raw data'!B177) -> -2.61269e-05 | C172: =IF('DF raw data'!C177="","",'DF raw data'!C177) -> 8.43322e-05 | D172: =IF('DF raw data'!D177="","",'DF raw data'!D177) -> -3.67745e-05 | F172: -2.623663298e-05 | G172: 8.468639524e-05 | H172: -3.69289529e-05 | J172: -0.001168870405 | K172: -0.03147067989 | L172: 0.004737582023 | M172: 0.1326645527 | N172: 0.0004459513464
A173: =IF('DF raw data'!A178="","",'DF raw data'!A178) -> -244.5 | B173: =IF('DF raw data'!B178="","",'DF raw data'!B178) -> -2.28579e-05 | C173: =IF('DF raw data'!C178="","",'DF raw data'!C178) -> 8.67685e-05 | D173: =IF('DF raw data'!D178="","",'DF raw data'!D178) -> -3.31881e-05 | F173: -2.295390318e-05 | G173: 8.71329277e-05 | H173: -3.332749002e-05 | J173: -0.001180347356 | K173: -0.03206085357 | L173: 0.004781148487 | M173: 0.1350551269 | N173: 0.0004580776468
A174: =IF('DF raw data'!A179="","",'DF raw data'!A179) -> -244 | B174: =IF('DF raw data'!B179="","",'DF raw data'!B179) -> -5.1696e-06 | C174: =IF('DF raw data'!C179="","",'DF raw data'!C179) -> 9.02023e-05 | D174: =IF('DF raw data'!D179="","",'DF raw data'!D179) -> -3.58993e-05 | F174: -5.19131232e-06 | G174: 9.058114966e-05 | H174: -3.605007706e-05 | J174: -0.001182943012 | K174: -0.03265232508 | L174: 0.004826439062 | M174: 0.1374683465 | N174: 0.0004704245809
A175: =IF('DF raw data'!A180="","",'DF raw data'!A180) -> -243.5 | B175: =IF('DF raw data'!B180="","",'DF raw data'!B180) -> -9.01412e-06 | C175: =IF('DF raw data'!C180="","",'DF raw data'!C180) -> 8.71589e-05 | D175: =IF('DF raw data'!D180="","",'DF raw data'!D180) -> -3.59515e-05 | F175: -9.051979304e-06 | G175: 8.752496738e-05 | H175: -3.61024963e-05 | J175: -0.001187469002 | K175: -0.03324605958 | L175: 0.004870201545 | M175: 0.1399034472 | N175: 0.0004829890537
A176: =IF('DF raw data'!A181="","",'DF raw data'!A181) -> -243 | B176: =IF('DF raw data'!B181="","",'DF raw data'!B181) -> -2.16457e-05 | C176: =IF('DF raw data'!C181="","",'DF raw data'!C181) -> 8.86547e-05 | D176: =IF('DF raw data'!D181="","",'DF raw data'!D181) -> -2.85087e-05 | F176: -2.173661194e-05 | G176: 8.902704974e-05 | H176: -2.862843654e-05 | J176: -0.001198337308 | K176: -0.03384522823 | L176: 0.00491471507 | M176: 0.1423608048 | N176: 0.000495784272
A177: =IF('DF raw data'!A182="","",'DF raw data'!A182) -> -242.5 | B177: =IF('DF raw data'!B182="","",'DF raw data'!B182) -> -1.80543e-05 | C177: =IF('DF raw data'!C182="","",'DF raw data'!C182) -> 9.06668e-05 | D177: =IF('DF raw data'!D182="","",'DF raw data'!D182) -> -2.9198e-05 | F177: -1.813012806e-05 | G177: 9.104760056e-05 | H177: -2.93206316e-05 | J177: -0.001207402372 | K177: -0.03444892942 | L177: 0.004960238871 | M177: 0.1448409242 | N177: 0.0005088151671
A178: =IF('DF raw data'!A183="","",'DF raw data'!A183) -> -242 | B178: =IF('DF raw data'!B183="","",'DF raw data'!B183) -> -2.33063e-05 | C178: =IF('DF raw data'!C183="","",'DF raw data'!C183) -> 8.2902e-05 | D178: =IF('DF raw data'!D183="","",'DF raw data'!D183) -> -3.77207e-05 | F178: -2.340418646e-05 | G178: 8.32501884e-05 | H178: -3.787912694e-05 | J178: -0.001219104465 | K178: -0.03505848165 | L178: 0.005001863965 | M178: 0.1473418562 | N178: 0.0005220675965
A179: =IF('DF raw data'!A184="","",'DF raw data'!A184) -> -241.5 | B179: =IF('DF raw data'!B184="","",'DF raw data'!B184) -> -1.26753e-05 | C179: =IF('DF raw data'!C184="","",'DF raw data'!C184) -> 8.35789e-05 | D179: =IF('DF raw data'!D184="","",'DF raw data'!D184) -> -2.29796e-05 | F179: -1.272853626e-05 | G179: 8.392993138e-05 | H179: -2.307611432e-05 | J179: -0.001225468733 | K179: -0.03567121602 | L179: 0.00504382893 | M179: 0.1498637706 | N179: 0.0005355385884
A180: =IF('DF raw data'!A185="","",'DF raw data'!A185) -> -241 | B180: =IF('DF raw data'!B185="","",'DF raw data'!B185) -> -1.28024e-05 | C180: =IF('DF raw data'!C185="","",'DF raw data'!C185) -> 7.52365e-05 | D180: =IF('DF raw data'!D185="","",'DF raw data'!D185) -> -2.67079e-05 | F180: -1.285617008e-05 | G180: 7.55524933e-05 | H180: -2.682007318e-05 | J180: -0.001231896818 | K180: -0.03628716443 | L180: 0.005081605177 | M180: 0.1524045732 | N180: 0.0005492087289
A181: =IF('DF raw data'!A186="","",'DF raw data'!A186) -> -240.5 | B181: =IF('DF raw data'!B186="","",'DF raw data'!B186) -> -1.36206e-05 | C181: =IF('DF raw data'!C186="","",'DF raw data'!C186) -> 8.3302e-05 | D181: =IF('DF raw data'!D186="","",'DF raw data'!D186) -> -4.74421e-05 | F181: -1.367780652e-05 | G181: 8.36518684e-05 | H181: -4.764135682e-05 | J181: -0.001238735722 | K181: -0.03690653229 | L181: 0.005123431111 | M181: 0.1549662888 | N181: 0.0005631007352
A182: =IF('DF raw data'!A187="","",'DF raw data'!A187) -> -240 | B182: =IF('DF raw data'!B187="","",'DF raw data'!B187) -> -1.83062e-05 | C182: =IF('DF raw data'!C187="","",'DF raw data'!C187) -> 9.07018e-05 | D182: =IF('DF raw data'!D187="","",'DF raw data'!D187) -> -3.90326e-05 | F182: -1.838308604e-05 | G182: 9.108274756e-05 | H182: -3.919653692e-05 | J182: -0.001247927265 | K182: -0.03753049592 | L182: 0.005168972485 | M182: 0.157550775 | N182: 0.0005772385347
A183: =IF('DF raw data'!A188="","",'DF raw data'!A188) -> -239.5 | B183: =IF('DF raw data'!B188="","",'DF raw data'!B188) -> -1.56037e-05 | C183: =IF('DF raw data'!C188="","",'DF raw data'!C188) -> 9.08465e-05 | D183: =IF('DF raw data'!D188="","",'DF raw data'!D188) -> -5.29709e-05 | F183: -1.566923554e-05 | G183: 9.12280553e-05 | H183: -5.319337778e-05 | J183: -0.001255761882 | K183: -0.03815837686 | L183: 0.005214586513 | M183: 0.1601580683 | N183: 0.0005916229599
A184: =IF('DF raw data'!A189="","",'DF raw data'!A189) -> -239 | B184: =IF('DF raw data'!B189="","",'DF raw data'!B189) -> -3.09333e-05 | C184: =IF('DF raw data'!C189="","",'DF raw data'!C189) -> 8.02147e-05 | D184: =IF('DF raw data'!D189="","",'DF raw data'!D189) -> -3.68506e-05 | F184: -3.106321986e-05 | G184: 8.055160174e-05 | H184: -3.700537252e-05 | J184: -0.001271293492 | K184: -0.03879402361 | L184: 0.005254862314 | M184: 0.1627854994 | N184: 0.0006062378424
A185: =IF('DF raw data'!A190="","",'DF raw data'!A190) -> -238.5 | B185: =IF('DF raw data'!B190="","",'DF raw data'!B190) -> -2.38175e-05 | C185: =IF('DF raw data'!C190="","",'DF raw data'!C190) -> 8.42138e-05 | D185: =IF('DF raw data'!D190="","",'DF raw data'!D190) -> -3.63611e-05 | F185: -2.39175335e-05 | G185: 8.456749796e-05 | H185: -3.651381662e-05 | J185: -0.001283252259 | K185: -0.03943564974 | L185: 0.005297146063 | M185: 0.1654340725 | N185: 0.0006210910888
A186: =IF('DF raw data'!A191="","",'DF raw data'!A191) -> -238 | B186: =IF('DF raw data'!B191="","",'DF raw data'!B191) -> -2.86929e-05 | C186: =IF('DF raw data'!C191="","",'DF raw data'!C191) -> 8.64421e-05 | D186: =IF('DF raw data'!D191="","",'DF raw data'!D191) -> -3.28915e-05 | F186: -2.881341018e-05 | G186: 8.680515682e-05 | H186: -3.30296443e-05 | J186: -0.001297658964 | K186: -0.04008447922 | L186: 0.005340548641 | M186: 0.1681043468 | N186: 0.0006361937781
A187: =IF('DF raw data'!A192="","",'DF raw data'!A192) -> -237.5 | B187: =IF('DF raw data'!B192="","",'DF raw data'!B192) -> -1.5873e-05 | C187: =IF('DF raw data'!C192="","",'DF raw data'!C192) -> 7.76752e-05 | D187: =IF('DF raw data'!D192="","",'DF raw data'!D192) -> -3.29935e-05 | F187: -1.59396666e-05 | G187: 7.800143584e-05 | H187: -3.31320727e-05 | J187: -0.001305628798 | K187: -0.04073729362 | L187: 0.005379549359 | M187: 0.1707941215 | N187: 0.000651515887
A188: =IF('DF raw data'!A193="","",'DF raw data'!A193) -> -237 | B188: =IF('DF raw data'!B193="","",'DF raw data'!B193) -> -3.11217e-05 | C188: =IF('DF raw data'!C193="","",'DF raw data'!C193) -> 7.66751e-05 | D188: =IF('DF raw data'!D193="","",'DF raw data'!D193) -> -4.29564e-05 | F188: -3.125241114e-05 | G188: 7.699713542e-05 | H188: -4.313681688e-05 | J188: -0.001321255003 | K188: -0.04139792112 | L188: 0.005418047927 | M188: 0.1735031454 | N188: 0.0006670663661
A189: =IF('DF raw data'!A194="","",'DF raw data'!A194) -> -236.5 | B189: =IF('DF raw data'!B194="","",'DF raw data'!B194) -> -2.29121e-05 | C189: =IF('DF raw data'!C194="","",'DF raw data'!C194) -> 8.12378e-05 | D189: =IF('DF raw data'!D194="","",'DF raw data'!D194) -> -4.90694e-05 | F189: -2.300833082e-05 | G189: 8.157899876e-05 | H189: -4.927549148e-05 | J189: -0.001332759168 | K189: -0.0420643007 | L189: 0.005458837426 | M189: 0.1762325642 | N189: 0.0006828539426
A190: =IF('DF raw data'!A195="","",'DF raw data'!A195) -> -236 | B190: =IF('DF raw data'!B195="","",'DF raw data'!B195) -> -3.0616e-05 | C190: =IF('DF raw data'!C195="","",'DF raw data'!C195) -> 8.6019e-05 | D190: =IF('DF raw data'!D195="","",'DF raw data'!D195) -> -3.21144e-05 | F190: -3.07445872e-05 | G190: 8.63802798e-05 | H190: -3.224928048e-05 | J190: -0.001348131462 | K190: -0.04273836643 | L190: 0.005502027566 | M190: 0.1789835779 | N190: 0.0006988988255
A191: =IF('DF raw data'!A196="","",'DF raw data'!A196) -> -235.5 | B191: =IF('DF raw data'!B196="","",'DF raw data'!B196) -> -2.07433e-05 | C191: =IF('DF raw data'!C196="","",'DF raw data'!C196) -> 8.65587e-05 | D191: =IF('DF raw data'!D196="","",'DF raw data'!D196) -> -3.3401e-05 | F191: -2.083042186e-05 | G191: 8.692224654e-05 | H191: -3.35412842e-05 | J191: -0.001358546673 | K191: -0.04341763977 | L191: 0.005545488689 | M191: 0.1817563223 | N191: 0.0007151978724
A192: =IF('DF raw data'!A197="","",'DF raw data'!A197) -> -235 | B192: =IF('DF raw data'!B197="","",'DF raw data'!B197) -> -2.22219e-05 | C192: =IF('DF raw data'!C197="","",'DF raw data'!C197) -> 8.21204e-05 | D192: =IF('DF raw data'!D197="","",'DF raw data'!D197) -> -2.93634e-05 | F192: =(1-$G$1*($B$49-$G$2))*B192 -> -2.231523198e-05 | G192: 8.246530568e-05 | H192: -2.948672628e-05 | J192: =F192*$G$3+J191 -> -0.001369704289 | K192: =J192*$G$3+K191 -> -0.04410249191 | L192: =G192*$G$3+L191 -> 0.005586721342 | M192: =L192*$G$3+M191 -> 0.184549683 | N192: =(J192^2+L192^2)*$G$3+N191 -> 0.000731741645
A193: =IF('DF raw data'!A198="","",'DF raw data'!A198) -> -234.5 | B193: =IF('DF raw data'!B198="","",'DF raw data'!B198) -> -5.49518e-06 | C193: =IF('DF raw data'!C198="","",'DF raw data'!C198) -> 8.23967e-05 | D193: =IF('DF raw data'!D198="","",'DF raw data'!D198) -> -2.73075e-05 | F193: -5.518259756e-06 | G193: 8.274276614e-05 | H193: -2.74221915e-05 | J193: -0.001372463419 | K193: -0.04478872362 | L193: 0.005628092725 | M193: 0.1873637293 | N193: 0.0007485211868
A194: =IF('DF raw data'!A199="","",'DF raw data'!A199) -> -234 | B194: =IF('DF raw data'!B199="","",'DF raw data'!B199) -> -2.22862e-05 | C194: =IF('DF raw data'!C199="","",'DF raw data'!C199) -> 8.8055e-05 | D194: =IF('DF raw data'!D199="","",'DF raw data'!D199) -> -2.8797e-05 | F194: -2.237980204e-05 | G194: 8.8424831e-05 | H194: -2.89179474e-05 | J194: -0.00138365332 | K194: -0.04548055028 | L194: 0.005672305141 | M194: 0.1901998819 | N194: 0.0007655659579
A195: =IF('DF raw data'!A200="","",'DF raw data'!A200) -> -233.5 | B195: =IF('DF raw data'!B200="","",'DF raw data'!B200) -> -3.1438e-05 | C195: =IF('DF raw data'!C200="","",'DF raw data'!C200) -> 9.28542e-05 | D195: =IF('DF raw data'!D200="","",'DF raw data'!D200) -> -4.52756e-05 | F195: -3.15700396e-05 | G195: 9.324418764e-05 | H195: -4.546575752e-05 | J195: -0.00139943834 | K195: -0.04618026945 | L195: 0.005718927234 | M195: 0.1930593455 | N195: 0.000782898236
A196: =IF('DF raw data'!A201="","",'DF raw data'!A201) -> -233 | B196: =IF('DF raw data'!B201="","",'DF raw data'!B201) -> -2.6644e-05 | C196: =IF('DF raw data'!C201="","",'DF raw data'!C201) -> 9.29865e-05 | D196: =IF('DF raw data'!D201="","",'DF raw data'!D201) -> -2.95062e-05 | F196: -2.67559048e-05 | G196: 9.33770433e-05 | H196: -2.963012604e-05 | J196: -0.001412816292 | K196: -0.0468866776 | L196: 0.005765615756 | M196: 0.1959421534 | N196: 0.0008005174235
A197: =IF('DF raw data'!A202="","",'DF raw data'!A202) -> -232.5 | B197: =IF('DF raw data'!B202="","",'DF raw data'!B202) -> -2.34231e-05 | C197: =IF('DF raw data'!C202="","",'DF raw data'!C202) -> 9.97854e-05 | D197: =IF('DF raw data'!D202="","",'DF raw data'!D202) -> -5.16972e-05 | F197: -2.352147702e-05 | G197: 0.0001002044987 | H197: -5.191432824e-05 | J197: -0.001424577031 | K197: -0.04759896611 | L197: 0.005815718005 | M197: 0.1988500124 | N197: 0.0008184434213
A198: =IF('DF raw data'!A203="","",'DF raw data'!A203) -> -232 | B198: =IF('DF raw data'!B203="","",'DF raw data'!B203) -> -8.44151e-06 | C198: =IF('DF raw data'!C203="","",'DF raw data'!C203) -> 0.000107839 | D198: =IF('DF raw data'!D203="","",'DF raw data'!D203) -> -3.06766e-05 | F198: -8.476964342e-06 | G198: 0.0001082919238 | H198: -3.080544172e-05 | J198: -0.001428815513 | K198: -0.04831337387 | L198: 0.005869863967 | M198: 0.2017849444 | N198: 0.0008366918297
A199: =IF('DF raw data'!A204="","",'DF raw data'!A204) -> -231.5 | B199: =IF('DF raw data'!B204="","",'DF raw data'!B204) -> -3.34304e-05 | C199: =IF('DF raw data'!C204="","",'DF raw data'!C204) -> 9.80333e-05 | D199: =IF('DF raw data'!D204="","",'DF raw data'!D204) -> -3.59926e-05 | F199: -3.357080768e-05 | G199: 9.844503986e-05 | H199: -3.614376892e-05 | J199: -0.001445600917 | K199: -0.04903617433 | L199: 0.005919086487 | M199: 0.2047444876 | N199: 0.0008552545031
A200: =IF('DF raw data'!A205="","",'DF raw data'!A205) -> -231 | B200: =IF('DF raw data'!B205="","",'DF raw data'!B205) -> -3.13813e-05 | C200: =IF('DF raw data'!C205="","",'DF raw data'!C205) -> 9.30337e-05 | D200: =IF('DF raw data'!D205="","",'DF raw data'!D205) -> -3.78265e-05 | F200: -3.151310146e-05 | G200: 9.342444154e-05 | H200: -3.79853713e-05 | J200: -0.001461357467 | K200: -0.04976685306 | L200: 0.005965798708 | M200: 0.207727387 | N200: 0.0008741176631
A201: =IF('DF raw data'!A206="","",'DF raw data'!A206) -> -230.5 | B201: =IF('DF raw data'!B206="","",'DF raw data'!B206) -> -1.05468e-05 | C201: =IF('DF raw data'!C206="","",'DF raw data'!C206) -> 9.61675e-05 | D201: =IF('DF raw data'!D206="","",'DF raw data'!D206) -> -4.42727e-05 | F201: -1.059109656e-05 | G201: 9.65714035e-05 | H201: -4.445864534e-05 | J201: -0.001466653016 | K201: -0.05050017957 | L201: 0.00601408441 | M201: 0.2107344292 | N201: 0.0008932778042
... 1061 more rows

Sheet 10 x=-1
A1: =IF('DF raw data'!E1="","",'DF raw data'!E1) -> Number of header lines | B1: =IF('DF raw data'!F1="","",'DF raw data'!F1) -> 54 | C1: =IF('DF raw data'!G1="","",'DF raw data'!G1) ->  | D1: =IF('DF raw data'!H1="","",'DF raw data'!H1) ->  | F1: T_coeff | G1: -0.001 | H1: /degC | J1: IBy total | K1: =J1262*1000 -> 0.08134686174 | L1: muTm | M1: =L1262*1000 -> 76.64813394 | R1: DF ref | S1: ='10 x=-2'!S1 -> 1
A2: =IF('DF raw data'!E2="","",'DF raw data'!E2) -> Measured by | B2: =IF('DF raw data'!F2="","",'DF raw data'!F2) -> Danfysik | C2: =IF('DF raw data'!G2="","",'DF raw data'!G2) ->  | D2: =IF('DF raw data'!H2="","",'DF raw data'!H2) ->  | F2: Tcorr | G2: 20 | H2: degC | J2: JBy total | K2: =K1262 -> -1.242273487 | L2: muTm^2 | M2: =M1262 -> 28.07947009
A3: =IF('DF raw data'!E3="","",'DF raw data'!E3) -> Operator | B3: =IF('DF raw data'!F3="","",'DF raw data'!F3) -> PMHA | C3: =IF('DF raw data'!G3="","",'DF raw data'!G3) ->  | D3: =IF('DF raw data'!H3="","",'DF raw data'!H3) ->  | F3: Step | G3: =A63-A62 -> 0.5 | H3: mm | J3: PI total | K3: =N1262 -> 10702.9135 | L3: T^2mm^3
A4: =IF('DF raw data'!E4="","",'DF raw data'!E4) -> Data-time | B4: =IF('DF raw data'!F4="","",'DF raw data'!F4) -> 03-09-2024, 11:22:26 | C4: =IF('DF raw data'!G4="","",'DF raw data'!G4) ->  | D4: =IF('DF raw data'!H4="","",'DF raw data'!H4) -> 
A5: =IF('DF raw data'!E5="","",'DF raw data'!E5) -> Project | B5: =IF('DF raw data'!F5="","",'DF raw data'!F5) -> 504314 | C5: =IF('DF raw data'!G5="","",'DF raw data'!G5) ->  | D5: =IF('DF raw data'!H5="","",'DF raw data'!H5) -> 
A6: =IF('DF raw data'!E6="","",'DF raw data'!E6) -> Magnet type | B6: =IF('DF raw data'!F6="","",'DF raw data'!F6) -> Dipole | C6: =IF('DF raw data'!G6="","",'DF raw data'!G6) ->  | D6: =IF('DF raw data'!H6="","",'DF raw data'!H6) -> 
A7: =IF('DF raw data'!E7="","",'DF raw data'!E7) -> Magnet nr. | B7: =IF('DF raw data'!F7="","",'DF raw data'!F7) -> 2410090 | C7: =IF('DF raw data'!G7="","",'DF raw data'!G7) ->  | D7: =IF('DF raw data'!H7="","",'DF raw data'!H7) -> 
A8: =IF('DF raw data'!E8="","",'DF raw data'!E8) -> Meas. number | B8: =IF('DF raw data'!F8="","",'DF raw data'!F8) -> 312 | C8: =IF('DF raw data'!G8="","",'DF raw data'!G8) ->  | D8: =IF('DF raw data'!H8="","",'DF raw data'!H8) -> 
A9: =IF('DF raw data'!E9="","",'DF raw data'!E9) -> Add. info | B9: =IF('DF raw data'!F9="","",'DF raw data'!F9) -> X-alignment scan 2) | C9: =IF('DF raw data'!G9="","",'DF raw data'!G9) ->  | D9: =IF('DF raw data'!H9="","",'DF raw data'!H9) -> 
A10: =IF('DF raw data'!E10="","",'DF raw data'!E10) -> Device | B10: =IF('DF raw data'!F10="","",'DF raw data'!F10) -> (HAL) HALL-PROBE | C10: =IF('DF raw data'!G10="","",'DF raw data'!G10) ->  | D10: =IF('DF raw data'!H10="","",'DF raw data'!H10) -> 
A11: =IF('DF raw data'!E11="","",'DF raw data'!E11) -> Goal | B11: =IF('DF raw data'!F11="","",'DF raw data'!F11) -> (AXI) AXis Integral (Line, EFB) | C11: =IF('DF raw data'!G11="","",'DF raw data'!G11) ->  | D11: =IF('DF raw data'!H11="","",'DF raw data'!H11) -> 
A12: =IF('DF raw data'!E12="","",'DF raw data'!E12) -> Power supply mode | B12: =IF('DF raw data'!F12="","",'DF raw data'!F12) -> (PM) Permanent Magnet (no MPS in use) | C12: =IF('DF raw data'!G12="","",'DF raw data'!G12) ->  | D12: =IF('DF raw data'!H12="","",'DF raw data'!H12) -> 
A13: =IF('DF raw data'!E13="","",'DF raw data'!E13) -> Data format | B13: =IF('DF raw data'!F13="","",'DF raw data'!F13) -> Raw data text file | C13: =IF('DF raw data'!G13="","",'DF raw data'!G13) ->  | D13: =IF('DF raw data'!H13="","",'DF raw data'!H13) -> 
A14: =IF('DF raw data'!E14="","",'DF raw data'!E14) -> Direction of the pos. x-axis | B14: =IF('DF raw data'!F14="","",'DF raw data'!F14) -> See test program | C14: =IF('DF raw data'!G14="","",'DF raw data'!G14) ->  | D14: =IF('DF raw data'!H14="","",'DF raw data'!H14) -> 
A15: =IF('DF raw data'!E15="","",'DF raw data'!E15) -> Direction of the pos. y-axis | B15: =IF('DF raw data'!F15="","",'DF raw data'!F15) -> Vertical up | C15: =IF('DF raw data'!G15="","",'DF raw data'!G15) ->  | D15: =IF('DF raw data'!H15="","",'DF raw data'!H15) -> 
A16: =IF('DF raw data'!E16="","",'DF raw data'!E16) -> Direction of the pos. z-axis | B16: =IF('DF raw data'!F16="","",'DF raw data'!F16) -> See test program | C16: =IF('DF raw data'!G16="","",'DF raw data'!G16) ->  | D16: =IF('DF raw data'!H16="","",'DF raw data'!H16) -> 
A17: =IF('DF raw data'!E17="","",'DF raw data'!E17) -> Mapper type | B17: =IF('DF raw data'!F17="","",'DF raw data'!F17) -> Precision Hall Mapper | C17: =IF('DF raw data'!G17="","",'DF raw data'!G17) ->  | D17: =IF('DF raw data'!H17="","",'DF raw data'!H17) -> 
A18: =IF('DF raw data'!E18="","",'DF raw data'!E18) -> Mapper Danfysik Reg. Number | B18: =IF('DF raw data'!F18="","",'DF raw data'!F18) -> 2033-D (mapper 1) | C18: =IF('DF raw data'!G18="","",'DF raw data'!G18) ->  | D18: =IF('DF raw data'!H18="","",'DF raw data'!H18) -> 
A19: =IF('DF raw data'!E19="","",'DF raw data'!E19) -> Measurement consept | B19: =IF('DF raw data'!F19="","",'DF raw data'!F19) -> Square line grid | C19: =IF('DF raw data'!G19="","",'DF raw data'!G19) ->  | D19: =IF('DF raw data'!H19="","",'DF raw data'!H19) -> 
A20: =IF('DF raw data'!E20="","",'DF raw data'!E20) -> Mode | B20: =IF('DF raw data'!F20="","",'DF raw data'!F20) -> On-the-fly measurement | C20: =IF('DF raw data'!G20="","",'DF raw data'!G20) ->  | D20: =IF('DF raw data'!H20="","",'DF raw data'!H20) -> 
A21: =IF('DF raw data'!E21="","",'DF raw data'!E21) ->  | B21: =IF('DF raw data'!F21="","",'DF raw data'!F21) ->  | C21: =IF('DF raw data'!G21="","",'DF raw data'!G21) ->  | D21: =IF('DF raw data'!H21="","",'DF raw data'!H21) -> 
A22: =IF('DF raw data'!E22="","",'DF raw data'!E22) -> Probe Name | B22: =IF('DF raw data'!F22="","",'DF raw data'!F22) -> ID12_By | C22: =IF('DF raw data'!G22="","",'DF raw data'!G22) ->  | D22: =IF('DF raw data'!H22="","",'DF raw data'!H22) -> 
A23: =IF('DF raw data'!E23="","",'DF raw data'!E23) -> Probe Type | B23: =IF('DF raw data'!F23="","",'DF raw data'!F23) -> DF_ID_3D_Bxyz | C23: =IF('DF raw data'!G23="","",'DF raw data'!G23) ->  | D23: =IF('DF raw data'!H23="","",'DF raw data'!H23) -> 
A24: =IF('DF raw data'!E24="","",'DF raw data'!E24) -> Probe Danfysik Reg. Number | B24: =IF('DF raw data'!F24="","",'DF raw data'!F24) -> 2277 | C24: =IF('DF raw data'!G24="","",'DF raw data'!G24) ->  | D24: =IF('DF raw data'!H24="","",'DF raw data'!H24) -> 
A25: =IF('DF raw data'!E25="","",'DF raw data'!E25) -> Probe Axis | B25: =IF('DF raw data'!F25="","",'DF raw data'!F25) -> By | C25: =IF('DF raw data'!G25="","",'DF raw data'!G25) ->  | D25: =IF('DF raw data'!H25="","",'DF raw data'!H25) -> 
A26: =IF('DF raw data'!E26="","",'DF raw data'!E26) -> Probe Current Supply | B26: =IF('DF raw data'!F26="","",'DF raw data'!F26) -> 1825-D | C26: =IF('DF raw data'!G26="","",'DF raw data'!G26) ->  | D26: =IF('DF raw data'!H26="","",'DF raw data'!H26) -> 
A27: =IF('DF raw data'!E27="","",'DF raw data'!E27) -> Probe Gain Correction | B27: =IF('DF raw data'!F27="","",'DF raw data'!F27) -> 0.99619 | C27: =IF('DF raw data'!G27="","",'DF raw data'!G27) ->  | D27: =IF('DF raw data'!H27="","",'DF raw data'!H27) -> 
A28: =IF('DF raw data'!E28="","",'DF raw data'!E28) -> Probe Offset Correction | B28: =IF('DF raw data'!F28="","",'DF raw data'!F28) -> 0.0027506 | C28: =IF('DF raw data'!G28="","",'DF raw data'!G28) ->  | D28: =IF('DF raw data'!H28="","",'DF raw data'!H28) -> 
A29: =IF('DF raw data'!E29="","",'DF raw data'!E29) -> DVM Number | B29: =IF('DF raw data'!F29="","",'DF raw data'!F29) -> 2 | C29: =IF('DF raw data'!G29="","",'DF raw data'!G29) ->  | D29: =IF('DF raw data'!H29="","",'DF raw data'!H29) -> 
A30: =IF('DF raw data'!E30="","",'DF raw data'!E30) -> DVM Type | B30: =IF('DF raw data'!F30="","",'DF raw data'!F30) -> K2701 | C30: =IF('DF raw data'!G30="","",'DF raw data'!G30) ->  | D30: =IF('DF raw data'!H30="","",'DF raw data'!H30) -> 
A31: =IF('DF raw data'!E31="","",'DF raw data'!E31) -> DVM Danfysik Reg. Number | B31: =IF('DF raw data'!F31="","",'DF raw data'!F31) -> 1743-D | C31: =IF('DF raw data'!G31="","",'DF raw data'!G31) ->  | D31: =IF('DF raw data'!H31="","",'DF raw data'!H31) -> 
A32: =IF('DF raw data'!E32="","",'DF raw data'!E32) -> Probe Name | B32: =IF('DF raw data'!F32="","",'DF raw data'!F32) -> ID12_Bx | C32: =IF('DF raw data'!G32="","",'DF raw data'!G32) ->  | D32: =IF('DF raw data'!H32="","",'DF raw data'!H32) -> 
A33: =IF('DF raw data'!E33="","",'DF raw data'!E33) -> Probe Type | B33: =IF('DF raw data'!F33="","",'DF raw data'!F33) -> DF_ID_3D_Bxyz | C33: =IF('DF raw data'!G33="","",'DF raw data'!G33) ->  | D33: =IF('DF raw data'!H33="","",'DF raw data'!H33) -> 
A34: =IF('DF raw data'!E34="","",'DF raw data'!E34) -> Probe Danfysik Reg. Number | B34: =IF('DF raw data'!F34="","",'DF raw data'!F34) -> 2277 | C34: =IF('DF raw data'!G34="","",'DF raw data'!G34) ->  | D34: =IF('DF raw data'!H34="","",'DF raw data'!H34) -> 
A35: =IF('DF raw data'!E35="","",'DF raw data'!E35) -> Probe Axis | B35: =IF('DF raw data'!F35="","",'DF raw data'!F35) -> Bx | C35: =IF('DF raw data'!G35="","",'DF raw data'!G35) ->  | D35: =IF('DF raw data'!H35="","",'DF raw data'!H35) -> 
A36: =IF('DF raw data'!E36="","",'DF raw data'!E36) -> Probe Current Supply | B36: =IF('DF raw data'!F36="","",'DF raw data'!F36) -> 1825-D | C36: =IF('DF raw data'!G36="","",'DF raw data'!G36) ->  | D36: =IF('DF raw data'!H36="","",'DF raw data'!H36) -> 
A37: =IF('DF raw data'!E37="","",'DF raw data'!E37) -> Probe Gain Correction | B37: =IF('DF raw data'!F37="","",'DF raw data'!F37) -> 1 | C37: =IF('DF raw data'!G37="","",'DF raw data'!G37) ->  | D37: =IF('DF raw data'!H37="","",'DF raw data'!H37) -> 
A38: =IF('DF raw data'!E38="","",'DF raw data'!E38) -> Probe Offset Correction | B38: =IF('DF raw data'!F38="","",'DF raw data'!F38) -> -0.17548 | C38: =IF('DF raw data'!G38="","",'DF raw data'!G38) ->  | D38: =IF('DF raw data'!H38="","",'DF raw data'!H38) -> 
A39: =IF('DF raw data'!E39="","",'DF raw data'!E39) -> DVM Number | B39: =IF('DF raw data'!F39="","",'DF raw data'!F39) -> 3 | C39: =IF('DF raw data'!G39="","",'DF raw data'!G39) ->  | D39: =IF('DF raw data'!H39="","",'DF raw data'!H39) -> 
A40: =IF('DF raw data'!E40="","",'DF raw data'!E40) -> DVM Type | B40: =IF('DF raw data'!F40="","",'DF raw data'!F40) -> K2701 | C40: =IF('DF raw data'!G40="","",'DF raw data'!G40) ->  | D40: =IF('DF raw data'!H40="","",'DF raw data'!H40) -> 
A41: =IF('DF raw data'!E41="","",'DF raw data'!E41) -> DVM Danfysik Reg. Number | B41: =IF('DF raw data'!F41="","",'DF raw data'!F41) -> 1744-D | C41: =IF('DF raw data'!G41="","",'DF raw data'!G41) ->  | D41: =IF('DF raw data'!H41="","",'DF raw data'!H41) -> 
A42: =IF('DF raw data'!E42="","",'DF raw data'!E42) -> Probe Name | B42: =IF('DF raw data'!F42="","",'DF raw data'!F42) -> ID12_Bz | C42: =IF('DF raw data'!G42="","",'DF raw data'!G42) ->  | D42: =IF('DF raw data'!H42="","",'DF raw data'!H42) -> 
A43: =IF('DF raw data'!E43="","",'DF raw data'!E43) -> Probe Type | B43: =IF('DF raw data'!F43="","",'DF raw data'!F43) -> DF_ID_3D_Bxyz | C43: =IF('DF raw data'!G43="","",'DF raw data'!G43) ->  | D43: =IF('DF raw data'!H43="","",'DF raw data'!H43) -> 
A44: =IF('DF raw data'!E44="","",'DF raw data'!E44) -> Probe Danfysik Reg. Number | B44: =IF('DF raw data'!F44="","",'DF raw data'!F44) -> 2277 | C44: =IF('DF raw data'!G44="","",'DF raw data'!G44) ->  | D44: =IF('DF raw data'!H44="","",'DF raw data'!H44) -> 
A45: =IF('DF raw data'!E45="","",'DF raw data'!E45) -> Probe Axis | B45: =IF('DF raw data'!F45="","",'DF raw data'!F45) -> Bz | C45: =IF('DF raw data'!G45="","",'DF raw data'!G45) ->  | D45: =IF('DF raw data'!H45="","",'DF raw data'!H45) -> 
A46: =IF('DF raw data'!E46="","",'DF raw data'!E46) -> Probe Current Supply | B46: =IF('DF raw data'!F46="","",'DF raw data'!F46) -> 1825-D | C46: =IF('DF raw data'!G46="","",'DF raw data'!G46) ->  | D46: =IF('DF raw data'!H46="","",'DF raw data'!H46) -> 
A47: =IF('DF raw data'!E47="","",'DF raw data'!E47) -> Probe Gain Correction | B47: =IF('DF raw data'!F47="","",'DF raw data'!F47) -> 1 | C47: =IF('DF raw data'!G47="","",'DF raw data'!G47) ->  | D47: =IF('DF raw data'!H47="","",'DF raw data'!H47) -> 
A48: =IF('DF raw data'!E53="","",'DF raw data'!E53) -> PS-Gap: | B48: =IF('DF raw data'!F53="","",'DF raw data'!F53) -> 10 | C48: =IF('DF raw data'!G53="","",'DF raw data'!G53) ->  | D48: =IF('DF raw data'!H53="","",'DF raw data'!H53) -> 
A49: =IF('DF raw data'!E54="","",'DF raw data'!E54) -> PS-Temperature: | B49: =IF('DF raw data'!F54="","",'DF raw data'!F54) -> 24.2 | C49: =IF('DF raw data'!G54="","",'DF raw data'!G54) ->  | D49: =IF('DF raw data'!H54="","",'DF raw data'!H54) -> 
A50: =IF('DF raw data'!E55="","",'DF raw data'!E55) -> PS-Encoder: | B50: =IF('DF raw data'!F55="","",'DF raw data'!F55) -> 19.6225 | C50: =IF('DF raw data'!G55="","",'DF raw data'!G55) ->  | D50: =IF('DF raw data'!H55="","",'DF raw data'!H55) -> 
A51: =IF('DF raw data'!E56="","",'DF raw data'!E56) ->  | B51: =IF('DF raw data'!F56="","",'DF raw data'!F56) ->  | C51: =IF('DF raw data'!G56="","",'DF raw data'!G56) ->  | D51: =IF('DF raw data'!H56="","",'DF raw data'!H56) -> 
A52: =IF('DF raw data'!E57="","",'DF raw data'!E57) -> Monitor-Index | B52: =IF('DF raw data'!F57="","",'DF raw data'!F57) -> [1,1,4] | C52: =IF('DF raw data'!G57="","",'DF raw data'!G57) ->  | D52: =IF('DF raw data'!H57="","",'DF raw data'!H57) -> 
A53: =IF('DF raw data'!E58="","",'DF raw data'!E58) ->  | B53: =IF('DF raw data'!F58="","",'DF raw data'!F58) ->  | C53: =IF('DF raw data'!G58="","",'DF raw data'!G58) ->  | D53: =IF('DF raw data'!H58="","",'DF raw data'!H58) -> 
A54: =IF('DF raw data'!E59="","",'DF raw data'!E59) -> Time [s] | B54: =IF('DF raw data'!F59="","",'DF raw data'!F59) -> Y [mm] | C54: =IF('DF raw data'!G59="","",'DF raw data'!G59) -> X [mm] | D54: =IF('DF raw data'!H59="","",'DF raw data'!H59) -> Nominal current [A]
A55: =IF('DF raw data'!E60="","",'DF raw data'!E60) ->  | B55: =IF('DF raw data'!F60="","",'DF raw data'!F60) ->  | C55: =IF('DF raw data'!G60="","",'DF raw data'!G60) ->  | D55: =IF('DF raw data'!H60="","",'DF raw data'!H60) -> 
A56: =IF('DF raw data'!E61="","",'DF raw data'!E61) -> 210.1 | B56: =IF('DF raw data'!F61="","",'DF raw data'!F61) -> 31.56 | C56: =IF('DF raw data'!G61="","",'DF raw data'!G61) -> 300.8 | D56: =IF('DF raw data'!H61="","",'DF raw data'!H61) -> 0
A57: =IF('DF raw data'!E62="","",'DF raw data'!E62) ->  | B57: =IF('DF raw data'!F62="","",'DF raw data'!F62) ->  | C57: =IF('DF raw data'!G62="","",'DF raw data'!G62) ->  | D57: =IF('DF raw data'!H62="","",'DF raw data'!H62) -> 
A58: =IF('DF raw data'!E63="","",'DF raw data'!E63) -> Measurement-Index | B58: =IF('DF raw data'!F63="","",'DF raw data'!F63) -> [1,1,1201,2] | C58: =IF('DF raw data'!G63="","",'DF raw data'!G63) ->  | D58: =IF('DF raw data'!H63="","",'DF raw data'!H63) -> 
A59: =IF('DF raw data'!E64="","",'DF raw data'!E64) ->  | B59: =IF('DF raw data'!F64="","",'DF raw data'!F64) ->  | C59: =IF('DF raw data'!G64="","",'DF raw data'!G64) ->  | D59: =IF('DF raw data'!H64="","",'DF raw data'!H64) -> 
A60: =IF('DF raw data'!E65="","",'DF raw data'!E65) -> Z [mm] | B60: By [T] | C60: Bx [T] | D60: Bz [T] | F60: By_corr | G60: Bx_corr | H60: Bz_corr | J60: Iy | K60: Jy | L60: Ix | M60: Jx | N60: PI
A62: =IF('DF raw data'!E67="","",'DF raw data'!E67) -> -300 | B62: =IF('DF raw data'!F67="","",'DF raw data'!F67) -> -1.36854e-05 | C62: =IF('DF raw data'!G67="","",'DF raw data'!G67) -> 0.000149181 | D62: =IF('DF raw data'!H67="","",'DF raw data'!H67) -> -3.52059e-05 | F62: =(1-$G$1*($B$49))*B62 -> -1.401658668e-05 | G62: =(1-$G$1*($B$49-$G$2))*C62 -> 0.0001498075602 | H62: =(1-$G$1*($B$49-$G$2))*D62 -> -3.535376478e-05 | J62: =F62*$G$3 -> -7.00829334e-06 | K62: =J62*$G$3 -> -3.50414667e-06 | L62: =G62*$G$3 -> 7.49037801e-05 | M62: =L62*$G$3 -> 3.745189005e-05 | N62: =(J62^2+L62^2)*$G$3 -> 2.829846224e-09
A63: =IF('DF raw data'!E68="","",'DF raw data'!E68) -> -299.5 | B63: =IF('DF raw data'!F68="","",'DF raw data'!F68) -> -2.54149e-05 | C63: =IF('DF raw data'!G68="","",'DF raw data'!G68) -> 0.000160443 | D63: =IF('DF raw data'!H68="","",'DF raw data'!H68) -> -3.41944e-05 | F63: =(1-$G$1*($B$49-$G$2))*B63 -> -2.552164258e-05 | G63: =(1-$G$1*($B$49-$G$2))*C63 -> 0.0001611168606 | H63: -3.433801648e-05 | J63: =F63*$G$3+J62 -> -1.976911463e-05 | K63: =J63*$G$3+K62 -> -1.338870398e-05 | L63: =G63*$G$3+L62 -> 0.0001554622104 | M63: =L63*$G$3+M62 -> 0.0001151829952 | N63: =(J63^2+L63^2)*$G$3+N62 -> 1.51095046e-08
A64: =IF('DF raw data'!E69="","",'DF raw data'!E69) -> -299 | B64: =IF('DF raw data'!F69="","",'DF raw data'!F69) -> -1.56105e-05 | C64: =IF('DF raw data'!G69="","",'DF raw data'!G69) -> 0.00016677 | D64: =IF('DF raw data'!H69="","",'DF raw data'!H69) -> -3.27936e-05 | F64: =(1-$G$1*($B$49-$G$2))*B64 -> -1.56760641e-05 | G64: 0.000167470434 | H64: -3.293133312e-05 | J64: =F64*$G$3+J63 -> -2.760714668e-05 | K64: =J64*$G$3+K63 -> -2.719227732e-05 | L64: =G64*$G$3+L63 -> 0.0002391974274 | M64: =L64*$G$3+M63 -> 0.0002347817089 | N64: =(J64^2+L64^2)*$G$3+N63 -> 4.409828651e-08
A65: =IF('DF raw data'!E70="","",'DF raw data'!E70) -> -298.5 | B65: =IF('DF raw data'!F70="","",'DF raw data'!F70) -> -6.63815e-06 | C65: =IF('DF raw data'!G70="","",'DF raw data'!G70) -> 0.000165251 | D65: =IF('DF raw data'!H70="","",'DF raw data'!H70) -> -3.28834e-05 | F65: -6.66603023e-06 | G65: 0.0001659450542 | H65: -3.302151028e-05 | J65: -3.094016179e-05 | K65: -4.266235822e-05 | L65: 0.0003221699545 | M65: 0.0003958666862 | N65: 9.647367311e-08
A66: =IF('DF raw data'!E71="","",'DF raw data'!E71) -> -298 | B66: =IF('DF raw data'!F71="","",'DF raw data'!F71) -> -5.09976e-06 | C66: =IF('DF raw data'!G71="","",'DF raw data'!G71) -> 0.000161061 | D66: =IF('DF raw data'!H71="","",'DF raw data'!H71) -> -3.40377e-05 | F66: -5.121178992e-06 | G66: 0.0001617374562 | H66: -3.418065834e-05 | J66: -3.350075129e-05 | K66: -5.941273387e-05 | L66: 0.0004030386826 | M66: 0.0005973860275 | N66: 1.782549131e-07
A67: =IF('DF raw data'!E72="","",'DF raw data'!E72) -> -297.5 | B67: =IF('DF raw data'!F72="","",'DF raw data'!F72) -> -9.58486e-06 | C67: =IF('DF raw data'!G72="","",'DF raw data'!G72) -> 0.000157275 | D67: =IF('DF raw data'!H72="","",'DF raw data'!H72) -> -3.47097e-05 | F67: -9.625116412e-06 | G67: 0.000157935555 | H67: -3.485548074e-05 | J67: -3.83133095e-05 | K67: -7.856938862e-05 | L67: 0.0004820064601 | M67: 0.0008383892575 | N67: 2.951539817e-07
A68: =IF('DF raw data'!E73="","",'DF raw data'!E73) -> -297 | B68: =IF('DF raw data'!F73="","",'DF raw data'!F73) -> -1.50969e-05 | C68: =IF('DF raw data'!G73="","",'DF raw data'!G73) -> 0.000157841 | D68: =IF('DF raw data'!H73="","",'DF raw data'!H73) -> -3.44391e-05 | F68: -1.516030698e-05 | G68: 0.0001585039322 | H68: -3.458374422e-05 | J68: -4.589346299e-05 | K68: -0.0001015161201 | L68: 0.0005612584262 | M68: 0.001119018471 | N68: 4.537125972e-07
A69: =IF('DF raw data'!E74="","",'DF raw data'!E74) -> -296.5 | B69: =IF('DF raw data'!F74="","",'DF raw data'!F74) -> -1.25329e-05 | C69: =IF('DF raw data'!G74="","",'DF raw data'!G74) -> 0.000160148 | D69: =IF('DF raw data'!H74="","",'DF raw data'!H74) -> -3.3932e-05 | F69: -1.258553818e-05 | G69: 0.0001608206216 | H69: -3.40745144e-05 | J69: -5.218623208e-05 | K69: -0.0001276092361 | L69: 0.000641668737 | M69: 0.001439852839 | N69: 6.609436826e-07
A70: =IF('DF raw data'!E75="","",'DF raw data'!E75) -> -296 | B70: =IF('DF raw data'!F75="","",'DF raw data'!F75) -> -1.00346e-05 | C70: =IF('DF raw data'!G75="","",'DF raw data'!G75) -> 0.000163315 | D70: =IF('DF raw data'!H75="","",'DF raw data'!H75) -> -3.36387e-05 | F70: -1.007674532e-05 | G70: 0.000164000923 | H70: -3.377998254e-05 | J70: -5.722460474e-05 | K70: -0.0001562215385 | L70: 0.0007236691985 | M70: 0.001801687438 | N70: 9.244295648e-07
A71: =IF('DF raw data'!E76="","",'DF raw data'!E76) -> -295.5 | B71: =IF('DF raw data'!F76="","",'DF raw data'!F76) -> -1.49683e-05 | C71: =IF('DF raw data'!G76="","",'DF raw data'!G76) -> 0.000163356 | D71: =IF('DF raw data'!H76="","",'DF raw data'!H76) -> -3.37329e-05 | F71: -1.503116686e-05 | G71: 0.0001640420952 | H71: -3.387457818e-05 | J71: -6.474018817e-05 | K71: -0.0001885916326 | L71: 0.0008056902461 | M71: 0.002204532561 | N71: 1.251093597e-06
A72: =IF('DF raw data'!E77="","",'DF raw data'!E77) -> -295 | B72: =IF('DF raw data'!F77="","",'DF raw data'!F77) -> -4.85315e-07 | C72: =IF('DF raw data'!G77="","",'DF raw data'!G77) -> 0.0001652 | D72: =IF('DF raw data'!H77="","",'DF raw data'!H77) -> -3.44183e-05 | F72: -4.87353323e-07 | G72: 0.00016589384 | H72: -3.456285686e-05 | J72: -6.498386483e-05 | K72: -0.000221083565 | L72: 0.0008886371661 | M72: 0.002648851144 | N72: 1.648043055e-06
A73: =IF('DF raw data'!E78="","",'DF raw data'!E78) -> -294.5 | B73: =IF('DF raw data'!F78="","",'DF raw data'!F78) -> -1.75307e-05 | C73: =IF('DF raw data'!G78="","",'DF raw data'!G78) -> 0.000167488 | D73: =IF('DF raw data'!H78="","",'DF raw data'!H78) -> -3.47804e-05 | F73: -1.760432894e-05 | G73: 0.0001681914496 | H73: -3.492647768e-05 | J73: -7.37860293e-05 | K73: -0.0002579765797 | L73: 0.0009727328909 | M73: 0.00313521759 | N73: 2.123869882e-06
A74: =IF('DF raw data'!E79="","",'DF raw data'!E79) -> -294 | B74: =IF('DF raw data'!F79="","",'DF raw data'!F79) -> -1.54173e-05 | C74: =IF('DF raw data'!G79="","",'DF raw data'!G79) -> 0.000168233 | D74: =IF('DF raw data'!H79="","",'DF raw data'!H79) -> -3.44711e-05 | F74: -1.548205266e-05 | G74: 0.0001689395786 | H74: -3.461587862e-05 | J74: -8.152705563e-05 | K74: -0.0002987401075 | L74: 0.00105720268 | M74: 0.00366381893 | N74: 2.686031966e-06
A75: =IF('DF raw data'!E80="","",'DF raw data'!E80) -> -293.5 | B75: =IF('DF raw data'!F80="","",'DF raw data'!F80) -> -1.43912e-05 | C75: =IF('DF raw data'!G80="","",'DF raw data'!G80) -> 0.000169757 | D75: =IF('DF raw data'!H80="","",'DF raw data'!H80) -> -3.40971e-05 | F75: -1.445164304e-05 | G75: 0.0001704699794 | H75: -3.424030782e-05 | J75: -8.875287715e-05 | K75: -0.0003431165461 | L75: 0.00114243767 | M75: 0.004235037765 | N75: 3.342552418e-06
A76: =IF('DF raw data'!E81="","",'DF raw data'!E81) -> -293 | B76: =IF('DF raw data'!F81="","",'DF raw data'!F81) -> -1.51613e-05 | C76: =IF('DF raw data'!G81="","",'DF raw data'!G81) -> 0.000163145 | D76: =IF('DF raw data'!H81="","",'DF raw data'!H81) -> -3.38594e-05 | F76: -1.522497746e-05 | G76: 0.000163830209 | H76: -3.400160948e-05 | J76: -9.636536588e-05 | K76: -0.000391299229 | L76: 0.001224352774 | M76: 0.004847214152 | N76: 4.096715418e-06
A77: =IF('DF raw data'!E82="","",'DF raw data'!E82) -> -292.5 | B77: =IF('DF raw data'!F82="","",'DF raw data'!F82) -> -1.80442e-05 | C77: =IF('DF raw data'!G82="","",'DF raw data'!G82) -> 0.000163326 | D77: =IF('DF raw data'!H82="","",'DF raw data'!H82) -> -3.36138e-05 | F77: -1.811998564e-05 | G77: 0.0001640119692 | H77: -3.375497796e-05 | J77: -0.0001054253587 | K77: -0.0004440119083 | L77: 0.001306358759 | M77: 0.005500393532 | N77: 4.955559274e-06
A78: =IF('DF raw data'!E83="","",'DF raw data'!E83) -> -292 | B78: =IF('DF raw data'!F83="","",'DF raw data'!F83) -> -8.30424e-06 | C78: =IF('DF raw data'!G83="","",'DF raw data'!G83) -> 0.000166967 | D78: =IF('DF raw data'!H83="","",'DF raw data'!H83) -> -3.3922e-05 | F78: -8.339117808e-06 | G78: 0.0001676682614 | H78: -3.40644724e-05 | J78: -0.0001095949176 | K78: -0.0004988093671 | L78: 0.00139019289 | M78: 0.006195489977 | N78: 5.927882933e-06
A79: =IF('DF raw data'!E84="","",'DF raw data'!E84) -> -291.5 | B79: =IF('DF raw data'!F84="","",'DF raw data'!F84) -> -1.29194e-05 | C79: =IF('DF raw data'!G84="","",'DF raw data'!G84) -> 0.000159517 | D79: =IF('DF raw data'!H84="","",'DF raw data'!H84) -> -3.09395e-05 | F79: -1.297366148e-05 | G79: 0.0001601869714 | H79: -3.10694459e-05 | J79: -0.0001160817483 | K79: -0.0005568502413 | L79: 0.001470286375 | M79: 0.006930633164 | N79: 7.015491432e-06
A80: =IF('DF raw data'!E85="","",'DF raw data'!E85) -> -291 | B80: =IF('DF raw data'!F85="","",'DF raw data'!F85) -> -1.72777e-05 | C80: =IF('DF raw data'!G85="","",'DF raw data'!G85) -> 0.000163013 | D80: =IF('DF raw data'!H85="","",'DF raw data'!H85) -> -3.13098e-05 | F80: -1.735026634e-05 | G80: 0.0001636976546 | H80: -3.144130116e-05 | J80: -0.0001247568815 | K80: -0.0006192286821 | L80: 0.001552135203 | M80: 0.007706700766 | N80: 8.227835415e-06
A81: =IF('DF raw data'!E86="","",'DF raw data'!E86) -> -290.5 | B81: =IF('DF raw data'!F86="","",'DF raw data'!F86) -> -2.08724e-05 | C81: =IF('DF raw data'!G86="","",'DF raw data'!G86) -> 0.000158249 | D81: =IF('DF raw data'!H86="","",'DF raw data'!H86) -> -2.05847e-05 | F81: -2.096006408e-05 | G81: 0.0001589136458 | H81: -2.067115574e-05 | J81: -0.0001352369136 | K81: -0.0006868471388 | L81: 0.001631592026 | M81: 0.008522496778 | N81: 9.568026196e-06
A82: =IF('DF raw data'!E87="","",'DF raw data'!E87) -> -290 | B82: =IF('DF raw data'!F87="","",'DF raw data'!F87) -> -1.88806e-05 | C82: =IF('DF raw data'!G87="","",'DF raw data'!G87) -> 0.000159368 | D82: =IF('DF raw data'!H87="","",'DF raw data'!H87) -> -3.03046e-05 | F82: -1.895989852e-05 | G82: 0.0001600373456 | H82: -3.043187932e-05 | J82: -0.0001447168628 | K82: -0.0007592055703 | L82: 0.001711610698 | M82: 0.009378302128 | N82: 1.104330327e-05
A83: =IF('DF raw data'!E88="","",'DF raw data'!E88) -> -289.5 | B83: =IF('DF raw data'!F88="","",'DF raw data'!F88) -> -1.84286e-05 | C83: =IF('DF raw data'!G88="","",'DF raw data'!G88) -> 0.00017034 | D83: =IF('DF raw data'!H88="","",'DF raw data'!H88) -> -3.36257e-05 | F83: -1.850600012e-05 | G83: 0.000171055428 | H83: -3.376692794e-05 | J83: -0.0001539698629 | K83: -0.0008361905017 | L83: 0.001797138412 | M83: 0.01027687133 | N83: 1.267000987e-05
A84: =IF('DF raw data'!E89="","",'DF raw data'!E89) -> -289 | B84: =IF('DF raw data'!F89="","",'DF raw data'!F89) -> -9.08055e-06 | C84: =IF('DF raw data'!G89="","",'DF raw data'!G89) -> 0.000176091 | D84: =IF('DF raw data'!H89="","",'DF raw data'!H89) -> -2.26515e-05 | F84: -9.11868831e-06 | G84: 0.0001768305822 | H84: -2.27466363e-05 | J84: -0.000158529207 | K84: -0.0009154551052 | L84: 0.001885553703 | M84: 0.01121964819 | N84: 1.446023201e-05
A85: =IF('DF raw data'!E90="","",'DF raw data'!E90) -> -288.5 | B85: =IF('DF raw data'!F90="","",'DF raw data'!F90) -> -1.46517e-05 | C85: =IF('DF raw data'!G90="","",'DF raw data'!G90) -> 0.000171635 | D85: =IF('DF raw data'!H90="","",'DF raw data'!H90) -> -2.7649e-05 | F85: -1.471323714e-05 | G85: 0.000172355867 | H85: -2.77651258e-05 | J85: -0.0001658858256 | K85: -0.000998398018 | L85: 0.001971731637 | M85: 0.012205514 | N85: 1.641785389e-05
A86: =IF('DF raw data'!E91="","",'DF raw data'!E91) -> -288 | B86: =IF('DF raw data'!F91="","",'DF raw data'!F91) -> -1.77319e-05 | C86: =IF('DF raw data'!G91="","",'DF raw data'!G91) -> 0.000166496 | D86: =IF('DF raw data'!H91="","",'DF raw data'!H91) -> -2.29864e-05 | F86: -1.780637398e-05 | G86: 0.0001671952832 | H86: -2.308294288e-05 | J86: -0.0001747890126 | K86: -0.001085792524 | L86: 0.002055329279 | M86: 0.01323317864 | N86: 1.854531871e-05
A87: =IF('DF raw data'!E92="","",'DF raw data'!E92) -> -287.5 | B87: =IF('DF raw data'!F92="","",'DF raw data'!F92) -> -1.30514e-05 | C87: =IF('DF raw data'!G92="","",'DF raw data'!G92) -> 0.000171594 | D87: =IF('DF raw data'!H92="","",'DF raw data'!H92) -> -2.48814e-05 | F87: -1.310621588e-05 | G87: 0.0001723146948 | H87: -2.498590188e-05 | J87: -0.0001813421205 | K87: -0.001176463585 | L87: 0.002141486626 | M87: 0.01430392196 | N87: 2.085474367e-05
A88: =IF('DF raw data'!E93="","",'DF raw data'!E93) -> -287 | B88: =IF('DF raw data'!F93="","",'DF raw data'!F93) -> -9.27081e-06 | C88: =IF('DF raw data'!G93="","",'DF raw data'!G93) -> 0.000173649 | D88: =IF('DF raw data'!H93="","",'DF raw data'!H93) -> -2.55097e-05 | F88: -9.309747402e-06 | G88: 0.0001743783258 | H88: -2.561684074e-05 | J88: -0.0001859969942 | K88: -0.001269462082 | L88: 0.002228675789 | M88: 0.01541825985 | N88: 2.3355539e-05
A89: =IF('DF raw data'!E94="","",'DF raw data'!E94) -> -286.5 | B89: =IF('DF raw data'!F94="","",'DF raw data'!F94) -> -3.12318e-06 | C89: =IF('DF raw data'!G94="","",'DF raw data'!G94) -> 0.000170078 | D89: =IF('DF raw data'!H94="","",'DF raw data'!H94) -> -1.81671e-05 | F89: -3.136297356e-06 | G89: 0.0001707923276 | H89: -1.824340182e-05 | J89: -0.0001875651429 | K89: -0.001363244653 | L89: 0.002314071953 | M89: 0.01657529583 | N89: 2.605059384e-05
A90: =IF('DF raw data'!E95="","",'DF raw data'!E95) -> -286 | B90: =IF('DF raw data'!F95="","",'DF raw data'!F95) -> -9.26827e-06 | C90: =IF('DF raw data'!G95="","",'DF raw data'!G95) -> 0.000169906 | D90: =IF('DF raw data'!H95="","",'DF raw data'!H95) -> -2.94887e-05 | F90: -9.307196734e-06 | G90: 0.0001706196052 | H90: -2.961255254e-05 | J90: -0.0001922187413 | K90: -0.001459354024 | L90: 0.002399381755 | M90: 0.0177749867 | N90: 2.894758427e-05
A91: =IF('DF raw data'!E96="","",'DF raw data'!E96) -> -285.5 | B91: =IF('DF raw data'!F96="","",'DF raw data'!F96) -> -5.10463e-06 | C91: =IF('DF raw data'!G96="","",'DF raw data'!G96) -> 0.000172949 | D91: =IF('DF raw data'!H96="","",'DF raw data'!H96) -> -2.60378e-05 | F91: -5.126069446e-06 | G91: 0.0001736753858 | H91: -2.614715876e-05 | J91: -0.000194781776 | K91: -0.001556744912 | L91: 0.002486219448 | M91: 0.01901809643 | N91: 3.205719781e-05
A92: =IF('DF raw data'!E97="","",'DF raw data'!E97) -> -285 | B92: =IF('DF raw data'!F97="","",'DF raw data'!F97) -> -1.13218e-05 | C92: =IF('DF raw data'!G97="","",'DF raw data'!G97) -> 0.000169111 | D92: =IF('DF raw data'!H97="","",'DF raw data'!H97) -> -2.54716e-05 | F92: -1.136935156e-05 | G92: 0.0001698212662 | H92: -2.557858072e-05 | J92: -0.0002004664518 | K92: -0.001656978138 | L92: 0.002571130081 | M92: 0.02030366147 | N92: 3.538264616e-05
A93: =IF('DF raw data'!E98="","",'DF raw data'!E98) -> -284.5 | B93: =IF('DF raw data'!F98="","",'DF raw data'!F98) -> -1.14457e-05 | C93: =IF('DF raw data'!G98="","",'DF raw data'!G98) -> 0.000160733 | D93: =IF('DF raw data'!H98="","",'DF raw data'!H98) -> -3.08128e-05 | F93: -1.149377194e-05 | G93: 0.0001614080786 | H93: -3.094221376e-05 | J93: -0.0002062133377 | K93: -0.001760084807 | L93: 0.002651834121 | M93: 0.02162957853 | N93: 3.892002023e-05
A94: =IF('DF raw data'!E99="","",'DF raw data'!E99) -> -284 | B94: =IF('DF raw data'!F99="","",'DF raw data'!F99) -> 3.48499e-06 | C94: =IF('DF raw data'!G99="","",'DF raw data'!G99) -> 0.000168986 | D94: =IF('DF raw data'!H99="","",'DF raw data'!H99) -> -2.96303e-05 | F94: 3.499626958e-06 | G94: 0.0001696957412 | H94: -2.975474726e-05 | J94: -0.0002044635243 | K94: -0.001862316569 | L94: 0.002736681991 | M94: 0.02299791953 | N94: 4.268563706e-05
A95: =IF('DF raw data'!E100="","",'DF raw data'!E100) -> -283.5 | B95: =IF('DF raw data'!F100="","",'DF raw data'!F100) -> -2.27245e-05 | C95: =IF('DF raw data'!G100="","",'DF raw data'!G100) -> 0.000172686 | D95: =IF('DF raw data'!H100="","",'DF raw data'!H100) -> -3.0111e-05 | F95: -2.28199429e-05 | G95: 0.0001734112812 | H95: -3.02374662e-05 | J95: -0.0002158734957 | K95: -0.001970253317 | L95: 0.002823387632 | M95: 0.02440961334 | N95: 4.66946966e-05
A96: =IF('DF raw data'!E101="","",'DF raw data'!E101) -> -283 | B96: =IF('DF raw data'!F101="","",'DF raw data'!F101) -> -1.54212e-05 | C96: =IF('DF raw data'!G101="","",'DF raw data'!G101) -> 0.000173524 | D96: =IF('DF raw data'!H101="","",'DF raw data'!H101) -> -2.83734e-05 | F96: -1.548596904e-05 | G96: 0.0001742528008 | H96: -2.849256828e-05 | J96: -0.0002236164802 | K96: -0.002082061557 | L96: 0.002910514032 | M96: 0.02586487036 | N96: 5.095524473e-05
A97: =IF('DF raw data'!E102="","",'DF raw data'!E102) -> -282.5 | B97: =IF('DF raw data'!F102="","",'DF raw data'!F102) -> -2.61905e-05 | C97: =IF('DF raw data'!G102="","",'DF raw data'!G102) -> 0.00016854 | D97: =IF('DF raw data'!H102="","",'DF raw data'!H102) -> -2.11955e-05 | F97: -2.63005001e-05 | G97: 0.000169247868 | H97: -2.12845211e-05 | J97: -0.0002367667303 | K97: -0.002200444922 | L97: 0.002995137966 | M97: 0.02736243934 | N97: 5.546869969e-05
A98: =IF('DF raw data'!E103="","",'DF raw data'!E103) -> -282 | B98: =IF('DF raw data'!F103="","",'DF raw data'!F103) -> -2.48378e-05 | C98: =IF('DF raw data'!G103="","",'DF raw data'!G103) -> 0.000171932 | D98: =IF('DF raw data'!H103="","",'DF raw data'!H103) -> -3.49911e-05 | F98: -2.494211876e-05 | G98: 0.0001726541144 | H98: -3.513806262e-05 | J98: -0.0002492377897 | K98: -0.002325063817 | L98: 0.003081465023 | M98: 0.02890317185 | N98: 6.024747277e-05
A99: =IF('DF raw data'!E104="","",'DF raw data'!E104) -> -281.5 | B99: =IF('DF raw data'!F104="","",'DF raw data'!F104) -> -1.78566e-05 | C99: =IF('DF raw data'!G104="","",'DF raw data'!G104) -> 0.000170891 | D99: =IF('DF raw data'!H104="","",'DF raw data'!H104) -> -2.64925e-05 | F99: -1.793159772e-05 | G99: 0.0001716087422 | H99: -2.66037685e-05 | J99: -0.0002582035885 | K99: -0.002454165611 | L99: 0.003167269394 | M99: 0.03048680655 | N99: 6.529660503e-05
A100: =IF('DF raw data'!E105="","",'DF raw data'!E105) -> -281 | B100: =IF('DF raw data'!F105="","",'DF raw data'!F105) -> -2.12497e-05 | C100: =IF('DF raw data'!G105="","",'DF raw data'!G105) -> 0.000159182 | D100: =IF('DF raw data'!H105="","",'DF raw data'!H105) -> -3.36537e-05 | F100: -2.133894874e-05 | G100: 0.0001598505644 | H100: -3.379504554e-05 | J100: -0.0002688730629 | K100: -0.002588602142 | L100: 0.003247194677 | M100: 0.03211040389 | N100: 7.060488803e-05
A101: =IF('DF raw data'!E106="","",'DF raw data'!E106) -> -280.5 | B101: =IF('DF raw data'!F106="","",'DF raw data'!F106) -> -2.40942e-06 | C101: =IF('DF raw data'!G106="","",'DF raw data'!G106) -> 0.000152901 | D101: =IF('DF raw data'!H106="","",'DF raw data'!H106) -> -3.16694e-05 | F101: -2.419539564e-06 | G101: 0.0001535431842 | H101: -3.180241148e-05 | J101: -0.0002700828327 | K101: -0.002723643559 | L101: 0.003323966269 | M101: 0.03377238702 | N101: 7.616573627e-05
A102: =IF('DF raw data'!E107="","",'DF raw data'!E107) -> -280 | B102: =IF('DF raw data'!F107="","",'DF raw data'!F107) -> -5.36369e-06 | C102: =IF('DF raw data'!G107="","",'DF raw data'!G107) -> 0.000163207 | D102: =IF('DF raw data'!H107="","",'DF raw data'!H107) -> -2.23334e-05 | F102: -5.386217498e-06 | G102: 0.0001638924694 | H102: -2.242720028e-05 | J102: -0.0002727759414 | K102: -0.002860031529 | L102: 0.003405912504 | M102: 0.03547534327 | N102: 8.200305962e-05
A103: =IF('DF raw data'!E108="","",'DF raw data'!E108) -> -279.5 | B103: =IF('DF raw data'!F108="","",'DF raw data'!F108) -> -5.6089e-06 | C103: =IF('DF raw data'!G108="","",'DF raw data'!G108) -> 0.000173817 | D103: =IF('DF raw data'!H108="","",'DF raw data'!H108) -> -3.89801e-05 | F103: -5.63245738e-06 | G103: 0.0001745470314 | H103: -3.914381642e-05 | J103: -0.0002755921701 | K103: -0.002997827614 | L103: 0.003493186019 | M103: 0.03722193628 | N103: 8.814220942e-05
A104: =IF('DF raw data'!E109="","",'DF raw data'!E109) -> -279 | B104: =IF('DF raw data'!F109="","",'DF raw data'!F109) -> -2.02315e-05 | C104: =IF('DF raw data'!G109="","",'DF raw data'!G109) -> 0.000176416 | D104: =IF('DF raw data'!H109="","",'DF raw data'!H109) -> -2.25687e-05 | F104: -2.03164723e-05 | G104: 0.0001771569472 | H104: -2.266348854e-05 | J104: -0.0002857504063 | K104: -0.003140702818 | L104: 0.003581764493 | M104: 0.03901281853 | N104: 9.459755451e-05
A105: =IF('DF raw data'!E110="","",'DF raw data'!E110) -> -278.5 | B105: =IF('DF raw data'!F110="","",'DF raw data'!F110) -> -2.30529e-05 | C105: =IF('DF raw data'!G110="","",'DF raw data'!G110) -> 0.000179234 | D105: =IF('DF raw data'!H110="","",'DF raw data'!H110) -> -1.78305e-05 | F105: -2.314972218e-05 | G105: 0.0001799867828 | H105: -1.79053881e-05 | J105: -0.0002973252674 | K105: -0.003289365451 | L105: 0.003671757884 | M105: 0.04084869747 | N105: 0.0001013826586
A106: =IF('DF raw data'!E111="","",'DF raw data'!E111) -> -278 | B106: =IF('DF raw data'!F111="","",'DF raw data'!F111) -> -1.77276e-05 | C106: =IF('DF raw data'!G111="","",'DF raw data'!G111) -> 0.000184308 | D106: =IF('DF raw data'!H111="","",'DF raw data'!H111) -> -2.94652e-05 | F106: -1.780205592e-05 | G106: 0.0001850820936 | H106: -2.958895384e-05 | J106: -0.0003062262953 | K106: -0.003442478599 | L106: 0.003764298931 | M106: 0.04273084694 | N106: 0.0001085145191
A107: =IF('DF raw data'!E112="","",'DF raw data'!E112) -> -277.5 | B107: =IF('DF raw data'!F112="","",'DF raw data'!F112) -> -1.3699e-05 | C107: =IF('DF raw data'!G112="","",'DF raw data'!G112) -> 0.000182098 | D107: =IF('DF raw data'!H112="","",'DF raw data'!H112) -> -1.44578e-05 | F107: -1.37565358e-05 | G107: 0.0001828628116 | H107: -1.451852276e-05 | J107: -0.0003131045632 | K107: -0.003599030881 | L107: 0.003855730337 | M107: 0.04465871211 | N107: 0.0001159968646
A108: =IF('DF raw data'!E113="","",'DF raw data'!E113) -> -277 | B108: =IF('DF raw data'!F113="","",'DF raw data'!F113) -> -1.40179e-05 | C108: =IF('DF raw data'!G113="","",'DF raw data'!G113) -> 0.000175754 | D108: =IF('DF raw data'!H113="","",'DF raw data'!H113) -> -1.81039e-05 | F108: -1.407677518e-05 | G108: 0.0001764921668 | H108: -1.817993638e-05 | J108: -0.0003201429508 | K108: -0.003759102356 | L108: 0.00394397642 | M108: 0.04663070032 | N108: 0.0001238255853
A109: =IF('DF raw data'!E114="","",'DF raw data'!E114) -> -276.5 | B109: =IF('DF raw data'!F114="","",'DF raw data'!F114) -> -1.63837e-05 | C109: =IF('DF raw data'!G114="","",'DF raw data'!G114) -> 0.000170084 | D109: =IF('DF raw data'!H114="","",'DF raw data'!H114) -> -2.5126e-05 | F109: -1.645251154e-05 | G109: 0.0001707983528 | H109: -2.52315292e-05 | J109: -0.0003283692066 | K109: -0.003923286959 | L109: 0.004029375597 | M109: 0.04864538811 | N109: 0.0001319974324
A110: =IF('DF raw data'!E115="","",'DF raw data'!E115) -> -276 | B110: =IF('DF raw data'!F115="","",'DF raw data'!F115) -> -2.22829e-05 | C110: =IF('DF raw data'!G115="","",'DF raw data'!G115) -> 0.000172499 | D110: =IF('DF raw data'!H115="","",'DF raw data'!H115) -> -2.12502e-05 | F110: -2.237648818e-05 | G110: 0.0001732234958 | H110: -2.133945084e-05 | J110: -0.0003395574507 | K110: -0.004093065685 | L110: 0.004115987345 | M110: 0.05070338179 | N110: 0.0001405257579
A111: =IF('DF raw data'!E116="","",'DF raw data'!E116) -> -275.5 | B111: =IF('DF raw data'!F116="","",'DF raw data'!F116) -> -2.49776e-05 | C111: =IF('DF raw data'!G116="","",'DF raw data'!G116) -> 0.000179434 | D111: =IF('DF raw data'!H116="","",'DF raw data'!H116) -> -1.46979e-05 | F111: -2.508250592e-05 | G111: 0.0001801876228 | H111: -1.475963118e-05 | J111: -0.0003520987036 | K111: -0.004269115036 | L111: 0.004206081156 | M111: 0.05280642236 | N111: 0.000149433304
A112: =IF('DF raw data'!E117="","",'DF raw data'!E117) -> -275 | B112: =IF('DF raw data'!F117="","",'DF raw data'!F117) -> -2.125e-05 | C112: =IF('DF raw data'!G117="","",'DF raw data'!G117) -> 0.000179392 | D112: =IF('DF raw data'!H117="","",'DF raw data'!H117) -> -3.2746e-05 | F112: -2.133925e-05 | G112: 0.0001801454464 | H112: -3.28835332e-05 | J112: -0.0003627683286 | K112: -0.004450499201 | L112: 0.004296153879 | M112: 0.0549544993 | N112: 0.0001587275735
A113: =IF('DF raw data'!E118="","",'DF raw data'!E118) -> -274.5 | B113: =IF('DF raw data'!F118="","",'DF raw data'!F118) -> -1.83701e-05 | C113: =IF('DF raw data'!G118="","",'DF raw data'!G118) -> 0.000180012 | D113: =IF('DF raw data'!H118="","",'DF raw data'!H118) -> -2.54234e-05 | F113: -1.844725442e-05 | G113: 0.0001807680504 | H113: -2.553017828e-05 | J113: -0.0003719919558 | K113: -0.004636495179 | L113: 0.004386537904 | M113: 0.05714776826 | N113: 0.0001684176199
A114: =IF('DF raw data'!E119="","",'DF raw data'!E119) -> -274 | B114: =IF('DF raw data'!F119="","",'DF raw data'!F119) -> -2.88142e-05 | C114: =IF('DF raw data'!G119="","",'DF raw data'!G119) -> 0.000181414 | D114: =IF('DF raw data'!H119="","",'DF raw data'!H119) -> -2.9521e-05 | F114: -2.893521964e-05 | G114: 0.0001821759388 | H114: -2.96449882e-05 | J114: -0.0003864595657 | K114: -0.004829724961 | L114: 0.004477625874 | M114: 0.05938658119 | N114: 0.0001785168621
A115: =IF('DF raw data'!E120="","",'DF raw data'!E120) -> -273.5 | B115: =IF('DF raw data'!F120="","",'DF raw data'!F120) -> -8.23878e-06 | C115: =IF('DF raw data'!G120="","",'DF raw data'!G120) -> 0.000175642 | D115: =IF('DF raw data'!H120="","",'DF raw data'!H120) -> -3.5137e-05 | F115: -8.273382876e-06 | G115: 0.0001763796964 | H115: -3.52845754e-05 | J115: -0.0003905962571 | K115: -0.00502502309 | L115: 0.004565815722 | M115: 0.06166948905 | N115: 0.0001890164815
A116: =IF('DF raw data'!E121="","",'DF raw data'!E121) -> -273 | B116: =IF('DF raw data'!F121="","",'DF raw data'!F121) -> -4.84553e-06 | C116: =IF('DF raw data'!G121="","",'DF raw data'!G121) -> 0.000170493 | D116: =IF('DF raw data'!H121="","",'DF raw data'!H121) -> -3.0769e-05 | F116: -4.865881226e-06 | G116: 0.0001712090706 | H116: -3.08982298e-05 | J116: -0.0003930291977 | K116: -0.005221537689 | L116: 0.004651420257 | M116: 0.06399519918 | N116: 0.0001999115726
A117: =IF('DF raw data'!E122="","",'DF raw data'!E122) -> -272.5 | B117: =IF('DF raw data'!F122="","",'DF raw data'!F122) -> -2.14458e-05 | C117: =IF('DF raw data'!G122="","",'DF raw data'!G122) -> 0.000164732 | D117: =IF('DF raw data'!H122="","",'DF raw data'!H122) -> -2.54446e-05 | F117: -2.153587236e-05 | G117: 0.0001654238744 | H117: -2.555146732e-05 | J117: -0.0004037971339 | K117: -0.005423436256 | L117: 0.004734132194 | M117: 0.06636226528 | N117: 0.0002111991025
A118: =IF('DF raw data'!E123="","",'DF raw data'!E123) -> -272 | B118: =IF('DF raw data'!F123="","",'DF raw data'!F123) -> -1.90191e-05 | C118: =IF('DF raw data'!G123="","",'DF raw data'!G123) -> 0.000169028 | D118: =IF('DF raw data'!H123="","",'DF raw data'!H123) -> -1.43364e-05 | F118: -1.909898022e-05 | G118: 0.0001697379176 | H118: -1.439661288e-05 | J118: -0.000413346624 | K118: -0.005630109568 | L118: 0.004819001153 | M118: 0.06877176586 | N118: 0.0002228959163
A119: =IF('DF raw data'!E124="","",'DF raw data'!E124) -> -271.5 | B119: =IF('DF raw data'!F124="","",'DF raw data'!F124) -> -9.90536e-06 | C119: =IF('DF raw data'!G124="","",'DF raw data'!G124) -> 0.000177825 | D119: =IF('DF raw data'!H124="","",'DF raw data'!H124) -> -3.42936e-05 | F119: -9.946962512e-06 | G119: 0.000178571865 | H119: -3.443763312e-05 | J119: -0.0004183201053 | K119: -0.00583926962 | L119: 0.004908287086 | M119: 0.0712259094 | N119: 0.0002350290532
A120: =IF('DF raw data'!E125="","",'DF raw data'!E125) -> -271 | B120: =IF('DF raw data'!F125="","",'DF raw data'!F125) -> -2.07354e-05 | C120: =IF('DF raw data'!G125="","",'DF raw data'!G125) -> 0.000174369 | D120: =IF('DF raw data'!H125="","",'DF raw data'!H125) -> -3.61026e-05 | F120: -2.082248868e-05 | G120: 0.0001751013498 | H120: -3.625423092e-05 | J120: -0.0004287313496 | K120: -0.006053635295 | L120: 0.004995837761 | M120: 0.07372382828 | N120: 0.000247600156
A121: =IF('DF raw data'!E126="","",'DF raw data'!E126) -> -270.5 | B121: =IF('DF raw data'!F126="","",'DF raw data'!F126) -> -1.35613e-05 | C121: =IF('DF raw data'!G126="","",'DF raw data'!G126) -> 0.000185862 | D121: =IF('DF raw data'!H126="","",'DF raw data'!H126) -> -2.91404e-05 | F121: -1.361825746e-05 | G121: 0.0001866426204 | H121: -2.926278968e-05 | J121: -0.0004355404783 | K121: -0.006271405534 | L121: 0.005089159071 | M121: 0.07626840782 | N121: 0.0002606447737
A122: =IF('DF raw data'!E127="","",'DF raw data'!E127) -> -270 | B122: =IF('DF raw data'!F127="","",'DF raw data'!F127) -> -2.20871e-05 | C122: =IF('DF raw data'!G127="","",'DF raw data'!G127) -> 0.000189993 | D122: =IF('DF raw data'!H127="","",'DF raw data'!H127) -> -2.69242e-05 | F122: -2.217986582e-05 | G122: 0.0001907909706 | H122: -2.703728164e-05 | J122: -0.0004466304112 | K122: -0.00649472074 | L122: 0.005184554556 | M122: 0.07886068509 | N122: 0.0002741843161
A123: =IF('DF raw data'!E128="","",'DF raw data'!E128) -> -269.5 | B123: =IF('DF raw data'!F128="","",'DF raw data'!F128) -> -2.10533e-05 | C123: =IF('DF raw data'!G128="","",'DF raw data'!G128) -> 0.00018044 | D123: =IF('DF raw data'!H128="","",'DF raw data'!H128) -> -3.78941e-05 | F123: -2.114172386e-05 | G123: 0.000181197848 | H123: -3.805325522e-05 | J123: -0.0004572012732 | K123: -0.006723321377 | L123: 0.00527515348 | M123: 0.08149826183 | N123: 0.0002882024547
A124: =IF('DF raw data'!E129="","",'DF raw data'!E129) -> -269 | B124: =IF('DF raw data'!F129="","",'DF raw data'!F129) -> -1.75401e-05 | C124: =IF('DF raw data'!G129="","",'DF raw data'!G129) -> 0.000174802 | D124: =IF('DF raw data'!H129="","",'DF raw data'!H129) -> -2.20927e-05 | F124: -1.761376842e-05 | G124: 0.0001755361684 | H124: -2.218548934e-05 | J124: -0.0004660081574 | K124: -0.006956325455 | L124: 0.005362921564 | M124: 0.08417972262 | N124: 0.0003026915003
A125: =IF('DF raw data'!E130="","",'DF raw data'!E130) -> -268.5 | B125: =IF('DF raw data'!F130="","",'DF raw data'!F130) -> -1.70796e-05 | C125: =IF('DF raw data'!G130="","",'DF raw data'!G130) -> 0.000180167 | D125: =IF('DF raw data'!H130="","",'DF raw data'!H130) -> -3.90626e-05 | F125: -1.715133432e-05 | G125: 0.0001809237014 | H125: -3.922666292e-05 | J125: -0.0004745838245 | K125: -0.007193617368 | L125: 0.005453383415 | M125: 0.08690641432 | N125: 0.0003176738106
A126: =IF('DF raw data'!E131="","",'DF raw data'!E131) -> -268 | B126: =IF('DF raw data'!F131="","",'DF raw data'!F131) -> -1.79807e-05 | C126: =IF('DF raw data'!G131="","",'DF raw data'!G131) -> 0.000177349 | D126: =IF('DF raw data'!H131="","",'DF raw data'!H131) -> -3.45637e-05 | F126: -1.805621894e-05 | G126: 0.0001780938658 | H126: -3.470886754e-05 | J126: -0.000483611934 | K126: -0.007435423335 | L126: 0.005542430348 | M126: 0.0896776295 | N126: 0.0003331500179
A127: =IF('DF raw data'!E132="","",'DF raw data'!E132) -> -267.5 | B127: =IF('DF raw data'!F132="","",'DF raw data'!F132) -> -1.99036e-05 | C127: =IF('DF raw data'!G132="","",'DF raw data'!G132) -> 0.000176322 | D127: =IF('DF raw data'!H132="","",'DF raw data'!H132) -> -3.20672e-05 | F127: -1.998719512e-05 | G127: 0.0001770625524 | H127: -3.220188224e-05 | J127: -0.0004936055316 | K127: -0.0076822261 | L127: 0.005630961624 | M127: 0.09249311031 | N127: 0.0003491257055
A128: =IF('DF raw data'!E133="","",'DF raw data'!E133) -> -267 | B128: =IF('DF raw data'!F133="","",'DF raw data'!F133) -> -1.61888e-05 | C128: =IF('DF raw data'!G133="","",'DF raw data'!G133) -> 0.000174752 | D128: =IF('DF raw data'!H133="","",'DF raw data'!H133) -> -3.0412e-05 | F128: =(1-$G$1*($B$49-$G$2))*B128 -> -1.625679296e-05 | G128: 0.0001754859584 | H128: -3.05397304e-05 | J128: =F128*$G$3+J127 -> -0.000501733928 | K128: =J128*$G$3+K127 -> -0.007933093064 | L128: =G128*$G$3+L127 -> 0.005718704603 | M128: =L128*$G$3+M127 -> 0.09535246261 | N128: =(J128^2+L128^2)*$G$3+N127 -> 0.0003656033652
A129: =IF('DF raw data'!E134="","",'DF raw data'!E134) -> -266.5 | B129: =IF('DF raw data'!F134="","",'DF raw data'!F134) -> -1.61245e-05 | C129: =IF('DF raw data'!G134="","",'DF raw data'!G134) -> 0.000167509 | D129: =IF('DF raw data'!H134="","",'DF raw data'!H134) -> -2.96151e-05 | F129: -1.61922229e-05 | G129: 0.0001682125378 | H129: -2.973948342e-05 | J129: -0.0005098300395 | K129: -0.008188008084 | L129: 0.005802810872 | M129: 0.09825386805 | N129: 0.0003825696355
A130: =IF('DF raw data'!E135="","",'DF raw data'!E135) -> -266 | B130: =IF('DF raw data'!F135="","",'DF raw data'!F135) -> -2.38098e-05 | C130: =IF('DF raw data'!G135="","",'DF raw data'!G135) -> 0.000157628 | D130: =IF('DF raw data'!H135="","",'DF raw data'!H135) -> -3.82967e-05 | F130: -2.390980116e-05 | G130: 0.0001582900376 | H130: -3.845754614e-05 | J130: -0.0005217849401 | K130: -0.008448900554 | L130: 0.005881955891 | M130: 0.101194846 | N130: 0.0004000044678
A131: =IF('DF raw data'!E136="","",'DF raw data'!E136) -> -265.5 | B131: =IF('DF raw data'!F136="","",'DF raw data'!F136) -> -1.06144e-05 | C131: =IF('DF raw data'!G136="","",'DF raw data'!G136) -> 0.000165323 | D131: =IF('DF raw data'!H136="","",'DF raw data'!H136) -> -2.80206e-05 | F131: -1.065898048e-05 | G131: 0.0001660173566 | H131: -2.813828652e-05 | J131: -0.0005271144303 | K131: -0.008712457769 | L131: 0.005964964569 | M131: 0.1041773283 | N131: 0.0004179337938
A132: =IF('DF raw data'!E137="","",'DF raw data'!E137) -> -265 | B132: =IF('DF raw data'!F137="","",'DF raw data'!F137) -> -1.04175e-05 | C132: =IF('DF raw data'!G137="","",'DF raw data'!G137) -> 0.000164009 | D132: =IF('DF raw data'!H137="","",'DF raw data'!H137) -> -3.58979e-05 | F132: -1.04612535e-05 | G132: 0.0001646978378 | H132: -3.604867118e-05 | J132: -0.0005323450571 | K132: -0.008978630298 | L132: 0.006047313488 | M132: 0.107200985 | N132: 0.0004363604896
A133: =IF('DF raw data'!E138="","",'DF raw data'!E138) -> -264.5 | B133: =IF('DF raw data'!F138="","",'DF raw data'!F138) -> -1.61224e-05 | C133: =IF('DF raw data'!G138="","",'DF raw data'!G138) -> 0.00016934 | D133: =IF('DF raw data'!H138="","",'DF raw data'!H138) -> -3.28023e-05 | F133: -1.619011408e-05 | G133: 0.000170051228 | H133: -3.294006966e-05 | J133: -0.0005404401141 | K133: -0.009248850355 | L133: 0.006132339102 | M133: 0.1102671546 | N133: 0.0004553093188
A134: =IF('DF raw data'!E139="","",'DF raw data'!E139) -> -264 | B134: =IF('DF raw data'!F139="","",'DF raw data'!F139) -> -1.47808e-05 | C134: =IF('DF raw data'!G139="","",'DF raw data'!G139) -> 0.000172911 | D134: =IF('DF raw data'!H139="","",'DF raw data'!H139) -> -2.753e-05 | F134: -1.484287936e-05 | G134: 0.0001736372262 | H134: -2.7645626e-05 | J134: -0.0005478615538 | K134: -0.009522781132 | L134: 0.006219157715 | M134: 0.1133767334 | N134: 0.0004747983563
A135: =IF('DF raw data'!E140="","",'DF raw data'!E140) -> -263.5 | B135: =IF('DF raw data'!F140="","",'DF raw data'!F140) -> -1.13144e-05 | C135: =IF('DF raw data'!G140="","",'DF raw data'!G140) -> 0.000165246 | D135: =IF('DF raw data'!H140="","",'DF raw data'!H140) -> -3.58779e-05 | F135: -1.136192048e-05 | G135: 0.0001659400332 | H135: -3.602858718e-05 | J135: -0.000553542514 | K135: -0.009799552389 | L135: 0.006302127732 | M135: 0.1165277973 | N135: 0.0004948099679
A136: =IF('DF raw data'!E141="","",'DF raw data'!E141) -> -263 | B136: =IF('DF raw data'!F141="","",'DF raw data'!F141) -> -1.42659e-05 | C136: =IF('DF raw data'!G141="","",'DF raw data'!G141) -> 0.000162394 | D136: =IF('DF raw data'!H141="","",'DF raw data'!H141) -> -3.08374e-05 | F136: -1.432581678e-05 | G136: 0.0001630760548 | H136: -3.096691708e-05 | J136: -0.0005607054224 | K136: -0.0100799051 | L136: 0.006383665759 | M136: 0.1197196302 | N136: 0.0005153427575
A137: =IF('DF raw data'!E142="","",'DF raw data'!E142) -> -262.5 | B137: =IF('DF raw data'!F142="","",'DF raw data'!F142) -> -1.2413e-05 | C137: =IF('DF raw data'!G142="","",'DF raw data'!G142) -> 0.000169547 | D137: =IF('DF raw data'!H142="","",'DF raw data'!H142) -> -2.13939e-05 | F137: -1.24651346e-05 | G137: 0.0001702590974 | H137: -2.148375438e-05 | J137: -0.0005669379897 | K137: -0.01036337409 | L137: 0.006468795308 | M137: 0.1229540278 | N137: 0.0005364261232
A138: =IF('DF raw data'!E143="","",'DF raw data'!E143) -> -262 | B138: =IF('DF raw data'!F143="","",'DF raw data'!F143) -> -1.728e-05 | C138: =IF('DF raw data'!G143="","",'DF raw data'!G143) -> 0.000166462 | D138: =IF('DF raw data'!H143="","",'DF raw data'!H143) -> -2.75252e-05 | F138: -1.7352576e-05 | G138: 0.0001671611404 | H138: -2.764080584e-05 | J138: -0.0005756142777 | K138: -0.01065118123 | L138: 0.006552375878 | M138: 0.1262302158 | N138: 0.0005580586039
A139: =IF('DF raw data'!E144="","",'DF raw data'!E144) -> -261.5 | B139: =IF('DF raw data'!F144="","",'DF raw data'!F144) -> -1.13242e-05 | C139: =IF('DF raw data'!G144="","",'DF raw data'!G144) -> 0.000171568 | D139: =IF('DF raw data'!H144="","",'DF raw data'!H144) -> -2.07979e-05 | F139: -1.137176164e-05 | G139: 0.0001722885856 | H139: -2.088525118e-05 | J139: -0.0005813001585 | K139: -0.01094183131 | L139: 0.006638520171 | M139: 0.1295494759 | N139: 0.0005802625339
A140: =IF('DF raw data'!E145="","",'DF raw data'!E145) -> -261 | B140: =IF('DF raw data'!F145="","",'DF raw data'!F145) -> -1.08724e-05 | C140: =IF('DF raw data'!G145="","",'DF raw data'!G145) -> 0.000173748 | D140: =IF('DF raw data'!H145="","",'DF raw data'!H145) -> -2.62625e-05 | F140: -1.091806408e-05 | G140: 0.0001744777416 | H140: -2.63728025e-05 | J140: -0.0005867591906 | K140: -0.01123521091 | L140: 0.006725759042 | M140: 0.1329123554 | N140: 0.0006030525944
A141: =IF('DF raw data'!E146="","",'DF raw data'!E146) -> -260.5 | B141: =IF('DF raw data'!F146="","",'DF raw data'!F146) -> -1.71467e-05 | C141: =IF('DF raw data'!G146="","",'DF raw data'!G146) -> 0.000167915 | D141: =IF('DF raw data'!H146="","",'DF raw data'!H146) -> -3.45186e-05 | F141: -1.721871614e-05 | G141: 0.000168620243 | H141: -3.466357812e-05 | J141: -0.0005953685486 | K141: -0.01153289518 | L141: 0.006810069163 | M141: 0.13631739 | N141: 0.0006264183473
A142: =IF('DF raw data'!E147="","",'DF raw data'!E147) -> -260 | B142: =IF('DF raw data'!F147="","",'DF raw data'!F147) -> -2.18293e-05 | C142: =IF('DF raw data'!G147="","",'DF raw data'!G147) -> 0.000160321 | D142: =IF('DF raw data'!H147="","",'DF raw data'!H147) -> -2.84974e-05 | F142: -2.192098306e-05 | G142: 0.0001609943482 | H142: -2.861708908e-05 | J142: -0.0006063290402 | K142: -0.0118360597 | L142: 0.006890566337 | M142: 0.1397626731 | N142: 0.0006503421169
A143: =IF('DF raw data'!E148="","",'DF raw data'!E148) -> -259.5 | B143: =IF('DF raw data'!F148="","",'DF raw data'!F148) -> -2.37527e-05 | C143: =IF('DF raw data'!G148="","",'DF raw data'!G148) -> 0.000157122 | D143: =IF('DF raw data'!H148="","",'DF raw data'!H148) -> -2.62252e-05 | F143: -2.385246134e-05 | G143: 0.0001577819124 | H143: -2.633534584e-05 | J143: -0.0006182552708 | K143: -0.01214518734 | L143: 0.006969457294 | M143: 0.1432474018 | N143: 0.0006748199042
A144: =IF('DF raw data'!E149="","",'DF raw data'!E149) -> -259 | B144: =IF('DF raw data'!F149="","",'DF raw data'!F149) -> -2.06793e-05 | C144: =IF('DF raw data'!G149="","",'DF raw data'!G149) -> 0.000167677 | D144: =IF('DF raw data'!H149="","",'DF raw data'!H149) -> -2.30847e-05 | F144: -2.076615306e-05 | G144: 0.0001683812434 | H144: -2.318165574e-05 | J144: -0.0006286383474 | K144: -0.01245950651 | L144: 0.007053647915 | M144: 0.1467742257 | N144: 0.0006998944718
A145: =IF('DF raw data'!E150="","",'DF raw data'!E150) -> -258.5 | B145: =IF('DF raw data'!F150="","",'DF raw data'!F150) -> -1.48404e-05 | C145: =IF('DF raw data'!G150="","",'DF raw data'!G150) -> 0.000175492 | D145: =IF('DF raw data'!H150="","",'DF raw data'!H150) -> -3.35933e-05 | F145: -1.490272968e-05 | G145: 0.0001762290664 | H145: -3.373439186e-05 | J145: -0.0006360897122 | K145: -0.01277755137 | L145: 0.007141762448 | M145: 0.150345107 | N145: 0.0007255991623
A146: =IF('DF raw data'!E151="","",'DF raw data'!E151) -> -258 | B146: =IF('DF raw data'!F151="","",'DF raw data'!F151) -> -1.14467e-05 | C146: =IF('DF raw data'!G151="","",'DF raw data'!G151) -> 0.000180765 | D146: =IF('DF raw data'!H151="","",'DF raw data'!H151) -> -3.01198e-05 | F146: -1.149477614e-05 | G146: 0.000181524213 | H146: -3.024630316e-05 | J146: -0.0006418371003 | K146: -0.01309846992 | L146: 0.007232524555 | M146: 0.1539613692 | N146: 0.0007519598454
A147: =IF('DF raw data'!E152="","",'DF raw data'!E152) -> -257.5 | B147: =IF('DF raw data'!F152="","",'DF raw data'!F152) -> -2.58091e-05 | C147: =IF('DF raw data'!G152="","",'DF raw data'!G152) -> 0.000185511 | D147: =IF('DF raw data'!H152="","",'DF raw data'!H152) -> -1.70751e-05 | F147: -2.591749822e-05 | G147: 0.0001862901462 | H147: -1.714681542e-05 | J147: -0.0006547958494 | K147: -0.01342586784 | L147: 0.007325669628 | M147: 0.157624204 | N147: 0.000779006942
A148: =IF('DF raw data'!E153="","",'DF raw data'!E153) -> -257 | B148: =IF('DF raw data'!F153="","",'DF raw data'!F153) -> -1.42022e-05 | C148: =IF('DF raw data'!G153="","",'DF raw data'!G153) -> 0.000174804 | D148: =IF('DF raw data'!H153="","",'DF raw data'!H153) -> -3.0552e-05 | F148: -1.426184924e-05 | G148: 0.0001755381768 | H148: -3.06803184e-05 | J148: -0.000661926774 | K148: -0.01375683123 | L148: 0.007413438716 | M148: 0.1613309234 | N148: 0.0008067055523
A149: =IF('DF raw data'!E154="","",'DF raw data'!E154) -> -256.5 | B149: =IF('DF raw data'!F154="","",'DF raw data'!F154) -> -1.44559e-05 | C149: =IF('DF raw data'!G154="","",'DF raw data'!G154) -> 0.000172319 | D149: =IF('DF raw data'!H154="","",'DF raw data'!H154) -> -3.3643e-05 | F149: -1.451661478e-05 | G149: 0.0001730427398 | H149: -3.37843006e-05 | J149: -0.0006691850814 | K149: -0.01409142377 | L149: 0.007499960086 | M149: 0.1650809034 | N149: 0.0008350541573
A150: =IF('DF raw data'!E155="","",'DF raw data'!E155) -> -256 | B150: =IF('DF raw data'!F155="","",'DF raw data'!F155) -> -1.14377e-05 | C150: =IF('DF raw data'!G155="","",'DF raw data'!G155) -> 0.000167483 | D150: =IF('DF raw data'!H155="","",'DF raw data'!H155) -> -4.40455e-05 | F150: -1.148573834e-05 | G150: 0.0001681864286 | H150: -4.42304911e-05 | J150: -0.0006749279506 | K150: -0.01442888775 | L150: 0.007584053301 | M150: 0.1688729301 | N150: 0.0008640408534
A151: =IF('DF raw data'!E156="","",'DF raw data'!E156) -> -255.5 | B151: =IF('DF raw data'!F156="","",'DF raw data'!F156) -> -1.48446e-05 | C151: =IF('DF raw data'!G156="","",'DF raw data'!G156) -> 0.000163984 | D151: =IF('DF raw data'!H156="","",'DF raw data'!H156) -> -2.70422e-05 | F151: -1.490694732e-05 | G151: 0.0001646727328 | H151: -2.715577724e-05 | J151: -0.0006823814242 | K151: -0.01477007846 | L151: 0.007666389667 | M151: 0.1727061249 | N151: 0.0008936604408
A152: =IF('DF raw data'!E157="","",'DF raw data'!E157) -> -255 | B152: =IF('DF raw data'!F157="","",'DF raw data'!F157) -> -1.53559e-05 | C152: =IF('DF raw data'!G157="","",'DF raw data'!G157) -> 0.000171637 | D152: =IF('DF raw data'!H157="","",'DF raw data'!H157) -> -3.01666e-05 | F152: -1.542039478e-05 | G152: 0.0001723578754 | H152: -3.029329972e-05 | J152: -0.0006900916216 | K152: -0.01511512427 | L152: 0.007752568605 | M152: 0.1765824092 | N152: 0.0009239497141
A153: =IF('DF raw data'!E158="","",'DF raw data'!E158) -> -254.5 | B153: =IF('DF raw data'!F158="","",'DF raw data'!F158) -> -1.4967e-05 | C153: =IF('DF raw data'!G158="","",'DF raw data'!G158) -> 0.000179073 | D153: =IF('DF raw data'!H158="","",'DF raw data'!H158) -> -3.58914e-05 | F153: -1.50298614e-05 | G153: 0.0001798251066 | H153: -3.604214388e-05 | J153: -0.0006976065523 | K153: -0.01546392754 | L153: 0.007842481158 | M153: 0.1805036498 | N153: 0.0009549452969
A154: =IF('DF raw data'!E159="","",'DF raw data'!E159) -> -254 | B154: =IF('DF raw data'!F159="","",'DF raw data'!F159) -> -3.9463e-06 | C154: =IF('DF raw data'!G159="","",'DF raw data'!G159) -> 0.000182464 | D154: =IF('DF raw data'!H159="","",'DF raw data'!H159) -> -3.39663e-05 | F154: -3.96287446e-06 | G154: 0.0001832303488 | H154: -3.410895846e-05 | J154: -0.0006995879896 | K154: -0.01581372154 | L154: 0.007934096332 | M154: 0.184470698 | N154: 0.0009866649508
A155: =IF('DF raw data'!E160="","",'DF raw data'!E160) -> -253.5 | B155: =IF('DF raw data'!F160="","",'DF raw data'!F160) -> -1.65736e-05 | C155: =IF('DF raw data'!G160="","",'DF raw data'!G160) -> 0.000188802 | D155: =IF('DF raw data'!H160="","",'DF raw data'!H160) -> -2.8977e-05 | F155: -1.664320912e-05 | G155: 0.0001895949684 | H155: -2.90987034e-05 | J155: -0.0007079095941 | K155: -0.01616767634 | L155: 0.008028893817 | M155: 0.1884851449 | N155: 0.001019147087
A156: =IF('DF raw data'!E161="","",'DF raw data'!E161) -> -253 | B156: =IF('DF raw data'!F161="","",'DF raw data'!F161) -> -7.98781e-06 | C156: =IF('DF raw data'!G161="","",'DF raw data'!G161) -> 0.000182278 | D156: =IF('DF raw data'!H161="","",'DF raw data'!H161) -> -2.74772e-05 | F156: -8.021358802e-06 | G156: 0.0001830435676 | H156: -2.759260424e-05 | J156: -0.0007119202735 | K156: -0.01652363647 | L156: 0.0081204156 | M156: 0.1925453527 | N156: 0.001052371077
A157: =IF('DF raw data'!E162="","",'DF raw data'!E162) -> -252.5 | B157: =IF('DF raw data'!F162="","",'DF raw data'!F162) -> -1.06146e-05 | C157: =IF('DF raw data'!G162="","",'DF raw data'!G162) -> 0.000176449 | D157: =IF('DF raw data'!H162="","",'DF raw data'!H162) -> -2.78015e-05 | F157: -1.065918132e-05 | G157: 0.0001771900858 | H157: -2.79182663e-05 | J157: -0.0007172498642 | K157: -0.01688226141 | L157: 0.008209010643 | M157: 0.196649858 | N157: 0.001086322228
A158: =IF('DF raw data'!E163="","",'DF raw data'!E163) -> -252 | B158: =IF('DF raw data'!F163="","",'DF raw data'!F163) -> -1.21497e-05 | C158: =IF('DF raw data'!G163="","",'DF raw data'!G163) -> 0.000172323 | D158: =IF('DF raw data'!H163="","",'DF raw data'!H163) -> -3.29416e-05 | F158: -1.220072874e-05 | G158: 0.0001730467566 | H158: -3.307995472e-05 | J158: -0.0007233502285 | K158: -0.01724393652 | L158: 0.008295534022 | M158: 0.200797625 | N158: 0.001120991788
A159: =IF('DF raw data'!E164="","",'DF raw data'!E164) -> -251.5 | B159: =IF('DF raw data'!F164="","",'DF raw data'!F164) -> -9.97357e-06 | C159: =IF('DF raw data'!G164="","",'DF raw data'!G164) -> 0.000177748 | D159: =IF('DF raw data'!H164="","",'DF raw data'!H164) -> -2.81853e-05 | F159: -1.001545899e-05 | G159: 0.0001784945416 | H159: -2.830367826e-05 | J159: -0.000728357958 | K159: -0.0176081155 | L159: 0.008384781292 | M159: 0.2049900157 | N159: 0.00115640932
A160: =IF('DF raw data'!E165="","",'DF raw data'!E165) -> -251 | B160: =IF('DF raw data'!F165="","",'DF raw data'!F165) -> -1.95826e-05 | C160: =IF('DF raw data'!G165="","",'DF raw data'!G165) -> 0.000172513 | D160: =IF('DF raw data'!H165="","",'DF raw data'!H165) -> -3.45998e-05 | F160: -1.966484692e-05 | G160: 0.0001732375546 | H160: -3.474511916e-05 | J160: -0.0007381903815 | K160: -0.01797721069 | L160: 0.00847140007 | M160: 0.2092257157 | N160: 0.001192564092
A161: =IF('DF raw data'!E166="","",'DF raw data'!E166) -> -250.5 | B161: =IF('DF raw data'!F166="","",'DF raw data'!F166) -> -1.08668e-05 | C161: =IF('DF raw data'!G166="","",'DF raw data'!G166) -> 0.00016848 | D161: =IF('DF raw data'!H166="","",'DF raw data'!H166) -> -3.41925e-05 | F161: -1.091244056e-05 | G161: 0.000169187616 | H161: -3.43361085e-05 | J161: -0.0007436466018 | K161: -0.01834903399 | L161: 0.008555993878 | M161: 0.2135037126 | N161: 0.001229443113
A162: =IF('DF raw data'!E167="","",'DF raw data'!E167) -> -250 | B162: =IF('DF raw data'!F167="","",'DF raw data'!F167) -> -1.19014e-05 | C162: =IF('DF raw data'!G167="","",'DF raw data'!G167) -> 0.000177825 | D162: =IF('DF raw data'!H167="","",'DF raw data'!H167) -> -2.05545e-05 | F162: -1.195138588e-05 | G162: 0.000178571865 | H162: -2.06408289e-05 | J162: -0.0007496222947 | K162: -0.01872384514 | L162: 0.00864527981 | M162: 0.2178263525 | N162: 0.001267094511
A163: =IF('DF raw data'!E168="","",'DF raw data'!E168) -> -249.5 | B163: =IF('DF raw data'!F168="","",'DF raw data'!F168) -> -2.21423e-05 | C163: =IF('DF raw data'!G168="","",'DF raw data'!G168) -> 0.000182514 | D163: =IF('DF raw data'!H168="","",'DF raw data'!H168) -> -3.89642e-05 | F163: -2.223529766e-05 | G163: 0.0001832805588 | H163: -3.912784964e-05 | J163: -0.0007607399436 | K163: -0.01910421511 | L163: 0.00873692009 | M163: 0.2221948126 | N163: 0.00130555076
A164: =IF('DF raw data'!E169="","",'DF raw data'!E169) -> -249 | B164: =IF('DF raw data'!F169="","",'DF raw data'!F169) -> -2.44546e-05 | C164: =IF('DF raw data'!G169="","",'DF raw data'!G169) -> 0.000183351 | D164: =IF('DF raw data'!H169="","",'DF raw data'!H169) -> -3.1842e-05 | F164: -2.455730932e-05 | G164: 0.0001841210742 | H164: -3.19757364e-05 | J164: -0.0007730185982 | K164: -0.01949072441 | L164: 0.008828980627 | M164: 0.2266093029 | N164: 0.001344824988
A165: =IF('DF raw data'!E170="","",'DF raw data'!E170) -> -248.5 | B165: =IF('DF raw data'!F170="","",'DF raw data'!F170) -> -7.34494e-06 | C165: =IF('DF raw data'!G170="","",'DF raw data'!G170) -> 0.000179944 | D165: =IF('DF raw data'!H170="","",'DF raw data'!H170) -> -3.02014e-05 | F165: -7.375788748e-06 | G165: 0.0001806997648 | H165: -3.032824588e-05 | J165: -0.0007767064926 | K165: -0.01987907765 | L165: 0.008919330509 | M165: 0.2310689682 | N165: 0.001384903853
A166: =IF('DF raw data'!E171="","",'DF raw data'!E171) -> -248 | B166: =IF('DF raw data'!F171="","",'DF raw data'!F171) -> -1.63229e-05 | C166: =IF('DF raw data'!G171="","",'DF raw data'!G171) -> 0.000186671 | D166: =IF('DF raw data'!H171="","",'DF raw data'!H171) -> -2.08638e-05 | F166: -1.639145618e-05 | G166: 0.0001874550182 | H166: -2.095142796e-05 | J166: -0.0007849022207 | K166: -0.02027152877 | L166: 0.009013058018 | M166: 0.2355754972 | N166: 0.001425829496
A167: =IF('DF raw data'!E172="","",'DF raw data'!E172) -> -247.5 | B167: =IF('DF raw data'!F172="","",'DF raw data'!F172) -> -1.465e-05 | C167: =IF('DF raw data'!G172="","",'DF raw data'!G172) -> 0.000183845 | D167: =IF('DF raw data'!H172="","",'DF raw data'!H172) -> -3.06902e-05 | F167: -1.471153e-05 | G167: 0.000184617149 | H167: -3.081909884e-05 | J167: -0.0007922579857 | K167: -0.02066765776 | L167: 0.009105366593 | M167: 0.2401281805 | N167: 0.001467597183
A168: =IF('DF raw data'!E173="","",'DF raw data'!E173) -> -247 | B168: =IF('DF raw data'!F173="","",'DF raw data'!F173) -> -1.13243e-05 | C168: =IF('DF raw data'!G173="","",'DF raw data'!G173) -> 0.000179205 | D168: =IF('DF raw data'!H173="","",'DF raw data'!H173) -> -2.11467e-05 | F168: -1.137186206e-05 | G168: 0.000179957661 | H168: -2.123551614e-05 | J168: -0.0007979439167 | K168: -0.02106662972 | L168: 0.009195345423 | M168: 0.2447258532 | N168: 0.001510192729
A169: =IF('DF raw data'!E174="","",'DF raw data'!E174) -> -246.5 | B169: =IF('DF raw data'!F174="","",'DF raw data'!F174) -> -6.1908e-06 | C169: =IF('DF raw data'!G174="","",'DF raw data'!G174) -> 0.000181333 | D169: =IF('DF raw data'!H174="","",'DF raw data'!H174) -> -3.12998e-05 | F169: -6.21680136e-06 | G169: 0.0001820945986 | H169: -3.143125916e-05 | J169: -0.0008010523174 | K169: -0.02146715588 | L169: 0.009286392723 | M169: 0.2493690495 | N169: 0.001553632116
A170: =IF('DF raw data'!E175="","",'DF raw data'!E175) -> -246 | B170: =IF('DF raw data'!F175="","",'DF raw data'!F175) -> -1.2981e-05 | C170: =IF('DF raw data'!G175="","",'DF raw data'!G175) -> 0.000182946 | D170: =IF('DF raw data'!H175="","",'DF raw data'!H175) -> -3.58115e-05 | F170: -1.30355202e-05 | G170: 0.0001837143732 | H170: -3.59619083e-05 | J170: -0.0008075700775 | K170: -0.02187094091 | L170: 0.009378249909 | M170: 0.2540581745 | N170: 0.001597933987
A171: =IF('DF raw data'!E176="","",'DF raw data'!E176) -> -245.5 | B171: =IF('DF raw data'!F176="","",'DF raw data'!F176) -> -1.63792e-05 | C171: =IF('DF raw data'!G176="","",'DF raw data'!G176) -> 0.000185624 | D171: =IF('DF raw data'!H176="","",'DF raw data'!H176) -> -3.24216e-05 | F171: -1.644799264e-05 | G171: 0.0001864036208 | H171: -3.255777072e-05 | J171: -0.0008157940738 | K171: -0.02227883795 | L171: 0.00947145172 | M171: 0.2587939004 | N171: 0.001643120946
A172: =IF('DF raw data'!E177="","",'DF raw data'!E177) -> -245 | B172: =IF('DF raw data'!F177="","",'DF raw data'!F177) -> -2.13785e-05 | C172: =IF('DF raw data'!G177="","",'DF raw data'!G177) -> 0.000183342 | D172: =IF('DF raw data'!H177="","",'DF raw data'!H177) -> -3.20193e-05 | F172: -2.14682897e-05 | G172: 0.0001841120364 | H172: -3.215378106e-05 | J172: -0.0008265282187 | K172: -0.02269210206 | L172: 0.009563507738 | M172: 0.2635756542 | N172: 0.00168919286
A173: =IF('DF raw data'!E178="","",'DF raw data'!E178) -> -244.5 | B173: =IF('DF raw data'!F178="","",'DF raw data'!F178) -> -2.32342e-05 | C173: =IF('DF raw data'!G178="","",'DF raw data'!G178) -> 0.000189484 | D173: =IF('DF raw data'!H178="","",'DF raw data'!H178) -> -3.53501e-05 | F173: -2.333178364e-05 | G173: 0.0001902798328 | H173: -3.549857042e-05 | J173: -0.0008381941105 | K173: -0.02311119912 | L173: 0.009658647654 | M173: 0.268404978 | N173: 0.001736188882
A174: =IF('DF raw data'!E179="","",'DF raw data'!E179) -> -244 | B174: =IF('DF raw data'!F179="","",'DF raw data'!F179) -> -1.61304e-05 | C174: =IF('DF raw data'!G179="","",'DF raw data'!G179) -> 0.000190187 | D174: =IF('DF raw data'!H179="","",'DF raw data'!H179) -> -2.15034e-05 | F174: -1.619814768e-05 | G174: 0.0001909857854 | H174: -2.159371428e-05 | J174: -0.0008462931843 | K174: -0.02353434571 | L174: 0.009754140547 | M174: 0.2732820483 | N174: 0.001784118617
A175: =IF('DF raw data'!E180="","",'DF raw data'!E180) -> -243.5 | B175: =IF('DF raw data'!F180="","",'DF raw data'!F180) -> -2.04871e-05 | C175: =IF('DF raw data'!G180="","",'DF raw data'!G180) -> 0.000177854 | D175: =IF('DF raw data'!H180="","",'DF raw data'!H180) -> -2.22181e-05 | F175: -2.057314582e-05 | G175: 0.0001786009868 | H175: -2.231141602e-05 | J175: -0.0008565797572 | K175: -0.02396263559 | L175: 0.00984344104 | M175: 0.2782037688 | N175: 0.001832932147
A176: =IF('DF raw data'!E181="","",'DF raw data'!E181) -> -243 | B176: =IF('DF raw data'!F181="","",'DF raw data'!F181) -> -1.2409e-05 | C176: =IF('DF raw data'!G181="","",'DF raw data'!G181) -> 0.000174484 | D176: =IF('DF raw data'!H181="","",'DF raw data'!H181) -> -2.82663e-05 | F176: -1.24611178e-05 | G176: 0.0001752168328 | H176: -2.838501846e-05 | J176: -0.0008628103161 | K176: -0.02439404074 | L176: 0.009931049457 | M176: 0.2831692936 | N176: 0.00188261724
A177: =IF('DF raw data'!E182="","",'DF raw data'!E182) -> -242.5 | B177: =IF('DF raw data'!F182="","",'DF raw data'!F182) -> -8.17448e-06 | C177: =IF('DF raw data'!G182="","",'DF raw data'!G182) -> 0.000174034 | D177: =IF('DF raw data'!H182="","",'DF raw data'!H182) -> -3.54067e-05 | F177: -8.208812816e-06 | G177: 0.0001747649428 | H177: -3.555540814e-05 | J177: -0.0008669147225 | K177: -0.02482749811 | L177: 0.01001843193 | M177: 0.2881785095 | N177: 0.001933177499
A178: =IF('DF raw data'!E183="","",'DF raw data'!E183) -> -242 | B178: =IF('DF raw data'!F183="","",'DF raw data'!F183) -> -1.02962e-05 | C178: =IF('DF raw data'!G183="","",'DF raw data'!G183) -> 0.000175491 | D178: =IF('DF raw data'!H183="","",'DF raw data'!H183) -> -2.51856e-05 | F178: -1.033944404e-05 | G178: 0.0001762280622 | H178: -2.529137952e-05 | J178: -0.0008720844446 | K178: -0.02526354033 | L178: 0.01010654596 | M178: 0.2932317825 | N178: 0.001984628901
A179: =IF('DF raw data'!E184="","",'DF raw data'!E184) -> -241.5 | B179: =IF('DF raw data'!F184="","",'DF raw data'!F184) -> -1.68312e-05 | C179: =IF('DF raw data'!G184="","",'DF raw data'!G184) -> 0.000180599 | D179: =IF('DF raw data'!H184="","",'DF raw data'!H184) -> -2.72201e-05 | F179: -1.690189104e-05 | G179: 0.0001813575158 | H179: -2.733442442e-05 | J179: -0.0008805353901 | K179: -0.02570380802 | L179: 0.01019722472 | M179: 0.2983303949 | N179: 0.002037008268
A180: =IF('DF raw data'!E185="","",'DF raw data'!E185) -> -241 | B180: =IF('DF raw data'!F185="","",'DF raw data'!F185) -> -1.46518e-05 | C180: =IF('DF raw data'!G185="","",'DF raw data'!G185) -> 0.000184988 | D180: =IF('DF raw data'!H185="","",'DF raw data'!H185) -> -2.86206e-05 | F180: -1.471333756e-05 | G180: 0.0001857649496 | H180: -2.874080652e-05 | J180: -0.0008878920589 | K180: -0.02614775405 | L180: 0.01029010719 | M180: 0.3034754485 | N180: 0.002090345597
A181: =IF('DF raw data'!E186="","",'DF raw data'!E186) -> -240.5 | B181: =IF('DF raw data'!F186="","",'DF raw data'!F186) -> -1.70845e-05 | C181: =IF('DF raw data'!G186="","",'DF raw data'!G186) -> 0.00018097 | D181: =IF('DF raw data'!H186="","",'DF raw data'!H186) -> -3.17342e-05 | F181: -1.71562549e-05 | G181: 0.000181730074 | H181: -3.186748364e-05 | J181: -0.0008964701863 | K181: -0.02659598915 | L181: 0.01038097223 | M181: 0.3086659346 | N181: 0.002144629719
A182: =IF('DF raw data'!E187="","",'DF raw data'!E187) -> -240 | B182: =IF('DF raw data'!F187="","",'DF raw data'!F187) -> -3.00952e-05 | C182: =IF('DF raw data'!G187="","",'DF raw data'!G187) -> 0.000185355 | D182: =IF('DF raw data'!H187="","",'DF raw data'!H187) -> -3.01083e-05 | F182: -3.022159984e-05 | G182: 0.000186133491 | H182: -3.023475486e-05 | J182: -0.0009115809862 | K182: -0.02705177964 | L182: 0.01047403897 | M182: 0.3139029541 | N182: 0.002199897955
A183: =IF('DF raw data'!E188="","",'DF raw data'!E188) -> -239.5 | B183: =IF('DF raw data'!F188="","",'DF raw data'!F188) -> -1.34934e-05 | C183: =IF('DF raw data'!G188="","",'DF raw data'!G188) -> 0.000187998 | D183: =IF('DF raw data'!H188="","",'DF raw data'!H188) -> -3.54381e-05 | F183: -1.355007228e-05 | G183: 0.0001887875916 | H183: -3.558694002e-05 | J183: -0.0009183560224 | K183: -0.02751095765 | L183: 0.01056843277 | M183: 0.3191871705 | N183: 0.002256165529
A184: =IF('DF raw data'!E189="","",'DF raw data'!E189) -> -239 | B184: =IF('DF raw data'!F189="","",'DF raw data'!F189) -> -3.30372e-05 | C184: =IF('DF raw data'!G189="","",'DF raw data'!G189) -> 0.000185565 | D184: =IF('DF raw data'!H189="","",'DF raw data'!H189) -> -3.94702e-05 | F184: -3.317595624e-05 | G184: 0.000186344373 | H184: -3.963597484e-05 | J184: -0.0009349440005 | K184: -0.02797842965 | L184: 0.01066160496 | M184: 0.3245179729 | N184: 0.0023134375
A185: =IF('DF raw data'!E190="","",'DF raw data'!E190) -> -238.5 | B185: =IF('DF raw data'!F190="","",'DF raw data'!F190) -> -1.47168e-05 | C185: =IF('DF raw data'!G190="","",'DF raw data'!G190) -> 0.000178109 | D185: =IF('DF raw data'!H190="","",'DF raw data'!H190) -> -2.66537e-05 | F185: -1.477861056e-05 | G185: 0.0001788570578 | H185: -2.676564554e-05 | J185: -0.0009423333058 | K185: -0.0284495963 | L185: 0.01075103349 | M185: 0.3298934897 | N185: 0.002371673856
A186: =IF('DF raw data'!E191="","",'DF raw data'!E191) -> -238 | B186: =IF('DF raw data'!F191="","",'DF raw data'!F191) -> -1.69548e-05 | C186: =IF('DF raw data'!G191="","",'DF raw data'!G191) -> 0.000169554 | D186: =IF('DF raw data'!H191="","",'DF raw data'!H191) -> -3.51836e-05 | F186: -1.702601016e-05 | G186: 0.0001702661268 | H186: -3.533137112e-05 | J186: -0.0009508463108 | K186: -0.02892501946 | L186: 0.01083616655 | M186: 0.3353115729 | N186: 0.002430837163
A187: =IF('DF raw data'!E192="","",'DF raw data'!E192) -> -237.5 | B187: =IF('DF raw data'!F192="","",'DF raw data'!F192) -> -2.59224e-05 | C187: =IF('DF raw data'!G192="","",'DF raw data'!G192) -> 0.000171404 | D187: =IF('DF raw data'!H192="","",'DF raw data'!H192) -> -3.99738e-05 | F187: -2.603127408e-05 | G187: 0.0001721238968 | H187: -4.014168996e-05 | J187: -0.0009638619479 | K187: -0.02940695043 | L187: 0.0109222285 | M187: 0.3407726872 | N187: 0.002490949216
A188: =IF('DF raw data'!E193="","",'DF raw data'!E193) -> -237 | B188: =IF('DF raw data'!F193="","",'DF raw data'!F193) -> -3.34229e-05 | C188: =IF('DF raw data'!G193="","",'DF raw data'!G193) -> 0.000175534 | D188: =IF('DF raw data'!H193="","",'DF raw data'!H193) -> -3.75498e-05 | F188: -3.356327618e-05 | G188: 0.0001762712428 | H188: -3.770750916e-05 | J188: -0.000980643586 | K188: -0.02989727223 | L188: 0.01101036412 | M188: 0.3462778693 | N188: 0.002552044106
A189: =IF('DF raw data'!E194="","",'DF raw data'!E194) -> -236.5 | B189: =IF('DF raw data'!F194="","",'DF raw data'!F194) -> -1.36179e-05 | C189: =IF('DF raw data'!G194="","",'DF raw data'!G194) -> 0.000181728 | D189: =IF('DF raw data'!H194="","",'DF raw data'!H194) -> -4.10705e-05 | F189: -1.367509518e-05 | G189: 0.0001824912576 | H189: -4.12429961e-05 | J189: -0.0009874811336 | K189: -0.03039101279 | L189: 0.01110160975 | M189: 0.3518286741 | N189: 0.002614154535
A190: =IF('DF raw data'!E195="","",'DF raw data'!E195) -> -236 | B190: =IF('DF raw data'!F195="","",'DF raw data'!F195) -> -9.5807e-06 | C190: =IF('DF raw data'!G195="","",'DF raw data'!G195) -> 0.000176312 | D190: =IF('DF raw data'!H195="","",'DF raw data'!H195) -> -4.17161e-05 | F190: -9.62093894e-06 | G190: 0.0001770525104 | H190: -4.189130762e-05 | J190: -0.000992291603 | K190: -0.03088715859 | L190: 0.011190136 | M190: 0.3574237421 | N190: 0.002677256428
A191: =IF('DF raw data'!E196="","",'DF raw data'!E196) -> -235.5 | B191: =IF('DF raw data'!F196="","",'DF raw data'!F196) -> -1.4451e-05 | C191: =IF('DF raw data'!G196="","",'DF raw data'!G196) -> 0.000177719 | D191: =IF('DF raw data'!H196="","",'DF raw data'!H196) -> -4.12122e-05 | F191: -1.45116942e-05 | G191: 0.0001784654198 | H191: -4.138529124e-05 | J191: -0.0009995474501 | K191: -0.03138693232 | L191: 0.01127936871 | M191: 0.3630634265 | N191: 0.002741368055
A192: =IF('DF raw data'!E197="","",'DF raw data'!E197) -> -235 | B192: =IF('DF raw data'!F197="","",'DF raw data'!F197) -> -2.50227e-05 | C192: =IF('DF raw data'!G197="","",'DF raw data'!G197) -> 0.000172405 | D192: =IF('DF raw data'!H197="","",'DF raw data'!H197) -> -4.53371e-05 | F192: =(1-$G$1*($B$49-$G$2))*B192 -> -2.512779534e-05 | G192: 0.000173129101 | H192: -4.552751582e-05 | J192: =F192*$G$3+J191 -> -0.001012111348 | K192: =J192*$G$3+K191 -> -0.03189298799 | L192: =G192*$G$3+L191 -> 0.01136593326 | M192: =L192*$G$3+M191 -> 0.3687463931 | N192: =(J192^2+L192^2)*$G$3+N191 -> 0.002806472459
A193: =IF('DF raw data'!E198="","",'DF raw data'!E198) -> -234.5 | B193: =IF('DF raw data'!F198="","",'DF raw data'!F198) -> -1.96394e-05 | C193: =IF('DF raw data'!G198="","",'DF raw data'!G198) -> 0.000172972 | D193: =IF('DF raw data'!H198="","",'DF raw data'!H198) -> -4.4586e-05 | F193: -1.972188548e-05 | G193: 0.0001736984824 | H193: -4.47732612e-05 | J193: -0.001021972291 | K193: -0.03240397414 | L193: 0.0114527825 | M193: 0.3744727844 | N193: 0.002872577786
A194: =IF('DF raw data'!E199="","",'DF raw data'!E199) -> -234 | B194: =IF('DF raw data'!F199="","",'DF raw data'!F199) -> -2.22722e-05 | C194: =IF('DF raw data'!G199="","",'DF raw data'!G199) -> 0.00017628 | D194: =IF('DF raw data'!H199="","",'DF raw data'!H199) -> -3.73921e-05 | F194: -2.236574324e-05 | G194: 0.000177020376 | H194: -3.754914682e-05 | J194: -0.001033155162 | K194: -0.03292055172 | L194: 0.01154129269 | M194: 0.3802434307 | N194: 0.002939712209
A195: =IF('DF raw data'!E200="","",'DF raw data'!E200) -> -233.5 | B195: =IF('DF raw data'!F200="","",'DF raw data'!F200) -> -1.63149e-05 | C195: =IF('DF raw data'!G200="","",'DF raw data'!G200) -> 0.000166099 | D195: =IF('DF raw data'!H200="","",'DF raw data'!H200) -> -3.25618e-05 | F195: -1.638342258e-05 | G195: 0.0001667966158 | H195: -3.269855956e-05 | J195: -0.001041346873 | K195: -0.03344122516 | L195: 0.011624691 | M195: 0.3860557762 | N195: 0.003007821132
A196: =IF('DF raw data'!E201="","",'DF raw data'!E201) -> -233 | B196: =IF('DF raw data'!F201="","",'DF raw data'!F201) -> -1.83644e-05 | C196: =IF('DF raw data'!G201="","",'DF raw data'!G201) -> 0.000182742 | D196: =IF('DF raw data'!H201="","",'DF raw data'!H201) -> -3.53229e-05 | F196: -1.844153048e-05 | G196: 0.0001835095164 | H196: -3.547125618e-05 | J196: -0.001050567639 | K196: -0.03396650897 | L196: 0.01171644576 | M196: 0.3919139991 | N196: 0.003077010528
A197: =IF('DF raw data'!E202="","",'DF raw data'!E202) -> -232.5 | B197: =IF('DF raw data'!F202="","",'DF raw data'!F202) -> -1.55429e-05 | C197: =IF('DF raw data'!G202="","",'DF raw data'!G202) -> 0.000185511 | D197: =IF('DF raw data'!H202="","",'DF raw data'!H202) -> -3.71732e-05 | F197: -1.560818018e-05 | G197: 0.0001862901462 | H197: -3.732932744e-05 | J197: -0.001058371729 | K197: -0.03449569484 | L197: 0.01180959083 | M197: 0.3978187945 | N197: 0.003147303821
A198: =IF('DF raw data'!E203="","",'DF raw data'!E203) -> -232 | B198: =IF('DF raw data'!F203="","",'DF raw data'!F203) -> -1.79857e-05 | C198: =IF('DF raw data'!G203="","",'DF raw data'!G203) -> 0.000182891 | D198: =IF('DF raw data'!H203="","",'DF raw data'!H203) -> -2.62688e-05 | F198: -1.806123994e-05 | G198: 0.0001836591422 | H198: -2.637912896e-05 | J198: -0.001067402349 | K198: -0.03502939601 | L198: 0.0119014204 | M198: 0.4037695047 | N198: 0.003218695399
A199: =IF('DF raw data'!E204="","",'DF raw data'!E204) -> -231.5 | B199: =IF('DF raw data'!F204="","",'DF raw data'!F204) -> -2.37532e-05 | C199: =IF('DF raw data'!G204="","",'DF raw data'!G204) -> 0.00017351 | D199: =IF('DF raw data'!H204="","",'DF raw data'!H204) -> -2.56251e-05 | F199: -2.385296344e-05 | G199: 0.000174238742 | H199: -2.573272542e-05 | J199: -0.00107932883 | K199: -0.03556906043 | L199: 0.01198853977 | M199: 0.4097637746 | N199: 0.003291140418
A200: =IF('DF raw data'!E205="","",'DF raw data'!E205) -> -231 | B200: =IF('DF raw data'!F205="","",'DF raw data'!F205) -> -2.2728e-06 | C200: =IF('DF raw data'!G205="","",'DF raw data'!G205) -> 0.000173186 | D200: =IF('DF raw data'!H205="","",'DF raw data'!H205) -> -4.48684e-05 | F200: -2.28234576e-06 | G200: 0.0001739133812 | H200: -4.505684728e-05 | J200: -0.001080470003 | K200: -0.03610929543 | L200: 0.01207549646 | M200: 0.4158015228 | N200: 0.003364632933
A201: =IF('DF raw data'!E206="","",'DF raw data'!E206) -> -230.5 | B201: =IF('DF raw data'!F206="","",'DF raw data'!F206) -> -2.30412e-05 | C201: =IF('DF raw data'!G206="","",'DF raw data'!G206) -> 0.000176579 | D201: =IF('DF raw data'!H206="","",'DF raw data'!H206) -> -3.63e-05 | F201: -2.313797304e-05 | G201: 0.0001773206318 | H201: -3.645246e-05 | J201: -0.00109203899 | K201: -0.03665531493 | L201: 0.01216415678 | M201: 0.4218836012 | N201: 0.003439212562
... 1061 more rows

Sheet 10 x=0
A1: =IF('DF raw data'!I1="","",'DF raw data'!I1) -> Number of header lines | B1: =IF('DF raw data'!J1="","",'DF raw data'!J1) -> 54 | C1: =IF('DF raw data'!K1="","",'DF raw data'!K1) ->  | D1: =IF('DF raw data'!L1="","",'DF raw data'!L1) ->  | F1: T_coeff | G1: -0.001 | H1: /degC | J1: IBy total | K1: =J1262*1000 -> -2.302608514 | L1: muTm | M1: =L1262*1000 -> 36.0415487 | R1: DF ref | S1: ='10 x=-2'!S1 -> 1
A2: =IF('DF raw data'!I2="","",'DF raw data'!I2) -> Measured by | B2: =IF('DF raw data'!J2="","",'DF raw data'!J2) -> Danfysik | C2: =IF('DF raw data'!K2="","",'DF raw data'!K2) ->  | D2: =IF('DF raw data'!L2="","",'DF raw data'!L2) ->  | F2: Tcorr | G2: 20 | H2: degC | J2: JBy total | K2: =K1262 -> -2.066579669 | L2: muTm^2 | M2: =M1262 -> 15.0174039
A3: =IF('DF raw data'!I3="","",'DF raw data'!I3) -> Operator | B3: =IF('DF raw data'!J3="","",'DF raw data'!J3) -> PMHA | C3: =IF('DF raw data'!K3="","",'DF raw data'!K3) ->  | D3: =IF('DF raw data'!L3="","",'DF raw data'!L3) ->  | F3: Step | G3: =A63-A62 -> 0.5 | H3: mm | J3: PI total | K3: =N1262 -> 10700.83196 | L3: T^2mm^3
A4: =IF('DF raw data'!I4="","",'DF raw data'!I4) -> Data-time | B4: =IF('DF raw data'!J4="","",'DF raw data'!J4) -> 03-09-2024, 11:25:54 | C4: =IF('DF raw data'!K4="","",'DF raw data'!K4) ->  | D4: =IF('DF raw data'!L4="","",'DF raw data'!L4) -> 
A5: =IF('DF raw data'!I5="","",'DF raw data'!I5) -> Project | B5: =IF('DF raw data'!J5="","",'DF raw data'!J5) -> 504314 | C5: =IF('DF raw data'!K5="","",'DF raw data'!K5) ->  | D5: =IF('DF raw data'!L5="","",'DF raw data'!L5) -> 
A6: =IF('DF raw data'!I6="","",'DF raw data'!I6) -> Magnet type | B6: =IF('DF raw data'!J6="","",'DF raw data'!J6) -> Dipole | C6: =IF('DF raw data'!K6="","",'DF raw data'!K6) ->  | D6: =IF('DF raw data'!L6="","",'DF raw data'!L6) -> 
A7: =IF('DF raw data'!I7="","",'DF raw data'!I7) -> Magnet nr. | B7: =IF('DF raw data'!J7="","",'DF raw data'!J7) -> 2410090 | C7: =IF('DF raw data'!K7="","",'DF raw data'!K7) ->  | D7: =IF('DF raw data'!L7="","",'DF raw data'!L7) -> 
A8: =IF('DF raw data'!I8="","",'DF raw data'!I8) -> Meas. number | B8: =IF('DF raw data'!J8="","",'DF raw data'!J8) -> 313 | C8: =IF('DF raw data'!K8="","",'DF raw data'!K8) ->  | D8: =IF('DF raw data'!L8="","",'DF raw data'!L8) -> 
A9: =IF('DF raw data'!I9="","",'DF raw data'!I9) -> Add. info | B9: =IF('DF raw data'!J9="","",'DF raw data'!J9) -> X-alignment scan 3) | C9: =IF('DF raw data'!K9="","",'DF raw data'!K9) ->  | D9: =IF('DF raw data'!L9="","",'DF raw data'!L9) -> 
A10: =IF('DF raw data'!I10="","",'DF raw data'!I10) -> Device | B10: =IF('DF raw data'!J10="","",'DF raw data'!J10) -> (HAL) HALL-PROBE | C10: =IF('DF raw data'!K10="","",'DF raw data'!K10) ->  | D10: =IF('DF raw data'!L10="","",'DF raw data'!L10) -> 
A11: =IF('DF raw data'!I11="","",'DF raw data'!I11) -> Goal | B11: =IF('DF raw data'!J11="","",'DF raw data'!J11) -> (AXI) AXis Integral (Line, EFB) | C11: =IF('DF raw data'!K11="","",'DF raw data'!K11) ->  | D11: =IF('DF raw data'!L11="","",'DF raw data'!L11) -> 
A12: =IF('DF raw data'!I12="","",'DF raw data'!I12) -> Power supply mode | B12: =IF('DF raw data'!J12="","",'DF raw data'!J12) -> (PM) Permanent Magnet (no MPS in use) | C12: =IF('DF raw data'!K12="","",'DF raw data'!K12) ->  | D12: =IF('DF raw data'!L12="","",'DF raw data'!L12) -> 
A13: =IF('DF raw data'!I13="","",'DF raw data'!I13) -> Data format | B13: =IF('DF raw data'!J13="","",'DF raw data'!J13) -> Raw data text file | C13: =IF('DF raw data'!K13="","",'DF raw data'!K13) ->  | D13: =IF('DF raw data'!L13="","",'DF raw data'!L13) -> 
A14: =IF('DF raw data'!I14="","",'DF raw data'!I14) -> Direction of the pos. x-axis | B14: =IF('DF raw data'!J14="","",'DF raw data'!J14) -> See test program | C14: =IF('DF raw data'!K14="","",'DF raw data'!K14) ->  | D14: =IF('DF raw data'!L14="","",'DF raw data'!L14) -> 
A15: =IF('DF raw data'!I15="","",'DF raw data'!I15) -> Direction of the pos. y-axis | B15: =IF('DF raw data'!J15="","",'DF raw data'!J15) -> Vertical up | C15: =IF('DF raw data'!K15="","",'DF raw data'!K15) ->  | D15: =IF('DF raw data'!L15="","",'DF raw data'!L15) -> 
A16: =IF('DF raw data'!I16="","",'DF raw data'!I16) -> Direction of the pos. z-axis | B16: =IF('DF raw data'!J16="","",'DF raw data'!J16) -> See test program | C16: =IF('DF raw data'!K16="","",'DF raw data'!K16) ->  | D16: =IF('DF raw data'!L16="","",'DF raw data'!L16) -> 
A17: =IF('DF raw data'!I17="","",'DF raw data'!I17) -> Mapper type | B17: =IF('DF raw data'!J17="","",'DF raw data'!J17) -> Precision Hall Mapper | C17: =IF('DF raw data'!K17="","",'DF raw data'!K17) ->  | D17: =IF('DF raw data'!L17="","",'DF raw data'!L17) -> 
A18: =IF('DF raw data'!I18="","",'DF raw data'!I18) -> Mapper Danfysik Reg. Number | B18: =IF('DF raw data'!J18="","",'DF raw data'!J18) -> 2033-D (mapper 1) | C18: =IF('DF raw data'!K18="","",'DF raw data'!K18) ->  | D18: =IF('DF raw data'!L18="","",'DF raw data'!L18) -> 
A19: =IF('DF raw data'!I19="","",'DF raw data'!I19) -> Measurement consept | B19: =IF('DF raw data'!J19="","",'DF raw data'!J19) -> Square line grid | C19: =IF('DF raw data'!K19="","",'DF raw data'!K19) ->  | D19: =IF('DF raw data'!L19="","",'DF raw data'!L19) -> 
A20: =IF('DF raw data'!I20="","",'DF raw data'!I20) -> Mode | B20: =IF('DF raw data'!J20="","",'DF raw data'!J20) -> On-the-fly measurement | C20: =IF('DF raw data'!K20="","",'DF raw data'!K20) ->  | D20: =IF('DF raw data'!L20="","",'DF raw data'!L20) -> 
A21: =IF('DF raw data'!I21="","",'DF raw data'!I21) ->  | B21: =IF('DF raw data'!J21="","",'DF raw data'!J21) ->  | C21: =IF('DF raw data'!K21="","",'DF raw data'!K21) ->  | D21: =IF('DF raw data'!L21="","",'DF raw data'!L21) -> 
A22: =IF('DF raw data'!I22="","",'DF raw data'!I22) -> Probe Name | B22: =IF('DF raw data'!J22="","",'DF raw data'!J22) -> ID12_By | C22: =IF('DF raw data'!K22="","",'DF raw data'!K22) ->  | D22: =IF('DF raw data'!L22="","",'DF raw data'!L22) -> 
A23: =IF('DF raw data'!I23="","",'DF raw data'!I23) -> Probe Type | B23: =IF('DF raw data'!J23="","",'DF raw data'!J23) -> DF_ID_3D_Bxyz | C23: =IF('DF raw data'!K23="","",'DF raw data'!K23) ->  | D23: =IF('DF raw data'!L23="","",'DF raw data'!L23) -> 
A24: =IF('DF raw data'!I24="","",'DF raw data'!I24) -> Probe Danfysik Reg. Number | B24: =IF('DF raw data'!J24="","",'DF raw data'!J24) -> 2277 | C24: =IF('DF raw data'!K24="","",'DF raw data'!K24) ->  | D24: =IF('DF raw data'!L24="","",'DF raw data'!L24) -> 
A25: =IF('DF raw data'!I25="","",'DF raw data'!I25) -> Probe Axis | B25: =IF('DF raw data'!J25="","",'DF raw data'!J25) -> By | C25: =IF('DF raw data'!K25="","",'DF raw data'!K25) ->  | D25: =IF('DF raw data'!L25="","",'DF raw data'!L25) -> 
A26: =IF('DF raw data'!I26="","",'DF raw data'!I26) -> Probe Current Supply | B26: =IF('DF raw data'!J26="","",'DF raw data'!J26) -> 1825-D | C26: =IF('DF raw data'!K26="","",'DF raw data'!K26) ->  | D26: =IF('DF raw data'!L26="","",'DF raw data'!L26) -> 
A27: =IF('DF raw data'!I27="","",'DF raw data'!I27) -> Probe Gain Correction | B27: =IF('DF raw data'!J27="","",'DF raw data'!J27) -> 0.99619 | C27: =IF('DF raw data'!K27="","",'DF raw data'!K27) ->  | D27: =IF('DF raw data'!L27="","",'DF raw data'!L27) -> 
A28: =IF('DF raw data'!I28="","",'DF raw data'!I28) -> Probe Offset Correction | B28: =IF('DF raw data'!J28="","",'DF raw data'!J28) -> 0.0027506 | C28: =IF('DF raw data'!K28="","",'DF raw data'!K28) ->  | D28: =IF('DF raw data'!L28="","",'DF raw data'!L28) -> 
A29: =IF('DF raw data'!I29="","",'DF raw data'!I29) -> DVM Number | B29: =IF('DF raw data'!J29="","",'DF raw data'!J29) -> 2 | C29: =IF('DF raw data'!K29="","",'DF raw data'!K29) ->  | D29: =IF('DF raw data'!L29="","",'DF raw data'!L29) -> 
A30: =IF('DF raw data'!I30="","",'DF raw data'!I30) -> DVM Type | B30: =IF('DF raw data'!J30="","",'DF raw data'!J30) -> K2701 | C30: =IF('DF raw data'!K30="","",'DF raw data'!K30) ->  | D30: =IF('DF raw data'!L30="","",'DF raw data'!L30) -> 
A31: =IF('DF raw data'!I31="","",'DF raw data'!I31) -> DVM Danfysik Reg. Number | B31: =IF('DF raw data'!J31="","",'DF raw data'!J31) -> 1743-D | C31: =IF('DF raw data'!K31="","",'DF raw data'!K31) ->  | D31: =IF('DF raw data'!L31="","",'DF raw data'!L31) -> 
A32: =IF('DF raw data'!I32="","",'DF raw data'!I32) -> Probe Name | B32: =IF('DF raw data'!J32="","",'DF raw data'!J32) -> ID12_Bx | C32: =IF('DF raw data'!K32="","",'DF raw data'!K32) ->  | D32: =IF('DF raw data'!L32="","",'DF raw data'!L32) -> 
A33: =IF('DF raw data'!I33="","",'DF raw data'!I33) -> Probe Type | B33: =IF('DF raw data'!J33="","",'DF raw data'!J33) -> DF_ID_3D_Bxyz | C33: =IF('DF raw data'!K33="","",'DF raw data'!K33) ->  | D33: =IF('DF raw data'!L33="","",'DF raw data'!L33) -> 
A34: =IF('DF raw data'!I34="","",'DF raw data'!I34) -> Probe Danfysik Reg. Number | B34: =IF('DF raw data'!J34="","",'DF raw data'!J34) -> 2277 | C34: =IF('DF raw data'!K34="","",'DF raw data'!K34) ->  | D34: =IF('DF raw data'!L34="","",'DF raw data'!L34) -> 
A35: =IF('DF raw data'!I35="","",'DF raw data'!I35) -> Probe Axis | B35: =IF('DF raw data'!J35="","",'DF raw data'!J35) -> Bx | C35: =IF('DF raw data'!K35="","",'DF raw data'!K35) ->  | D35: =IF('DF raw data'!L35="","",'DF raw data'!L35) -> 
A36: =IF('DF raw data'!I36="","",'DF raw data'!I36) -> Probe Current Supply | B36: =IF('DF raw data'!J36="","",'DF raw data'!J36) -> 1825-D | C36: =IF('DF raw data'!K36="","",'DF raw data'!K36) ->  | D36: =IF('DF raw data'!L36="","",'DF raw data'!L36) -> 
A37: =IF('DF raw data'!I37="","",'DF raw data'!I37) -> Probe Gain Correction | B37: =IF('DF raw data'!J37="","",'DF raw data'!J37) -> 1 | C37: =IF('DF raw data'!K37="","",'DF raw data'!K37) ->  | D37: =IF('DF raw data'!L37="","",'DF raw data'!L37) -> 
A38: =IF('DF raw data'!I38="","",'DF raw data'!I38) -> Probe Offset Correction | B38: =IF('DF raw data'!J38="","",'DF raw data'!J38) -> -0.17548 | C38: =IF('DF raw data'!K38="","",'DF raw data'!K38) ->  | D38: =IF('DF raw data'!L38="","",'DF raw data'!L38) -> 
A39: =IF('DF raw data'!I39="","",'DF raw data'!I39) -> DVM Number | B39: =IF('DF raw data'!J39="","",'DF raw data'!J39) -> 3 | C39: =IF('DF raw data'!K39="","",'DF raw data'!K39) ->  | D39: =IF('DF raw data'!L39="","",'DF raw data'!L39) -> 
A40: =IF('DF raw data'!I40="","",'DF raw data'!I40) -> DVM Type | B40: =IF('DF raw data'!J40="","",'DF raw data'!J40) -> K2701 | C40: =IF('DF raw data'!K40="","",'DF raw data'!K40) ->  | D40: =IF('DF raw data'!L40="","",'DF raw data'!L40) -> 
A41: =IF('DF raw data'!I41="","",'DF raw data'!I41) -> DVM Danfysik Reg. Number | B41: =IF('DF raw data'!J41="","",'DF raw data'!J41) -> 1744-D | C41: =IF('DF raw data'!K41="","",'DF raw data'!K41) ->  | D41: =IF('DF raw data'!L41="","",'DF raw data'!L41) -> 
A42: =IF('DF raw data'!I42="","",'DF raw data'!I42) -> Probe Name | B42: =IF('DF raw data'!J42="","",'DF raw data'!J42) -> ID12_Bz | C42: =IF('DF raw data'!K42="","",'DF raw data'!K42) ->  | D42: =IF('DF raw data'!L42="","",'DF raw data'!L42) -> 
A43: =IF('DF raw data'!I43="","",'DF raw data'!I43) -> Probe Type | B43: =IF('DF raw data'!J43="","",'DF raw data'!J43) -> DF_ID_3D_Bxyz | C43: =IF('DF raw data'!K43="","",'DF raw data'!K43) ->  | D43: =IF('DF raw data'!L43="","",'DF raw data'!L43) -> 
A44: =IF('DF raw data'!I44="","",'DF raw data'!I44) -> Probe Danfysik Reg. Number | B44: =IF('DF raw data'!J44="","",'DF raw data'!J44) -> 2277 | C44: =IF('DF raw data'!K44="","",'DF raw data'!K44) ->  | D44: =IF('DF raw data'!L44="","",'DF raw data'!L44) -> 
A45: =IF('DF raw data'!I45="","",'DF raw data'!I45) -> Probe Axis | B45: =IF('DF raw data'!J45="","",'DF raw data'!J45) -> Bz | C45: =IF('DF raw data'!K45="","",'DF raw data'!K45) ->  | D45: =IF('DF raw data'!L45="","",'DF raw data'!L45) -> 
A46: =IF('DF raw data'!I46="","",'DF raw data'!I46) -> Probe Current Supply | B46: =IF('DF raw data'!J46="","",'DF raw data'!J46) -> 1825-D | C46: =IF('DF raw data'!K46="","",'DF raw data'!K46) ->  | D46: =IF('DF raw data'!L46="","",'DF raw data'!L46) -> 
A47: =IF('DF raw data'!I47="","",'DF raw data'!I47) -> Probe Gain Correction | B47: =IF('DF raw data'!J47="","",'DF raw data'!J47) -> 1 | C47: =IF('DF raw data'!K47="","",'DF raw data'!K47) ->  | D47: =IF('DF raw data'!L47="","",'DF raw data'!L47) -> 
A48: =IF('DF raw data'!I53="","",'DF raw data'!I53) -> PS-Gap: | B48: =IF('DF raw data'!J53="","",'DF raw data'!J53) -> 10 | C48: =IF('DF raw data'!K53="","",'DF raw data'!K53) ->  | D48: =IF('DF raw data'!L53="","",'DF raw data'!L53) -> 
A49: =IF('DF raw data'!I54="","",'DF raw data'!I54) -> PS-Temperature: | B49: =IF('DF raw data'!J54="","",'DF raw data'!J54) -> 24.2 | C49: =IF('DF raw data'!K54="","",'DF raw data'!K54) ->  | D49: =IF('DF raw data'!L54="","",'DF raw data'!L54) -> 
A50: =IF('DF raw data'!I55="","",'DF raw data'!I55) -> PS-Encoder: | B50: =IF('DF raw data'!J55="","",'DF raw data'!J55) -> 19.6225 | C50: =IF('DF raw data'!K55="","",'DF raw data'!K55) ->  | D50: =IF('DF raw data'!L55="","",'DF raw data'!L55) -> 
A51: =IF('DF raw data'!I56="","",'DF raw data'!I56) ->  | B51: =IF('DF raw data'!J56="","",'DF raw data'!J56) ->  | C51: =IF('DF raw data'!K56="","",'DF raw data'!K56) ->  | D51: =IF('DF raw data'!L56="","",'DF raw data'!L56) -> 
A52: =IF('DF raw data'!I57="","",'DF raw data'!I57) -> Monitor-Index | B52: =IF('DF raw data'!J57="","",'DF raw data'!J57) -> [1,1,4] | C52: =IF('DF raw data'!K57="","",'DF raw data'!K57) ->  | D52: =IF('DF raw data'!L57="","",'DF raw data'!L57) -> 
A53: =IF('DF raw data'!I58="","",'DF raw data'!I58) ->  | B53: =IF('DF raw data'!J58="","",'DF raw data'!J58) ->  | C53: =IF('DF raw data'!K58="","",'DF raw data'!K58) ->  | D53: =IF('DF raw data'!L58="","",'DF raw data'!L58) -> 
A54: =IF('DF raw data'!I59="","",'DF raw data'!I59) -> Time [s] | B54: =IF('DF raw data'!J59="","",'DF raw data'!J59) -> Y [mm] | C54: =IF('DF raw data'!K59="","",'DF raw data'!K59) -> X [mm] | D54: =IF('DF raw data'!L59="","",'DF raw data'!L59) -> Nominal current [A]
A55: =IF('DF raw data'!I60="","",'DF raw data'!I60) ->  | B55: =IF('DF raw data'!J60="","",'DF raw data'!J60) ->  | C55: =IF('DF raw data'!K60="","",'DF raw data'!K60) ->  | D55: =IF('DF raw data'!L60="","",'DF raw data'!L60) -> 
A56: =IF('DF raw data'!I61="","",'DF raw data'!I61) -> 207.5 | B56: =IF('DF raw data'!J61="","",'DF raw data'!J61) -> 31.56 | C56: =IF('DF raw data'!K61="","",'DF raw data'!K61) -> 301.8 | D56: =IF('DF raw data'!L61="","",'DF raw data'!L61) -> 0
A57: =IF('DF raw data'!I62="","",'DF raw data'!I62) ->  | B57: =IF('DF raw data'!J62="","",'DF raw data'!J62) ->  | C57: =IF('DF raw data'!K62="","",'DF raw data'!K62) ->  | D57: =IF('DF raw data'!L62="","",'DF raw data'!L62) -> 
A58: =IF('DF raw data'!I63="","",'DF raw data'!I63) -> Measurement-Index | B58: =IF('DF raw data'!J63="","",'DF raw data'!J63) -> [1,1,1201,2] | C58: =IF('DF raw data'!K63="","",'DF raw data'!K63) ->  | D58: =IF('DF raw data'!L63="","",'DF raw data'!L63) -> 
A59: =IF('DF raw data'!I64="","",'DF raw data'!I64) ->  | B59: =IF('DF raw data'!J64="","",'DF raw data'!J64) ->  | C59: =IF('DF raw data'!K64="","",'DF raw data'!K64) ->  | D59: =IF('DF raw data'!L64="","",'DF raw data'!L64) -> 
A60: =IF('DF raw data'!I65="","",'DF raw data'!I65) -> Z [mm] | B60: By [T] | C60: Bx [T] | D60: Bz [T] | F60: By_corr | G60: Bx_corr | H60: Bz_corr | J60: Iy | K60: Jy | L60: Ix | M60: Jx | N60: PI
A62: =IF('DF raw data'!I67="","",'DF raw data'!I67) -> -300 | B62: =IF('DF raw data'!J67="","",'DF raw data'!J67) -> -1.63931e-05 | C62: =IF('DF raw data'!K67="","",'DF raw data'!K67) -> 8.34614e-05 | D62: =IF('DF raw data'!L67="","",'DF raw data'!L67) -> -4.06751e-05 | F62: =(1-$G$1*($B$49))*B62 -> -1.678981302e-05 | G62: =(1-$G$1*($B$49-$G$2))*C62 -> 8.381193788e-05 | H62: =(1-$G$1*($B$49-$G$2))*D62 -> -4.084593542e-05 | J62: =F62*$G$3 -> -8.39490651e-06 | K62: =J62*$G$3 -> -4.197453255e-06 | L62: =G62*$G$3 -> 4.190596894e-05 | M62: =L62*$G$3 -> 2.095298447e-05 | N62: =(J62^2+L62^2)*$G$3 -> 9.132923441e-10
A63: =IF('DF raw data'!I68="","",'DF raw data'!I68) -> -299.5 | B63: =IF('DF raw data'!J68="","",'DF raw data'!J68) -> -1.01134e-05 | C63: =IF('DF raw data'!K68="","",'DF raw data'!K68) -> 7.84648e-05 | D63: =IF('DF raw data'!L68="","",'DF raw data'!L68) -> -4.10119e-05 | F63: =(1-$G$1*($B$49-$G$2))*B63 -> -1.015587628e-05 | G63: =(1-$G$1*($B$49-$G$2))*C63 -> 7.879435216e-05 | H63: -4.118414998e-05 | J63: =F63*$G$3+J62 -> -1.347284465e-05 | K63: =J63*$G$3+K62 -> -1.093387558e-05 | L63: =G63*$G$3+L62 -> 8.130314502e-05 | M63: =L63*$G$3+M62 -> 6.160455698e-05 | N63: =(J63^2+L63^2)*$G$3+N62 -> 4.309151811e-09
A64: =IF('DF raw data'!I69="","",'DF raw data'!I69) -> -299 | B64: =IF('DF raw data'!J69="","",'DF raw data'!J69) -> -2.42124e-05 | C64: =IF('DF raw data'!K69="","",'DF raw data'!K69) -> 7.77203e-05 | D64: =IF('DF raw data'!L69="","",'DF raw data'!L69) -> -4.09395e-05 | F64: =(1-$G$1*($B$49-$G$2))*B64 -> -2.431409208e-05 | G64: 7.804672526e-05 | H64: -4.11114459e-05 | J64: =F64*$G$3+J63 -> -2.562989069e-05 | K64: =J64*$G$3+K63 -> -2.374882092e-05 | L64: =G64*$G$3+L63 -> 0.0001203265076 | M64: =L64*$G$3+M63 -> 0.0001217678108 | N64: =(J64^2+L64^2)*$G$3+N63 -> 1.187683168e-08
A65: =IF('DF raw data'!I70="","",'DF raw data'!I70) -> -298.5 | B65: =IF('DF raw data'!J70="","",'DF raw data'!J70) -> -2.26109e-05 | C65: =IF('DF raw data'!K70="","",'DF raw data'!K70) -> 7.94488e-05 | D65: =IF('DF raw data'!L70="","",'DF raw data'!L70) -> -4.01256e-05 | F65: -2.270586578e-05 | G65: 7.978248496e-05 | H65: -4.029412752e-05 | J65: -3.698282358e-05 | K65: -4.224023271e-05 | L65: 0.0001602177501 | M65: 0.0002018766859 | N65: 2.539556003e-08
A66: =IF('DF raw data'!I71="","",'DF raw data'!I71) -> -298 | B66: =IF('DF raw data'!J71="","",'DF raw data'!J71) -> -1.34468e-05 | C66: =IF('DF raw data'!K71="","",'DF raw data'!K71) -> 8.74966e-05 | D66: =IF('DF raw data'!L71="","",'DF raw data'!L71) -> -3.9866e-05 | F66: -1.350327656e-05 | G66: 8.786408572e-05 | H66: -4.00334372e-05 | J66: -4.373446186e-05 | K66: -6.410746364e-05 | L66: 0.000204149793 | M66: 0.0003039515824 | N66: 4.719048059e-08
A67: =IF('DF raw data'!I72="","",'DF raw data'!I72) -> -297.5 | B67: =IF('DF raw data'!J72="","",'DF raw data'!J72) -> -1.28696e-05 | C67: =IF('DF raw data'!K72="","",'DF raw data'!K72) -> 8.68367e-05 | D67: =IF('DF raw data'!L72="","",'DF raw data'!L72) -> -4.02669e-05 | F67: -1.292365232e-05 | G67: 8.720141414e-05 | H67: -4.043602098e-05 | J67: -5.019628802e-05 | K67: -8.920560765e-05 | L67: 0.0002477505001 | M67: 0.0004278268324 | N67: 7.91404694e-08
A68: =IF('DF raw data'!I73="","",'DF raw data'!I73) -> -297 | B68: =IF('DF raw data'!J73="","",'DF raw data'!J73) -> -1.87016e-05 | C68: =IF('DF raw data'!K73="","",'DF raw data'!K73) -> 7.77782e-05 | D68: =IF('DF raw data'!L73="","",'DF raw data'!L73) -> -4.02886e-05 | F68: -1.878014672e-05 | G68: 7.810486844e-05 | H68: -4.045781212e-05 | J68: -5.958636138e-05 | K68: -0.0001189987883 | L68: 0.0002868029343 | M68: 0.0005712282995 | N68: 1.220436982e-07
A69: =IF('DF raw data'!I74="","",'DF raw data'!I74) -> -296.5 | B69: =IF('DF raw data'!J74="","",'DF raw data'!J74) -> -1.17161e-05 | C69: =IF('DF raw data'!K74="","",'DF raw data'!K74) -> 7.43098e-05 | D69: =IF('DF raw data'!L74="","",'DF raw data'!L74) -> -4.01866e-05 | F69: -1.176530762e-05 | G69: 7.462190116e-05 | H69: -4.035538372e-05 | J69: -6.546901519e-05 | K69: -0.0001517332959 | L69: 0.0003241138849 | M69: 0.000733285242 | N69: 1.767116993e-07
A70: =IF('DF raw data'!I75="","",'DF raw data'!I75) -> -296 | B70: =IF('DF raw data'!J75="","",'DF raw data'!J75) -> -1.20363e-05 | C70: =IF('DF raw data'!K75="","",'DF raw data'!K75) -> 7.14885e-05 | D70: =IF('DF raw data'!L75="","",'DF raw data'!L75) -> -4.07704e-05 | F70: -1.208685246e-05 | G70: 7.17887517e-05 | H70: -4.094163568e-05 | J70: -7.151244142e-05 | K70: -0.0001874895167 | L70: 0.0003600082607 | M70: 0.0009132893723 | N70: 2.440716879e-07
A71: =IF('DF raw data'!I76="","",'DF raw data'!I76) -> -295.5 | B71: =IF('DF raw data'!J76="","",'DF raw data'!J76) -> -8.51079e-06 | C71: =IF('DF raw data'!K76="","",'DF raw data'!K76) -> 8.25514e-05 | D71: =IF('DF raw data'!L76="","",'DF raw data'!L76) -> -4.15964e-05 | F71: -8.546535318e-06 | G71: 8.289811588e-05 | H71: -4.177110488e-05 | J71: -7.578570908e-05 | K71: -0.0002253823712 | L71: 0.0004014573187 | M71: 0.001114018032 | N71: 3.275274141e-07
A72: =IF('DF raw data'!I77="","",'DF raw data'!I77) -> -295 | B72: =IF('DF raw data'!J77="","",'DF raw data'!J77) -> -2.63912e-05 | C72: =IF('DF raw data'!K77="","",'DF raw data'!K77) -> 8.17903e-05 | D72: =IF('DF raw data'!L77="","",'DF raw data'!L77) -> -4.13781e-05 | F72: -2.650204304e-05 | G72: 8.213381926e-05 | H72: -4.155188802e-05 | J72: -8.90367306e-05 | K72: -0.0002699007365 | L72: 0.0004425242283 | M72: 0.001335280146 | N72: 4.294050301e-07
A73: =IF('DF raw data'!I78="","",'DF raw data'!I78) -> -294.5 | B73: =IF('DF raw data'!J78="","",'DF raw data'!J78) -> -1.84452e-05 | C73: =IF('DF raw data'!K78="","",'DF raw data'!K78) -> 8.79579e-05 | D73: =IF('DF raw data'!L78="","",'DF raw data'!L78) -> -4.03758e-05 | F73: -1.852266984e-05 | G73: 8.832732318e-05 | H73: -4.054537836e-05 | J73: -9.829806552e-05 | K73: -0.0003190497692 | L73: 0.0004866878899 | M73: 0.001578624091 | N73: 5.52668836e-07
A74: =IF('DF raw data'!I79="","",'DF raw data'!I79) -> -294 | B74: =IF('DF raw data'!J79="","",'DF raw data'!J79) -> -2.13295e-05 | C74: =IF('DF raw data'!K79="","",'DF raw data'!K79) -> 9.102e-05 | D74: =IF('DF raw data'!L79="","",'DF raw data'!L79) -> -3.97924e-05 | F74: -2.14190839e-05 | G74: 9.1402284e-05 | H74: -3.995952808e-05 | J74: -0.0001090076075 | K74: -0.000373553573 | L74: 0.0005323890319 | M74: 0.001844818607 | N74: 7.003292059e-07
A75: =IF('DF raw data'!I80="","",'DF raw data'!I80) -> -293.5 | B75: =IF('DF raw data'!J80="","",'DF raw data'!J80) -> -1.00498e-05 | C75: =IF('DF raw data'!K80="","",'DF raw data'!K80) -> 8.69451e-05 | D75: =IF('DF raw data'!L80="","",'DF raw data'!L80) -> -4.04465e-05 | F75: -1.009200916e-05 | G75: 8.731026942e-05 | H75: -4.06163753e-05 | J75: -0.000114053612 | K75: -0.000430580379 | L75: 0.0005760441666 | M75: 0.00213284069 | N75: 8.7274676e-07
A76: =IF('DF raw data'!I81="","",'DF raw data'!I81) -> -293 | B76: =IF('DF raw data'!J81="","",'DF raw data'!J81) -> -1.42787e-05 | C76: =IF('DF raw data'!K81="","",'DF raw data'!K81) -> 7.88004e-05 | D76: =IF('DF raw data'!L81="","",'DF raw data'!L81) -> -4.14275e-05 | F76: -1.433867054e-05 | G76: 7.913136168e-05 | H76: -4.16014955e-05 | J76: -0.0001212229473 | K76: -0.0004911918527 | L76: 0.0006156098474 | M76: 0.002440645614 | N76: 1.069582004e-06
A77: =IF('DF raw data'!I82="","",'DF raw data'!I82) -> -292.5 | B77: =IF('DF raw data'!J82="","",'DF raw data'!J82) -> -2.49171e-05 | C77: =IF('DF raw data'!K82="","",'DF raw data'!K82) -> 7.96356e-05 | D77: =IF('DF raw data'!L82="","",'DF raw data'!L82) -> -4.14588e-05 | F77: -2.502175182e-05 | G77: 7.997006952e-05 | H77: -4.163292696e-05 | J77: -0.0001337338232 | K77: -0.0005580587643 | L77: 0.0006555948822 | M77: 0.002768443055 | N77: 1.293426696e-06
A78: =IF('DF raw data'!I83="","",'DF raw data'!I83) -> -292 | B78: =IF('DF raw data'!J83="","",'DF raw data'!J83) -> -2.32514e-05 | C78: =IF('DF raw data'!K83="","",'DF raw data'!K83) -> 7.7591e-05 | D78: =IF('DF raw data'!L83="","",'DF raw data'!L83) -> -4.06336e-05 | F78: -2.334905588e-05 | G78: 7.79168822e-05 | H78: -4.080426112e-05 | J78: -0.0001454083512 | K78: -0.0006307629399 | L78: 0.0006945533233 | M78: 0.003115719716 | N78: 1.54520065e-06
A79: =IF('DF raw data'!I84="","",'DF raw data'!I84) -> -291.5 | B79: =IF('DF raw data'!J84="","",'DF raw data'!J84) -> -2.2751e-05 | C79: =IF('DF raw data'!K84="","",'DF raw data'!K84) -> 7.88433e-05 | D79: =IF('DF raw data'!L84="","",'DF raw data'!L84) -> -2.18022e-05 | F79: -2.28465542e-05 | G79: 7.917444186e-05 | H79: -2.189376924e-05 | J79: -0.0001568316283 | K79: -0.000709178754 | L79: 0.0007341405442 | M79: 0.003482789988 | N79: 1.826979899e-06
A80: =IF('DF raw data'!I85="","",'DF raw data'!I85) -> -291 | B80: =IF('DF raw data'!J85="","",'DF raw data'!J85) -> -1.84564e-05 | C80: =IF('DF raw data'!K85="","",'DF raw data'!K85) -> 8.6379e-05 | D80: =IF('DF raw data'!L85="","",'DF raw data'!L85) -> -2.30722e-05 | F80: -1.853391688e-05 | G80: 8.67417918e-05 | H80: -2.316910324e-05 | J80: -0.0001660985867 | K80: -0.0007922280474 | L80: 0.0007775114401 | M80: 0.003871545709 | N80: 2.143036289e-06
A81: =IF('DF raw data'!I86="","",'DF raw data'!I86) -> -290.5 | B81: =IF('DF raw data'!J86="","",'DF raw data'!J86) -> -1.44835e-05 | C81: =IF('DF raw data'!K86="","",'DF raw data'!K86) -> 8.19816e-05 | D81: =IF('DF raw data'!L86="","",'DF raw data'!L86) -> -2.22309e-05 | F81: -1.45443307e-05 | G81: 8.232592272e-05 | H81: -2.232426978e-05 | J81: -0.0001733707521 | K81: -0.0008789134234 | L81: 0.0008186744015 | M81: 0.004280882909 | N81: 2.493178886e-06
A82: =IF('DF raw data'!I87="","",'DF raw data'!I87) -> -290 | B82: =IF('DF raw data'!J87="","",'DF raw data'!J87) -> -6.47118e-06 | C82: =IF('DF raw data'!K87="","",'DF raw data'!K87) -> 7.16096e-05 | D82: =IF('DF raw data'!L87="","",'DF raw data'!L87) -> -2.45524e-05 | F82: -6.498358956e-06 | G82: 7.191036032e-05 | H82: -2.465552008e-05 | J82: -0.0001766199315 | K82: -0.0009672233892 | L82: 0.0008546295816 | M82: 0.0047081977 | N82: 2.873972047e-06
A83: =IF('DF raw data'!I88="","",'DF raw data'!I88) -> -289.5 | B83: =IF('DF raw data'!J88="","",'DF raw data'!J88) -> -1.66588e-05 | C83: =IF('DF raw data'!K88="","",'DF raw data'!K88) -> 7.27793e-05 | D83: =IF('DF raw data'!L88="","",'DF raw data'!L88) -> -2.76882e-05 | F83: -1.672876696e-05 | G83: 7.308497306e-05 | H83: -2.780449044e-05 | J83: -0.000184984315 | K83: -0.001059715547 | L83: 0.0008911720682 | M83: 0.005153783734 | N83: 3.288175473e-06
A84: =IF('DF raw data'!I89="","",'DF raw data'!I89) -> -289 | B84: =IF('DF raw data'!J89="","",'DF raw data'!J89) -> -1.37673e-05 | C84: =IF('DF raw data'!K89="","",'DF raw data'!K89) -> 7.5672e-05 | D84: =IF('DF raw data'!L89="","",'DF raw data'!L89) -> -3.94368e-05 | F84: -1.382512266e-05 | G84: 7.59898224e-05 | H84: -3.960243456e-05 | J84: -0.0001918968763 | K84: -0.001155663985 | L84: 0.0009291669794 | M84: 0.005618367224 | N84: 3.738263316e-06
A85: =IF('DF raw data'!I90="","",'DF raw data'!I90) -> -288.5 | B85: =IF('DF raw data'!J90="","",'DF raw data'!J90) -> -2.28752e-05 | C85: =IF('DF raw data'!K90="","",'DF raw data'!K90) -> 8.12896e-05 | D85: =IF('DF raw data'!L90="","",'DF raw data'!L90) -> -2.78622e-05 | F85: -2.297127584e-05 | G85: 8.163101632e-05 | H85: -2.797922124e-05 | J85: -0.0002033825143 | K85: -0.001257355242 | L85: 0.0009699824875 | M85: 0.006103358468 | N85: 4.229378553e-06
A86: =IF('DF raw data'!I91="","",'DF raw data'!I91) -> -288 | B86: =IF('DF raw data'!J91="","",'DF raw data'!J91) -> -1.29388e-05 | C86: =IF('DF raw data'!K91="","",'DF raw data'!K91) -> 8.31843e-05 | D86: =IF('DF raw data'!L91="","",'DF raw data'!L91) -> -3.25099e-05 | F86: -1.299314296e-05 | G86: 8.353367406e-05 | H86: -3.264644158e-05 | J86: -0.0002098790857 | K86: -0.001362294785 | L86: 0.001011749325 | M86: 0.00660923313 | N86: 4.763221516e-06
A87: =IF('DF raw data'!I92="","",'DF raw data'!I92) -> -287.5 | B87: =IF('DF raw data'!J92="","",'DF raw data'!J92) -> -1.76217e-05 | C87: =IF('DF raw data'!K92="","",'DF raw data'!K92) -> 8.22095e-05 | D87: =IF('DF raw data'!L92="","",'DF raw data'!L92) -> -2.54851e-05 | F87: -1.769571114e-05 | G87: 8.25547799e-05 | H87: -2.559213742e-05 | J87: -0.0002187269413 | K87: -0.001471658256 | L87: 0.001053026714 | M87: 0.007135746487 | N87: 5.341574884e-06
A88: =IF('DF raw data'!I93="","",'DF raw data'!I93) -> -287 | B88: =IF('DF raw data'!J93="","",'DF raw data'!J93) -> -1.31275e-05 | C88: =IF('DF raw data'!K93="","",'DF raw data'!K93) -> 8.57071e-05 | D88: =IF('DF raw data'!L93="","",'DF raw data'!L93) -> -3.78952e-05 | F88: -1.31826355e-05 | G88: 8.606706982e-05 | H88: -3.805435984e-05 | J88: -0.0002253182591 | K88: -0.001584317385 | L88: 0.001096060249 | M88: 0.007683776612 | N88: 5.967633078e-06
A89: =IF('DF raw data'!I94="","",'DF raw data'!I94) -> -286.5 | B89: =IF('DF raw data'!J94="","",'DF raw data'!J94) -> -1.60803e-05 | C89: =IF('DF raw data'!K94="","",'DF raw data'!K94) -> 8.83409e-05 | D89: =IF('DF raw data'!L94="","",'DF raw data'!L94) -> -3.06829e-05 | F89: -1.614783726e-05 | G89: 8.871193178e-05 | H89: -3.081176818e-05 | J89: -0.0002333921777 | K89: -0.001701013474 | L89: 0.001140416215 | M89: 0.008253984719 | N89: 6.645143604e-06
A90: =IF('DF raw data'!I95="","",'DF raw data'!I95) -> -286 | B90: =IF('DF raw data'!J95="","",'DF raw data'!J95) -> -1.18482e-05 | C90: =IF('DF raw data'!K95="","",'DF raw data'!K95) -> 9.21299e-05 | D90: =IF('DF raw data'!L95="","",'DF raw data'!L95) -> -3.41287e-05 | F90: -1.189796244e-05 | G90: 9.251684558e-05 | H90: -3.427204054e-05 | J90: -0.0002393411589 | K90: -0.001820684053 | L90: 0.001186674638 | M90: 0.008847322039 | N90: 7.377884048e-06
A91: =IF('DF raw data'!I96="","",'DF raw data'!I96) -> -285.5 | B91: =IF('DF raw data'!J96="","",'DF raw data'!J96) -> -1.78058e-05 | C91: =IF('DF raw data'!K96="","",'DF raw data'!K96) -> 9.48579e-05 | D91: =IF('DF raw data'!L96="","",'DF raw data'!L96) -> -3.79659e-05 | F91: -1.788058436e-05 | G91: 9.525630318e-05 | H91: -3.812535678e-05 | J91: -0.0002482814511 | K91: -0.001944824779 | L91: 0.00123430279 | M91: 0.009464473433 | N91: 8.170457576e-06
A92: =IF('DF raw data'!I97="","",'DF raw data'!I97) -> -285 | B92: =IF('DF raw data'!J97="","",'DF raw data'!J97) -> -1.14007e-05 | C92: =IF('DF raw data'!K97="","",'DF raw data'!K97) -> 0.000101328 | D92: =IF('DF raw data'!L97="","",'DF raw data'!L97) -> -3.22405e-05 | F92: -1.144858294e-05 | G92: 0.0001017535776 | H92: -3.23759101e-05 | J92: -0.0002540057426 | K92: -0.00207182765 | L92: 0.001285179578 | M92: 0.01010706322 | N92: 9.028560309e-06
A93: =IF('DF raw data'!I98="","",'DF raw data'!I98) -> -284.5 | B93: =IF('DF raw data'!J98="","",'DF raw data'!J98) -> -1.06927e-05 | C93: =IF('DF raw data'!K98="","",'DF raw data'!K98) -> 9.53935e-05 | D93: =IF('DF raw data'!L98="","",'DF raw data'!L98) -> -3.73725e-05 | F93: -1.073760934e-05 | G93: 9.57941527e-05 | H93: -3.75294645e-05 | J93: -0.0002593745472 | K93: -0.002201514924 | L93: 0.001333076655 | M93: 0.01077360155 | N93: 9.95074457e-06
A94: =IF('DF raw data'!I99="","",'DF raw data'!I99) -> -284 | B94: =IF('DF raw data'!J99="","",'DF raw data'!J99) -> -2.21722e-05 | C94: =IF('DF raw data'!K99="","",'DF raw data'!K99) -> 9.90312e-05 | D94: =IF('DF raw data'!L99="","",'DF raw data'!L99) -> -2.45395e-05 | F94: -2.226532324e-05 | G94: 9.944713104e-05 | H94: -2.46425659e-05 | J94: -0.0002705072089 | K94: -0.002336768528 | L94: 0.00138280022 | M94: 0.01146500166 | N94: 1.094339987e-05
A95: =IF('DF raw data'!I100="","",'DF raw data'!I100) -> -283.5 | B95: =IF('DF raw data'!J100="","",'DF raw data'!J100) -> -2.08303e-05 | C95: =IF('DF raw data'!K100="","",'DF raw data'!K100) -> 0.000101161 | D95: =IF('DF raw data'!L100="","",'DF raw data'!L100) -> -1.87592e-05 | F95: -2.091778726e-05 | G95: 0.0001015858762 | H95: -1.883798864e-05 | J95: -0.0002809661025 | K95: -0.002477251579 | L95: 0.001433593158 | M95: 0.01218179824 | N95: 1.201046552e-05
A96: =IF('DF raw data'!I101="","",'DF raw data'!I101) -> -283 | B96: =IF('DF raw data'!J101="","",'DF raw data'!J101) -> -9.42215e-06 | C96: =IF('DF raw data'!K101="","",'DF raw data'!K101) -> 9.62089e-05 | D96: =IF('DF raw data'!L101="","",'DF raw data'!L101) -> -2.00616e-05 | F96: -9.46172303e-06 | G96: 9.661297738e-05 | H96: -2.014585872e-05 | J96: -0.000285696964 | K96: -0.002620100061 | L96: 0.001481899647 | M96: 0.01292274806 | N96: 1.314929018e-05
A97: =IF('DF raw data'!I102="","",'DF raw data'!I102) -> -282.5 | B97: =IF('DF raw data'!J102="","",'DF raw data'!J102) -> -9.79935e-06 | C97: =IF('DF raw data'!K102="","",'DF raw data'!K102) -> 8.98119e-05 | D97: =IF('DF raw data'!L102="","",'DF raw data'!L102) -> -3.15187e-05 | F97: -9.84050727e-06 | G97: 9.018910998e-05 | H97: -3.165107854e-05 | J97: -0.0002906172176 | K97: -0.00276540867 | L97: 0.001526994202 | M97: 0.01368624516 | N97: 1.435737501e-05
A98: =IF('DF raw data'!I103="","",'DF raw data'!I103) -> -282 | B98: =IF('DF raw data'!J103="","",'DF raw data'!J103) -> -9.03155e-06 | C98: =IF('DF raw data'!K103="","",'DF raw data'!K103) -> 9.25047e-05 | D98: =IF('DF raw data'!L103="","",'DF raw data'!L103) -> -2.9464e-05 | F98: -9.06948251e-06 | G98: 9.289321974e-05 | H98: -2.95877488e-05 | J98: -0.0002951519589 | K98: -0.00291298465 | L98: 0.001573440812 | M98: 0.01447296557 | N98: 1.563879034e-05
A99: =IF('DF raw data'!I104="","",'DF raw data'!I104) -> -281.5 | B99: =IF('DF raw data'!J104="","",'DF raw data'!J104) -> -2.07504e-05 | C99: =IF('DF raw data'!K104="","",'DF raw data'!K104) -> 0.000101044 | D99: =IF('DF raw data'!L104="","",'DF raw data'!L104) -> -4.34385e-05 | F99: -2.083755168e-05 | G99: 0.0001014683848 | H99: -4.36209417e-05 | J99: -0.0003055707347 | K99: -0.003065770017 | L99: 0.001624175004 | M99: 0.01528505307 | N99: 1.70044493e-05
A100: =IF('DF raw data'!I105="","",'DF raw data'!I105) -> -281 | B100: =IF('DF raw data'!J105="","",'DF raw data'!J105) -> -1.40273e-05 | C100: =IF('DF raw data'!K105="","",'DF raw data'!K105) -> 0.000110712 | D100: =IF('DF raw data'!L105="","",'DF raw data'!L105) -> -3.36545e-05 | F100: -1.408621466e-05 | G100: 0.0001111769904 | H100: -3.37958489e-05 | J100: -0.0003126138421 | K100: -0.003222076938 | L100: 0.0016797635 | M100: 0.01612493482 | N100: 1.846411572e-05
A101: =IF('DF raw data'!I106="","",'DF raw data'!I106) -> -280.5 | B101: =IF('DF raw data'!J106="","",'DF raw data'!J106) -> -2.17133e-05 | C101: =IF('DF raw data'!K106="","",'DF raw data'!K106) -> 0.000105901 | D101: =IF('DF raw data'!L106="","",'DF raw data'!L106) -> -4.11277e-05 | F101: -2.180449586e-05 | G101: 0.0001063457842 | H101: -4.130043634e-05 | J101: -0.00032351609 | K101: -0.003383834983 | L101: 0.001732936392 | M101: 0.01699140302 | N101: 2.001798131e-05
A102: =IF('DF raw data'!I107="","",'DF raw data'!I107) -> -280 | B102: =IF('DF raw data'!J107="","",'DF raw data'!J107) -> -1.14669e-05 | C102: =IF('DF raw data'!K107="","",'DF raw data'!K107) -> 9.63105e-05 | D102: =IF('DF raw data'!L107="","",'DF raw data'!L107) -> -2.91862e-05 | F102: -1.151506098e-05 | G102: 9.67150041e-05 | H102: -2.930878204e-05 | J102: -0.0003292736205 | K102: -0.003548471793 | L102: 0.001781293894 | M102: 0.01788204996 | N102: 2.165869584e-05
A103: =IF('DF raw data'!I108="","",'DF raw data'!I108) -> -279.5 | B103: =IF('DF raw data'!J108="","",'DF raw data'!J108) -> -8.7763e-06 | C103: =IF('DF raw data'!K108="","",'DF raw data'!K108) -> 9.30944e-05 | D103: =IF('DF raw data'!L108="","",'DF raw data'!L108) -> -2.79604e-05 | F103: -8.81316046e-06 | G103: 9.348539648e-05 | H103: -2.807783368e-05 | J103: -0.0003336802007 | K103: -0.003715311894 | L103: 0.001828036592 | M103: 0.01879606826 | N103: 2.338522597e-05
A104: =IF('DF raw data'!I109="","",'DF raw data'!I109) -> -279 | B104: =IF('DF raw data'!J109="","",'DF raw data'!J109) -> -9.2231e-06 | C104: =IF('DF raw data'!K109="","",'DF raw data'!K109) -> 9.20174e-05 | D104: =IF('DF raw data'!L109="","",'DF raw data'!L109) -> -3.03555e-05 | F104: -9.26183702e-06 | G104: 9.240387308e-05 | H104: -3.04829931e-05 | J104: -0.0003383111192 | K104: -0.003884467453 | L104: 0.001874238529 | M104: 0.01973318753 | N104: 2.519883821e-05
A105: =IF('DF raw data'!I110="","",'DF raw data'!I110) -> -278.5 | B105: =IF('DF raw data'!J110="","",'DF raw data'!J110) -> -1.26263e-05 | C105: =IF('DF raw data'!K110="","",'DF raw data'!K110) -> 8.96104e-05 | D105: =IF('DF raw data'!L110="","",'DF raw data'!L110) -> -2.02517e-05 | F105: -1.267933046e-05 | G105: 8.998676368e-05 | H105: -2.033675714e-05 | J105: -0.0003446507845 | K105: -0.004056792846 | L105: 0.00191923191 | M105: 0.02069280348 | N105: 2.709995585e-05
A106: =IF('DF raw data'!I111="","",'DF raw data'!I111) -> -278 | B106: =IF('DF raw data'!J111="","",'DF raw data'!J111) -> -2.31296e-05 | C106: =IF('DF raw data'!K111="","",'DF raw data'!K111) -> 9.17734e-05 | D106: =IF('DF raw data'!L111="","",'DF raw data'!L111) -> -3.06988e-05 | F106: -2.322674432e-05 | G106: 9.215884828e-05 | H106: -3.082773496e-05 | J106: -0.0003562641566 | K106: -0.004234924924 | L106: 0.001965311335 | M106: 0.02167545915 | N106: 2.909464225e-05
A107: =IF('DF raw data'!I112="","",'DF raw data'!I112) -> -277.5 | B107: =IF('DF raw data'!J112="","",'DF raw data'!J112) -> -2.83209e-05 | C107: =IF('DF raw data'!K112="","",'DF raw data'!K112) -> 8.93337e-05 | D107: =IF('DF raw data'!L112="","",'DF raw data'!L112) -> -3.04707e-05 | F107: -2.843984778e-05 | G107: 8.970890154e-05 | H107: -3.059867694e-05 | J107: -0.0003704840805 | K107: -0.004420166964 | L107: 0.002010165785 | M107: 0.02268054204 | N107: 3.118365472e-05
A108: =IF('DF raw data'!I113="","",'DF raw data'!I113) -> -277 | B108: =IF('DF raw data'!J113="","",'DF raw data'!J113) -> -1.54417e-05 | C108: =IF('DF raw data'!K113="","",'DF raw data'!K113) -> 9.27117e-05 | D108: =IF('DF raw data'!L113="","",'DF raw data'!L113) -> -2.71942e-05 | F108: -1.550655514e-05 | G108: 9.310108914e-05 | H108: -2.730841564e-05 | J108: -0.0003782373581 | K108: -0.004609285643 | L108: 0.00205671633 | M108: 0.02370890021 | N108: 3.33702275e-05
A109: =IF('DF raw data'!I114="","",'DF raw data'!I114) -> -276.5 | B109: =IF('DF raw data'!J114="","",'DF raw data'!J114) -> -1.2166e-05 | C109: =IF('DF raw data'!K114="","",'DF raw data'!K114) -> 9.4236e-05 | D109: =IF('DF raw data'!L114="","",'DF raw data'!L114) -> -3.85187e-05 | F109: -1.22170972e-05 | G109: 9.46317912e-05 | H109: -3.868047854e-05 | J109: -0.0003843459067 | K109: -0.004801458596 | L109: 0.002104032225 | M109: 0.02476091632 | N109: 3.565756419e-05
A110: =IF('DF raw data'!I115="","",'DF raw data'!I115) -> -276 | B110: =IF('DF raw data'!J115="","",'DF raw data'!J115) -> -1.5123e-05 | C110: =IF('DF raw data'!K115="","",'DF raw data'!K115) -> 8.40211e-05 | D110: =IF('DF raw data'!L115="","",'DF raw data'!L115) -> -2.42078e-05 | F110: -1.51865166e-05 | G110: 8.437398862e-05 | H110: -2.430947276e-05 | J110: -0.000391939165 | K110: -0.004997428179 | L110: 0.00214621922 | M110: 0.02583402593 | N110: 3.803750081e-05
A111: =IF('DF raw data'!I116="","",'DF raw data'!I116) -> -275.5 | B111: =IF('DF raw data'!J116="","",'DF raw data'!J116) -> -1.40945e-05 | C111: =IF('DF raw data'!K116="","",'DF raw data'!K116) -> 8.63111e-05 | D111: =IF('DF raw data'!L116="","",'DF raw data'!L116) -> -2.93793e-05 | F111: -1.41536969e-05 | G111: 8.667360662e-05 | H111: -2.950269306e-05 | J111: -0.0003990160134 | K111: -0.005196936186 | L111: 0.002189556023 | M111: 0.02692880394 | N111: 4.051418549e-05
A112: =IF('DF raw data'!I117="","",'DF raw data'!I117) -> -275 | B112: =IF('DF raw data'!J117="","",'DF raw data'!J117) -> -1.49904e-05 | C112: =IF('DF raw data'!K117="","",'DF raw data'!K117) -> 9.04913e-05 | D112: =IF('DF raw data'!L117="","",'DF raw data'!L117) -> -3.10628e-05 | F112: -1.505335968e-05 | G112: 9.087136346e-05 | H112: -3.119326376e-05 | J112: -0.0004065426933 | K112: -0.005400207532 | L112: 0.002234991705 | M112: 0.02804629979 | N112: 4.309441793e-05
A113: =IF('DF raw data'!I118="","",'DF raw data'!I118) -> -274.5 | B113: =IF('DF raw data'!J118="","",'DF raw data'!J118) -> -2.49858e-05 | C113: =IF('DF raw data'!K118="","",'DF raw data'!K118) -> 9.49708e-05 | D113: =IF('DF raw data'!L118="","",'DF raw data'!L118) -> -3.48026e-05 | F113: -2.509074036e-05 | G113: 9.536967736e-05 | H113: -3.494877092e-05 | J113: -0.0004190880634 | K113: -0.005609751564 | L113: 0.002282676543 | M113: 0.02918763806 | N113: 4.578754143e-05
A114: =IF('DF raw data'!I119="","",'DF raw data'!I119) -> -274 | B114: =IF('DF raw data'!J119="","",'DF raw data'!J119) -> -3.7797e-06 | C114: =IF('DF raw data'!K119="","",'DF raw data'!K119) -> 9.27122e-05 | D114: =IF('DF raw data'!L119="","",'DF raw data'!L119) -> -2.44615e-05 | F114: -3.79557474e-06 | G114: 9.310159124e-05 | H114: -2.45642383e-05 | J114: -0.0004209858508 | K114: -0.005820244489 | L114: 0.002329227339 | M114: 0.03035225173 | N114: 4.858880598e-05
A115: =IF('DF raw data'!I120="","",'DF raw data'!I120) -> -273.5 | B115: =IF('DF raw data'!J120="","",'DF raw data'!J120) -> -2.44158e-05 | C115: =IF('DF raw data'!K120="","",'DF raw data'!K120) -> 9.0575e-05 | D115: =IF('DF raw data'!L120="","",'DF raw data'!L120) -> -2.4178e-05 | F115: -2.451834636e-05 | G115: 9.0955415e-05 | H115: -2.42795476e-05 | J115: -0.000433245024 | K115: -0.006036867001 | L115: 0.002374705047 | M115: 0.03153960426 | N115: 5.150226863e-05
A116: =IF('DF raw data'!I121="","",'DF raw data'!I121) -> -273 | B116: =IF('DF raw data'!J121="","",'DF raw data'!J121) -> -9.67688e-06 | C116: =IF('DF raw data'!K121="","",'DF raw data'!K121) -> 8.89923e-05 | D116: =IF('DF raw data'!L121="","",'DF raw data'!L121) -> -2.25458e-05 | F116: -9.717522896e-06 | G116: 8.936606766e-05 | H116: -2.264049236e-05 | J116: -0.0004381037854 | K116: -0.006255918894 | L116: 0.00241938808 | M116: 0.0327492983 | N116: 5.452495544e-05
A117: =IF('DF raw data'!I122="","",'DF raw data'!I122) -> -272.5 | B117: =IF('DF raw data'!J122="","",'DF raw data'!J122) -> -2.41576e-05 | C117: =IF('DF raw data'!K122="","",'DF raw data'!K122) -> 8.71021e-05 | D117: =IF('DF raw data'!L122="","",'DF raw data'!L122) -> -2.72174e-05 | F117: -2.425906192e-05 | G117: 8.746792882e-05 | H117: -2.733171308e-05 | J117: -0.0004502333164 | K117: -0.006481035552 | L117: 0.002463122045 | M117: 0.03398085932 | N117: 5.765979556e-05
A118: =IF('DF raw data'!I123="","",'DF raw data'!I123) -> -272 | B118: =IF('DF raw data'!J123="","",'DF raw data'!J123) -> -8.58202e-06 | C118: =IF('DF raw data'!K123="","",'DF raw data'!K123) -> 7.74189e-05 | D118: =IF('DF raw data'!L123="","",'DF raw data'!L123) -> -3.06904e-05 | F118: -8.618064484e-06 | G118: 7.774405938e-05 | H118: -3.081929968e-05 | J118: -0.0004545423486 | K118: -0.006708306727 | L118: 0.002501994075 | M118: 0.03523185636 | N118: 6.089308711e-05
A119: =IF('DF raw data'!I124="","",'DF raw data'!I124) -> -271.5 | B119: =IF('DF raw data'!J124="","",'DF raw data'!J124) -> -2.13996e-05 | C119: =IF('DF raw data'!K124="","",'DF raw data'!K124) -> 8.24032e-05 | D119: =IF('DF raw data'!L124="","",'DF raw data'!L124) -> -3.08419e-05 | F119: -2.148947832e-05 | G119: 8.274929344e-05 | H119: -3.097143598e-05 | J119: -0.0004652870878 | K119: -0.006940950271 | L119: 0.002543368721 | M119: 0.03650354072 | N119: 6.423569537e-05
A120: =IF('DF raw data'!I125="","",'DF raw data'!I125) -> -271 | B120: =IF('DF raw data'!J125="","",'DF raw data'!J125) -> -2.19704e-05 | C120: =IF('DF raw data'!K125="","",'DF raw data'!K125) -> 8.66727e-05 | D120: =IF('DF raw data'!L125="","",'DF raw data'!L125) -> -3.93419e-05 | F120: -2.206267568e-05 | G120: 8.703672534e-05 | H120: -3.950713598e-05 | J120: -0.0004763184256 | K120: -0.007179109483 | L120: 0.002586887084 | M120: 0.03779698426 | N120: 6.769512738e-05
A121: =IF('DF raw data'!I126="","",'DF raw data'!I126) -> -270.5 | B121: =IF('DF raw data'!J126="","",'DF raw data'!J126) -> -2.34438e-05 | C121: =IF('DF raw data'!K126="","",'DF raw data'!K126) -> 9.3749e-05 | D121: =IF('DF raw data'!L126="","",'DF raw data'!L126) -> -4.09072e-05 | F121: -2.354226396e-05 | G121: 9.41427458e-05 | H121: -4.107901024e-05 | J121: -0.0004880895576 | K121: -0.007423154262 | L121: 0.002633958457 | M121: 0.03911396349 | N121: 7.128311167e-05
A122: =IF('DF raw data'!I127="","",'DF raw data'!I127) -> -270 | B122: =IF('DF raw data'!J127="","",'DF raw data'!J127) -> -1.51786e-05 | C122: =IF('DF raw data'!K127="","",'DF raw data'!K127) -> 9.54096e-05 | D122: =IF('DF raw data'!L127="","",'DF raw data'!L127) -> -3.72804e-05 | F122: -1.524235012e-05 | G122: 9.581032032e-05 | H122: -3.743697768e-05 | J122: -0.0004957107327 | K122: -0.007671009629 | L122: 0.002681863617 | M122: 0.0404548953 | N122: 7.500217246e-05
A123: =IF('DF raw data'!I128="","",'DF raw data'!I128) -> -269.5 | B123: =IF('DF raw data'!J128="","",'DF raw data'!J128) -> -2.78712e-05 | C123: =IF('DF raw data'!K128="","",'DF raw data'!K128) -> 9.5233e-05 | D123: =IF('DF raw data'!L128="","",'DF raw data'!L128) -> -3.28919e-05 | F123: -2.798825904e-05 | G123: 9.56329786e-05 | H123: -3.303004598e-05 | J123: -0.0005097048622 | K123: -0.00792586206 | L123: 0.002729680106 | M123: 0.04181973535 | N123: 7.885764873e-05
A124: =IF('DF raw data'!I129="","",'DF raw data'!I129) -> -269 | B124: =IF('DF raw data'!J129="","",'DF raw data'!J129) -> -1.37698e-05 | C124: =IF('DF raw data'!K129="","",'DF raw data'!K129) -> 9.89924e-05 | D124: =IF('DF raw data'!L129="","",'DF raw data'!L129) -> -3.53775e-05 | F124: -1.382763316e-05 | G124: 9.940816808e-05 | H124: -3.55260855e-05 | J124: -0.0005166186788 | K124: -0.008184171399 | L124: 0.00277938419 | M124: 0.04320942744 | N124: 8.28535844e-05
A125: =IF('DF raw data'!I130="","",'DF raw data'!I130) -> -268.5 | B125: =IF('DF raw data'!J130="","",'DF raw data'!J130) -> -2.2427e-05 | C125: =IF('DF raw data'!K130="","",'DF raw data'!K130) -> 9.7257e-05 | D125: =IF('DF raw data'!L130="","",'DF raw data'!L130) -> -2.77664e-05 | F125: -2.25211934e-05 | G125: 9.76654794e-05 | H125: -2.788301888e-05 | J125: -0.0005278792755 | K125: -0.008448111037 | L125: 0.00282821693 | M125: 0.04462353591 | N125: 8.699231816e-05
A126: =IF('DF raw data'!I131="","",'DF raw data'!I131) -> -268 | B126: =IF('DF raw data'!J131="","",'DF raw data'!J131) -> -2.26181e-05 | C126: =IF('DF raw data'!K131="","",'DF raw data'!K131) -> 9.10875e-05 | D126: =IF('DF raw data'!L131="","",'DF raw data'!L131) -> -2.86366e-05 | F126: -2.271309602e-05 | G126: 9.14700675e-05 | H126: -2.875687372e-05 | J126: -0.0005392358235 | K126: -0.008717728949 | L126: 0.002873951964 | M126: 0.04606051189 | N126: 9.126750575e-05
A127: =IF('DF raw data'!I132="","",'DF raw data'!I132) -> -267.5 | B127: =IF('DF raw data'!J132="","",'DF raw data'!J132) -> -1.96672e-05 | C127: =IF('DF raw data'!K132="","",'DF raw data'!K132) -> 9.38234e-05 | D127: =IF('DF raw data'!L132="","",'DF raw data'!L132) -> -3.39564e-05 | F127: -1.974980224e-05 | G127: 9.421745828e-05 | H127: -3.409901688e-05 | J127: -0.0005491107246 | K127: -0.008992284311 | L127: 0.002921060693 | M127: 0.04752104224 | N127: 9.568456483e-05
A128: =IF('DF raw data'!I133="","",'DF raw data'!I133) -> -267 | B128: =IF('DF raw data'!J133="","",'DF raw data'!J133) -> -2.04409e-05 | C128: =IF('DF raw data'!K133="","",'DF raw data'!K133) -> 9.28777e-05 | D128: =IF('DF raw data'!L133="","",'DF raw data'!L133) -> -2.56871e-05 | F128: =(1-$G$1*($B$49-$G$2))*B128 -> -2.052675178e-05 | G128: 9.326778634e-05 | H128: -2.579498582e-05 | J128: =F128*$G$3+J127 -> -0.0005593741005 | K128: =J128*$G$3+K127 -> -0.009271971361 | L128: =G128*$G$3+L127 -> 0.002967694586 | M128: =L128*$G$3+M127 -> 0.04900488953 | N128: =(J128^2+L128^2)*$G$3+N127 -> 0.0001002446201
A129: =IF('DF raw data'!I134="","",'DF raw data'!I134) -> -266.5 | B129: =IF('DF raw data'!J134="","",'DF raw data'!J134) -> -1.54378e-05 | C129: =IF('DF raw data'!K134="","",'DF raw data'!K134) -> 9.89293e-05 | D129: =IF('DF raw data'!L134="","",'DF raw data'!L134) -> -3.37273e-05 | F129: -1.550263876e-05 | G129: 9.934480306e-05 | H129: -3.386895466e-05 | J129: -0.0005671254199 | K129: -0.009555534071 | L129: 0.003017366988 | M129: 0.05051357302 | N129: 0.0001049576875
A130: =IF('DF raw data'!I135="","",'DF raw data'!I135) -> -266 | B130: =IF('DF raw data'!J135="","",'DF raw data'!J135) -> -1.2741e-05 | C130: =IF('DF raw data'!K135="","",'DF raw data'!K135) -> 0.000106063 | D130: =IF('DF raw data'!L135="","",'DF raw data'!L135) -> -4.05855e-05 | F130: -1.27945122e-05 | G130: 0.0001065084646 | H130: -4.07559591e-05 | J130: -0.000573522676 | K130: -0.009842295409 | L130: 0.00307062122 | M130: 0.05204888363 | N130: 0.000109836509
A131: =IF('DF raw data'!I136="","",'DF raw data'!I136) -> -265.5 | B131: =IF('DF raw data'!J136="","",'DF raw data'!J136) -> -2.53005e-05 | C131: =IF('DF raw data'!K136="","",'DF raw data'!K136) -> 9.84115e-05 | D131: =IF('DF raw data'!L136="","",'DF raw data'!L136) -> -4.40065e-05 | F131: -2.54067621e-05 | G131: 9.88248283e-05 | H131: -4.41913273e-05 | J131: -0.000586226057 | K131: -0.01013540844 | L131: 0.003120033634 | M131: 0.05360890045 | N131: 0.0001148756444
A132: =IF('DF raw data'!I137="","",'DF raw data'!I137) -> -265 | B132: =IF('DF raw data'!J137="","",'DF raw data'!J137) -> -1.72296e-05 | C132: =IF('DF raw data'!K137="","",'DF raw data'!K137) -> 9.74363e-05 | D132: =IF('DF raw data'!L137="","",'DF raw data'!L137) -> -3.67179e-05 | F132: -1.730196432e-05 | G132: 9.784553246e-05 | H132: -3.687211518e-05 | J132: -0.0005948770392 | K132: -0.01043284696 | L132: 0.0031689564 | M132: 0.05519337865 | N132: 0.0001200737261
A133: =IF('DF raw data'!I138="","",'DF raw data'!I138) -> -264.5 | B133: =IF('DF raw data'!J138="","",'DF raw data'!J138) -> -2.94076e-05 | C133: =IF('DF raw data'!K138="","",'DF raw data'!K138) -> 9.32975e-05 | D133: =IF('DF raw data'!L138="","",'DF raw data'!L138) -> -3.54889e-05 | F133: -2.953111192e-05 | G133: 9.36893495e-05 | H133: -3.563795338e-05 | J133: -0.0006096425952 | K133: -0.01073766825 | L133: 0.003215801075 | M133: 0.05680127919 | N133: 0.0001254302464
A134: =IF('DF raw data'!I139="","",'DF raw data'!I139) -> -264 | B134: =IF('DF raw data'!J139="","",'DF raw data'!J139) -> -2.1264e-05 | C134: =IF('DF raw data'!K139="","",'DF raw data'!K139) -> 8.32021e-05 | D134: =IF('DF raw data'!L139="","",'DF raw data'!L139) -> -4.12989e-05 | F134: -2.13533088e-05 | G134: 8.355154882e-05 | H134: -4.147235538e-05 | J134: -0.0006203192496 | K134: -0.01104782788 | L134: 0.003257576849 | M134: 0.05843006761 | N134: 0.0001309285478
A135: =IF('DF raw data'!I140="","",'DF raw data'!I140) -> -263.5 | B135: =IF('DF raw data'!J140="","",'DF raw data'!J140) -> -2.01906e-05 | C135: =IF('DF raw data'!K140="","",'DF raw data'!K140) -> 9.05705e-05 | D135: =IF('DF raw data'!L140="","",'DF raw data'!L140) -> -1.74016e-05 | F135: -2.027540052e-05 | G135: 9.09508961e-05 | H135: -1.747468672e-05 | J135: -0.0006304569498 | K135: -0.01136305635 | L135: 0.003303052297 | M135: 0.06008159376 | N135: 0.0001365823631
A136: =IF('DF raw data'!I141="","",'DF raw data'!I141) -> -263 | B136: =IF('DF raw data'!J141="","",'DF raw data'!J141) -> -2.10144e-05 | C136: =IF('DF raw data'!K141="","",'DF raw data'!K141) -> 9.68785e-05 | D136: =IF('DF raw data'!L141="","",'DF raw data'!L141) -> -3.09892e-05 | F136: -2.110266048e-05 | G136: 9.72853897e-05 | H136: -3.111935464e-05 | J136: -0.0006410082801 | K136: -0.01168356049 | L136: 0.003351694992 | M136: 0.06175744126 | N136: 0.0001424047385
A137: =IF('DF raw data'!I142="","",'DF raw data'!I142) -> -262.5 | B137: =IF('DF raw data'!J142="","",'DF raw data'!J142) -> -1.9219e-05 | C137: =IF('DF raw data'!K142="","",'DF raw data'!K142) -> 0.000102882 | D137: =IF('DF raw data'!L142="","",'DF raw data'!L142) -> -3.34926e-05 | F137: -1.92997198e-05 | G137: 0.0001033141044 | H137: -3.363326892e-05 | J137: -0.00065065814 | K137: -0.01200888956 | L137: 0.003403352045 | M137: 0.06345911728 | N137: 0.0001484078191
A138: =IF('DF raw data'!I143="","",'DF raw data'!I143) -> -262 | B138: =IF('DF raw data'!J143="","",'DF raw data'!J143) -> -1.35899e-05 | C138: =IF('DF raw data'!K143="","",'DF raw data'!K143) -> 9.50334e-05 | D138: =IF('DF raw data'!L143="","",'DF raw data'!L143) -> -1.65586e-05 | F138: -1.364697758e-05 | G138: 9.543254028e-05 | H138: -1.662814612e-05 | J138: -0.0006574816287 | K138: -0.01233763038 | L138: 0.003451068315 | M138: 0.06518465144 | N138: 0.0001545788964
A139: =IF('DF raw data'!I144="","",'DF raw data'!I144) -> -261.5 | B139: =IF('DF raw data'!J144="","",'DF raw data'!J144) -> -1.94764e-05 | C139: =IF('DF raw data'!K144="","",'DF raw data'!K144) -> 9.47134e-05 | D139: =IF('DF raw data'!L144="","",'DF raw data'!L144) -> -3.20161e-05 | F139: -1.955820088e-05 | G139: 9.511119628e-05 | H139: -3.215056762e-05 | J139: -0.0006672607292 | K139: -0.01267126074 | L139: 0.003498623913 | M139: 0.06693396339 | N139: 0.0001609216995
A140: =IF('DF raw data'!I145="","",'DF raw data'!I145) -> -261 | B140: =IF('DF raw data'!J145="","",'DF raw data'!J145) -> -2.10179e-05 | C140: =IF('DF raw data'!K145="","",'DF raw data'!K145) -> 0.000100042 | D140: =IF('DF raw data'!L145="","",'DF raw data'!L145) -> -2.54591e-05 | F140: -2.110617518e-05 | G140: 0.0001004621764 | H140: -2.556602822e-05 | J140: -0.0006778138168 | K140: -0.01301016765 | L140: 0.003548855001 | M140: 0.06870839089 | N140: 0.0001674486012
A141: =IF('DF raw data'!I146="","",'DF raw data'!I146) -> -260.5 | B141: =IF('DF raw data'!J146="","",'DF raw data'!J146) -> -1.44806e-05 | C141: =IF('DF raw data'!K146="","",'DF raw data'!K146) -> 0.000105284 | D141: =IF('DF raw data'!L146="","",'DF raw data'!L146) -> -2.72387e-05 | F141: -1.454141852e-05 | G141: 0.0001057261928 | H141: -2.735310254e-05 | J141: -0.000685084526 | K141: -0.01335270991 | L141: 0.003601718097 | M141: 0.07050924994 | N141: 0.0001741694582
A142: =IF('DF raw data'!I147="","",'DF raw data'!I147) -> -260 | B142: =IF('DF raw data'!J147="","",'DF raw data'!J147) -> -1.75603e-05 | C142: =IF('DF raw data'!K147="","",'DF raw data'!K147) -> 9.8492e-05 | D142: =IF('DF raw data'!L147="","",'DF raw data'!L147) -> -2.06782e-05 | F142: -1.763405326e-05 | G142: 9.89056664e-05 | H142: -2.076504844e-05 | J142: -0.0006939015527 | K142: -0.01369966069 | L142: 0.003651170931 | M142: 0.07233483541 | N142: 0.0001810757325
A143: =IF('DF raw data'!I148="","",'DF raw data'!I148) -> -259.5 | B143: =IF('DF raw data'!J148="","",'DF raw data'!J148) -> -2.8899e-05 | C143: =IF('DF raw data'!K148="","",'DF raw data'!K148) -> 9.90907e-05 | D143: =IF('DF raw data'!L148="","",'DF raw data'!L148) -> -2.93389e-05 | F143: -2.90203758e-05 | G143: 9.950688094e-05 | H143: -2.946212338e-05 | J143: -0.0007084117406 | K143: -0.01405386656 | L143: 0.003700924371 | M143: 0.07418529759 | N143: 0.0001881750767
A144: =IF('DF raw data'!I149="","",'DF raw data'!I149) -> -259 | B144: =IF('DF raw data'!J149="","",'DF raw data'!J149) -> -3.40151e-05 | C144: =IF('DF raw data'!K149="","",'DF raw data'!K149) -> 9.83011e-05 | D144: =IF('DF raw data'!L149="","",'DF raw data'!L149) -> -4.42776e-05 | F144: -3.415796342e-05 | G144: 9.871396462e-05 | H144: -4.446356592e-05 | J144: -0.0007254907223 | K144: -0.01441661192 | L144: 0.003750281353 | M144: 0.07606043827 | N144: 0.0001954705502
A145: =IF('DF raw data'!I150="","",'DF raw data'!I150) -> -258.5 | B145: =IF('DF raw data'!J150="","",'DF raw data'!J150) -> -1.55652e-05 | C145: =IF('DF raw data'!K150="","",'DF raw data'!K150) -> 9.99101e-05 | D145: =IF('DF raw data'!L150="","",'DF raw data'!L150) -> -3.49058e-05 | F145: -1.563057384e-05 | G145: 0.0001003297224 | H145: -3.505240436e-05 | J145: -0.0007333060092 | K145: -0.01478326493 | L145: 0.003800446215 | M145: 0.07796066138 | N145: 0.0002029611148
A146: =IF('DF raw data'!I151="","",'DF raw data'!I151) -> -258 | B146: =IF('DF raw data'!J151="","",'DF raw data'!J151) -> -1.74214e-05 | C146: =IF('DF raw data'!K151="","",'DF raw data'!K151) -> 0.000107962 | D146: =IF('DF raw data'!L151="","",'DF raw data'!L151) -> -3.71477e-05 | F146: -1.749456988e-05 | G146: 0.0001084154404 | H146: -3.730372034e-05 | J146: -0.0007420532941 | K146: -0.01515429157 | L146: 0.003854653935 | M146: 0.07988798835 | N146: 0.0002106656148
A147: =IF('DF raw data'!I152="","",'DF raw data'!I152) -> -257.5 | B147: =IF('DF raw data'!J152="","",'DF raw data'!J152) -> -6.91557e-06 | C147: =IF('DF raw data'!K152="","",'DF raw data'!K152) -> 0.00010376 | D147: =IF('DF raw data'!L152="","",'DF raw data'!L152) -> -3.15363e-05 | F147: -6.944615394e-06 | G147: 0.000104195792 | H147: -3.166875246e-05 | J147: -0.0007455256018 | K147: -0.01552705438 | L147: 0.003906751831 | M147: 0.08184136426 | N147: 0.0002185748739
A148: =IF('DF raw data'!I153="","",'DF raw data'!I153) -> -257 | B148: =IF('DF raw data'!J153="","",'DF raw data'!J153) -> -1.47939e-05 | C148: =IF('DF raw data'!K153="","",'DF raw data'!K153) -> 0.000101494 | D148: =IF('DF raw data'!L153="","",'DF raw data'!L153) -> -3.69667e-05 | F148: -1.485603438e-05 | G148: 0.0001019202748 | H148: -3.712196014e-05 | J148: -0.000752953619 | K148: -0.01590353118 | L148: 0.003957711968 | M148: 0.08382022025 | N148: 0.0002266900855
A149: =IF('DF raw data'!I154="","",'DF raw data'!I154) -> -256.5 | B149: =IF('DF raw data'!J154="","",'DF raw data'!J154) -> -1.39632e-05 | C149: =IF('DF raw data'!K154="","",'DF raw data'!K154) -> 0.000103866 | D149: =IF('DF raw data'!L154="","",'DF raw data'!L154) -> -3.46396e-05 | F149: -1.402184544e-05 | G149: 0.0001043022372 | H149: -3.478508632e-05 | J149: -0.0007599645417 | K149: -0.01628351346 | L149: 0.004009863087 | M149: 0.08582515179 | N149: 0.0002350183596
A150: =IF('DF raw data'!I155="","",'DF raw data'!I155) -> -256 | B150: =IF('DF raw data'!J155="","",'DF raw data'!J155) -> -8.00233e-06 | C150: =IF('DF raw data'!K155="","",'DF raw data'!K155) -> 0.000104203 | D150: =IF('DF raw data'!L155="","",'DF raw data'!L155) -> -3.48391e-05 | F150: -8.035939786e-06 | G150: 0.0001046406526 | H150: -3.498542422e-05 | J150: -0.0007639825116 | K150: -0.01666550471 | L150: 0.004062183413 | M150: 0.0878562435 | N150: 0.0002435608612
A151: =IF('DF raw data'!I156="","",'DF raw data'!I156) -> -255.5 | B151: =IF('DF raw data'!J156="","",'DF raw data'!J156) -> -8.76642e-06 | C151: =IF('DF raw data'!K156="","",'DF raw data'!K156) -> 0.00010286 | D151: =IF('DF raw data'!L156="","",'DF raw data'!L156) -> -4.35342e-05 | F151: -8.803238964e-06 | G151: 0.000103292012 | H151: -4.371704364e-05 | J151: -0.0007683841311 | K151: -0.01704969678 | L151: 0.004113829419 | M151: 0.0899131582 | N151: 0.0002523178646
A152: =IF('DF raw data'!I157="","",'DF raw data'!I157) -> -255 | B152: =IF('DF raw data'!J157="","",'DF raw data'!J157) -> -2.08152e-05 | C152: =IF('DF raw data'!K157="","",'DF raw data'!K157) -> 0.000100087 | D152: =IF('DF raw data'!L157="","",'DF raw data'!L157) -> -4.11019e-05 | F152: -2.090262384e-05 | G152: 0.0001005073654 | H152: -4.127452798e-05 | J152: -0.000778835443 | K152: -0.0174391145 | L152: 0.004164083102 | M152: 0.09199519976 | N152: 0.0002612909509
A153: =IF('DF raw data'!I158="","",'DF raw data'!I158) -> -254.5 | B153: =IF('DF raw data'!J158="","",'DF raw data'!J158) -> -1.53834e-05 | C153: =IF('DF raw data'!K158="","",'DF raw data'!K158) -> 0.000100761 | D153: =IF('DF raw data'!L158="","",'DF raw data'!L158) -> -1.87886e-05 | F153: -1.544801028e-05 | G153: 0.0001011841962 | H153: -1.886751212e-05 | J153: -0.0007865594482 | K153: -0.01783239422 | L153: 0.0042146752 | M153: 0.09410253736 | N153: 0.0002704820323
A154: =IF('DF raw data'!I159="","",'DF raw data'!I159) -> -254 | B154: =IF('DF raw data'!J159="","",'DF raw data'!J159) -> -2.02526e-05 | C154: =IF('DF raw data'!K159="","",'DF raw data'!K159) -> 9.75234e-05 | D154: =IF('DF raw data'!L159="","",'DF raw data'!L159) -> -1.94446e-05 | F154: -2.033766092e-05 | G154: 9.793299828e-05 | H154: -1.952626732e-05 | J154: -0.0007967282786 | K154: -0.01823075836 | L154: 0.004263641699 | M154: 0.09623435821 | N154: 0.0002798887406
A155: =IF('DF raw data'!I160="","",'DF raw data'!I160) -> -253.5 | B155: =IF('DF raw data'!J160="","",'DF raw data'!J160) -> -2.83771e-05 | C155: =IF('DF raw data'!K160="","",'DF raw data'!K160) -> 9.64889e-05 | D155: =IF('DF raw data'!L160="","",'DF raw data'!L160) -> -4.42101e-05 | F155: -2.849628382e-05 | G155: 9.689415338e-05 | H155: -4.439578242e-05 | J155: -0.0008109764205 | K155: -0.01863624657 | L155: 0.004312088776 | M155: 0.09839040259 | N155: 0.0002895146368
A156: =IF('DF raw data'!I161="","",'DF raw data'!I161) -> -253 | B156: =IF('DF raw data'!J161="","",'DF raw data'!J161) -> -1.95993e-05 | C156: =IF('DF raw data'!K161="","",'DF raw data'!K161) -> 9.52945e-05 | D156: =IF('DF raw data'!L161="","",'DF raw data'!L161) -> -3.86049e-05 | F156: -1.968161706e-05 | G156: 9.56947369e-05 | H156: -3.876704058e-05 | J156: -0.0008208172291 | K156: -0.01904665519 | L156: 0.004359936144 | M156: 0.1005703707 | N156: 0.0002993560288
A157: =IF('DF raw data'!I162="","",'DF raw data'!I162) -> -252.5 | B157: =IF('DF raw data'!J162="","",'DF raw data'!J162) -> -8.32394e-06 | C157: =IF('DF raw data'!K162="","",'DF raw data'!K162) -> 0.000103153 | D157: =IF('DF raw data'!L162="","",'DF raw data'!L162) -> -3.39423e-05 | F157: -8.358900548e-06 | G157: 0.0001035862426 | H157: -3.408485766e-05 | J157: -0.0008249966793 | K157: -0.01945915353 | L157: 0.004411729265 | M157: 0.1027762353 | N157: 0.0003094280161
A158: =IF('DF raw data'!I163="","",'DF raw data'!I163) -> -252 | B158: =IF('DF raw data'!J163="","",'DF raw data'!J163) -> -1.62034e-05 | C158: =IF('DF raw data'!K163="","",'DF raw data'!K163) -> 0.000106263 | D158: =IF('DF raw data'!L163="","",'DF raw data'!L163) -> -3.77585e-05 | F158: -1.627145428e-05 | G158: 0.0001067093046 | H158: -3.79170857e-05 | J158: -0.0008331324065 | K158: -0.01987571973 | L158: 0.004465083918 | M158: 0.1050087773 | N158: 0.0003197435581
A159: =IF('DF raw data'!I164="","",'DF raw data'!I164) -> -251.5 | B159: =IF('DF raw data'!J164="","",'DF raw data'!J164) -> -2.40902e-05 | C159: =IF('DF raw data'!K164="","",'DF raw data'!K164) -> 0.000102592 | D159: =IF('DF raw data'!L164="","",'DF raw data'!L164) -> -3.30121e-05 | F159: -2.419137884e-05 | G159: 0.0001030228864 | H159: -3.315075082e-05 | J159: -0.0008452280959 | K159: -0.02029833378 | L159: 0.004516595361 | M159: 0.1072670749 | N159: 0.0003303005802
A160: =IF('DF raw data'!I165="","",'DF raw data'!I165) -> -251 | B160: =IF('DF raw data'!J165="","",'DF raw data'!J165) -> -2.42131e-05 | C160: =IF('DF raw data'!K165="","",'DF raw data'!K165) -> 0.00010389 | D160: =IF('DF raw data'!L165="","",'DF raw data'!L165) -> -3.87133e-05 | F160: -2.431479502e-05 | G160: 0.000104326338 | H160: -3.887589586e-05 | J160: -0.0008573854934 | K160: -0.02072702652 | L160: 0.00456875853 | M160: 0.1095514542 | N160: 0.0003411049124
A161: =IF('DF raw data'!I166="","",'DF raw data'!I166) -> -250.5 | B161: =IF('DF raw data'!J166="","",'DF raw data'!J166) -> -9.15993e-06 | C161: =IF('DF raw data'!K166="","",'DF raw data'!K166) -> 9.72832e-05 | D161: =IF('DF raw data'!L166="","",'DF raw data'!L166) -> -2.97367e-05 | F161: -9.198401706e-06 | G161: 9.769178944e-05 | H161: -2.986159414e-05 | J161: -0.0008619846943 | K161: -0.02115801887 | L161: 0.004617604425 | M161: 0.1118602564 | N161: 0.0003521375565
A162: =IF('DF raw data'!I167="","",'DF raw data'!I167) -> -250 | B162: =IF('DF raw data'!J167="","",'DF raw data'!J167) -> -2.24867e-05 | C162: =IF('DF raw data'!K167="","",'DF raw data'!K167) -> 9.13713e-05 | D162: =IF('DF raw data'!L167="","",'DF raw data'!L167) -> -3.31891e-05 | F162: -2.258114414e-05 | G162: 9.175505946e-05 | H162: -3.332849422e-05 | J162: -0.0008732752663 | K162: -0.0215946565 | L162: 0.004663481954 | M162: 0.1141919974 | N162: 0.0003633928933
A163: =IF('DF raw data'!I168="","",'DF raw data'!I168) -> -249.5 | B163: =IF('DF raw data'!J168="","",'DF raw data'!J168) -> -2.29964e-05 | C163: =IF('DF raw data'!K168="","",'DF raw data'!K168) -> 9.3803e-05 | D163: =IF('DF raw data'!L168="","",'DF raw data'!L168) -> -3.99022e-05 | F163: -2.309298488e-05 | G163: 9.41969726e-05 | H163: -4.006978924e-05 | J163: -0.0008848217588 | K163: -0.02203706738 | L163: 0.004710580441 | M163: 0.1165472876 | N163: 0.0003748791322
A164: =IF('DF raw data'!I169="","",'DF raw data'!I169) -> -249 | B164: =IF('DF raw data'!J169="","",'DF raw data'!J169) -> -1.47318e-05 | C164: =IF('DF raw data'!K169="","",'DF raw data'!K169) -> 0.000104912 | D164: =IF('DF raw data'!L169="","",'DF raw data'!L169) -> -3.40535e-05 | F164: -1.479367356e-05 | G164: 0.0001053526304 | H164: -3.41965247e-05 | J164: -0.0008922185956 | K164: -0.02248317668 | L164: 0.004763256756 | M164: 0.118928916 | N164: 0.0003866214666
A165: =IF('DF raw data'!I170="","",'DF raw data'!I170) -> -248.5 | B165: =IF('DF raw data'!J170="","",'DF raw data'!J170) -> -1.42204e-05 | C165: =IF('DF raw data'!K170="","",'DF raw data'!K170) -> 0.000105037 | D165: =IF('DF raw data'!L170="","",'DF raw data'!L170) -> -3.3478e-05 | F165: -1.428012568e-05 | G165: 0.0001054781554 | H165: -3.36186076e-05 | J165: -0.0008993586584 | K165: -0.02293285601 | L165: 0.004815995834 | M165: 0.1213369139 | N165: 0.0003986227976
A166: =IF('DF raw data'!I171="","",'DF raw data'!I171) -> -248 | B166: =IF('DF raw data'!J171="","",'DF raw data'!J171) -> -1.46683e-05 | C166: =IF('DF raw data'!K171="","",'DF raw data'!K171) -> 0.000114236 | D166: =IF('DF raw data'!L171="","",'DF raw data'!L171) -> -3.29634e-05 | F166: -1.472990686e-05 | G166: 0.0001147157912 | H166: -3.310184628e-05 | J166: -0.0009067236118 | K166: -0.02338621782 | L166: 0.004873353729 | M166: 0.1237735908 | N166: 0.0004109086597
A167: =IF('DF raw data'!I172="","",'DF raw data'!I172) -> -247.5 | B167: =IF('DF raw data'!J172="","",'DF raw data'!J172) -> -1.17248e-05 | C167: =IF('DF raw data'!K172="","",'DF raw data'!K172) -> 0.000115832 | D167: =IF('DF raw data'!L172="","",'DF raw data'!L172) -> -2.75236e-05 | F167: -1.177404416e-05 | G167: 0.0001163184944 | H167: -2.763919912e-05 | J167: -0.0009126106339 | K167: -0.02384252313 | L167: 0.004931512976 | M167: 0.1262393473 | N167: 0.0004234849989
A168: =IF('DF raw data'!I173="","",'DF raw data'!I173) -> -247 | B168: =IF('DF raw data'!J173="","",'DF raw data'!J173) -> -2.43482e-05 | C168: =IF('DF raw data'!K173="","",'DF raw data'!K173) -> 0.000110603 | D168: =IF('DF raw data'!L173="","",'DF raw data'!L173) -> -2.81775e-05 | F168: -2.445046244e-05 | G168: 0.0001110675326 | H168: -2.82958455e-05 | J168: -0.0009248358651 | K168: -0.02430494107 | L168: 0.004987046743 | M168: 0.1287328706 | N168: 0.0004363479772
A169: =IF('DF raw data'!I174="","",'DF raw data'!I174) -> -246.5 | B169: =IF('DF raw data'!J174="","",'DF raw data'!J174) -> -1.60859e-05 | C169: =IF('DF raw data'!K174="","",'DF raw data'!K174) -> 0.000105037 | D169: =IF('DF raw data'!L174="","",'DF raw data'!L174) -> -2.29137e-05 | F169: -1.615346078e-05 | G169: 0.0001054781554 | H169: -2.300993754e-05 | J169: -0.0009329125955 | K169: -0.02477139736 | L169: 0.00503978582 | M169: 0.1312527635 | N169: 0.0004494828607
A170: =IF('DF raw data'!I175="","",'DF raw data'!I175) -> -246 | B170: =IF('DF raw data'!J175="","",'DF raw data'!J175) -> -1.85817e-05 | C170: =IF('DF raw data'!K175="","",'DF raw data'!K175) -> 9.71955e-05 | D170: =IF('DF raw data'!L175="","",'DF raw data'!L175) -> -2.67269e-05 | F170: -1.865974314e-05 | G170: 9.76037211e-05 | H170: -2.683915298e-05 | J170: -0.0009422424671 | K170: -0.0252425186 | L170: 0.005088587681 | M170: 0.1337970574 | N170: 0.0004628736335
A171: =IF('DF raw data'!I176="","",'DF raw data'!I176) -> -245.5 | B171: =IF('DF raw data'!J176="","",'DF raw data'!J176) -> -1.70423e-05 | C171: =IF('DF raw data'!K176="","",'DF raw data'!K176) -> 0.000107652 | D171: =IF('DF raw data'!L176="","",'DF raw data'!L176) -> -3.03018e-05 | F171: -1.711387766e-05 | G171: 0.0001081041384 | H171: -3.042906756e-05 | J171: -0.0009507994059 | K171: -0.0257179183 | L171: 0.00514263975 | M171: 0.1363683773 | N171: 0.000476549015
A172: =IF('DF raw data'!I177="","",'DF raw data'!I177) -> -245 | B172: =IF('DF raw data'!J177="","",'DF raw data'!J177) -> -1.55679e-05 | C172: =IF('DF raw data'!K177="","",'DF raw data'!K177) -> 0.000107438 | D172: =IF('DF raw data'!L177="","",'DF raw data'!L177) -> -2.95346e-05 | F172: -1.563328518e-05 | G172: 0.0001078892396 | H172: -2.965864532e-05 | J172: -0.0009586160485 | K172: -0.02619722632 | L172: 0.00519658437 | M172: 0.1389666694 | N172: 0.0004905107319
A173: =IF('DF raw data'!I178="","",'DF raw data'!I178) -> -244.5 | B173: =IF('DF raw data'!J178="","",'DF raw data'!J178) -> -3.06273e-05 | C173: =IF('DF raw data'!K178="","",'DF raw data'!K178) -> 0.000105236 | D173: =IF('DF raw data'!L178="","",'DF raw data'!L178) -> -3.32145e-05 | F173: -3.075593466e-05 | G173: 0.0001056779912 | H173: -3.33540009e-05 | J173: -0.0009739940158 | K173: -0.02668422333 | L173: 0.005249423366 | M173: 0.1415913811 | N173: 0.0005047632869
A174: =IF('DF raw data'!I179="","",'DF raw data'!I179) -> -244 | B174: =IF('DF raw data'!J179="","",'DF raw data'!J179) -> -2.30018e-05 | C174: =IF('DF raw data'!K179="","",'DF raw data'!K179) -> 9.98932e-05 | D174: =IF('DF raw data'!L179="","",'DF raw data'!L179) -> -2.93841e-05 | F174: -2.309840756e-05 | G174: 0.0001003127514 | H174: -2.950751322e-05 | J174: -0.0009855432196 | K174: -0.02717699494 | L174: 0.005299579741 | M174: 0.144241171 | N174: 0.0005192917074
A175: =IF('DF raw data'!I180="","",'DF raw data'!I180) -> -243.5 | B175: =IF('DF raw data'!J180="","",'DF raw data'!J180) -> -1.64022e-05 | C175: =IF('DF raw data'!K180="","",'DF raw data'!K180) -> 0.000103209 | D175: =IF('DF raw data'!L180="","",'DF raw data'!L180) -> -2.91921e-05 | F175: -1.647108924e-05 | G175: 0.0001036424778 | H175: -2.931470682e-05 | J175: -0.0009937787642 | K175: -0.02767388432 | L175: 0.00535140098 | M175: 0.1469168715 | N175: 0.0005341042517
A176: =IF('DF raw data'!I181="","",'DF raw data'!I181) -> -243 | B176: =IF('DF raw data'!J181="","",'DF raw data'!J181) -> -2.00527e-05 | C176: =IF('DF raw data'!K181="","",'DF raw data'!K181) -> 0.000112059 | D176: =IF('DF raw data'!L181="","",'DF raw data'!L181) -> -3.08331e-05 | F176: -2.013692134e-05 | G176: 0.0001125296478 | H176: -3.096259902e-05 | J176: -0.001003847225 | K176: -0.02817580794 | L176: 0.005407665804 | M176: 0.1496207044 | N176: 0.0005492295311
A177: =IF('DF raw data'!I182="","",'DF raw data'!I182) -> -242.5 | B177: =IF('DF raw data'!J182="","",'DF raw data'!J182) -> -1.33197e-05 | C177: =IF('DF raw data'!K182="","",'DF raw data'!K182) -> 0.000106582 | D177: =IF('DF raw data'!L182="","",'DF raw data'!L182) -> -3.91866e-05 | F177: -1.337564274e-05 | G177: 0.0001070296444 | H177: -3.935118372e-05 | J177: -0.001010535046 | K177: -0.02868107546 | L177: 0.005461180626 | M177: 0.1523512947 | N177: 0.0005646523685
A178: =IF('DF raw data'!I183="","",'DF raw data'!I183) -> -242 | B178: =IF('DF raw data'!J183="","",'DF raw data'!J183) -> -8.32281e-06 | C178: =IF('DF raw data'!K183="","",'DF raw data'!K183) -> 9.62341e-05 | D178: =IF('DF raw data'!L183="","",'DF raw data'!L183) -> -3.47635e-05 | F178: -8.357765802e-06 | G178: 9.663828322e-05 | H178: -3.49095067e-05 | J178: -0.001014713929 | K178: -0.02918843242 | L178: 0.005509499768 | M178: 0.1551060446 | N178: 0.0005803444845
A179: =IF('DF raw data'!I184="","",'DF raw data'!I184) -> -241.5 | B179: =IF('DF raw data'!J184="","",'DF raw data'!J184) -> -1.30002e-05 | C179: =IF('DF raw data'!K184="","",'DF raw data'!K184) -> 8.68874e-05 | D179: =IF('DF raw data'!L184="","",'DF raw data'!L184) -> -3.75317e-05 | F179: -1.305480084e-05 | G179: 8.725232708e-05 | H179: -3.768933314e-05 | J179: -0.00102124133 | K179: -0.02969905309 | L179: 0.005553125931 | M179: 0.1578826076 | N179: 0.0005962845553
A180: =IF('DF raw data'!I185="","",'DF raw data'!I185) -> -241 | B180: =IF('DF raw data'!J185="","",'DF raw data'!J185) -> -1.9149e-05 | C180: =IF('DF raw data'!K185="","",'DF raw data'!K185) -> 9.70891e-05 | D180: =IF('DF raw data'!L185="","",'DF raw data'!L185) -> -4.07014e-05 | F180: -1.92294258e-05 | G180: 9.749687422e-05 | H180: -4.087234588e-05 | J180: -0.001030856043 | K180: -0.03021448111 | L180: 0.005601874369 | M180: 0.1606835447 | N180: 0.0006125063856
A181: =IF('DF raw data'!I186="","",'DF raw data'!I186) -> -240.5 | B181: =IF('DF raw data'!J186="","",'DF raw data'!J186) -> -1.87763e-05 | C181: =IF('DF raw data'!K186="","",'DF raw data'!K186) -> 9.87649e-05 | D181: =IF('DF raw data'!L186="","",'DF raw data'!L186) -> -2.51426e-05 | F181: -1.885516046e-05 | G181: 9.917971258e-05 | H181: -2.524819892e-05 | J181: -0.001040283623 | K181: -0.03073462292 | L181: 0.005651464225 | M181: 0.1635092768 | N181: 0.0006290170045
A182: =IF('DF raw data'!I187="","",'DF raw data'!I187) -> -240 | B182: =IF('DF raw data'!J187="","",'DF raw data'!J187) -> -1.85215e-05 | C182: =IF('DF raw data'!K187="","",'DF raw data'!K187) -> 9.35633e-05 | D182: =IF('DF raw data'!L187="","",'DF raw data'!L187) -> -2.02684e-05 | F182: -1.85992903e-05 | G182: 9.395626586e-05 | H182: -2.035352728e-05 | J182: -0.001049583268 | K182: -0.03125941456 | L182: 0.005698442358 | M182: 0.166358498 | N182: 0.0006458039397
A183: =IF('DF raw data'!I188="","",'DF raw data'!I188) -> -239.5 | B183: =IF('DF raw data'!J188="","",'DF raw data'!J188) -> -1.71105e-05 | C183: =IF('DF raw data'!K188="","",'DF raw data'!K188) -> 9.04247e-05 | D183: =IF('DF raw data'!L188="","",'DF raw data'!L188) -> -2.44923e-05 | F183: -1.71823641e-05 | G183: 9.080448374e-05 | H183: -2.459516766e-05 | J183: -0.00105817445 | K183: -0.03178850178 | L183: 0.0057438446 | M183: 0.1692304203 | N183: 0.0006628596817
A184: =IF('DF raw data'!I189="","",'DF raw data'!I189) -> -239 | B184: =IF('DF raw data'!J189="","",'DF raw data'!J189) -> -1.65273e-05 | C184: =IF('DF raw data'!K189="","",'DF raw data'!K189) -> 9.99927e-05 | D184: =IF('DF raw data'!L189="","",'DF raw data'!L189) -> -3.18199e-05 | F184: -1.659671466e-05 | G184: 0.0001004126693 | H184: -3.195354358e-05 | J184: -0.001066472807 | K184: -0.03232173818 | L184: 0.005794050934 | M184: 0.1721274458 | N184: 0.0006802138769
A185: =IF('DF raw data'!I190="","",'DF raw data'!I190) -> -238.5 | B185: =IF('DF raw data'!J190="","",'DF raw data'!J190) -> -9.16243e-06 | C185: =IF('DF raw data'!K190="","",'DF raw data'!K190) -> 9.50819e-05 | D185: =IF('DF raw data'!L190="","",'DF raw data'!L190) -> -2.61319e-05 | F185: -9.200912206e-06 | G185: 9.548124398e-05 | H185: -2.624165398e-05 | J185: -0.001071073263 | K185: -0.03285727482 | L185: 0.005841791556 | M185: 0.1750483416 | N185: 0.0006978507402
A186: =IF('DF raw data'!I191="","",'DF raw data'!I191) -> -238 | B186: =IF('DF raw data'!J191="","",'DF raw data'!J191) -> -5.24731e-06 | C186: =IF('DF raw data'!K191="","",'DF raw data'!K191) -> 9.83281e-05 | D186: =IF('DF raw data'!L191="","",'DF raw data'!L191) -> -3.36681e-05 | F186: -5.269348702e-06 | G186: 9.874107802e-05 | H186: -3.380950602e-05 | J186: -0.001073707938 | K186: -0.03339412879 | L186: 0.005891162095 | M186: 0.1779939226 | N186: 0.00071578006
A187: =IF('DF raw data'!I192="","",'DF raw data'!I192) -> -237.5 | B187: =IF('DF raw data'!J192="","",'DF raw data'!J192) -> -1.30677e-05 | C187: =IF('DF raw data'!K192="","",'DF raw data'!K192) -> 0.000101133 | D187: =IF('DF raw data'!L192="","",'DF raw data'!L192) -> -3.25778e-05 | F187: -1.312258434e-05 | G187: 0.0001015577586 | H187: -3.271462676e-05 | J187: -0.00108026923 | K187: -0.0339342634 | L187: 0.005941940975 | M187: 0.1809648931 | N187: 0.000734016882
A188: =IF('DF raw data'!I193="","",'DF raw data'!I193) -> -237 | B188: =IF('DF raw data'!J193="","",'DF raw data'!J193) -> -7.61496e-06 | C188: =IF('DF raw data'!K193="","",'DF raw data'!K193) -> 0.000101071 | D188: =IF('DF raw data'!L193="","",'DF raw data'!L193) -> -3.90067e-05 | F188: -7.646942832e-06 | G188: 0.0001014954982 | H188: -3.917052814e-05 | J188: -0.001084092701 | K188: -0.03447630975 | L188: 0.005992688724 | M188: 0.1839612375 | N188: 0.0007525606696
A189: =IF('DF raw data'!I194="","",'DF raw data'!I194) -> -236.5 | B189: =IF('DF raw data'!J194="","",'DF raw data'!J194) -> -9.48069e-06 | C189: =IF('DF raw data'!K194="","",'DF raw data'!K194) -> 9.75475e-05 | D189: =IF('DF raw data'!L194="","",'DF raw data'!L194) -> -2.92952e-05 | F189: -9.520508898e-06 | G189: 9.79571995e-05 | H189: -2.941823984e-05 | J189: -0.001088852956 | K189: -0.03502073623 | L189: 0.006041667323 | M189: 0.1869820711 | N189: 0.000771404342
A190: =IF('DF raw data'!I195="","",'DF raw data'!I195) -> -236 | B190: =IF('DF raw data'!J195="","",'DF raw data'!J195) -> -9.2841e-06 | C190: =IF('DF raw data'!K195="","",'DF raw data'!K195) -> 0.000104334 | D190: =IF('DF raw data'!L195="","",'DF raw data'!L195) -> -3.47346e-05 | F190: -9.32309322e-06 | G190: 0.0001047722028 | H190: -3.488048532e-05 | J190: -0.001093514502 | K190: -0.03556749348 | L190: 0.006094053425 | M190: 0.1900290978 | N190: 0.0007905709726
A191: =IF('DF raw data'!I196="","",'DF raw data'!I196) -> -235.5 | B191: =IF('DF raw data'!J196="","",'DF raw data'!J196) -> -1.09528e-05 | C191: =IF('DF raw data'!K196="","",'DF raw data'!K196) -> 0.000101934 | D191: =IF('DF raw data'!L196="","",'DF raw data'!L196) -> -3.24587e-05 | F191: -1.099880176e-05 | G191: 0.0001023621228 | H191: -3.259502654e-05 | J191: -0.001099013903 | K191: -0.03611700043 | L191: 0.006145234486 | M191: 0.1931017151 | N191: 0.0008100568418
A192: =IF('DF raw data'!I197="","",'DF raw data'!I197) -> -235 | B192: =IF('DF raw data'!J197="","",'DF raw data'!J197) -> -1.17162e-05 | C192: =IF('DF raw data'!K197="","",'DF raw data'!K197) -> 9.49988e-05 | D192: =IF('DF raw data'!L197="","",'DF raw data'!L197) -> -3.93373e-05 | F192: =(1-$G$1*($B$49-$G$2))*B192 -> -1.176540804e-05 | G192: 9.539779496e-05 | H192: -3.950251666e-05 | J192: =F192*$G$3+J191 -> -0.001104896607 | K192: =J192*$G$3+K191 -> -0.03666944874 | L192: =G192*$G$3+L191 -> 0.006192933384 | M192: =L192*$G$3+M191 -> 0.1961981818 | N192: =(J192^2+L192^2)*$G$3+N191 -> 0.000829843452
A193: =IF('DF raw data'!I198="","",'DF raw data'!I198) -> -234.5 | B193: =IF('DF raw data'!J198="","",'DF raw data'!J198) -> -1.36381e-05 | C193: =IF('DF raw data'!K198="","",'DF raw data'!K198) -> 9.42949e-05 | D193: =IF('DF raw data'!L198="","",'DF raw data'!L198) -> -4.21978e-05 | F193: -1.369538002e-05 | G193: 9.469093858e-05 | H193: -4.237503076e-05 | J193: -0.001111744297 | K193: -0.03722532088 | L193: 0.006240278853 | M193: 0.1993183212 | N193: 0.0008499319798
A194: =IF('DF raw data'!I199="","",'DF raw data'!I199) -> -234 | B194: =IF('DF raw data'!J199="","",'DF raw data'!J199) -> 1.93254e-06 | C194: =IF('DF raw data'!K199="","",'DF raw data'!K199) -> 9.83654e-05 | D194: =IF('DF raw data'!L199="","",'DF raw data'!L199) -> -3.75947e-05 | F194: 1.940656668e-06 | G194: 9.877853468e-05 | H194: -3.775259774e-05 | J194: -0.001110773969 | K194: -0.03778070787 | L194: 0.00628966812 | M194: 0.2024631553 | N194: 0.0008703288517
A195: =IF('DF raw data'!I200="","",'DF raw data'!I200) -> -233.5 | B195: =IF('DF raw data'!J200="","",'DF raw data'!J200) -> -7.36123e-06 | C195: =IF('DF raw data'!K200="","",'DF raw data'!K200) -> 9.94404e-05 | D195: =IF('DF raw data'!L200="","",'DF raw data'!L200) -> -3.61573e-05 | F195: -7.392147166e-06 | G195: 9.985804968e-05 | H195: -3.630916066e-05 | J195: -0.001114470043 | K195: -0.03833794289 | L195: 0.006339597145 | M195: 0.2056329538 | N195: 0.0008910451194
A196: =IF('DF raw data'!I201="","",'DF raw data'!I201) -> -233 | B196: =IF('DF raw data'!J201="","",'DF raw data'!J201) -> -1.85093e-05 | C196: =IF('DF raw data'!K201="","",'DF raw data'!K201) -> 0.000105834 | D196: =IF('DF raw data'!L201="","",'DF raw data'!L201) -> -3.89693e-05 | F196: -1.858703906e-05 | G196: 0.0001062785028 | H196: -3.913297106e-05 | J196: -0.001123763562 | K196: -0.03889982467 | L196: 0.006392736397 | M196: 0.208829322 | N196: 0.000912110081
A197: =IF('DF raw data'!I202="","",'DF raw data'!I202) -> -232.5 | B197: =IF('DF raw data'!J202="","",'DF raw data'!J202) -> -1.84433e-05 | C197: =IF('DF raw data'!K202="","",'DF raw data'!K202) -> 9.91773e-05 | D197: =IF('DF raw data'!L202="","",'DF raw data'!L202) -> -4.48815e-05 | F197: -1.852076186e-05 | G197: 9.959384466e-05 | H197: -4.50700023e-05 | J197: -0.001133023943 | K197: -0.03946633664 | L197: 0.006442533319 | M197: 0.2120505887 | N197: 0.0009335050704
A198: =IF('DF raw data'!I203="","",'DF raw data'!I203) -> -232 | B198: =IF('DF raw data'!J203="","",'DF raw data'!J203) -> -1.20344e-05 | C198: =IF('DF raw data'!K203="","",'DF raw data'!K203) -> 9.63272e-05 | D198: =IF('DF raw data'!L203="","",'DF raw data'!L203) -> -4.29686e-05 | F198: -1.208494448e-05 | G198: 9.673177424e-05 | H198: -4.314906812e-05 | J198: -0.001139066415 | K198: -0.04003586985 | L198: 0.006490899206 | M198: 0.2152960383 | N198: 0.0009552196928
A199: =IF('DF raw data'!I204="","",'DF raw data'!I204) -> -231.5 | B199: =IF('DF raw data'!J204="","",'DF raw data'!J204) -> -2.04999e-05 | C199: =IF('DF raw data'!K204="","",'DF raw data'!K204) -> 9.31656e-05 | D199: =IF('DF raw data'!L204="","",'DF raw data'!L204) -> -3.59678e-05 | F199: -2.058599958e-05 | G199: 9.355689552e-05 | H199: -3.611886476e-05 | J199: -0.001149359415 | K199: -0.04061054956 | L199: 0.006537677654 | M199: 0.2185648771 | N199: 0.0009772508209
A200: =IF('DF raw data'!I205="","",'DF raw data'!I205) -> -231 | B200: =IF('DF raw data'!J205="","",'DF raw data'!J205) -> -1.24242e-05 | C200: =IF('DF raw data'!K205="","",'DF raw data'!K205) -> 9.93904e-05 | D200: =IF('DF raw data'!L205="","",'DF raw data'!L205) -> -3.47206e-05 | F200: -1.247638164e-05 | G200: 9.980783968e-05 | H200: -3.486642652e-05 | J200: -0.001155597606 | K200: -0.04118834836 | L200: 0.006587581574 | M200: 0.2218586679 | N200: 0.0009996166393
A201: =IF('DF raw data'!I206="","",'DF raw data'!I206) -> -230.5 | B201: =IF('DF raw data'!J206="","",'DF raw data'!J206) -> -1.71672e-05 | C201: =IF('DF raw data'!K206="","",'DF raw data'!K206) -> 9.83446e-05 | D201: =IF('DF raw data'!L206="","",'DF raw data'!L206) -> -3.58645e-05 | F201: -1.723930224e-05 | G201: 9.875764732e-05 | H201: -3.60151309e-05 | J201: -0.001164217257 | K201: -0.04177045699 | L201: 0.006636960397 | M201: 0.2251771481 | N201: 0.001022318962
... 1061 more rows

Sheet 10 x=1
A1: =IF('DF raw data'!M1="","",'DF raw data'!M1) -> Number of header lines | B1: =IF('DF raw data'!N1="","",'DF raw data'!N1) -> 54 | C1: =IF('DF raw data'!O1="","",'DF raw data'!O1) ->  | D1: =IF('DF raw data'!P1="","",'DF raw data'!P1) ->  | F1: T_coeff | G1: -0.001 | H1: /degC | J1: ='10 x=-2'!J1 -> IBy total | K1: ='10 x=-2'!K1 -> -0.4574050539 | L1: ='10 x=-2'!L1 -> muTm | R1: ='10 x=-2'!R1 -> DF ref | S1: ='10 x=-2'!S1 -> 1
A2: =IF('DF raw data'!M2="","",'DF raw data'!M2) -> Measured by | B2: =IF('DF raw data'!N2="","",'DF raw data'!N2) -> Danfysik | C2: =IF('DF raw data'!O2="","",'DF raw data'!O2) ->  | D2: =IF('DF raw data'!P2="","",'DF raw data'!P2) ->  | F2: Tcorr | G2: 20 | H2: degC | J2: JBy total | K2: =K1262 -> -2.086143564 | L2: muTm^2 | M2: =M1262 -> 18.37786267
A3: =IF('DF raw data'!M3="","",'DF raw data'!M3) -> Operator | B3: =IF('DF raw data'!N3="","",'DF raw data'!N3) -> PMHA | C3: =IF('DF raw data'!O3="","",'DF raw data'!O3) ->  | D3: =IF('DF raw data'!P3="","",'DF raw data'!P3) ->  | F3: Step | G3: =A63-A62 -> 0.5 | H3: mm | J3: PI total | K3: =N1262 -> 10699.90734 | L3: T^2mm^3
A4: =IF('DF raw data'!M4="","",'DF raw data'!M4) -> Data-time | B4: =IF('DF raw data'!N4="","",'DF raw data'!N4) -> 03-09-2024, 11:29:23 | C4: =IF('DF raw data'!O4="","",'DF raw data'!O4) ->  | D4: =IF('DF raw data'!P4="","",'DF raw data'!P4) -> 
A5: =IF('DF raw data'!M5="","",'DF raw data'!M5) -> Project | B5: =IF('DF raw data'!N5="","",'DF raw data'!N5) -> 504314 | C5: =IF('DF raw data'!O5="","",'DF raw data'!O5) ->  | D5: =IF('DF raw data'!P5="","",'DF raw data'!P5) -> 
A6: =IF('DF raw data'!M6="","",'DF raw data'!M6) -> Magnet type | B6: =IF('DF raw data'!N6="","",'DF raw data'!N6) -> Dipole | C6: =IF('DF raw data'!O6="","",'DF raw data'!O6) ->  | D6: =IF('DF raw data'!P6="","",'DF raw data'!P6) -> 
A7: =IF('DF raw data'!M7="","",'DF raw data'!M7) -> Magnet nr. | B7: =IF('DF raw data'!N7="","",'DF raw data'!N7) -> 2410090 | C7: =IF('DF raw data'!O7="","",'DF raw data'!O7) ->  | D7: =IF('DF raw data'!P7="","",'DF raw data'!P7) -> 
A8: =IF('DF raw data'!M8="","",'DF raw data'!M8) -> Meas. number | B8: =IF('DF raw data'!N8="","",'DF raw data'!N8) -> 314 | C8: =IF('DF raw data'!O8="","",'DF raw data'!O8) ->  | D8: =IF('DF raw data'!P8="","",'DF raw data'!P8) -> 
A9: =IF('DF raw data'!M9="","",'DF raw data'!M9) -> Add. info | B9: =IF('DF raw data'!N9="","",'DF raw data'!N9) -> X-alignment scan 4) | C9: =IF('DF raw data'!O9="","",'DF raw data'!O9) ->  | D9: =IF('DF raw data'!P9="","",'DF raw data'!P9) -> 
A10: =IF('DF raw data'!M10="","",'DF raw data'!M10) -> Device | B10: =IF('DF raw data'!N10="","",'DF raw data'!N10) -> (HAL) HALL-PROBE | C10: =IF('DF raw data'!O10="","",'DF raw data'!O10) ->  | D10: =IF('DF raw data'!P10="","",'DF raw data'!P10) -> 
A11: =IF('DF raw data'!M11="","",'DF raw data'!M11) -> Goal | B11: =IF('DF raw data'!N11="","",'DF raw data'!N11) -> (AXI) AXis Integral (Line, EFB) | C11: =IF('DF raw data'!O11="","",'DF raw data'!O11) ->  | D11: =IF('DF raw data'!P11="","",'DF raw data'!P11) -> 
A12: =IF('DF raw data'!M12="","",'DF raw data'!M12) -> Power supply mode | B12: =IF('DF raw data'!N12="","",'DF raw data'!N12) -> (PM) Permanent Magnet (no MPS in use) | C12: =IF('DF raw data'!O12="","",'DF raw data'!O12) ->  | D12: =IF('DF raw data'!P12="","",'DF raw data'!P12) -> 
A13: =IF('DF raw data'!M13="","",'DF raw data'!M13) -> Data format | B13: =IF('DF raw data'!N13="","",'DF raw data'!N13) -> Raw data text file | C13: =IF('DF raw data'!O13="","",'DF raw data'!O13) ->  | D13: =IF('DF raw data'!P13="","",'DF raw data'!P13) -> 
A14: =IF('DF raw data'!M14="","",'DF raw data'!M14) -> Direction of the pos. x-axis | B14: =IF('DF raw data'!N14="","",'DF raw data'!N14) -> See test program | C14: =IF('DF raw data'!O14="","",'DF raw data'!O14) ->  | D14: =IF('DF raw data'!P14="","",'DF raw data'!P14) -> 
A15: =IF('DF raw data'!M15="","",'DF raw data'!M15) -> Direction of the pos. y-axis | B15: =IF('DF raw data'!N15="","",'DF raw data'!N15) -> Vertical up | C15: =IF('DF raw data'!O15="","",'DF raw data'!O15) ->  | D15: =IF('DF raw data'!P15="","",'DF raw data'!P15) -> 
A16: =IF('DF raw data'!M16="","",'DF raw data'!M16) -> Direction of the pos. z-axis | B16: =IF('DF raw data'!N16="","",'DF raw data'!N16) -> See test program | C16: =IF('DF raw data'!O16="","",'DF raw data'!O16) ->  | D16: =IF('DF raw data'!P16="","",'DF raw data'!P16) -> 
A17: =IF('DF raw data'!M17="","",'DF raw data'!M17) -> Mapper type | B17: =IF('DF raw data'!N17="","",'DF raw data'!N17) -> Precision Hall Mapper | C17: =IF('DF raw data'!O17="","",'DF raw data'!O17) ->  | D17: =IF('DF raw data'!P17="","",'DF raw data'!P17) -> 
A18: =IF('DF raw data'!M18="","",'DF raw data'!M18) -> Mapper Danfysik Reg. Number | B18: =IF('DF raw data'!N18="","",'DF raw data'!N18) -> 2033-D (mapper 1) | C18: =IF('DF raw data'!O18="","",'DF raw data'!O18) ->  | D18: =IF('DF raw data'!P18="","",'DF raw data'!P18) -> 
A19: =IF('DF raw data'!M19="","",'DF raw data'!M19) -> Measurement consept | B19: =IF('DF raw data'!N19="","",'DF raw data'!N19) -> Square line grid | C19: =IF('DF raw data'!O19="","",'DF raw data'!O19) ->  | D19: =IF('DF raw data'!P19="","",'DF raw data'!P19) -> 
A20: =IF('DF raw data'!M20="","",'DF raw data'!M20) -> Mode | B20: =IF('DF raw data'!N20="","",'DF raw data'!N20) -> On-the-fly measurement | C20: =IF('DF raw data'!O20="","",'DF raw data'!O20) ->  | D20: =IF('DF raw data'!P20="","",'DF raw data'!P20) -> 
A21: =IF('DF raw data'!M21="","",'DF raw data'!M21) ->  | B21: =IF('DF raw data'!N21="","",'DF raw data'!N21) ->  | C21: =IF('DF raw data'!O21="","",'DF raw data'!O21) ->  | D21: =IF('DF raw data'!P21="","",'DF raw data'!P21) -> 
A22: =IF('DF raw data'!M22="","",'DF raw data'!M22) -> Probe Name | B22: =IF('DF raw data'!N22="","",'DF raw data'!N22) -> ID12_By | C22: =IF('DF raw data'!O22="","",'DF raw data'!O22) ->  | D22: =IF('DF raw data'!P22="","",'DF raw data'!P22) -> 
A23: =IF('DF raw data'!M23="","",'DF raw data'!M23) -> Probe Type | B23: =IF('DF raw data'!N23="","",'DF raw data'!N23) -> DF_ID_3D_Bxyz | C23: =IF('DF raw data'!O23="","",'DF raw data'!O23) ->  | D23: =IF('DF raw data'!P23="","",'DF raw data'!P23) -> 
A24: =IF('DF raw data'!M24="","",'DF raw data'!M24) -> Probe Danfysik Reg. Number | B24: =IF('DF raw data'!N24="","",'DF raw data'!N24) -> 2277 | C24: =IF('DF raw data'!O24="","",'DF raw data'!O24) ->  | D24: =IF('DF raw data'!P24="","",'DF raw data'!P24) -> 
A25: =IF('DF raw data'!M25="","",'DF raw data'!M25) -> Probe Axis | B25: =IF('DF raw data'!N25="","",'DF raw data'!N25) -> By | C25: =IF('DF raw data'!O25="","",'DF raw data'!O25) ->  | D25: =IF('DF raw data'!P25="","",'DF raw data'!P25) -> 
A26: =IF('DF raw data'!M26="","",'DF raw data'!M26) -> Probe Current Supply | B26: =IF('DF raw data'!N26="","",'DF raw data'!N26) -> 1825-D | C26: =IF('DF raw data'!O26="","",'DF raw data'!O26) ->  | D26: =IF('DF raw data'!P26="","",'DF raw data'!P26) -> 
A27: =IF('DF raw data'!M27="","",'DF raw data'!M27) -> Probe Gain Correction | B27: =IF('DF raw data'!N27="","",'DF raw data'!N27) -> 0.99619 | C27: =IF('DF raw data'!O27="","",'DF raw data'!O27) ->  | D27: =IF('DF raw data'!P27="","",'DF raw data'!P27) -> 
A28: =IF('DF raw data'!M28="","",'DF raw data'!M28) -> Probe Offset Correction | B28: =IF('DF raw data'!N28="","",'DF raw data'!N28) -> 0.0027506 | C28: =IF('DF raw data'!O28="","",'DF raw data'!O28) ->  | D28: =IF('DF raw data'!P28="","",'DF raw data'!P28) -> 
A29: =IF('DF raw data'!M29="","",'DF raw data'!M29) -> DVM Number | B29: =IF('DF raw data'!N29="","",'DF raw data'!N29) -> 2 | C29: =IF('DF raw data'!O29="","",'DF raw data'!O29) ->  | D29: =IF('DF raw data'!P29="","",'DF raw data'!P29) -> 
A30: =IF('DF raw data'!M30="","",'DF raw data'!M30) -> DVM Type | B30: =IF('DF raw data'!N30="","",'DF raw data'!N30) -> K2701 | C30: =IF('DF raw data'!O30="","",'DF raw data'!O30) ->  | D30: =IF('DF raw data'!P30="","",'DF raw data'!P30) -> 
A31: =IF('DF raw data'!M31="","",'DF raw data'!M31) -> DVM Danfysik Reg. Number | B31: =IF('DF raw data'!N31="","",'DF raw data'!N31) -> 1743-D | C31: =IF('DF raw data'!O31="","",'DF raw data'!O31) ->  | D31: =IF('DF raw data'!P31="","",'DF raw data'!P31) -> 
A32: =IF('DF raw data'!M32="","",'DF raw data'!M32) -> Probe Name | B32: =IF('DF raw data'!N32="","",'DF raw data'!N32) -> ID12_Bx | C32: =IF('DF raw data'!O32="","",'DF raw data'!O32) ->  | D32: =IF('DF raw data'!P32="","",'DF raw data'!P32) -> 
A33: =IF('DF raw data'!M33="","",'DF raw data'!M33) -> Probe Type | B33: =IF('DF raw data'!N33="","",'DF raw data'!N33) -> DF_ID_3D_Bxyz | C33: =IF('DF raw data'!O33="","",'DF raw data'!O33) ->  | D33: =IF('DF raw data'!P33="","",'DF raw data'!P33) -> 
A34: =IF('DF raw data'!M34="","",'DF raw data'!M34) -> Probe Danfysik Reg. Number | B34: =IF('DF raw data'!N34="","",'DF raw data'!N34) -> 2277 | C34: =IF('DF raw data'!O34="","",'DF raw data'!O34) ->  | D34: =IF('DF raw data'!P34="","",'DF raw data'!P34) -> 
A35: =IF('DF raw data'!M35="","",'DF raw data'!M35) -> Probe Axis | B35: =IF('DF raw data'!N35="","",'DF raw data'!N35) -> Bx | C35: =IF('DF raw data'!O35="","",'DF raw data'!O35) ->  | D35: =IF('DF raw data'!P35="","",'DF raw data'!P35) -> 
A36: =IF('DF raw data'!M36="","",'DF raw data'!M36) -> Probe Current Supply | B36: =IF('DF raw data'!N36="","",'DF raw data'!N36) -> 1825-D | C36: =IF('DF raw data'!O36="","",'DF raw data'!O36) ->  | D36: =IF('DF raw data'!P36="","",'DF raw data'!P36) -> 
A37: =IF('DF raw data'!M37="","",'DF raw data'!M37) -> Probe Gain Correction | B37: =IF('DF raw data'!N37="","",'DF raw data'!N37) -> 1 | C37: =IF('DF raw data'!O37="","",'DF raw data'!O37) ->  | D37: =IF('DF raw data'!P37="","",'DF raw data'!P37) -> 
A38: =IF('DF raw data'!M38="","",'DF raw data'!M38) -> Probe Offset Correction | B38: =IF('DF raw data'!N38="","",'DF raw data'!N38) -> -0.17548 | C38: =IF('DF raw data'!O38="","",'DF raw data'!O38) ->  | D38: =IF('DF raw data'!P38="","",'DF raw data'!P38) -> 
A39: =IF('DF raw data'!M39="","",'DF raw data'!M39) -> DVM Number | B39: =IF('DF raw data'!N39="","",'DF raw data'!N39) -> 3 | C39: =IF('DF raw data'!O39="","",'DF raw data'!O39) ->  | D39: =IF('DF raw data'!P39="","",'DF raw data'!P39) -> 
A40: =IF('DF raw data'!M40="","",'DF raw data'!M40) -> DVM Type | B40: =IF('DF raw data'!N40="","",'DF raw data'!N40) -> K2701 | C40: =IF('DF raw data'!O40="","",'DF raw data'!O40) ->  | D40: =IF('DF raw data'!P40="","",'DF raw data'!P40) -> 
A41: =IF('DF raw data'!M41="","",'DF raw data'!M41) -> DVM Danfysik Reg. Number | B41: =IF('DF raw data'!N41="","",'DF raw data'!N41) -> 1744-D | C41: =IF('DF raw data'!O41="","",'DF raw data'!O41) ->  | D41: =IF('DF raw data'!P41="","",'DF raw data'!P41) -> 
A42: =IF('DF raw data'!M42="","",'DF raw data'!M42) -> Probe Name | B42: =IF('DF raw data'!N42="","",'DF raw data'!N42) -> ID12_Bz | C42: =IF('DF raw data'!O42="","",'DF raw data'!O42) ->  | D42: =IF('DF raw data'!P42="","",'DF raw data'!P42) -> 
A43: =IF('DF raw data'!M43="","",'DF raw data'!M43) -> Probe Type | B43: =IF('DF raw data'!N43="","",'DF raw data'!N43) -> DF_ID_3D_Bxyz | C43: =IF('DF raw data'!O43="","",'DF raw data'!O43) ->  | D43: =IF('DF raw data'!P43="","",'DF raw data'!P43) -> 
A44: =IF('DF raw data'!M44="","",'DF raw data'!M44) -> Probe Danfysik Reg. Number | B44: =IF('DF raw data'!N44="","",'DF raw data'!N44) -> 2277 | C44: =IF('DF raw data'!O44="","",'DF raw data'!O44) ->  | D44: =IF('DF raw data'!P44="","",'DF raw data'!P44) -> 
A45: =IF('DF raw data'!M45="","",'DF raw data'!M45) -> Probe Axis | B45: =IF('DF raw data'!N45="","",'DF raw data'!N45) -> Bz | C45: =IF('DF raw data'!O45="","",'DF raw data'!O45) ->  | D45: =IF('DF raw data'!P45="","",'DF raw data'!P45) -> 
A46: =IF('DF raw data'!M46="","",'DF raw data'!M46) -> Probe Current Supply | B46: =IF('DF raw data'!N46="","",'DF raw data'!N46) -> 1825-D | C46: =IF('DF raw data'!O46="","",'DF raw data'!O46) ->  | D46: =IF('DF raw data'!P46="","",'DF raw data'!P46) -> 
A47: =IF('DF raw data'!M47="","",'DF raw data'!M47) -> Probe Gain Correction | B47: =IF('DF raw data'!N47="","",'DF raw data'!N47) -> 1 | C47: =IF('DF raw data'!O47="","",'DF raw data'!O47) ->  | D47: =IF('DF raw data'!P47="","",'DF raw data'!P47) -> 
A48: =IF('DF raw data'!M53="","",'DF raw data'!M53) -> PS-Gap: | B48: =IF('DF raw data'!N53="","",'DF raw data'!N53) -> 10 | C48: =IF('DF raw data'!O53="","",'DF raw data'!O53) ->  | D48: =IF('DF raw data'!P53="","",'DF raw data'!P53) -> 
A49: =IF('DF raw data'!M54="","",'DF raw data'!M54) -> PS-Temperature: | B49: =IF('DF raw data'!N54="","",'DF raw data'!N54) -> 24.2 | C49: =IF('DF raw data'!O54="","",'DF raw data'!O54) ->  | D49: =IF('DF raw data'!P54="","",'DF raw data'!P54) -> 
A50: =IF('DF raw data'!M55="","",'DF raw data'!M55) -> PS-Encoder: | B50: =IF('DF raw data'!N55="","",'DF raw data'!N55) -> 19.6225 | C50: =IF('DF raw data'!O55="","",'DF raw data'!O55) ->  | D50: =IF('DF raw data'!P55="","",'DF raw data'!P55) -> 
A51: =IF('DF raw data'!M56="","",'DF raw data'!M56) ->  | B51: =IF('DF raw data'!N56="","",'DF raw data'!N56) ->  | C51: =IF('DF raw data'!O56="","",'DF raw data'!O56) ->  | D51: =IF('DF raw data'!P56="","",'DF raw data'!P56) -> 
A52: =IF('DF raw data'!M57="","",'DF raw data'!M57) -> Monitor-Index | B52: =IF('DF raw data'!N57="","",'DF raw data'!N57) -> [1,1,4] | C52: =IF('DF raw data'!O57="","",'DF raw data'!O57) ->  | D52: =IF('DF raw data'!P57="","",'DF raw data'!P57) -> 
A53: =IF('DF raw data'!M58="","",'DF raw data'!M58) ->  | B53: =IF('DF raw data'!N58="","",'DF raw data'!N58) ->  | C53: =IF('DF raw data'!O58="","",'DF raw data'!O58) ->  | D53: =IF('DF raw data'!P58="","",'DF raw data'!P58) -> 
A54: =IF('DF raw data'!M59="","",'DF raw data'!M59) -> Time [s] | B54: =IF('DF raw data'!N59="","",'DF raw data'!N59) -> Y [mm] | C54: =IF('DF raw data'!O59="","",'DF raw data'!O59) -> X [mm] | D54: =IF('DF raw data'!P59="","",'DF raw data'!P59) -> Nominal current [A]
A55: =IF('DF raw data'!M60="","",'DF raw data'!M60) ->  | B55: =IF('DF raw data'!N60="","",'DF raw data'!N60) ->  | C55: =IF('DF raw data'!O60="","",'DF raw data'!O60) ->  | D55: =IF('DF raw data'!P60="","",'DF raw data'!P60) -> 
A56: =IF('DF raw data'!M61="","",'DF raw data'!M61) -> 208.5 | B56: =IF('DF raw data'!N61="","",'DF raw data'!N61) -> 31.56 | C56: =IF('DF raw data'!O61="","",'DF raw data'!O61) -> 302.8 | D56: =IF('DF raw data'!P61="","",'DF raw data'!P61) -> 0
A57: =IF('DF raw data'!M62="","",'DF raw data'!M62) ->  | B57: =IF('DF raw data'!N62="","",'DF raw data'!N62) ->  | C57: =IF('DF raw data'!O62="","",'DF raw data'!O62) ->  | D57: =IF('DF raw data'!P62="","",'DF raw data'!P62) -> 
A58: =IF('DF raw data'!M63="","",'DF raw data'!M63) -> Measurement-Index | B58: =IF('DF raw data'!N63="","",'DF raw data'!N63) -> [1,1,1201,2] | C58: =IF('DF raw data'!O63="","",'DF raw data'!O63) ->  | D58: =IF('DF raw data'!P63="","",'DF raw data'!P63) -> 
A59: =IF('DF raw data'!M64="","",'DF raw data'!M64) ->  | B59: =IF('DF raw data'!N64="","",'DF raw data'!N64) ->  | C59: =IF('DF raw data'!O64="","",'DF raw data'!O64) ->  | D59: =IF('DF raw data'!P64="","",'DF raw data'!P64) -> 
A60: =IF('DF raw data'!M65="","",'DF raw data'!M65) -> Z [mm] | B60: By [T] | C60: Bx [T] | D60: Bz [T] | F60: By_corr | G60: Bx_corr | H60: Bz_corr | J60: Iy | K60: Jy | L60: Ix | M60: Jx | N60: PI
A62: =IF('DF raw data'!M67="","",'DF raw data'!M67) -> -300 | B62: =IF('DF raw data'!N67="","",'DF raw data'!N67) -> -1.70174e-05 | C62: =IF('DF raw data'!O67="","",'DF raw data'!O67) -> 0.000104557 | D62: =IF('DF raw data'!P67="","",'DF raw data'!P67) -> -3.66702e-05 | F62: =(1-$G$1*($B$49))*B62 -> -1.742922108e-05 | G62: =(1-$G$1*($B$49-$G$2))*C62 -> 0.0001049961394 | H62: =(1-$G$1*($B$49-$G$2))*D62 -> -3.682421484e-05 | J62: =F62*$G$3 -> -8.71461054e-06 | K62: =J62*$G$3 -> -4.35730527e-06 | L62: =G62*$G$3 -> 5.24980697e-05 | M62: =L62*$G$3 -> 2.624903485e-05 | N62: =(J62^2+L62^2)*$G$3 -> 1.41599588e-09
A63: =IF('DF raw data'!M68="","",'DF raw data'!M68) -> -299.5 | B63: =IF('DF raw data'!N68="","",'DF raw data'!N68) -> -1.2211e-05 | C63: =IF('DF raw data'!O68="","",'DF raw data'!O68) -> 0.00010987 | D63: =IF('DF raw data'!P68="","",'DF raw data'!P68) -> -3.73189e-05 | F63: =(1-$G$1*($B$49-$G$2))*B63 -> -1.22622862e-05 | G63: =(1-$G$1*($B$49-$G$2))*C63 -> 0.000110331454 | H63: -3.747563938e-05 | J63: =F63*$G$3+J62 -> -1.484575364e-05 | K63: =J63*$G$3+K62 -> -1.178018209e-05 | L63: =G63*$G$3+L62 -> 0.0001076637967 | M63: =L63*$G$3+M62 -> 8.00809332e-05 | N63: =(J63^2+L63^2)*$G$3+N62 -> 7.32194064e-09
A64: =IF('DF raw data'!M69="","",'DF raw data'!M69) -> -299 | B64: =IF('DF raw data'!N69="","",'DF raw data'!N69) -> -4.64766e-06 | C64: =IF('DF raw data'!O69="","",'DF raw data'!O69) -> 0.000116646 | D64: =IF('DF raw data'!P69="","",'DF raw data'!P69) -> -3.85429e-05 | F64: =(1-$G$1*($B$49-$G$2))*B64 -> -4.667180172e-06 | G64: 0.0001171359132 | H64: -3.870478018e-05 | J64: =F64*$G$3+J63 -> -1.717934373e-05 | K64: =J64*$G$3+K63 -> -2.036985395e-05 | L64: =G64*$G$3+L63 -> 0.0001662317533 | M64: =L64*$G$3+M63 -> 0.0001631968098 | N64: =(J64^2+L64^2)*$G$3+N63 -> 2.128600347e-08
A65: =IF('DF raw data'!M70="","",'DF raw data'!M70) -> -298.5 | B65: =IF('DF raw data'!N70="","",'DF raw data'!N70) -> -1.95783e-05 | C65: =IF('DF raw data'!O70="","",'DF raw data'!O70) -> 0.000113869 | D65: =IF('DF raw data'!P70="","",'DF raw data'!P70) -> -3.88207e-05 | F65: -1.966052886e-05 | G65: 0.0001143472498 | H65: -3.898374694e-05 | J65: -2.700960816e-05 | K65: -3.387465803e-05 | L65: 0.0002234053782 | M65: 0.000274899499 | N65: 4.660574444e-08
A66: =IF('DF raw data'!M71="","",'DF raw data'!M71) -> -298 | B66: =IF('DF raw data'!N71="","",'DF raw data'!N71) -> -2.13111e-05 | C66: =IF('DF raw data'!O71="","",'DF raw data'!O71) -> 0.000113723 | D66: =IF('DF raw data'!P71="","",'DF raw data'!P71) -> -3.8259e-05 | F66: -2.140060662e-05 | G66: 0.0001142006366 | H66: -3.84196878e-05 | J66: -3.770991147e-05 | K66: -5.272961376e-05 | L66: 0.0002805056965 | M66: 0.0004151523472 | N66: 8.665848603e-08
A67: =IF('DF raw data'!M72="","",'DF raw data'!M72) -> -297.5 | B67: =IF('DF raw data'!N72="","",'DF raw data'!N72) -> -8.23622e-06 | C67: =IF('DF raw data'!O72="","",'DF raw data'!O72) -> 0.000108967 | D67: =IF('DF raw data'!P72="","",'DF raw data'!P72) -> -3.81218e-05 | F67: -8.270812124e-06 | G67: 0.0001094246614 | H67: -3.828191156e-05 | J67: -4.184531753e-05 | K67: -7.365227253e-05 | L67: 0.0003352180272 | M67: 0.0005827613608 | N67: 1.437195642e-07
A68: =IF('DF raw data'!M73="","",'DF raw data'!M73) -> -297 | B68: =IF('DF raw data'!N73="","",'DF raw data'!N73) -> -2.22726e-05 | C68: =IF('DF raw data'!O73="","",'DF raw data'!O73) -> 0.000109925 | D68: =IF('DF raw data'!P73="","",'DF raw data'!P73) -> -3.81862e-05 | F68: -2.236614492e-05 | G68: 0.000110386685 | H68: -3.834658204e-05 | J68: -5.302838999e-05 | K68: -0.0001001664675 | L68: 0.0003904113697 | M68: 0.0007779670457 | N68: 2.213360881e-07
A69: =IF('DF raw data'!M74="","",'DF raw data'!M74) -> -296.5 | B69: =IF('DF raw data'!N74="","",'DF raw data'!N74) -> -1.57979e-05 | C69: =IF('DF raw data'!O74="","",'DF raw data'!O74) -> 0.000112449 | D69: =IF('DF raw data'!P74="","",'DF raw data'!P74) -> -3.81877e-05 | F69: -1.586425118e-05 | G69: 0.0001129212858 | H69: -3.834808834e-05 | J69: -6.096051558e-05 | K69: -0.0001306467253 | L69: 0.0004468720126 | M69: 0.001001403052 | N69: 3.230414781e-07
A70: =IF('DF raw data'!M75="","",'DF raw data'!M75) -> -296 | B70: =IF('DF raw data'!N75="","",'DF raw data'!N75) -> -1.46457e-05 | C70: =IF('DF raw data'!O75="","",'DF raw data'!O75) -> 0.000117887 | D70: =IF('DF raw data'!P75="","",'DF raw data'!P75) -> -3.85227e-05 | F70: -1.470721194e-05 | G70: 0.0001183821254 | H70: -3.868449534e-05 | J70: -6.831412155e-05 | K70: -0.0001648037861 | L70: 0.0005060630753 | M70: 0.00125443459 | N70: 4.534248058e-07
A71: =IF('DF raw data'!M76="","",'DF raw data'!M76) -> -295.5 | B71: =IF('DF raw data'!N76="","",'DF raw data'!N76) -> -1.88734e-05 | C71: =IF('DF raw data'!O76="","",'DF raw data'!O76) -> 0.000119155 | D71: =IF('DF raw data'!P76="","",'DF raw data'!P76) -> -3.88822e-05 | F71: -1.895266828e-05 | G71: 0.000119655451 | H71: -3.904550524e-05 | J71: -7.779045569e-05 | K71: -0.0002036990139 | L71: 0.0005658908008 | M71: 0.00153737999 | N71: 6.165666825e-07
A72: =IF('DF raw data'!M77="","",'DF raw data'!M77) -> -295 | B72: =IF('DF raw data'!N77="","",'DF raw data'!N77) -> -2.54765e-05 | C72: =IF('DF raw data'!O77="","",'DF raw data'!O77) -> 0.000113332 | D72: =IF('DF raw data'!P77="","",'DF raw data'!P77) -> -3.85722e-05 | F72: -2.55835013e-05 | G72: 0.0001138079944 | H72: -3.873420324e-05 | J72: -9.058220634e-05 | K72: -0.0002489901171 | L72: 0.000622794798 | M72: 0.001848777389 | N72: 8.146059308e-07
A73: =IF('DF raw data'!M78="","",'DF raw data'!M78) -> -294.5 | B73: =IF('DF raw data'!N78="","",'DF raw data'!N78) -> -2.15658e-05 | C73: =IF('DF raw data'!O78="","",'DF raw data'!O78) -> 0.000112891 | D73: =IF('DF raw data'!P78="","",'DF raw data'!P78) -> -3.79731e-05 | F73: -2.165637636e-05 | G73: 0.0001133651422 | H73: -3.813258702e-05 | J73: -0.0001014103945 | K73: -0.0002996953144 | L73: 0.0006794773691 | M73: 0.002188516074 | N73: 1.050592712e-06
A74: =IF('DF raw data'!M79="","",'DF raw data'!M79) -> -294 | B74: =IF('DF raw data'!N79="","",'DF raw data'!N79) -> -2.36184e-05 | C74: =IF('DF raw data'!O79="","",'DF raw data'!O79) -> 0.000106613 | D74: =IF('DF raw data'!P79="","",'DF raw data'!P79) -> -3.7723e-05 | F74: -2.371759728e-05 | G74: 0.0001070607746 | H74: -3.78814366e-05 | J74: -0.0001132691932 | K74: -0.0003563299109 | L74: 0.0007330077564 | M74: 0.002555019952 | N74: 1.325657853e-06
A75: =IF('DF raw data'!M80="","",'DF raw data'!M80) -> -293.5 | B75: =IF('DF raw data'!N80="","",'DF raw data'!N80) -> -1.6247e-05 | C75: =IF('DF raw data'!O80="","",'DF raw data'!O80) -> 0.000109413 | D75: =IF('DF raw data'!P80="","",'DF raw data'!P80) -> -3.78866e-05 | F75: -1.63152374e-05 | G75: 0.0001098725346 | H75: -3.804572372e-05 | J75: -0.0001214268119 | K75: -0.0004170433169 | L75: 0.0007879440237 | M75: 0.002948991964 | N75: 1.643457981e-06
A76: =IF('DF raw data'!M81="","",'DF raw data'!M81) -> -293 | B76: =IF('DF raw data'!N81="","",'DF raw data'!N81) -> -2.34899e-05 | C76: =IF('DF raw data'!O81="","",'DF raw data'!O81) -> 0.000101417 | D76: =IF('DF raw data'!P81="","",'DF raw data'!P81) -> -3.8009e-05 | F76: -2.358855758e-05 | G76: 0.0001018429514 | H76: -3.81686378e-05 | J76: -0.0001332210906 | K76: -0.0004836538622 | L76: 0.0008388654994 | M76: 0.003368424713 | N76: 2.004179573e-06
A77: =IF('DF raw data'!M82="","",'DF raw data'!M82) -> -292.5 | B77: =IF('DF raw data'!N82="","",'DF raw data'!N82) -> -1.82332e-05 | C77: =IF('DF raw data'!O82="","",'DF raw data'!O82) -> 0.000107596 | D77: =IF('DF raw data'!P82="","",'DF raw data'!P82) -> -3.82053e-05 | F77: -1.830977944e-05 | G77: 0.0001080479032 | H77: -3.836576226e-05 | J77: -0.0001423759804 | K77: -0.0005548418524 | L77: 0.000892889451 | M77: 0.003814869439 | N77: 2.412940819e-06
A78: =IF('DF raw data'!M83="","",'DF raw data'!M83) -> -292 | B78: =IF('DF raw data'!N83="","",'DF raw data'!N83) -> -1.82343e-05 | C78: =IF('DF raw data'!O83="","",'DF raw data'!O83) -> 0.000107951 | D78: =IF('DF raw data'!P83="","",'DF raw data'!P83) -> -3.84845e-05 | F78: -1.831088406e-05 | G78: 0.0001084043942 | H78: -3.86461349e-05 | J78: -0.0001515314224 | K78: -0.0006306075636 | L78: 0.0009470916481 | M78: 0.004288415263 | N78: 2.872913e-06
A79: =IF('DF raw data'!M84="","",'DF raw data'!M84) -> -291.5 | B79: =IF('DF raw data'!N84="","",'DF raw data'!N84) -> -2.63681e-05 | C79: =IF('DF raw data'!O84="","",'DF raw data'!O84) -> 0.000108556 | D79: =IF('DF raw data'!P84="","",'DF raw data'!P84) -> -4.41315e-05 | F79: -2.647884602e-05 | G79: 0.0001090119352 | H79: -4.43168523e-05 | J79: -0.0001647708454 | K79: -0.0007129929863 | L79: 0.001001597616 | M79: 0.004789214071 | N79: 3.388086607e-06
A80: =IF('DF raw data'!M85="","",'DF raw data'!M85) -> -291 | B80: =IF('DF raw data'!N85="","",'DF raw data'!N85) -> -2.04825e-05 | C80: =IF('DF raw data'!O85="","",'DF raw data'!O85) -> 0.000105159 | D80: =IF('DF raw data'!P85="","",'DF raw data'!P85) -> -3.07789e-05 | F80: -2.05685265e-05 | G80: 0.0001056006678 | H80: -3.090817138e-05 | J80: -0.0001750551087 | K80: -0.0008005205406 | L80: 0.00105439795 | M80: 0.005316413045 | N80: 3.959286271e-06
A81: =IF('DF raw data'!M86="","",'DF raw data'!M86) -> -290.5 | B81: =IF('DF raw data'!N86="","",'DF raw data'!N86) -> -2.6441e-05 | C81: =IF('DF raw data'!O86="","",'DF raw data'!O86) -> 0.000104402 | D81: =IF('DF raw data'!P86="","",'DF raw data'!P86) -> -3.07109e-05 | F81: -2.65520522e-05 | G81: 0.0001048404884 | H81: -3.083988578e-05 | J81: -0.0001883311348 | K81: -0.000894686108 | L81: 0.001106818194 | M81: 0.005869822142 | N81: 4.589543836e-06
A82: =IF('DF raw data'!M87="","",'DF raw data'!M87) -> -290 | B82: =IF('DF raw data'!N87="","",'DF raw data'!N87) -> -1.86864e-05 | C82: =IF('DF raw data'!O87="","",'DF raw data'!O87) -> 9.93844e-05 | D82: =IF('DF raw data'!P87="","",'DF raw data'!P87) -> -3.33517e-05 | F82: -1.876488288e-05 | G82: 9.980181448e-05 | H82: -3.349177714e-05 | J82: -0.0001977135762 | K82: -0.0009935428961 | L82: 0.001156719101 | M82: 0.006448181693 | N82: 5.278088705e-06
A83: =IF('DF raw data'!M88="","",'DF raw data'!M88) -> -289.5 | B83: =IF('DF raw data'!N88="","",'DF raw data'!N88) -> -1.74696e-05 | C83: =IF('DF raw data'!O88="","",'DF raw data'!O88) -> 0.000111405 | D83: =IF('DF raw data'!P88="","",'DF raw data'!P88) -> -3.00364e-05 | F83: -1.754297232e-05 | G83: 0.000111872901 | H83: -3.016255288e-05 | J83: -0.0002064850624 | K83: -0.001096785427 | L83: 0.001212655552 | M83: 0.007054509469 | N83: 6.034673488e-06
A84: =IF('DF raw data'!M89="","",'DF raw data'!M89) -> -289 | B84: =IF('DF raw data'!N89="","",'DF raw data'!N89) -> -1.11214e-05 | C84: =IF('DF raw data'!O89="","",'DF raw data'!O89) -> 0.000107205 | D84: =IF('DF raw data'!P89="","",'DF raw data'!P89) -> -3.73757e-05 | F84: -1.116810988e-05 | G84: 0.000107655261 | H84: -3.753267794e-05 | J84: -0.0002120691173 | K84: -0.001202819986 | L84: 0.001266483182 | M84: 0.00768775106 | N84: 6.859149969e-06
A85: =IF('DF raw data'!M90="","",'DF raw data'!M90) -> -288.5 | B85: =IF('DF raw data'!N90="","",'DF raw data'!N90) -> -1.11285e-05 | C85: =IF('DF raw data'!O90="","",'DF raw data'!O90) -> 9.97957e-05 | D85: =IF('DF raw data'!P90="","",'DF raw data'!P90) -> -2.52416e-05 | F85: -1.11752397e-05 | G85: 0.0001002148419 | H85: -2.534761472e-05 | J85: -0.0002176567371 | K85: -0.001311648354 | L85: 0.001316590603 | M85: 0.008346046361 | N85: 7.749542605e-06
A86: =IF('DF raw data'!M91="","",'DF raw data'!M91) -> -288 | B86: =IF('DF raw data'!N91="","",'DF raw data'!N91) -> -1.4713e-05 | C86: =IF('DF raw data'!O91="","",'DF raw data'!O91) -> 9.34901e-05 | D86: =IF('DF raw data'!P91="","",'DF raw data'!P91) -> -3.29973e-05 | F86: -1.47747946e-05 | G86: 9.388275842e-05 | H86: -3.313588866e-05 | J86: -0.0002250441344 | K86: -0.001424170422 | L86: 0.001363531982 | M86: 0.009027812352 | N86: 8.704474769e-06
A87: =IF('DF raw data'!M92="","",'DF raw data'!M92) -> -287.5 | B87: =IF('DF raw data'!N92="","",'DF raw data'!N92) -> -5.68124e-06 | C87: =IF('DF raw data'!O92="","",'DF raw data'!O92) -> 9.76813e-05 | D87: =IF('DF raw data'!P92="","",'DF raw data'!P92) -> -2.52098e-05 | F87: -5.705101208e-06 | G87: 9.809156146e-05 | H87: -2.531568116e-05 | J87: -0.0002278966851 | K87: -0.001538118764 | L87: 0.001412577763 | M87: 0.009734101234 | N87: 9.728131187e-06
A88: =IF('DF raw data'!M93="","",'DF raw data'!M93) -> -287 | B88: =IF('DF raw data'!N93="","",'DF raw data'!N93) -> -8.05159e-06 | C88: =IF('DF raw data'!O93="","",'DF raw data'!O93) -> 0.000100823 | D88: =IF('DF raw data'!P93="","",'DF raw data'!P93) -> -2.71655e-05 | F88: -8.085406678e-06 | G88: 0.0001012464566 | H88: -2.72795951e-05 | J88: -0.0002319393884 | K88: -0.001654088458 | L88: 0.001463200991 | M88: 0.01046570173 | N88: 1.08255077e-05
A89: =IF('DF raw data'!M94="","",'DF raw data'!M94) -> -286.5 | B89: =IF('DF raw data'!N94="","",'DF raw data'!N94) -> -1.73409e-05 | C89: =IF('DF raw data'!O94="","",'DF raw data'!O94) -> 0.000101653 | D89: =IF('DF raw data'!P94="","",'DF raw data'!P94) -> -3.09836e-05 | F89: -1.741373178e-05 | G89: 0.0001020799426 | H89: -3.111373112e-05 | J89: -0.0002406462543 | K89: -0.001774411586 | L89: 0.001514240963 | M89: 0.01122282221 | N89: 1.200092585e-05
A90: =IF('DF raw data'!M95="","",'DF raw data'!M95) -> -286 | B90: =IF('DF raw data'!N95="","",'DF raw data'!N95) -> -2.70767e-05 | C90: =IF('DF raw data'!O95="","",'DF raw data'!O95) -> 0.000101279 | D90: =IF('DF raw data'!P95="","",'DF raw data'!P95) -> -4.11827e-05 | F90: -2.719042214e-05 | G90: 0.0001017043718 | H90: -4.135566734e-05 | J90: -0.0002542414654 | K90: -0.001901532318 | L90: 0.001565093148 | M90: 0.01200536878 | N90: 1.32580035e-05
A91: =IF('DF raw data'!M96="","",'DF raw data'!M96) -> -285.5 | B91: =IF('DF raw data'!N96="","",'DF raw data'!N96) -> -9.31956e-06 | C91: =IF('DF raw data'!O96="","",'DF raw data'!O96) -> 0.000112828 | D91: =IF('DF raw data'!P96="","",'DF raw data'!P96) -> -4.75771e-05 | F91: -9.358702152e-06 | G91: 0.0001133018776 | H91: -4.777692382e-05 | J91: -0.0002589208164 | K91: -0.002030992726 | L91: 0.001621744087 | M91: 0.01281624083 | N91: 1.460655043e-05
A92: =IF('DF raw data'!M97="","",'DF raw data'!M97) -> -285 | B92: =IF('DF raw data'!N97="","",'DF raw data'!N97) -> -1.70155e-05 | C92: =IF('DF raw data'!O97="","",'DF raw data'!O97) -> 0.000110691 | D92: =IF('DF raw data'!P97="","",'DF raw data'!P97) -> -4.02689e-05 | F92: -1.70869651e-05 | G92: 0.0001111559022 | H92: -4.043802938e-05 | J92: -0.000267464299 | K92: -0.002164724876 | L92: 0.001677322038 | M92: 0.01365490185 | N92: 1.604902362e-05
A93: =IF('DF raw data'!M98="","",'DF raw data'!M98) -> -284.5 | B93: =IF('DF raw data'!N98="","",'DF raw data'!N98) -> -2.1884e-05 | C93: =IF('DF raw data'!O98="","",'DF raw data'!O98) -> 0.000108639 | D93: =IF('DF raw data'!P98="","",'DF raw data'!P98) -> -4.22313e-05 | F93: -2.19759128e-05 | G93: 0.0001090952838 | H93: -4.240867146e-05 | J93: -0.0002784522554 | K93: -0.002303951004 | L93: 0.00173186968 | M93: 0.01452083669 | N93: 1.758747774e-05
A94: =IF('DF raw data'!M99="","",'DF raw data'!M99) -> -284 | B94: =IF('DF raw data'!N99="","",'DF raw data'!N99) -> -4.0763e-06 | C94: =IF('DF raw data'!O99="","",'DF raw data'!O99) -> 0.000105628 | D94: =IF('DF raw data'!P99="","",'DF raw data'!P99) -> -2.97758e-05 | F94: -4.09342046e-06 | G94: 0.0001060716376 | H94: -2.990085836e-05 | J94: -0.0002804989656 | K94: -0.002444200486 | L94: 0.001784905499 | M94: 0.01541328944 | N94: 1.92197614e-05
A95: =IF('DF raw data'!M100="","",'DF raw data'!M100) -> -283.5 | B95: =IF('DF raw data'!N100="","",'DF raw data'!N100) -> -5.55513e-06 | C95: =IF('DF raw data'!O100="","",'DF raw data'!O100) -> 0.000105786 | D95: =IF('DF raw data'!P100="","",'DF raw data'!P100) -> -2.21188e-05 | F95: -5.578461546e-06 | G95: 0.0001062303012 | H95: -2.221169896e-05 | J95: -0.0002832881964 | K95: -0.002585844585 | L95: 0.00183802065 | M95: 0.01633229976 | N95: 2.094904745e-05
A96: =IF('DF raw data'!M101="","",'DF raw data'!M101) -> -283 | B96: =IF('DF raw data'!N101="","",'DF raw data'!N101) -> -2.43971e-05 | C96: =IF('DF raw data'!O101="","",'DF raw data'!O101) -> 0.000103422 | D96: =IF('DF raw data'!P101="","",'DF raw data'!P101) -> -2.20246e-05 | F96: -2.449956782e-05 | G96: 0.0001038563724 | H96: -2.211710332e-05 | J96: -0.0002955379803 | K96: -0.002733613575 | L96: 0.001889948836 | M96: 0.01727727418 | N96: 2.27786721e-05
A97: =IF('DF raw data'!M102="","",'DF raw data'!M102) -> -282.5 | B97: =IF('DF raw data'!N102="","",'DF raw data'!N102) -> -1.60016e-05 | C97: =IF('DF raw data'!O102="","",'DF raw data'!O102) -> 0.000106603 | D97: =IF('DF raw data'!P102="","",'DF raw data'!P102) -> -2.11277e-05 | F97: -1.606880672e-05 | G97: 0.0001070507326 | H97: -2.121643634e-05 | J97: -0.0003035723836 | K97: -0.002885399767 | L97: 0.001943474202 | M97: 0.01824901128 | N97: 2.471329619e-05
A98: =IF('DF raw data'!M103="","",'DF raw data'!M103) -> -282 | B98: =IF('DF raw data'!N103="","",'DF raw data'!N103) -> -1.15787e-05 | C98: =IF('DF raw data'!O103="","",'DF raw data'!O103) -> 0.000108496 | D98: =IF('DF raw data'!P103="","",'DF raw data'!P103) -> -2.35118e-05 | F98: -1.162733054e-05 | G98: 0.0001089516832 | H98: -2.361054956e-05 | J98: -0.0003093860489 | K98: -0.003040092791 | L98: 0.001997950044 | M98: 0.0192479863 | N98: 2.675705824e-05
A99: =IF('DF raw data'!M104="","",'DF raw data'!M104) -> -281.5 | B99: =IF('DF raw data'!N104="","",'DF raw data'!N104) -> -2.18836e-05 | C99: =IF('DF raw data'!O104="","",'DF raw data'!O104) -> 9.69016e-05 | D99: =IF('DF raw data'!P104="","",'DF raw data'!P104) -> -4.26963e-05 | F99: -2.197551112e-05 | G99: 9.730858672e-05 | H99: -4.287562446e-05 | J99: -0.0003203738045 | K99: -0.003200279693 | L99: 0.002046604337 | M99: 0.02027128847 | N99: 2.890267258e-05
A100: =IF('DF raw data'!M105="","",'DF raw data'!M105) -> -281 | B100: =IF('DF raw data'!N105="","",'DF raw data'!N105) -> -2.54831e-05 | C100: =IF('DF raw data'!O105="","",'DF raw data'!O105) -> 9.4158e-05 | D100: =IF('DF raw data'!P105="","",'DF raw data'!P105) -> -2.76493e-05 | F100: -2.559012902e-05 | G100: 9.45534636e-05 | H100: -2.776542706e-05 | J100: -0.000333168869 | K100: -0.003366864128 | L100: 0.002093881069 | M100: 0.02131822901 | N100: 3.11503423e-05
A101: =IF('DF raw data'!M106="","",'DF raw data'!M106) -> -280.5 | B101: =IF('DF raw data'!N106="","",'DF raw data'!N106) -> -5.80974e-06 | C101: =IF('DF raw data'!O106="","",'DF raw data'!O106) -> 0.000106776 | D101: =IF('DF raw data'!P106="","",'DF raw data'!P106) -> -2.47644e-05 | F101: -5.834140908e-06 | G101: 0.0001072244592 | H101: -2.486841048e-05 | J101: -0.0003360859394 | K101: -0.003534907098 | L101: 0.002147493299 | M101: 0.02239197566 | N101: 3.351268291e-05
A102: =IF('DF raw data'!M107="","",'DF raw data'!M107) -> -280 | B102: =IF('DF raw data'!N107="","",'DF raw data'!N107) -> -2.00232e-05 | C102: =IF('DF raw data'!O107="","",'DF raw data'!O107) -> 0.000105729 | D102: =IF('DF raw data'!P107="","",'DF raw data'!P107) -> -4.70471e-05 | F102: -2.010729744e-05 | G102: 0.0001061730618 | H102: -4.724469782e-05 | J102: -0.0003461395882 | K102: -0.003707976892 | L102: 0.002200579829 | M102: 0.02349226557 | N102: 3.599386501e-05
A103: =IF('DF raw data'!M108="","",'DF raw data'!M108) -> -279.5 | B103: =IF('DF raw data'!N108="","",'DF raw data'!N108) -> -1.23353e-05 | C103: =IF('DF raw data'!O108="","",'DF raw data'!O108) -> 0.000103878 | D103: =IF('DF raw data'!P108="","",'DF raw data'!P108) -> -4.19072e-05 | F103: -1.238710826e-05 | G103: 0.0001043142876 | H103: -4.208321024e-05 | J103: -0.0003523331423 | K103: -0.003884143463 | L103: 0.002252736973 | M103: 0.02461863406 | N103: 3.859334627e-05
A104: =IF('DF raw data'!M109="","",'DF raw data'!M109) -> -279 | B104: =IF('DF raw data'!N109="","",'DF raw data'!N109) -> -2.58631e-05 | C104: =IF('DF raw data'!O109="","",'DF raw data'!O109) -> 0.000104298 | D104: =IF('DF raw data'!P109="","",'DF raw data'!P109) -> -3.4634e-05 | F104: -2.597172502e-05 | G104: 0.0001047360516 | H104: -3.47794628e-05 | J104: -0.0003653190048 | K104: -0.004066802965 | L104: 0.002305104999 | M104: 0.02577118656 | N104: 4.131682978e-05
A105: =IF('DF raw data'!M110="","",'DF raw data'!M110) -> -278.5 | B105: =IF('DF raw data'!N110="","",'DF raw data'!N110) -> -3.15603e-05 | C105: =IF('DF raw data'!O110="","",'DF raw data'!O110) -> 0.000111448 | D105: =IF('DF raw data'!P110="","",'DF raw data'!P110) -> -4.28319e-05 | F105: -3.169285326e-05 | G105: 0.0001119160816 | H105: -4.301179398e-05 | J105: -0.0003811654314 | K105: -0.004257385681 | L105: 0.00236106304 | M105: 0.02695171808 | N105: 4.417678266e-05
A106: =IF('DF raw data'!M111="","",'DF raw data'!M111) -> -278 | B106: =IF('DF raw data'!N111="","",'DF raw data'!N111) -> -3.28483e-05 | C106: =IF('DF raw data'!O111="","",'DF raw data'!O111) -> 0.000105116 | D106: =IF('DF raw data'!P111="","",'DF raw data'!P111) -> -3.55863e-05 | F106: -3.298626286e-05 | G106: 0.0001055574872 | H106: -3.573576246e-05 | J106: -0.0003976585629 | K106: -0.004456214962 | L106: 0.002413841783 | M106: 0.02815863897 | N106: 4.716916491e-05
A107: =IF('DF raw data'!M112="","",'DF raw data'!M112) -> -277.5 | B107: =IF('DF raw data'!N112="","",'DF raw data'!N112) -> -2.16343e-05 | C107: =IF('DF raw data'!O112="","",'DF raw data'!O112) -> 0.000106661 | D107: =IF('DF raw data'!P112="","",'DF raw data'!P112) -> -3.15631e-05 | F107: -2.172516406e-05 | G107: 0.0001071089762 | H107: -3.169566502e-05 | J107: -0.0004085211449 | K107: -0.004660475535 | L107: 0.002467396272 | M107: 0.0293923371 | N107: 5.029663185e-05
A108: =IF('DF raw data'!M113="","",'DF raw data'!M113) -> -277 | B108: =IF('DF raw data'!N113="","",'DF raw data'!N113) -> -2.29866e-05 | C108: =IF('DF raw data'!O113="","",'DF raw data'!O113) -> 0.000111367 | D108: =IF('DF raw data'!P113="","",'DF raw data'!P113) -> -2.34034e-05 | F108: -2.308314372e-05 | G108: 0.0001118347414 | H108: -2.350169428e-05 | J108: -0.0004200627168 | K108: -0.004870506893 | L108: 0.002523313642 | M108: 0.03065399392 | N108: 5.356841406e-05
A109: =IF('DF raw data'!M114="","",'DF raw data'!M114) -> -276.5 | B109: =IF('DF raw data'!N114="","",'DF raw data'!N114) -> -1.38187e-05 | C109: =IF('DF raw data'!O114="","",'DF raw data'!O114) -> 0.000116323 | D109: =IF('DF raw data'!P114="","",'DF raw data'!P114) -> -2.71771e-05 | F109: -1.387673854e-05 | G109: 0.0001168115566 | H109: -2.729124382e-05 | J109: -0.000427001086 | K109: -0.005084007436 | L109: 0.002581719421 | M109: 0.03194485363 | N109: 5.699221661e-05
A110: =IF('DF raw data'!M115="","",'DF raw data'!M115) -> -276 | B110: =IF('DF raw data'!N115="","",'DF raw data'!N115) -> -1.22209e-05 | C110: =IF('DF raw data'!O115="","",'DF raw data'!O115) -> 0.000116459 | D110: =IF('DF raw data'!P115="","",'DF raw data'!P115) -> -2.16775e-05 | F110: -1.227222778e-05 | G110: 0.0001169481278 | H110: -2.17685455e-05 | J110: -0.0004331371999 | K110: -0.005300576036 | L110: 0.002640193484 | M110: 0.03326495038 | N110: 6.057133134e-05
A111: =IF('DF raw data'!M116="","",'DF raw data'!M116) -> -275.5 | B111: =IF('DF raw data'!N116="","",'DF raw data'!N116) -> -1.75314e-05 | C111: =IF('DF raw data'!O116="","",'DF raw data'!O116) -> 0.000106619 | D111: =IF('DF raw data'!P116="","",'DF raw data'!P116) -> -3.38819e-05 | F111: -1.760503188e-05 | G111: 0.0001070667998 | H111: -3.402420398e-05 | J111: -0.0004419397159 | K111: -0.005521545894 | L111: 0.002693726884 | M111: 0.03461181382 | N111: 6.429706896e-05
A112: =IF('DF raw data'!M117="","",'DF raw data'!M117) -> -275 | B112: =IF('DF raw data'!N117="","",'DF raw data'!N117) -> -1.63844e-05 | C112: =IF('DF raw data'!O117="","",'DF raw data'!O117) -> 0.000100294 | D112: =IF('DF raw data'!P117="","",'DF raw data'!P117) -> -2.54142e-05 | F112: -1.645321448e-05 | G112: 0.0001007152348 | H112: -2.552093964e-05 | J112: -0.0004501663231 | K112: -0.005746629056 | L112: 0.002744084502 | M112: 0.03598385607 | N112: 6.81633937e-05
A113: =IF('DF raw data'!M118="","",'DF raw data'!M118) -> -274.5 | B113: =IF('DF raw data'!N118="","",'DF raw data'!N118) -> -1.99693e-05 | C113: =IF('DF raw data'!O118="","",'DF raw data'!O118) -> 0.000103709 | D113: =IF('DF raw data'!P118="","",'DF raw data'!P118) -> -2.96464e-05 | F113: -2.005317106e-05 | G113: 0.0001041445778 | H113: -2.977091488e-05 | J113: -0.0004601929086 | K113: -0.00597672551 | L113: 0.002796156791 | M113: 0.03738193447 | N113: 7.217852885e-05
A114: =IF('DF raw data'!M119="","",'DF raw data'!M119) -> -274 | B114: =IF('DF raw data'!N119="","",'DF raw data'!N119) -> -2.54856e-05 | C114: =IF('DF raw data'!O119="","",'DF raw data'!O119) -> 0.000100477 | D114: =IF('DF raw data'!P119="","",'DF raw data'!P119) -> -2.38746e-05 | F114: -2.559263952e-05 | G114: 0.0001008990034 | H114: -2.397487332e-05 | J114: -0.0004729892284 | K114: -0.006213220124 | L114: 0.002846606292 | M114: 0.03880523761 | N114: 7.634197195e-05
A115: =IF('DF raw data'!M120="","",'DF raw data'!M120) -> -273.5 | B115: =IF('DF raw data'!N120="","",'DF raw data'!N120) -> -1.86274e-05 | C115: =IF('DF raw data'!O120="","",'DF raw data'!O120) -> 0.000102079 | D115: =IF('DF raw data'!P120="","",'DF raw data'!P120) -> -2.37536e-05 | F115: -1.870563508e-05 | G115: 0.0001025077318 | H115: -2.385336512e-05 | J115: -0.0004823420459 | K115: -0.006454391147 | L115: 0.002897860158 | M115: 0.04025416769 | N115: 8.065709562e-05
A116: =IF('DF raw data'!M121="","",'DF raw data'!M121) -> -273 | B116: =IF('DF raw data'!N121="","",'DF raw data'!N121) -> -1.96561e-05 | C116: =IF('DF raw data'!O121="","",'DF raw data'!O121) -> 0.000107034 | D116: =IF('DF raw data'!P121="","",'DF raw data'!P121) -> -2.01941e-05 | F116: -1.973865562e-05 | G116: 0.0001074835428 | H116: -2.027891522e-05 | J116: -0.0004922113737 | K116: -0.006700496834 | L116: 0.00295160193 | M116: 0.04172996866 | N116: 8.513420862e-05
A117: =IF('DF raw data'!M122="","",'DF raw data'!M122) -> -272.5 | B117: =IF('DF raw data'!N122="","",'DF raw data'!N122) -> -1.38783e-05 | C117: =IF('DF raw data'!O122="","",'DF raw data'!O122) -> 0.000100034 | D117: =IF('DF raw data'!P122="","",'DF raw data'!P122) -> -3.46681e-05 | F117: -1.393658886e-05 | G117: 0.0001004541428 | H117: -3.481370602e-05 | J117: -0.0004991796682 | K117: -0.006950086668 | L117: 0.003001829001 | M117: 0.04323088316 | N117: 8.976428746e-05
A118: =IF('DF raw data'!M123="","",'DF raw data'!M123) -> -272 | B118: =IF('DF raw data'!N123="","",'DF raw data'!N123) -> -3.29536e-06 | C118: =IF('DF raw data'!O123="","",'DF raw data'!O123) -> 9.92297e-05 | D118: =IF('DF raw data'!P123="","",'DF raw data'!P123) -> -4.81551e-05 | F118: -3.309200512e-06 | G118: 9.964646474e-05 | H118: -4.835735142e-05 | J118: -0.0005008342684 | K118: -0.007200503802 | L118: 0.003051652233 | M118: 0.04475670927 | N118: 9.454599562e-05
A119: =IF('DF raw data'!M124="","",'DF raw data'!M124) -> -271.5 | B119: =IF('DF raw data'!N124="","",'DF raw data'!N124) -> -1.36153e-05 | C119: =IF('DF raw data'!O124="","",'DF raw data'!O124) -> 9.60596e-05 | D119: =IF('DF raw data'!P124="","",'DF raw data'!P124) -> -4.48903e-05 | F119: -1.367248426e-05 | G119: 9.646305032e-05 | H119: -4.507883926e-05 | J119: -0.0005076705106 | K119: -0.007454339057 | L119: 0.003099883759 | M119: 0.04630665115 | N119: 9.947949995e-05
A120: =IF('DF raw data'!M125="","",'DF raw data'!M125) -> -271 | B120: =IF('DF raw data'!N125="","",'DF raw data'!N125) -> -9.06928e-06 | C120: =IF('DF raw data'!O125="","",'DF raw data'!O125) -> 9.71598e-05 | D120: =IF('DF raw data'!P125="","",'DF raw data'!P125) -> -3.88172e-05 | F120: -9.107370976e-06 | G120: 9.756787116e-05 | H120: -3.898023224e-05 | J120: -0.000512224196 | K120: -0.007710451155 | L120: 0.003148667694 | M120: 0.047880985 | N120: 0.0001045677409
A121: =IF('DF raw data'!M126="","",'DF raw data'!M126) -> -270.5 | B121: =IF('DF raw data'!N126="","",'DF raw data'!N126) -> -1.45204e-05 | C121: =IF('DF raw data'!O126="","",'DF raw data'!O126) -> 0.000103933 | D121: =IF('DF raw data'!P126="","",'DF raw data'!P126) -> -3.26802e-05 | F121: -1.458138568e-05 | G121: 0.0001043695186 | H121: -3.281745684e-05 | J121: -0.0005195148889 | K121: -0.0079702086 | L121: 0.003200852453 | M121: 0.04948141123 | N121: 0.000109825417
A122: =IF('DF raw data'!M127="","",'DF raw data'!M127) -> -270 | B122: =IF('DF raw data'!N127="","",'DF raw data'!N127) -> -1.57419e-05 | C122: =IF('DF raw data'!O127="","",'DF raw data'!O127) -> 0.000105947 | D122: =IF('DF raw data'!P127="","",'DF raw data'!P127) -> -2.71458e-05 | F122: -1.580801598e-05 | G122: 0.0001063919774 | H122: -2.725981236e-05 | J122: -0.0005274188969 | K122: -0.008233918048 | L122: 0.003254048442 | M122: 0.05110843545 | N122: 0.0001152589179
A123: =IF('DF raw data'!M128="","",'DF raw data'!M128) -> -269.5 | B123: =IF('DF raw data'!N128="","",'DF raw data'!N128) -> -1.83639e-05 | C123: =IF('DF raw data'!O128="","",'DF raw data'!O128) -> 9.86288e-05 | D123: =IF('DF raw data'!P128="","",'DF raw data'!P128) -> -3.48237e-05 | F123: -1.844102838e-05 | G123: 9.904304096e-05 | H123: -3.496995954e-05 | J123: -0.0005366394111 | K123: -0.008502237754 | L123: 0.003303569963 | M123: 0.05276022043 | N123: 0.0001208596961
A124: =IF('DF raw data'!M129="","",'DF raw data'!M129) -> -269 | B124: =IF('DF raw data'!N129="","",'DF raw data'!N129) -> -2.34337e-05 | C124: =IF('DF raw data'!O129="","",'DF raw data'!O129) -> 9.85168e-05 | D124: =IF('DF raw data'!P129="","",'DF raw data'!P129) -> -2.53186e-05 | F124: -2.353212154e-05 | G124: 9.893057056e-05 | H124: -2.542493812e-05 | J124: -0.0005484054718 | K124: -0.00877644049 | L124: 0.003353035248 | M124: 0.05443673805 | N124: 0.0001266314931
A125: =IF('DF raw data'!M130="","",'DF raw data'!M130) -> -268.5 | B125: =IF('DF raw data'!N130="","",'DF raw data'!N130) -> -1.02275e-05 | C125: =IF('DF raw data'!O130="","",'DF raw data'!O130) -> 0.00010258 | D125: =IF('DF raw data'!P130="","",'DF raw data'!P130) -> -3.1161e-05 | F125: -1.02704555e-05 | G125: 0.000103010836 | H125: -3.12918762e-05 | J125: -0.0005535406996 | K125: -0.00905321084 | L125: 0.003404540666 | M125: 0.05613900838 | N125: 0.0001325801453
A126: =IF('DF raw data'!M131="","",'DF raw data'!M131) -> -268 | B126: =IF('DF raw data'!N131="","",'DF raw data'!N131) -> -1.81697e-05 | C126: =IF('DF raw data'!O131="","",'DF raw data'!O131) -> 0.000106343 | D126: =IF('DF raw data'!P131="","",'DF raw data'!P131) -> -3.89746e-05 | F126: -1.824601274e-05 | G126: 0.0001067896406 | H126: -3.913829332e-05 | J126: -0.0005626637059 | K126: -0.009334542693 | L126: 0.003457935486 | M126: 0.05786797613 | N126: 0.0001387170995
A127: =IF('DF raw data'!M132="","",'DF raw data'!M132) -> -267.5 | B127: =IF('DF raw data'!N132="","",'DF raw data'!N132) -> -1.55508e-05 | C127: =IF('DF raw data'!O132="","",'DF raw data'!O132) -> 9.64293e-05 | D127: =IF('DF raw data'!P132="","",'DF raw data'!P132) -> -2.49525e-05 | F127: -1.561611336e-05 | G127: 9.683430306e-05 | H127: -2.50573005e-05 | J127: -0.0005704717626 | K127: -0.009619778574 | L127: 0.003506352638 | M127: 0.05962115245 | N127: 0.0001450270729
A128: =IF('DF raw data'!M133="","",'DF raw data'!M133) -> -267 | B128: =IF('DF raw data'!N133="","",'DF raw data'!N133) -> -1.41375e-05 | C128: =IF('DF raw data'!O133="","",'DF raw data'!O133) -> 9.56353e-05 | D128: =IF('DF raw data'!P133="","",'DF raw data'!P133) -> -3.08823e-05 | F128: =(1-$G$1*($B$49-$G$2))*B128 -> -1.41968775e-05 | G128: 9.603696826e-05 | H128: -3.101200566e-05 | J128: =F128*$G$3+J127 -> -0.0005775702014 | K128: =J128*$G$3+K127 -> -0.009908563675 | L128: =G128*$G$3+L127 -> 0.003554371122 | M128: =L128*$G$3+M127 -> 0.06139833801 | N128: =(J128^2+L128^2)*$G$3+N127 -> 0.0001515106436
A129: =IF('DF raw data'!M134="","",'DF raw data'!M134) -> -266.5 | B129: =IF('DF raw data'!N134="","",'DF raw data'!N134) -> -1.00985e-05 | C129: =IF('DF raw data'!O134="","",'DF raw data'!O134) -> 9.66157e-05 | D129: =IF('DF raw data'!P134="","",'DF raw data'!P134) -> -3.24304e-05 | F129: -1.01409137e-05 | G129: 9.702148594e-05 | H129: -3.256660768e-05 | J129: -0.0005826406582 | K129: -0.010199884 | L129: 0.003602881865 | M129: 0.06319977894 | N129: 0.0001581707575
A130: =IF('DF raw data'!M135="","",'DF raw data'!M135) -> -266 | B130: =IF('DF raw data'!N135="","",'DF raw data'!N135) -> -1.03546e-05 | C130: =IF('DF raw data'!O135="","",'DF raw data'!O135) -> 9.21182e-05 | D130: =IF('DF raw data'!P135="","",'DF raw data'!P135) -> -3.30773e-05 | F130: -1.039808932e-05 | G130: 9.250509644e-05 | H130: -3.321622466e-05 | J130: -0.0005878397029 | K130: -0.01049380386 | L130: 0.003649134413 | M130: 0.06502434615 | N130: 0.0001650016263
A131: =IF('DF raw data'!M136="","",'DF raw data'!M136) -> -265.5 | B131: =IF('DF raw data'!N136="","",'DF raw data'!N136) -> -1.31134e-05 | C131: =IF('DF raw data'!O136="","",'DF raw data'!O136) -> 8.9493e-05 | D131: =IF('DF raw data'!P136="","",'DF raw data'!P136) -> -2.79804e-05 | F131: -1.316847628e-05 | G131: 8.98688706e-05 | H131: -2.809791768e-05 | J131: -0.000594423941 | K131: -0.01079101583 | L131: 0.003694068848 | M131: 0.06687138057 | N131: 0.0001720013685
A132: =IF('DF raw data'!M137="","",'DF raw data'!M137) -> -265 | B132: =IF('DF raw data'!N137="","",'DF raw data'!N137) -> -1.42606e-05 | C132: =IF('DF raw data'!O137="","",'DF raw data'!O137) -> 9.0369e-05 | D132: =IF('DF raw data'!P137="","",'DF raw data'!P137) -> -3.87437e-05 | F132: -1.432049452e-05 | G132: 9.07485498e-05 | H132: -3.890642354e-05 | J132: -0.0006015841883 | K132: -0.01109180792 | L132: 0.003739443123 | M132: 0.06874110213 | N132: 0.0001791740377
A133: =IF('DF raw data'!M138="","",'DF raw data'!M138) -> -264.5 | B133: =IF('DF raw data'!N138="","",'DF raw data'!N138) -> -2.02887e-05 | C133: =IF('DF raw data'!O138="","",'DF raw data'!O138) -> 0.000104233 | D133: =IF('DF raw data'!P138="","",'DF raw data'!P138) -> -3.17786e-05 | F133: -2.037391254e-05 | G133: 0.0001046707786 | H133: -3.191207012e-05 | J133: -0.0006117711446 | K133: -0.01139769349 | L133: 0.003791778513 | M133: 0.07063699139 | N133: 0.0001865499618
A134: =IF('DF raw data'!M139="","",'DF raw data'!M139) -> -264 | B134: =IF('DF raw data'!N139="","",'DF raw data'!N139) -> -2.54811e-05 | C134: =IF('DF raw data'!O139="","",'DF raw data'!O139) -> 0.000110113 | D134: =IF('DF raw data'!P139="","",'DF raw data'!P139) -> -3.07133e-05 | F134: -2.558812062e-05 | G134: 0.0001105754746 | H134: -3.084229586e-05 | J134: -0.0006245652049 | K134: -0.01170997609 | L134: 0.00384706625 | M134: 0.07256052451 | N134: 0.000194144962
A135: =IF('DF raw data'!M140="","",'DF raw data'!M140) -> -263.5 | B135: =IF('DF raw data'!N140="","",'DF raw data'!N140) -> -1.94016e-05 | C135: =IF('DF raw data'!O140="","",'DF raw data'!O140) -> 0.000103787 | D135: =IF('DF raw data'!P140="","",'DF raw data'!P140) -> -1.62489e-05 | F135: -1.948308672e-05 | G135: 0.0001042229054 | H135: -1.631714538e-05 | J135: -0.0006343067482 | K135: -0.01202712947 | L135: 0.003899177703 | M135: 0.07451011336 | N135: 0.0002019479279
A136: =IF('DF raw data'!M141="","",'DF raw data'!M141) -> -263 | B136: =IF('DF raw data'!N141="","",'DF raw data'!N141) -> -2.00935e-05 | C136: =IF('DF raw data'!O141="","",'DF raw data'!O141) -> 9.90996e-05 | D136: =IF('DF raw data'!P141="","",'DF raw data'!P141) -> -3.72799e-05 | F136: -2.01778927e-05 | G136: 9.951581832e-05 | H136: -3.743647558e-05 | J136: -0.0006443956946 | K136: -0.01234932732 | L136: 0.003948935612 | M136: 0.07648458117 | N136: 0.0002099525971
A137: =IF('DF raw data'!M142="","",'DF raw data'!M142) -> -262.5 | B137: =IF('DF raw data'!N142="","",'DF raw data'!N142) -> -2.62494e-05 | C137: =IF('DF raw data'!O142="","",'DF raw data'!O142) -> 0.000109444 | D137: =IF('DF raw data'!P142="","",'DF raw data'!P142) -> -3.03131e-05 | F137: -2.635964748e-05 | G137: 0.0001099036648 | H137: -3.044041502e-05 | J137: -0.0006575755183 | K137: -0.01267811508 | L137: 0.004003887444 | M137: 0.07848652489 | N137: 0.0002181843572
A138: =IF('DF raw data'!M143="","",'DF raw data'!M143) -> -262 | B138: =IF('DF raw data'!N143="","",'DF raw data'!N143) -> -2.02997e-05 | C138: =IF('DF raw data'!O143="","",'DF raw data'!O143) -> 0.000115559 | D138: =IF('DF raw data'!P143="","",'DF raw data'!P143) -> -1.59083e-05 | F138: -2.038495874e-05 | G138: 0.0001160443478 | H138: -1.597511486e-05 | J138: -0.0006677679977 | K138: -0.01301199907 | L138: 0.004061909618 | M138: 0.0805174797 | N138: 0.0002266568691
A139: =IF('DF raw data'!M144="","",'DF raw data'!M144) -> -261.5 | B139: =IF('DF raw data'!N144="","",'DF raw data'!N144) -> -7.79574e-06 | C139: =IF('DF raw data'!O144="","",'DF raw data'!O144) -> 0.000103151 | D139: =IF('DF raw data'!P144="","",'DF raw data'!P144) -> -2.58244e-05 | F139: -7.828482108e-06 | G139: 0.0001035842342 | H139: -2.593286248e-05 | J139: -0.0006716822387 | K139: -0.01334784019 | L139: 0.004113701735 | M139: 0.08257433057 | N139: 0.0002353437186
A140: =IF('DF raw data'!M145="","",'DF raw data'!M145) -> -261 | B140: =IF('DF raw data'!N145="","",'DF raw data'!N145) -> -2.14435e-05 | C140: =IF('DF raw data'!O145="","",'DF raw data'!O145) -> 8.96031e-05 | D140: =IF('DF raw data'!P145="","",'DF raw data'!P145) -> -3.09462e-05 | F140: -2.15335627e-05 | G140: 8.997943302e-05 | H140: -3.107617404e-05 | J140: -0.0006824490201 | K140: -0.0136890647 | L140: 0.004158691452 | M140: 0.0846536763 | N140: 0.0002442239442
A141: =IF('DF raw data'!M146="","",'DF raw data'!M146) -> -260.5 | B141: =IF('DF raw data'!N146="","",'DF raw data'!N146) -> -1.83569e-05 | C141: =IF('DF raw data'!O146="","",'DF raw data'!O146) -> 9.60568e-05 | D141: =IF('DF raw data'!P146="","",'DF raw data'!P146) -> -4.55607e-05 | F141: -1.843399898e-05 | G141: 9.646023856e-05 | H141: -4.575205494e-05 | J141: -0.0006916660196 | K141: -0.01403489771 | L141: 0.004206921571 | M141: 0.08675713708 | N141: 0.0002533122397
A142: =IF('DF raw data'!M147="","",'DF raw data'!M147) -> -260 | B142: =IF('DF raw data'!N147="","",'DF raw data'!N147) -> -2.69516e-05 | C142: =IF('DF raw data'!O147="","",'DF raw data'!O147) -> 9.83618e-05 | D142: =IF('DF raw data'!P147="","",'DF raw data'!P147) -> -3.63502e-05 | F142: -2.706479672e-05 | G142: 9.877491956e-05 | H142: -3.650287084e-05 | J142: -0.0007051984179 | K142: -0.01438749692 | L142: 0.004256309031 | M142: 0.0888852916 | N142: 0.0002626189754
